Workbook

Sheet Instructions
A1: VIRGINIA DEPARTMENT OF EDUCATION
A2: COMPOSITE INDEX OF LOCAL ABILITY-TO-PAY
A3: 2020-2022 BIENNIUM
A4: INSTRUCTIONS FOR USING THE CALCULATION TEMPLATE:
A5: 1. Select the school division to be calculated using the drop-down box located at the top of the sheet labeled "2020-2022 Calculation Template." A box will appear that asks you to confirm that you have chosen the correct division. If the division name is correct, click "Yes." If you have selected the wrong division, click "No" and select the correct division using the drop-down box.
A6: 2. After you have confirmed your division selection using the drop-down box, the 2020-2022 composite index of local ability-to-pay for the selected division will automatically be calculated.
A7: 3. Note: The sheet labeled "Trend Analysis" provides the percentage change in the data elements used to calculate the composite index for a division for the 2018-2020 and 2020-2022 biennia as compared to the percentage change in the statewide average of these data elements between the 2018-2020 and 2020-2022 biennia. This data will assist you in assessing the components of the formula that contributed to a change in the composite index for a division between 2018-2020 and 2020-2022.
A8: 4. Included are six sheets that provide biennial comparisons of composite indices as well as base year data for True Value of Property, Adjusted Gross Income, Taxable Retail Sales, Population, and March 31 ADM for the 2018-2020 and 2020-2022 biennia. This data is for your information to compare the base data used to calculate the composite indices for both biennia. You have the ability to sort this data. To sort the data, please click on the yellow box to the right of the data table and select the option for sorting the data.
A9: If you have questions regarding the instructions or the Excel template, please contact the budget office staff at (804) 225-2025 or email us at Doebudgetoffice@doe.virginia.gov.
A10: Updated 11/1/19
A11: End of worksheet
A17: End of worksheet

Sheet dropdown (hidden)
A1: <SELECT DIVISION>
A2: 001 - ACCOMACK
A3: 002 - ALBEMARLE
A4: 003 - ALLEGHANY
A5: 004 - AMELIA
A6: 005 - AMHERST
A7: 006 - APPOMATTOX
A8: 007 - ARLINGTON
A9: 008 - AUGUSTA
A10: 009 - BATH
A11: 010 - BEDFORD
A12: 011 - BLAND
A13: 012 - BOTETOURT
A14: 013 - BRUNSWICK
A15: 014 - BUCHANAN
A16: 015 - BUCKINGHAM
A17: 016 - CAMPBELL
A18: 017 - CAROLINE
A19: 018 - CARROLL
A20: 019 - CHARLES CITY COUNTY
A21: 020 - CHARLOTTE
A22: 021 - CHESTERFIELD
A23: 022 - CLARKE
A24: 023 - CRAIG
A25: 024 - CULPEPER
A26: 025 - CUMBERLAND
A27: 026 - DICKENSON
A28: 027 - DINWIDDIE
A29: 028 - ESSEX
A30: 029 - FAIRFAX
A31: 030 - FAUQUIER
A32: 031 - FLOYD
A33: 032 - FLUVANNA
A34: 033 - FRANKLIN
A35: 034 - FREDERICK
A36: 035 - GILES
A37: 036 - GLOUCESTER
A38: 037 - GOOCHLAND
A39: 038 - GRAYSON
A40: 039 - GREENE
A41: 040 - GREENSVILLE
A42: 041 - HALIFAX
A43: 042 - HANOVER
A44: 043 - HENRICO
A45: 044 - HENRY
A46: 045 - HIGHLAND
A47: 046 - ISLE OF WIGHT
A48: 047 - JAMES CITY COUNTY
A49: 048 - KING GEORGE
A50: 049 - KING AND QUEEN
A51: 050 - KING WILLIAM
A52: 051 - LANCASTER
A53: 052 - LEE
A54: 053 - LOUDOUN
A55: 054 - LOUISA
A56: 055 - LUNENBURG
A57: 056 - MADISON
A58: 057 - MATHEWS
A59: 058 - MECKLENBURG
A60: 059 - MIDDLESEX
A61: 060 - MONTGOMERY
A62: 062 - NELSON
A63: 063 - NEW KENT
A64: 065 - NORTHAMPTON
A65: 066 - NORTHUMBERLAND
A66: 067 - NOTTOWAY
A67: 068 - ORANGE
A68: 069 - PAGE
A69: 070 - PATRICK
A70: 071 - PITTSYLVANIA
A71: 072 - POWHATAN
A72: 073 - PRINCE EDWARD
A73: 074 - PRINCE GEORGE
A74: 075 - PRINCE WILLIAM
A75: 077 - PULASKI
A76: 078 - RAPPAHANNOCK
A77: 079 - RICHMOND
A78: 080 - ROANOKE
A79: 081 - ROCKBRIDGE
A80: 082 - ROCKINGHAM
A81: 083 - RUSSELL
A82: 084 - SCOTT
A83: 085 - SHENANDOAH
A84: 086 - SMYTH
A85: 087 - SOUTHAMPTON
A86: 088 - SPOTSYLVANIA
A87: 089 - STAFFORD
A88: 090 - SURRY
A89: 091 - SUSSEX
A90: 092 - TAZEWELL
A91: 093 - WARREN
A92: 094 - WASHINGTON
A93: 095 - WESTMORELAND
A94: 096 - WISE
A95: 097 - WYTHE
A96: 098 - YORK
A97: 101 - ALEXANDRIA CITY
A98: 102 - BRISTOL CITY
A99: 103 - BUENA VISTA CITY
A100: 104 - CHARLOTTESVILLE CITY
A101: 106 - COLONIAL HEIGHTS CITY
A102: 107 - COVINGTON CITY
A103: 108 - DANVILLE CITY
A104: 109 - FALLS CHURCH CITY
A105: 110 - FREDERICKSBURG CITY
A106: 111 - GALAX CITY
A107: 112 - HAMPTON CITY
A108: 113 - HARRISONBURG CITY
A109: 114 - HOPEWELL CITY
A110: 115 - LYNCHBURG CITY
A111: 116 - MARTINSVILLE CITY
A112: 117 - NEWPORT NEWS CITY
A113: 118 - NORFOLK CITY
A114: 119 - NORTON CITY
A115: 120 - PETERSBURG CITY
A116: 121 - PORTSMOUTH CITY
A117: 122 - RADFORD CITY
A118: 123 - RICHMOND CITY
A119: 124 - ROANOKE CITY
A120: 126 - STAUNTON CITY
A121: 127 - SUFFOLK CITY
A122: 128 - VIRGINIA BEACH CITY
A123: 130 - WAYNESBORO CITY
A124: 131 - WILLIAMSBURG CITY
A125: 132 - WINCHESTER CITY
A126: 134 - FAIRFAX CITY
A127: 135 - FRANKLIN CITY
A128: 136 - CHESAPEAKE CITY
A129: 137 - LEXINGTON CITY
A130: 139 - SALEM CITY
A131: 138 - EMPORIA
A132: 142 - POQUOSON CITY
A133: 143 - MANASSAS CITY
A134: 144 - MANASSAS PARK CITY
A135: 202 - COLONIAL BEACH
A136: 207 - WEST POINT

Sheet 2020-2022 Calculation Template
A1: Pick your school division from the drop down box | N1: Division Number: | AR1: School Division | AT1: 2016-2018 Composite Index | AU1: From Template | AV1: Variance
A2: ="Calculation of the 2020-2022 Composite Index for "&R22&"" ->  | N2: <SE | AR2: 1 | AS2: ACCOMACK | AT2: =VLOOKUP(AR2,'Comp Index Comparison - Ranked'!$B$6:$D$140,3,FALSE) -> 0.3374 | AU2: 0.3553 | AV2: =AT2-AU2 -> -0.0179
A3: Step 1 -- Calculation of the 2020-2022 Average Daily Membership Composite Index: | Q3: Step 3 -- Combining of the Two 2020-2022 Indices of Ability-to-Pay: | AR3: 2 | AS3: ALBEMARLE | AT3: =VLOOKUP(AR3,'Comp Index Comparison - Ranked'!$B$6:$D$140,3,FALSE) -> 0.6449 | AU3: 0.6504 | AV3: -0.0055
A4: no data | C4: no data | D4: no data | E4: no data | F4: no data | G4: no data | H4: no data | I4: no data | J4: no data | K4: no data | L4: no data | M4: no data | N4: no data | O4: no data | P4: no data | AC4: Local | AR4: 3 | AS4: ALLEGHANY | AT4: =VLOOKUP(AR4,'Comp Index Comparison - Ranked'!$B$6:$D$140,3,FALSE) -> 0.2819 | AU4: 0.2425 | AV4: 0.0394
H5: Local Adjusted | Q5: (.6667 X ADM Composite Index) + (.3333 X Per Capita Composite Index) | AB5: = | AC5: Composite | AR5: 4 | AS5: AMELIA | AT5: =VLOOKUP(AR5,'Comp Index Comparison - Ranked'!$B$6:$D$140,3,FALSE) -> 0.3479 | AU5: 0.3308 | AV5: 0.0171
C6: Local True Values | H6: Gross Income | M6: Local Taxable Retail Sales | AC6: Index | AR6: 5 | AS6: AMHERST | AT6: =VLOOKUP(AR6,'Comp Index Comparison - Ranked'!$B$6:$D$140,3,FALSE) -> 0.3141 | AU6: 0.3079 | AV6: 0.0062
C7: Division ADM | H7: Division ADM | M7: Division ADM | P7: ADM | AR7: 6 | AS7: APPOMATTOX | AT7: =VLOOKUP(AR7,'Comp Index Comparison - Ranked'!$B$6:$D$140,3,FALSE) -> 0.2978 | AU7: 0.3079 | AV7: -0.0101
A8: 0.5 | C8: - | E8: + | F8: 0.4 | H8: - | J8: + | K8: 0.1 | M8: - | O8: = | P8: Composite | AR8: 7 | AS8: ARLINGTON | AT8: =VLOOKUP(AR8,'Comp Index Comparison - Ranked'!$B$6:$D$140,3,FALSE) -> 0.8 | AU8: 0.8 | AV8: 0
C9: Statewide Total of | H9: Total State Adjusted | M9: Total State Taxable Retail Sales | P9: Index | AC9: Local | AR9: 8 | AS9: AUGUSTA | AT9: =VLOOKUP(AR9,'Comp Index Comparison - Ranked'!$B$6:$D$140,3,FALSE) -> 0.3769 | AU9: 0.3543 | AV9: 0.0226
C10: Local True Values | H10: Gross Income | M10: Total State ADM | S10: ( | T10: .6667 X | U10: =P29 ->  | V10: ) | W10: + | X10: ( | Y10: .3333 X | Z10: =P56 ->  | AA10: ) | AB10: = | AC10: Composite | AR10: 9 | AS10: BATH | AT10: =VLOOKUP(AR10,'Comp Index Comparison - Ranked'!$B$6:$D$140,3,FALSE) -> 0.8 | AU10: 0.8 | AV10: 0
C11: Total State ADM | H11: Total State ADM | AC11: Index | AR11: 10 | AS11: BEDFORD COUNTY | AT11: =VLOOKUP(AR11,'Comp Index Comparison - Ranked'!$B$6:$D$140,3,FALSE) -> 0.3132 | AU11: 0.4109 | AV11: -0.0977
A12: no data | B12: no data | C12: no data | D12: no data | E12: no data | F12: no data | G12: no data | H12: no data | I12: no data | J12: no data | K12: no data | L12: no data | M12: no data | N12: no data | O12: no data | P12: no data | AR12: 11 | AS12: BLAND | AT12: =VLOOKUP(AR12,'Comp Index Comparison - Ranked'!$B$6:$D$140,3,FALSE) -> 0.338 | AU12: 0.3252 | AV12: 0.0128
AR13: 12 | AS13: BOTETOURT | AT13: =VLOOKUP(AR13,'Comp Index Comparison - Ranked'!$B$6:$D$140,3,FALSE) -> 0.3975 | AU13: 0.3718 | AV13: 0.0257
C14: =R23 ->  | H14: =R24 ->  | M14: =R25 ->  | AC14: Local | AR14: 13 | AS14: BRUNSWICK | AT14: =VLOOKUP(AR14,'Comp Index Comparison - Ranked'!$B$6:$D$140,3,FALSE) -> 0.429 | AU14: 0.2984 | AV14: 0.1306
C15: =R26 ->  | H15: =R26 ->  | M15: =R26 ->  | P15: ADM | U15: =ROUND(+U10*0.6667,4) ->  | W15: + | Y15: =ROUND(+Z10*0.3333,4) ->  | AB15: = | AC15: Composite | AR15: 14 | AS15: BUCHANAN | AT15: =VLOOKUP(AR15,'Comp Index Comparison - Ranked'!$B$6:$D$140,3,FALSE) -> 0.2975 | AU15: 0.357 | AV15: -0.0595
A16: 0.5 | C16: - | E16: + | F16: 0.4 | H16: - | J16: + | K16: 0.1 | M16: - | O16: = | P16: Composite | AC16: Index | AR16: 15 | AS16: BUCKINGHAM | AT16: =VLOOKUP(AR16,'Comp Index Comparison - Ranked'!$B$6:$D$140,3,FALSE) -> 0.3422 | AU16: 0.3346 | AV16: 0.0076
C17: =R28 -> 1.255682913e+12 | H17: =R29 -> 2.768975217e+11 | M17: =R30 -> 1.037366095e+11 | P17: Index | Q17: =IF(N2=3,"Step 4 -- Final Composite Index (adjusted for nominal state/local shares). Please see note below on Alleghany County's Composite Index.",IF(N2=10,"Step 4 -- Final Composite Index (adjusted for nominal state/local shares). Please see note below on Bedford County's Composite Index.","Step 4 -- Final Composite Index (adjusted for nominal state/local shares)")) -> Step 4 -- Final Composite Index (adjusted for nominal state/local shares) | AC17: =U18*0.45 ->  | AR17: 16 | AS17: CAMPBELL | AT17: =VLOOKUP(AR17,'Comp Index Comparison - Ranked'!$B$6:$D$140,3,FALSE) -> 0.2878 | AU17: 0.2759 | AV17: 0.0119
C18: =R31 -> 1246930.65 | H18: =R31 -> 1246930.65 | M18: =R31 -> 1246930.65 | T18: ( | U18: =U15+Y15 ->  | V18: ) | X18: X | Y18: 0.45 | AB18: = | AC18: =ROUND(IF(AC17>0.8,"0.8000",AC17), 4) ->  | AR18: 17 | AS18: CAROLINE | AT18: =VLOOKUP(AR18,'Comp Index Comparison - Ranked'!$B$6:$D$140,3,FALSE) -> 0.3553 | AU18: 0.3272 | AV18: 0.0281
A19: no data | B19: no data | C19: no data | D19: no data | E19: no data | F19: no data | G19: no data | H19: no data | I19: no data | J19: no data | K19: no data | L19: no data | M19: no data | N19: no data | O19: no data | P19: no data | Q19: Input Data: | AR19: 18 | AS19: CARROLL | AT19: =VLOOKUP(AR19,'Comp Index Comparison - Ranked'!$B$6:$D$140,3,FALSE) -> 0.2749 | AU19: 0.2695 | AV19: 0.0054
A20: no data | B20: no data | C20: no data | D20: no data | E20: no data | F20: no data | G20: no data | H20: no data | I20: no data | J20: no data | K20: no data | L20: no data | M20: no data | N20: no data | O20: no data | P20: no data | Q20: no data | R20: no data | AR20: 19 | AS20: CHARLES CITY | AT20: =VLOOKUP(AR20,'Comp Index Comparison - Ranked'!$B$6:$D$140,3,FALSE) -> 0.588 | AU20: 0.4431 | AV20: 0.1449
C21: =ROUND(C14/C15,2) ->  | H21: =ROUND(H14/H15,2) ->  | M21: =ROUND(M14/M15,2) ->  | P21: ADM | Q21: Source Data Used in the Calculation: | AR21: 20 | AS21: CHARLOTTE | AT21: =VLOOKUP(AR21,'Comp Index Comparison - Ranked'!$B$6:$D$140,3,FALSE) -> 0.2444 | AU21: 0.2579 | AV21: -0.0135
A22: 0.5 | C22: - | E22: + | F22: 0.4 | H22: - | J22: + | K22: 0.1 | M22: - | O22: = | P22: Composite | Q22: School Division: | R22: =VLOOKUP(N2, 'true value analysis'!A10:B144, 2, FALSE) ->  | AR22: 21 | AS22: CHESTERFIELD | AT22: =VLOOKUP(AR22,'Comp Index Comparison - Ranked'!$B$6:$D$140,3,FALSE) -> 0.3584 | AU22: 0.3495 | AV22: 0.0089
C23: =ROUND(C17/C18,2) -> 1007019.05 | H23: =ROUND(H17/H18,2) -> 222063.29 | M23: =ROUND(M17/M18,2) -> 83193.57 | P23: Index | Q23: Local True Value of Property | R23: =VLOOKUP($N$2, '2020-2022 Composite Index Data'!$A$5:$G$139, 3, FALSE) ->  | AR23: 22 | AS23: CLARKE | AT23: =VLOOKUP(AR23,'Comp Index Comparison - Ranked'!$B$6:$D$140,3,FALSE) -> 0.5729 | AU23: 0.5151 | AV23: 0.0578
A24: no data | B24: no data | C24: no data | D24: no data | E24: no data | F24: no data | G24: no data | H24: no data | I24: no data | J24: no data | K24: no data | L24: no data | M24: no data | N24: no data | O24: no data | P24: no data | Q24: Local AGI | R24: =IF(ISERROR(VLOOKUP(N2,'2020-22 Comp Index Non-Res. AGI'!$A$5:$AJ$139,36,FALSE)),VLOOKUP($N$2,'2020-2022 Composite Index Data'!$A$5:$G$139,4,FALSE),IF(VLOOKUP(N2,'2020-22 Comp Index Non-Res. AGI'!$A$5:$AJ$139,36)="YES",VLOOKUP($N$2,'2020-22 Comp Index Non-Res. AGI'!$A$5:$D$138,4,FALSE),VLOOKUP($N$2,'2020-2022 Composite Index Data'!$A$5:$G$139,4,FALSE))) ->  | AR24: 23 | AS24: CRAIG | AT24: =VLOOKUP(AR24,'Comp Index Comparison - Ranked'!$B$6:$D$140,3,FALSE) -> 0.3336 | AU24: 0.3155 | AV24: 0.0181
A25: no data | B25: no data | C25: no data | D25: no data | E25: no data | F25: no data | G25: no data | H25: no data | I25: no data | J25: no data | K25: no data | L25: no data | M25: no data | N25: no data | P25: ADM | Q25: Local Taxable Retail Sales | R25: =VLOOKUP($N$2, '2020-2022 Composite Index Data'!$A$5:$G$139, 5, FALSE) ->  | AR25: 24 | AS25: CULPEPER | AT25: =VLOOKUP(AR25,'Comp Index Comparison - Ranked'!$B$6:$D$140,3,FALSE) -> 0.3741 | AU25: 0.3444 | AV25: 0.0297
A26: 0.5 | C26: =ROUND(C21/C23,4) ->  | E26: + | F26: 0.4 | H26: =ROUND(H21/H23,4) ->  | J26: + | K26: 0.1 | M26: =ROUND(M21/M23,4) ->  | O26: = | P26: Composite | Q26: Division ADM | R26: =VLOOKUP($N$2, '2020-2022 Composite Index Data'!$A$5:$G$139, 6, FALSE) ->  | AR26: 25 | AS26: CUMBERLAND | AT26: =VLOOKUP(AR26,'Comp Index Comparison - Ranked'!$B$6:$D$140,3,FALSE) -> 0.2978 | AU26: 0.278 | AV26: 0.0198
A27: no data | B27: no data | C27: no data | D27: no data | E27: no data | F27: no data | G27: no data | H27: no data | I27: no data | J27: no data | K27: no data | L27: no data | M27: no data | N27: no data | O27: no data | P27: Index | Q27: Local Population | R27: =VLOOKUP($N$2, '2020-2022 Composite Index Data'!$A$5:$G$139, 7, FALSE) ->  | AR27: 26 | AS27: DICKENSON | AT27: =VLOOKUP(AR27,'Comp Index Comparison - Ranked'!$B$6:$D$140,3,FALSE) -> 0.2471 | AU27: 0.2709 | AV27: -0.0238
A28: no data | B28: no data | C28: no data | D28: no data | E28: no data | F28: no data | G28: no data | H28: no data | I28: no data | J28: no data | K28: no data | L28: no data | M28: no data | N28: no data | O28: no data | P28: no data | Q28: State True Value of Property | R28: ='true value analysis'!D146 -> 1.255682913e+12 | AR28: 27 | AS28: DINWIDDIE | AT28: =VLOOKUP(AR28,'Comp Index Comparison - Ranked'!$B$6:$D$140,3,FALSE) -> 0.2879 | AU28: 0.2881 | AV28: -0.0002
C29: =ROUND(A26*C26,4) ->  | E29: + | H29: =ROUND(F26*H26,4) ->  | J29: + | M29: =ROUND(K26*M26,4) ->  | O29: = | P29: =M29+H29+C29 ->  | Q29: State AGI | R29: =IF(ISERROR(VLOOKUP(N2,'2020-22 Comp Index Non-Res. AGI'!$A$5:$AJ$173,36,FALSE)), '2020-2022 Composite Index Data'!D140, IF(VLOOKUP(N2,'2020-22 Comp Index Non-Res. AGI'!$A$5:$AJ$173,36,FALSE) ="YES",'2020-22 Comp Index Non-Res. AGI'!D139,'2020-2022 Composite Index Data'!D140)) -> 2.768975217e+11 | AR29: 28 | AS29: ESSEX | AT29: =VLOOKUP(AR29,'Comp Index Comparison - Ranked'!$B$6:$D$140,3,FALSE) -> 0.4636 | AU29: 0.4021 | AV29: 0.0615
A30: Step 2 -- Calculation of the 2020-2022 Per Capita Composite Index: | M30: no data | N30: no data | O30: no data | P30: no data | Q30: State Taxable Retail Sales | R30: ='taxable retail analysis'!D146 -> 1.037366095e+11 | AR30: 29 | AS30: FAIRFAX COUNTY | AT30: =VLOOKUP(AR30,'Comp Index Comparison - Ranked'!$B$6:$D$140,3,FALSE) -> 0.6541 | AU30: 0.6804 | AV30: -0.0263
A31: no data | B31: no data | C31: no data | D31: no data | E31: no data | F31: no data | G31: no data | H31: no data | I31: no data | J31: no data | K31: no data | L31: no data | M31: no data | N31: no data | O31: no data | P31: no data | Q31: State ADM | R31: ='ADM & Population Analysis'!D146 -> 1246930.65 | AR31: 30 | AS31: FAUQUIER | AT31: =VLOOKUP(AR31,'Comp Index Comparison - Ranked'!$B$6:$D$140,3,FALSE) -> 0.5879 | AU31: 0.5584 | AV31: 0.0295
H32: Local Adjusted | Q32: State Population | R32: ='ADM & Population Analysis'!K146 -> 8470020 | AR32: 31 | AS32: FLOYD | AT32: =VLOOKUP(AR32,'Comp Index Comparison - Ranked'!$B$6:$D$140,3,FALSE) -> 0.3418 | AU32: 0.3468 | AV32: -0.005
C33: Local True Values | H33: Gross Income | M33: Local Taxable Retail Sales | AR33: 32 | AS33: FLUVANNA | AT33: =VLOOKUP(AR33,'Comp Index Comparison - Ranked'!$B$6:$D$140,3,FALSE) -> 0.394 | AU33: 0.3834 | AV33: 0.0106
C34: Local Population | H34: Local Population | M34: Local Population | P34: Per Capita | Q34: EXCEPTIONS: | AR34: 33 | AS34: FRANKLIN COUNTY | AT34: =VLOOKUP(AR34,'Comp Index Comparison - Ranked'!$B$6:$D$140,3,FALSE) -> 0.3953 | AU34: 0.4136 | AV34: =AT34-AU34 -> -0.0183
A35: 0.5 | C35: - | E35: + | F35: 0.4 | H35: - | J35: + | K35: 0.1 | M35: - | O35: = | P35: Composite | Q35: *Please note the following exceptions to the standard composite index calculation as specified in the appropriation act (see actual appropriation act language under the tab labeled "Appropriation Act Language"): 1) For those divisions in which three percent or more of the adjusted gross income is derived from individuals who are not residents of Virginia, the Department of Education shall compute the composite index for such localities by using adjusted gross income data which exclude nonresident income. School divisions are no longer required to submit a certification form requesting the exclusion of nonresident AGI. 2) Any division with a calculated composite index that exceeds .8000 is considered as having an index of .8000; 3) Under hold harmless provisions addressing the consolidation of school divisions contained in the appropriation act and Section 15.2-1302, Code of Virginia, the composite indices to be used for funding in the 2020-2022 biennium for the following divisions are: Bedford County: .3132 (the index approved effective July 1, 2013); the 2020-2022 composite index for Bedford County calculated based on the data elements from base-year 2017 is shown above as .4359. This lower composite index of .3132 will be used for Bedford County. | AR35: 34 | AS35: FREDERICK | AT35: =VLOOKUP(AR35,'Comp Index Comparison - Ranked'!$B$6:$D$140,3,FALSE) -> 0.412 | AU35: 0.3718 | AV35: 0.0402
C36: Statewide Total of Local True Values | H36: Total State Adjusted | M36: Total State Taxable Retail Sales | P36: Index | AR36: 35 | AS36: GILES | AT36: =VLOOKUP(AR36,'Comp Index Comparison - Ranked'!$B$6:$D$140,3,FALSE) -> 0.2695 | AU36: 0.2866 | AV36: -0.0171
C37: State Population | H37: Gross Income | M37: State Population | AR37: 36 | AS37: GLOUCESTER | AT37: =VLOOKUP(AR37,'Comp Index Comparison - Ranked'!$B$6:$D$140,3,FALSE) -> 0.3885 | AU37: 0.3659 | AV37: 0.0226
H38: State Population | AR38: 37 | AS38: GOOCHLAND | AT38: =VLOOKUP(AR38,'Comp Index Comparison - Ranked'!$B$6:$D$140,3,FALSE) -> 0.8 | AU38: 0.8 | AV38: 0
A39: no data | B39: no data | C39: no data | D39: no data | E39: no data | F39: no data | G39: no data | H39: no data | I39: no data | J39: o data | K39: no data | L39: no data | M39: no data | N39: no data | O39: no data | P39: no data | AR39: 38 | AS39: GRAYSON | AT39: =VLOOKUP(AR39,'Comp Index Comparison - Ranked'!$B$6:$D$140,3,FALSE) -> 0.3615 | AU39: 0.3459 | AV39: 0.0156
A40: no data | B40: no data | C40: no data | D40: no data | E40: no data | F40: no data | G40: no data | H40: no data | I40: no data | J40: no data | K40: no data | L40: no data | M40: no data | N40: no data | O40: no data | P40: no data | AR40: 39 | AS40: GREENE | AT40: =VLOOKUP(AR40,'Comp Index Comparison - Ranked'!$B$6:$D$140,3,FALSE) -> 0.3446 | AU40: 0.3566 | AV40: -0.012
C41: =R23 ->  | H41: =R24 ->  | M41: =R25 ->  | AR41: 40 | AS41: GREENSVILLE | AT41: =VLOOKUP(AR41,'Comp Index Comparison - Ranked'!$B$6:$D$140,3,FALSE) -> 0.2799 | AU41: 0.2258 | AV41: 0.0541
C42: =R27 ->  | H42: =R27 ->  | M42: =R27 ->  | P42: Per Capita | AR42: 41 | AS42: HALIFAX | AT42: =VLOOKUP(AR42,'Comp Index Comparison - Ranked'!$B$6:$D$140,3,FALSE) -> 0.3058 | AU42: 0.301 | AV42: 0.0048
A43: 0.5 | C43: - | E43: + | F43: 0.4 | H43: - | J43: + | K43: 0.1 | M43: - | O43: = | P43: Composite | AR43: 42 | AS43: HANOVER | AT43: =VLOOKUP(AR43,'Comp Index Comparison - Ranked'!$B$6:$D$140,3,FALSE) -> 0.4626 | AU43: 0.4069 | AV43: 0.0557
C44: =R28 -> 1.255682913e+12 | H44: =R29 -> 2.768975217e+11 | M44: =R30 -> 1.037366095e+11 | P44: Index | AR44: 43 | AS44: HENRICO | AT44: =VLOOKUP(AR44,'Comp Index Comparison - Ranked'!$B$6:$D$140,3,FALSE) -> 0.4279 | AU44: 0.4058 | AV44: 0.0221
C45: =R32 -> 8470020 | H45: =R32 -> 8470020 | M45: =R32 -> 8470020 | AR45: 44 | AS45: HENRY | AT45: =VLOOKUP(AR45,'Comp Index Comparison - Ranked'!$B$6:$D$140,3,FALSE) -> 0.2253 | AU45: 0.2407 | AV45: -0.0154
A46: no data | B46: no data | C46: no data | D46: no data | E46: no data | F46: no data | G46: no data | H46: no data | I46: no data | J46: no data | K46: no data | L46: no data | M46: no data | N46: no data | O46: no data | P46: no data | AR46: 45 | AS46: HIGHLAND | AT46: =VLOOKUP(AR46,'Comp Index Comparison - Ranked'!$B$6:$D$140,3,FALSE) -> 0.8 | AU46: 0.8 | AV46: 0
A47: no data | B47: no data | C47: no data | D47: no data | E47: no data | F47: no data | G47: no data | H47: no data | I47: no data | J47: no data | K47: no data | L47: no data | M47: no data | N47: no data | O47: no data | P47: no data | AR47: 46 | AS47: ISLE OF WIGHT | AT47: =VLOOKUP(AR47,'Comp Index Comparison - Ranked'!$B$6:$D$140,3,FALSE) -> 0.3964 | AU47: 0.4193 | AV47: -0.0229
C48: =ROUND(C41/C42,2) ->  | H48: =ROUND(H41/H42,2) ->  | M48: =ROUND(M41/M42,2) ->  | P48: Per Capita | AR48: 47 | AS48: JAMES CITY | AT48: =VLOOKUP(AR48,'Comp Index Comparison - Ranked'!$B$6:$D$140,3,FALSE) -> 0.5553 | AU48: 0.5629 | AV48: -0.0076
A49: 0.5 | C49: - | E49: + | F49: 0.4 | H49: - | J49: + | K49: 0.1 | M49: - | O49: = | P49: Composite | AR49: 48 | AS49: KING GEORGE | AT49: =VLOOKUP(AR49,'Comp Index Comparison - Ranked'!$B$6:$D$140,3,FALSE) -> 0.3703 | AU49: 0.3772 | AV49: -0.0069
C50: =ROUND(C44/C45,2) -> 148250.29 | H50: =ROUND(H44/H45,2) -> 32691.48 | M50: =ROUND(M44/M45,2) -> 12247.5 | P50: Index | AR50: 49 | AS50: KING AND QUEEN | AT50: =VLOOKUP(AR50,'Comp Index Comparison - Ranked'!$B$6:$D$140,3,FALSE) -> 0.4139 | AU50: 0.4336 | AV50: -0.0197
A51: no data | B51: no data | C51: no data | D51: no data | E51: no data | F51: no data | G51: no data | H51: no data | I51: no data | J51: no data | K51: no data | L51: no data | M51: no data | N51: no data | O51: no data | P51: no data | AR51: 50 | AS51: KING WILLIAM | AT51: =VLOOKUP(AR51,'Comp Index Comparison - Ranked'!$B$6:$D$140,3,FALSE) -> 0.3407 | AU51: 0.3195 | AV51: 0.0212
A52: no data | B52: no data | C52: no data | D52: no data | E52: no data | F52: no data | G52: no data | H52: no data | I52: no data | J52: no data | K52: no data | L52: no data | M52: no data | N52: no data | O52: no | P52: Per Capita | AR52: 51 | AS52: LANCASTER | AT52: =VLOOKUP(AR52,'Comp Index Comparison - Ranked'!$B$6:$D$140,3,FALSE) -> 0.7835 | AU52: 0.7789 | AV52: 0.0046
A53: 0.5 | C53: =ROUND(C48/C50,4) ->  | E53: + | F53: 0.4 | H53: =ROUND(H48/H50,4) ->  | J53: + | K53: 0.1 | M53: =ROUND(M48/M50,4) ->  | O53: = | P53: Composite | AR53: 52 | AS53: LEE | AT53: =VLOOKUP(AR53,'Comp Index Comparison - Ranked'!$B$6:$D$140,3,FALSE) -> 0.1692 | AU53: 0.1885 | AV53: -0.0193
A54: no data | B54: no data | C54: no data | D54: no data | E54: no data | F54: no data | G54: no data | H54: no data | I54: no data | J54: no data | K54: no data | L54: no data | M54: no data | N54: no | O54: no data | P54: Index | AR54: 53 | AS54: LOUDOUN | AT54: =VLOOKUP(AR54,'Comp Index Comparison - Ranked'!$B$6:$D$140,3,FALSE) -> 0.5466 | AU54: 0.5616 | AV54: -0.015
A55: no data | B55: no data | C55: no data | D55: no data | E55: no data | F55: no data | G55: no data | H55: no data | I55: no data | J55: no data | K55: no data | L55: no data | M55: no data | N55: no | O55: no | P55: no data | AR55: 54 | AS55: LOUISA | AT55: =VLOOKUP(AR55,'Comp Index Comparison - Ranked'!$B$6:$D$140,3,FALSE) -> 0.5406 | AU55: 0.5642 | AV55: -0.0236
C56: =ROUND(A53*C53,4) ->  | E56: + | H56: =ROUND(F53*H53,4) ->  | J56: + | M56: =ROUND(K53*M53,4) ->  | O56: = | P56: =M56+H56+C56 -> 
A57: End of worksheet | AR57: 55 | AS57: LUNENBURG | AT57: =VLOOKUP(AR57,'Comp Index Comparison - Ranked'!$B$6:$D$140,3,FALSE) -> 0.2561 | AU57: 0.2501 | AV57: 0.006
AR58: 56 | AS58: MADISON | AT58: =VLOOKUP(AR58,'Comp Index Comparison - Ranked'!$B$6:$D$140,3,FALSE) -> 0.4738 | AU58: 0.4469 | AV58: 0.0269
AR59: 57 | AS59: MATHEWS | AT59: =VLOOKUP(AR59,'Comp Index Comparison - Ranked'!$B$6:$D$140,3,FALSE) -> 0.5162 | AU59: 0.5435 | AV59: -0.0273
AR60: 58 | AS60: MECKLENBURG | AT60: =VLOOKUP(AR60,'Comp Index Comparison - Ranked'!$B$6:$D$140,3,FALSE) -> 0.3996 | AU60: 0.3608 | AV60: 0.0388
AR61: 59 | AS61: MIDDLESEX | AT61: =VLOOKUP(AR61,'Comp Index Comparison - Ranked'!$B$6:$D$140,3,FALSE) -> 0.6008 | AU61: 0.7445 | AV61: -0.1437
AR62: 60 | AS62: MONTGOMERY | AT62: =VLOOKUP(AR62,'Comp Index Comparison - Ranked'!$B$6:$D$140,3,FALSE) -> 0.4005 | AU62: 0.3864 | AV62: 0.0141
AR63: 62 | AS63: NELSON | AT63: =VLOOKUP(AR63,'Comp Index Comparison - Ranked'!$B$6:$D$140,3,FALSE) -> 0.5604 | AU63: 0.5686 | AV63: -0.0082
AR64: 63 | AS64: NEW KENT | AT64: =VLOOKUP(AR64,'Comp Index Comparison - Ranked'!$B$6:$D$140,3,FALSE) -> 0.4166 | AU64: 0.4296 | AV64: -0.013
AR65: 65 | AS65: NORTHAMPTON | AT65: =VLOOKUP(AR65,'Comp Index Comparison - Ranked'!$B$6:$D$140,3,FALSE) -> 0.4696 | AU65: 0.4838 | AV65: -0.0142
AR66: 66 | AS66: NORTHUMBERLAND | AT66: =VLOOKUP(AR66,'Comp Index Comparison - Ranked'!$B$6:$D$140,3,FALSE) -> 0.7116 | AU66: 0.7428 | AV66: -0.0312
AR67: 67 | AS67: NOTTOWAY | AT67: =VLOOKUP(AR67,'Comp Index Comparison - Ranked'!$B$6:$D$140,3,FALSE) -> 0.2597 | AU67: 0.2477 | AV67: =AT67-AU67 -> 0.012
AR68: 68 | AS68: ORANGE | AT68: =VLOOKUP(AR68,'Comp Index Comparison - Ranked'!$B$6:$D$140,3,FALSE) -> 0.4105 | AU68: 0.3617 | AV68: 0.0488
AR69: 69 | AS69: PAGE | AT69: =VLOOKUP(AR69,'Comp Index Comparison - Ranked'!$B$6:$D$140,3,FALSE) -> 0.3198 | AU69: 0.2984 | AV69: 0.0214
AR70: 70 | AS70: PATRICK | AT70: =VLOOKUP(AR70,'Comp Index Comparison - Ranked'!$B$6:$D$140,3,FALSE) -> 0.2456 | AU70: 0.2725 | AV70: -0.0269
AR71: 71 | AS71: PITTSYLVANIA | AT71: =VLOOKUP(AR71,'Comp Index Comparison - Ranked'!$B$6:$D$140,3,FALSE) -> 0.2446 | AU71: 0.2507 | AV71: -0.0061
AR72: 72 | AS72: POWHATAN | AT72: =VLOOKUP(AR72,'Comp Index Comparison - Ranked'!$B$6:$D$140,3,FALSE) -> 0.4507 | AU72: 0.3912 | AV72: 0.0595
AR73: 73 | AS73: PRINCE EDWARD | AT73: =VLOOKUP(AR73,'Comp Index Comparison - Ranked'!$B$6:$D$140,3,FALSE) -> 0.3554 | AU73: 0.3272 | AV73: 0.0282
AR74: 74 | AS74: PRINCE GEORGE | AT74: =VLOOKUP(AR74,'Comp Index Comparison - Ranked'!$B$6:$D$140,3,FALSE) -> 0.2467 | AU74: 0.2429 | AV74: 0.0038
AR75: 75 | AS75: PRINCE WILLIAM | AT75: =VLOOKUP(AR75,'Comp Index Comparison - Ranked'!$B$6:$D$140,3,FALSE) -> 0.3799 | AU75: 0.3821 | AV75: -0.0022
AR76: 77 | AS76: PULASKI | AT76: =VLOOKUP(AR76,'Comp Index Comparison - Ranked'!$B$6:$D$140,3,FALSE) -> 0.3235 | AU76: 0.3111 | AV76: 0.0124
AR77: 78 | AS77: RAPPAHANNOCK | AT77: =VLOOKUP(AR77,'Comp Index Comparison - Ranked'!$B$6:$D$140,3,FALSE) -> 0.799 | AU77: 0.7912 | AV77: 0.0078
AR78: 79 | AS78: RICHMOND COUNTY | AT78: =VLOOKUP(AR78,'Comp Index Comparison - Ranked'!$B$6:$D$140,3,FALSE) -> 0.312 | AU78: 0.3581 | AV78: -0.0461
AR79: 80 | AS79: ROANOKE COUNTY | AT79: =VLOOKUP(AR79,'Comp Index Comparison - Ranked'!$B$6:$D$140,3,FALSE) -> 0.366 | AU79: 0.3703 | AV79: -0.0043
AR80: 81 | AS80: ROCKBRIDGE | AT80: =VLOOKUP(AR80,'Comp Index Comparison - Ranked'!$B$6:$D$140,3,FALSE) -> 0.4506 | AU80: 0.4739 | AV80: -0.0233
AR81: 82 | AS81: ROCKINGHAM | AT81: =VLOOKUP(AR81,'Comp Index Comparison - Ranked'!$B$6:$D$140,3,FALSE) -> 0.3799 | AU81: 0.37 | AV81: 0.0099
AR82: 83 | AS82: RUSSELL | AT82: =VLOOKUP(AR82,'Comp Index Comparison - Ranked'!$B$6:$D$140,3,FALSE) -> 0.2373 | AU82: 0.2485 | AV82: -0.0112
AR83: 84 | AS83: SCOTT | AT83: =VLOOKUP(AR83,'Comp Index Comparison - Ranked'!$B$6:$D$140,3,FALSE) -> 0.1899 | AU83: 0.1939 | AV83: -0.004
AR84: 85 | AS84: SHENANDOAH | AT84: =VLOOKUP(AR84,'Comp Index Comparison - Ranked'!$B$6:$D$140,3,FALSE) -> 0.3832 | AU84: 0.3651 | AV84: 0.0181
AR85: 86 | AS85: SMYTH | AT85: =VLOOKUP(AR85,'Comp Index Comparison - Ranked'!$B$6:$D$140,3,FALSE) -> 0.2228 | AU85: 0.2251 | AV85: -0.0023
AR86: 87 | AS86: SOUTHAMPTON | AT86: =VLOOKUP(AR86,'Comp Index Comparison - Ranked'!$B$6:$D$140,3,FALSE) -> 0.3015 | AU86: 0.2876 | AV86: 0.0139
AR87: 88 | AS87: SPOTSYLVANIA | AT87: =VLOOKUP(AR87,'Comp Index Comparison - Ranked'!$B$6:$D$140,3,FALSE) -> 0.3722 | AU87: 0.3554 | AV87: 0.0168
AR88: 89 | AS88: STAFFORD | AT88: =VLOOKUP(AR88,'Comp Index Comparison - Ranked'!$B$6:$D$140,3,FALSE) -> 0.347 | AU88: 0.3411 | AV88: 0.0059
AR89: 90 | AS89: SURRY | AT89: =VLOOKUP(AR89,'Comp Index Comparison - Ranked'!$B$6:$D$140,3,FALSE) -> 0.8 | AU89: 0.8 | AV89: 0
AR90: 91 | AS90: SUSSEX | AT90: =VLOOKUP(AR90,'Comp Index Comparison - Ranked'!$B$6:$D$140,3,FALSE) -> 0.3492 | AU90: 0.3583 | AV90: -0.0091
AR91: 92 | AS91: TAZEWELL | AT91: =VLOOKUP(AR91,'Comp Index Comparison - Ranked'!$B$6:$D$140,3,FALSE) -> 0.2575 | AU91: 0.2754 | AV91: -0.0179
AR92: 93 | AS92: WARREN | AT92: =VLOOKUP(AR92,'Comp Index Comparison - Ranked'!$B$6:$D$140,3,FALSE) -> 0.4432 | AU92: 0.387 | AV92: 0.0562
AR93: 94 | AS93: WASHINGTON | AT93: =VLOOKUP(AR93,'Comp Index Comparison - Ranked'!$B$6:$D$140,3,FALSE) -> 0.3416 | AU93: 0.3812 | AV93: -0.0396
AR94: 95 | AS94: WESTMORELAND | AT94: =VLOOKUP(AR94,'Comp Index Comparison - Ranked'!$B$6:$D$140,3,FALSE) -> 0.4618 | AU94: 0.4631 | AV94: -0.0013
AR95: 96 | AS95: WISE | AT95: =VLOOKUP(AR95,'Comp Index Comparison - Ranked'!$B$6:$D$140,3,FALSE) -> 0.2372 | AU95: 0.2538 | AV95: -0.0166
AR96: 97 | AS96: WYTHE | AT96: =VLOOKUP(AR96,'Comp Index Comparison - Ranked'!$B$6:$D$140,3,FALSE) -> 0.3204 | AU96: 0.3182 | AV96: 0.0022
AR97: 98 | AS97: YORK | AT97: =VLOOKUP(AR97,'Comp Index Comparison - Ranked'!$B$6:$D$140,3,FALSE) -> 0.3812 | AU97: 0.4024 | AV97: -0.0212
AR98: 101 | AS98: ALEXANDRIA | AT98: =VLOOKUP(AR98,'Comp Index Comparison - Ranked'!$B$6:$D$140,3,FALSE) -> 0.8 | AU98: 0.8 | AV98: 0
AR99: 102 | AS99: BRISTOL | AT99: =VLOOKUP(AR99,'Comp Index Comparison - Ranked'!$B$6:$D$140,3,FALSE) -> 0.3051 | AU99: 0.3085 | AV99: =AT99-AU99 -> -0.0034
AR100: 103 | AS100: BUENA VISTA | AT100: =VLOOKUP(AR100,'Comp Index Comparison - Ranked'!$B$6:$D$140,3,FALSE) -> 0.1893 | AU100: 0.1756 | AV100: 0.0137
AR101: 104 | AS101: CHARLOTTESVILLE | AT101: =VLOOKUP(AR101,'Comp Index Comparison - Ranked'!$B$6:$D$140,3,FALSE) -> 0.6886 | AU101: 0.668 | AV101: 0.0206
AR102: 106 | AS102: COLONIAL HEIGHTS | AT102: =VLOOKUP(AR102,'Comp Index Comparison - Ranked'!$B$6:$D$140,3,FALSE) -> 0.4156 | AU102: 0.4322 | AV102: -0.0166
AR103: 107 | AS103: COVINGTON | AT103: =VLOOKUP(AR103,'Comp Index Comparison - Ranked'!$B$6:$D$140,3,FALSE) -> 0.2913 | AU103: 0.2817 | AV103: 0.0096
AR104: 108 | AS104: DANVILLE | AT104: =VLOOKUP(AR104,'Comp Index Comparison - Ranked'!$B$6:$D$140,3,FALSE) -> 0.2622 | AU104: 0.2649 | AV104: -0.0027
AR105: 109 | AS105: FALLS CHURCH | AT105: =VLOOKUP(AR105,'Comp Index Comparison - Ranked'!$B$6:$D$140,3,FALSE) -> 0.8 | AU105: 0.8 | AV105: 0
AR106: 110 | AS106: FREDERICKSBURG | AT106: =VLOOKUP(AR106,'Comp Index Comparison - Ranked'!$B$6:$D$140,3,FALSE) -> 0.584 | AU106: 0.6134 | AV106: -0.0294
AR107: 111 | AS107: GALAX | AT107: =VLOOKUP(AR107,'Comp Index Comparison - Ranked'!$B$6:$D$140,3,FALSE) -> 0.2775 | AU107: 0.2737 | AV107: 0.0038
AR108: 112 | AS108: HAMPTON | AT108: =VLOOKUP(AR108,'Comp Index Comparison - Ranked'!$B$6:$D$140,3,FALSE) -> 0.2743 | AU108: 0.2949 | AV108: -0.0206
AR109: 113 | AS109: HARRISONBURG | AT109: =VLOOKUP(AR109,'Comp Index Comparison - Ranked'!$B$6:$D$140,3,FALSE) -> 0.3537 | AU109: 0.4008 | AV109: -0.0471
AR110: 114 | AS110: HOPEWELL | AT110: =VLOOKUP(AR110,'Comp Index Comparison - Ranked'!$B$6:$D$140,3,FALSE) -> 0.2053 | AU110: 0.2298 | AV110: -0.0245
AR111: 115 | AS111: LYNCHBURG | AT111: =VLOOKUP(AR111,'Comp Index Comparison - Ranked'!$B$6:$D$140,3,FALSE) -> 0.3668 | AU111: 0.3679 | AV111: -0.0011
AR112: 116 | AS112: MARTINSVILLE | AT112: =VLOOKUP(AR112,'Comp Index Comparison - Ranked'!$B$6:$D$140,3,FALSE) -> 0.2185 | AU112: 0.2221 | AV112: -0.0036
AR113: 117 | AS113: NEWPORT NEWS | AT113: =VLOOKUP(AR113,'Comp Index Comparison - Ranked'!$B$6:$D$140,3,FALSE) -> 0.2842 | AU113: 0.2907 | AV113: -0.0065
AR114: 118 | AS114: NORFOLK | AT114: =VLOOKUP(AR114,'Comp Index Comparison - Ranked'!$B$6:$D$140,3,FALSE) -> 0.3059 | AU114: 0.3122 | AV114: -0.0063
AR115: 119 | AS115: NORTON | AT115: =VLOOKUP(AR115,'Comp Index Comparison - Ranked'!$B$6:$D$140,3,FALSE) -> 0.271 | AU115: 0.3101 | AV115: -0.0391
AR116: 120 | AS116: PETERSBURG | AT116: =VLOOKUP(AR116,'Comp Index Comparison - Ranked'!$B$6:$D$140,3,FALSE) -> 0.2442 | AU116: 0.2473 | AV116: -0.0031
AR117: 121 | AS117: PORTSMOUTH | AT117: =VLOOKUP(AR117,'Comp Index Comparison - Ranked'!$B$6:$D$140,3,FALSE) -> 0.2426 | AU117: 0.2677 | AV117: -0.0251
AR118: 122 | AS118: RADFORD | AT118: =VLOOKUP(AR118,'Comp Index Comparison - Ranked'!$B$6:$D$140,3,FALSE) -> 0.2452 | AU118: 0.2674 | AV118: -0.0222
AR119: 123 | AS119: RICHMOND CITY | AT119: =VLOOKUP(AR119,'Comp Index Comparison - Ranked'!$B$6:$D$140,3,FALSE) -> 0.4688 | AU119: 0.4635 | AV119: 0.0053
AR120: 124 | AS120: ROANOKE CITY | AT120: =VLOOKUP(AR120,'Comp Index Comparison - Ranked'!$B$6:$D$140,3,FALSE) -> 0.3284 | AU120: 0.3591 | AV120: -0.0307
AR121: 126 | AS121: STAUNTON | AT121: =VLOOKUP(AR121,'Comp Index Comparison - Ranked'!$B$6:$D$140,3,FALSE) -> 0.3877 | AU121: 0.3922 | AV121: -0.0045
AR122: 127 | AS122: SUFFOLK | AT122: =VLOOKUP(AR122,'Comp Index Comparison - Ranked'!$B$6:$D$140,3,FALSE) -> 0.3487 | AU122: 0.3489 | AV122: -0.0002
AR123: 128 | AS123: VIRGINIA BEACH | AT123: =VLOOKUP(AR123,'Comp Index Comparison - Ranked'!$B$6:$D$140,3,FALSE) -> 0.4082 | AU123: 0.4033 | AV123: 0.0049
AR124: 130 | AS124: WAYNESBORO | AT124: =VLOOKUP(AR124,'Comp Index Comparison - Ranked'!$B$6:$D$140,3,FALSE) -> 0.3652 | AU124: 0.3492 | AV124: 0.016
AR125: 131 | AS125: WILLIAMSBURG | AT125: =VLOOKUP(AR125,'Comp Index Comparison - Ranked'!$B$6:$D$140,3,FALSE) -> 0.7459 | AU125: 0.8 | AV125: -0.0541
AR126: 132 | AS126: WINCHESTER | AT126: =VLOOKUP(AR126,'Comp Index Comparison - Ranked'!$B$6:$D$140,3,FALSE) -> 0.4319 | AU126: 0.4374 | AV126: -0.0055
AR127: 134 | AS127: FAIRFAX CITY | AT127: =VLOOKUP(AR127,'Comp Index Comparison - Ranked'!$B$6:$D$140,3,FALSE) -> 0.8 | AU127: 0.8 | AV127: 0
AR128: 135 | AS128: FRANKLIN CITY | AT128: =VLOOKUP(AR128,'Comp Index Comparison - Ranked'!$B$6:$D$140,3,FALSE) -> 0.2929 | AU128: 0.2977 | AV128: -0.0048
AR129: 136 | AS129: CHESAPEAKE | AT129: =VLOOKUP(AR129,'Comp Index Comparison - Ranked'!$B$6:$D$140,3,FALSE) -> 0.3486 | AU129: 0.3609 | AV129: -0.0123
AR130: 137 | AS130: LEXINGTON | AT130: =VLOOKUP(AR130,'Comp Index Comparison - Ranked'!$B$6:$D$140,3,FALSE) -> 0.392 | AU130: 0.4508 | AV130: -0.0588
AR131: 138 | AS131: EMPORIA | AT131: =VLOOKUP(AR131,'Comp Index Comparison - Ranked'!$B$6:$D$140,3,FALSE) -> 0.2228 | AU131: 0.2495 | AV131: =AT131-AU131 -> -0.0267
AR132: 139 | AS132: SALEM | AT132: =VLOOKUP(AR132,'Comp Index Comparison - Ranked'!$B$6:$D$140,3,FALSE) -> 0.3641 | AU132: 0.3695 | AV132: -0.0054
AR133: 142 | AS133: POQUOSON | AT133: =VLOOKUP(AR133,'Comp Index Comparison - Ranked'!$B$6:$D$140,3,FALSE) -> 0.3703 | AU133: 0.3893 | AV133: -0.019
AR134: 143 | AS134: MANASSAS | AT134: =VLOOKUP(AR134,'Comp Index Comparison - Ranked'!$B$6:$D$140,3,FALSE) -> 0.3611 | AU134: 0.3661 | AV134: -0.005
AR135: 144 | AS135: MANASSAS PARK | AT135: =VLOOKUP(AR135,'Comp Index Comparison - Ranked'!$B$6:$D$140,3,FALSE) -> 0.2755 | AU135: 0.2682 | AV135: 0.0073
AR136: 202 | AS136: COLONIAL BEACH | AT136: =VLOOKUP(AR136,'Comp Index Comparison - Ranked'!$B$6:$D$140,3,FALSE) -> 0.3317 | AU136: 0.3519 | AV136: -0.0202
AR137: 207 | AS137: WEST POINT | AT137: =VLOOKUP(AR137,'Comp Index Comparison - Ranked'!$B$6:$D$140,3,FALSE) -> 0.2614 | AU137: 0.258 | AV137: 0.0034
AU139: Variance excluding hold harmless divisions | AV139: =SUM(AV2:AV137)-AV4-AV11 -> 0.0692

Sheet Composite Index Formula
A1: COMPOSITE INDEX OF LOCAL ABILITY-TO-PAY FORMULA
B2: no data | C2: no data | D2: no data | E2: no data | F2: no data | G2: no data | H2: no data | I2: no data | J2: no data | K2: no data
A3: no data | B3: no data | C3: no data | D3: no data | E3: no data | F3: no data | G3: no data | H3: no data | I3: no data | J3: no data | K3: no data | L3: no
C4: Average Daily Membership (ADM) Component =
A5: no data | B5: no data | C5: no data | D5: no data | E5: no data | F5: no data | G5: no data | H5: no data | I5: no data | J5: no data | K5: no data | L5: no
C6: Local True Values | G6: Local Adjusted Gross Income | K6: Local Taxable Retail Sales
C7: Division ADM | G7: Division ADM | K7: Division ADM
A8: .5 | E8: + .4 | I8: + .1
C10: State True Values | G10: State Adjusted Gross Income | K10: State Taxable Retail Sales
C11: State ADM | G11: State ADM | K11: State ADM
A12: no data | B12: no data | C12: no data | D12: no data | E12: no data | F12: no data | G12: no data | H12: no data | I12: no data | J12: no data | K12: no data | L12: no
A13: no data | B13: no data | C13: no data | D13: no data | E13: no data | F13: no data | G13: no data | H13: no data | I13: no data | J13: no data | K13: no data | L13: no
A14: no data | B14: no data | C14: no data | D14: no data | E14: no data | F14: no data | G14: no data | H14: no data | I14: no data | J14: no data | K14: no data | L14: no
C15: Population Component =
A16: no data | B16: no data | C16: no data | D16: no data | E16: no data | F16: no data | G16: no data | H16: no data | I16: no data | J16: no data | K16: no data | L16: no
C17: Local True Values | G17: Local Adjusted Gross Income | K17: Local Taxable Retail Sales
C18: Local Population | G18: Local Population | K18: Local Population
A19: .5 | E19: + .4 | I19: + .1
C21: State True Values | G21: State Adjusted Gross Income | K21: State Taxable Retail Sales
C22: State Population | G22: State Population | K22: State Population
A23: no data | B23: no data | C23: no data | D23: no data | E23: no data | F23: no data | G23: no data | H23: no data | I23: no data | J23: no data | K23: no data | L23: no
A24: no data | B24: no data | C24: no data | D24: no data | E24: no data | F24: no data | G24: no data | H24: no data | I24: no data | J24: no data | K24: no data | L24: no
A25: no data | B25: no data | C25: no data | D25: no data | E25: no data | F25: no data | G25: no data | H25: no data | I25: no data | J25: no data | K25: no data | L25: no
C26: Final Composite Index =
A27: no data | B27: no data | C27: no data | D27: no data | E27: no data | F27: no data | G27: no data | H27: no data | I27: no data | J27: no data | K27: no data | L27: no
C28: ((.6667 x ADM Component) + (.3333 x Population Component)) x 0.45
A29: End of worksheet

Sheet Trend Analysis
A1: Trend Analysis of Composite Index Formula Components
A2: Change from 2018-20 (2015 base-year data) to 2020-22 (2017 base-year data)
A4: Please note BLUE text represents division data elements above the state average, and RED text represents division data elements below the state average.
A5: no data | B5: no data | C5: no data | D5: no data | E5: no data
A6: no data | B6: no data | C6: AVERAGE DAILY MEMBERSHIP | E6: no data
A7: no data | B7: no data | C7: ABSOLUTE | D7: DIVISION vs STATE | E7: no data
A8: no data | B8: no data | C8: % CHANGE | D8: AVERAGE CHANGE | E8: no data
B9: DIVISION | C9: 2016 to 2018 | D9: =C9 -> 2016 to 2018 | E9: no data
A10: ='2020-2022 Calculation Template'!N2 -> <SE | B10: =VLOOKUP(A10,Summary!A10:B144,2,FALSE) ->  | C10: =VLOOKUP($A$10,'ADM & Population Analysis'!$A$10:$O$144,7,FALSE) ->  | D10: =VLOOKUP($A$10,'ADM & Population Analysis'!$A$10:$O$144,6,FALSE) ->  | E10: no data
B11: STATE AVERAGE | C11: ='ADM & Population Analysis'!G146 -> 0.005766621903 | D11: ='ADM & Population Analysis'!F148 -> 52.95814815 | E11: no data
A12: no data | B12: no data | C12: no data | D12: no data | E12: no data
A13: no data | B13: no data | C13: POPULATION | E13: no data
A14: no data | B14: no data | C14: ABSOLUTE | D14: DIVISION vs STATE | E14: no data
A15: no data | B15: no data | C15: % CHANGE | D15: AVERAGE CHANGE | E15: no data
B16: DIVISION | C16: 2015 to 2017 | D16: =C16 -> 2015 to 2017 | E16: no data
A17: =A10 -> <SE | B17: =B10 ->  | C17: =VLOOKUP($A$17,'ADM & Population Analysis'!$A$10:$O$144,14,FALSE) ->  | D17: =VLOOKUP($A$17,'ADM & Population Analysis'!$A$10:$O$144,13,FALSE) ->  | E17: no data
A18: no data | B18: STATE AVERAGE | C18: ='ADM & Population Analysis'!N146 -> 0.01038137572 | D18: ='ADM & Population Analysis'!M148 -> 644.6444444 | E18: no data
A19: no data | B19: no data | C19: no data | D19: no data | E19: no data
A20: no data | B20: no data | C20: TRUE VALUE OF PROPERTY
A21: no data | B21: no data | C21: ABSOLUTE | D21: PER ADM | E21: PER CAPITA
A22: no data | B22: no data | C22: % CHANGE | D22: % CHANGE | E22: % CHANGE
B23: DIVISION | C23: =C16 -> 2015 to 2017 | D23: =D16 -> 2015 to 2017 | E23: =D16 -> 2015 to 2017
A24: =A10 -> <SE | B24: =B10 ->  | C24: =VLOOKUP($A$24,Summary!$A$10:$N$144,3,FALSE) ->  | D24: =VLOOKUP($A$24,Summary!$A$10:$N$144,4,FALSE) ->  | E24: =VLOOKUP($A$24,Summary!$A$10:$N$144,5,FALSE) -> 
B25: STATE AVERAGE | C25: =+'true value analysis'!G146 -> 0.07314877258 | D25: =+'true value analysis'!N146 -> 0.06699581116 | E25: =+'true value analysis'!U146 -> 0.06212248005
A26: no data | B26: no data | C26: no data | D26: no data | E26: no data
A27: no data | B27: no data | C27: ADJUSTED GROSS INCOME
A28: no data | B28: no data | C28: ABSOLUTE | D28: PER ADM | E28: PER CAPITA
A29: no data | B29: no data | C29: % CHANGE | D29: % CHANGE | E29: % CHANGE
B30: DIVISION | C30: =C23 -> 2015 to 2017 | D30: =D23 -> 2015 to 2017 | E30: =E23 -> 2015 to 2017
A31: =A10 -> <SE | B31: =B10 ->  | C31: =VLOOKUP($A$24,Summary!$A$10:$N$144,6,FALSE) ->  | D31: =VLOOKUP($A$24,Summary!$A$10:$N$144,7,FALSE) ->  | E31: =VLOOKUP($A$24,Summary!$A$10:$N$144,8,FALSE) -> 
B32: STATE AVERAGE | C32: =+'AGI analysis'!G146 ->  | D32: =+'AGI analysis'!N146 ->  | E32: =+'AGI analysis'!U146 -> 
A33: no data | B33: no data | C33: no data | D33: no data | E33: no data
A34: no data | B34: no data | C34: TAXABLE RETAIL SALES
A35: no data | B35: no data | C35: ABSOLUTE | D35: PER ADM | E35: PER CAPITA
A36: no data | B36: no data | C36: % CHANGE | D36: % CHANGE | E36: % CHANGE
B37: DIVISION | C37: =C30 -> 2015 to 2017 | D37: =D30 -> 2015 to 2017 | E37: =E30 -> 2015 to 2017
A38: =A10 -> <SE | B38: =B10 ->  | C38: =VLOOKUP($A$24,Summary!$A$10:$N$144,9,FALSE) ->  | D38: =VLOOKUP($A$24,Summary!$A$10:$N$144,10,FALSE) ->  | E38: =VLOOKUP($A$24,Summary!$A$10:$N$144,11,FALSE) -> 
B39: STATE AVERAGE | C39: =+'taxable retail analysis'!G146 -> 0.03522035206 | D39: =+'taxable retail analysis'!N146 -> 0.02928485547 | E39: =+'taxable retail analysis'!U146 -> 0.02458376306
A40: no data | B40: no data | C40: no data | D40: no data | E40: no data
A41: no data | B41: no data | C41: FINAL INDEX COMPARISON
A42: no data | B42: no data | C42: 2018-2020 | D42: 2020-2022 | E42: COMPOSITE
A43: no data | B43: no data | C43: COMPOSITE | D43: COMPOSITE | E43: INDEX
A44: no data | B44: DIVISION | C44: INDEX | D44: INDEX | E44: VARIANCE
A45: =A10 -> <SE | B45: =B10 ->  | C45: =VLOOKUP($A$24,Summary!$A$10:$N$144,13,FALSE) ->  | D45: =VLOOKUP($A$24,Summary!$A$10:$N$144,14,FALSE) ->  | E45: =D45-C45 -> 
A46: no data | B46: no data | C46: no data | D46: no data | E46: no data
A47: EXCEPTIONS:
A48: *Please note the following exceptions to the standard composite index calculation as specified in the appropriation act (see actual appropriation act language under the tab labeled "Appropriation Act Language"): 1) For those divisions in which three percent or more of the adjusted gross income is derived from individuals who are not residents of Virginia, the Department of Education shall compute the composite index for such localities by using adjusted gross income data which exclude nonresident income. School divisions are no longer required to submit a certification form requesting the exclusion of nonresident AGI. 2) Any division with a calculated composite index that exceeds .8000 is considered as having an index of .8000; 3) Under hold harmless provisions addressing the consolidation of school divisions contained in the appropriation act and Section 15.2-1302, Code of Virginia, the composite index to be used for funding in the 2020-2022 biennium for the following divisions are: Bedford County: .3132 (the index approved effective July 1, 2013); the 2020-2022 composite index for Bedford County calculated based on the data elements from base-year 2017 is shown above as .4359. This lower composite index of .3132 will be used for Bedford County.
A50: End of worksheet

Sheet Summary (hidden)
A1: SUMMARY OF RESULTS
C3: TRUE VALUE OF PROPERTY | F3: ADJUSTED GROSS INCOME | I3: TAXABLE RETAIL SALES | M3: FINAL INDEX COMPARISON
B5: STATE TOTALS | C5: ='true value analysis'!G146 -> 0.07314877258 | D5: ='true value analysis'!N146 -> 0.06699581116 | E5: ='true value analysis'!U146 -> 0.06212248005 | F5: ='AGI analysis'!G146 ->  | G5: ='AGI analysis'!N146 ->  | H5: ='AGI analysis'!U146 ->  | I5: ='taxable retail analysis'!G146 -> 0.03522035206 | J5: ='taxable retail analysis'!N146 -> 0.02928485547 | K5: ='taxable retail analysis'!U146 -> 0.02458376306
C7: ABSOLUTE | D7: PER ADM | E7: PER CAPITA | F7: ABSOLUTE | G7: PER ADM | H7: PER CAPITA | I7: ABSOLUTE | J7: PER ADM | K7: PER CAPITA | M7: 2016-18 | N7: 2018-20
A8: Div | C8: % CHANGE | D8: % CHANGE | E8: % CHANGE | F8: % CHANGE | G8: % CHANGE | H8: % CHANGE | I8: % CHANGE | J8: % CHANGE | K8: % CHANGE | M8: COMPOSITE | N8: COMPOSITE
A9: Num | B9: DIVISION | C9: 2013 to 2015 | D9: 2013 to 2015 | E9: 2013 to 2015 | F9: 2013 to 2015 | G9: 2013 to 2015 | H9: 2013 to 2015 | I9: 2013 to 2015 | J9: 2013 to 2015 | K9: 2013 to 2015 | M9: INDEX | N9: INDEX
A10: 1 | B10: ACCOMACK | C10: ='true value analysis'!G10 -> 0.06562427613 | D10: ='true value analysis'!N10 -> 0.08365957102 | E10: ='true value analysis'!U10 -> 0.08094377406 | F10: ='AGI analysis'!G10 -> 0.1378363146 | G10: ='AGI analysis'!N10 -> 0.1570937714 | H10: ='AGI analysis'!U10 -> 0.1541939385 | I10: ='taxable retail analysis'!G10 -> -0.3192234756 | J10: ='taxable retail analysis'!N10 -> -0.3077015859 | K10: ='taxable retail analysis'!U10 -> -0.309436579 | M10: =VLOOKUP(A10,'Comp Index Comparison - Ranked'!$B$6:$E$140,4,FALSE) -> 0.3506 | N10: =IF(VLOOKUP(A10,'2020-22 Comp Index Non-Res. AGI'!$A$5:$J$138,10,FALSE)="YES",VLOOKUP(A10,'2020-22 Comp Index Non-Res. AGI'!$A$5:$H$147,8,FALSE),VLOOKUP(A10,'2020-2022 Composite Index Data'!$A$5:$H$139,8,FALSE)) -> 0.3374
A11: 2 | B11: ALBEMARLE | C11: ='true value analysis'!G11 -> 0.06070428454 | D11: ='true value analysis'!N11 -> 0.04280290752 | E11: ='true value analysis'!U11 -> 0.03464391576 | F11: ='AGI analysis'!G11 -> 0.1911108545 | G11: ='AGI analysis'!N11 -> 0.1710086217 | H11: ='AGI analysis'!U11 -> 0.1618465359 | I11: ='taxable retail analysis'!G11 -> 0.1209492268 | J11: ='taxable retail analysis'!N11 -> 0.1020311032 | K11: ='taxable retail analysis'!U11 -> 0.09340870429 | M11: =VLOOKUP(A11,'Comp Index Comparison - Ranked'!$B$6:$E$140,4,FALSE) -> 0.678 | N11: =IF(VLOOKUP(A11,'2020-22 Comp Index Non-Res. AGI'!$A$5:$J$138,10,FALSE)="YES",VLOOKUP(A11,'2020-22 Comp Index Non-Res. AGI'!$A$5:$H$147,8,FALSE),VLOOKUP(A11,'2020-2022 Composite Index Data'!$A$5:$H$139,8,FALSE)) -> 0.6449
A12: 3 | B12: ALLEGHANY | C12: ='true value analysis'!G12 -> -0.01071646359 | D12: ='true value analysis'!N12 -> 0.03991453988 | E12: ='true value analysis'!U12 -> -0.003652446131 | F12: ='AGI analysis'!G12 -> 0.06496847762 | G12: ='AGI analysis'!N12 -> 0.119472996 | H12: ='AGI analysis'!U12 -> 0.07257292634 | I12: ='taxable retail analysis'!G12 -> -0.07378340436 | J12: ='taxable retail analysis'!N12 -> -0.02638013326 | K12: ='taxable retail analysis'!U12 -> -0.06716971884 | M12: =VLOOKUP(A12,'Comp Index Comparison - Ranked'!$B$6:$E$140,4,FALSE) -> 0.2899 | N12: =IF(VLOOKUP(A12,'2020-22 Comp Index Non-Res. AGI'!$A$5:$J$138,10,FALSE)="YES",VLOOKUP(A12,'2020-22 Comp Index Non-Res. AGI'!$A$5:$H$147,8,FALSE),VLOOKUP(A12,'2020-2022 Composite Index Data'!$A$5:$H$139,8,FALSE)) -> 0.2819
A13: 4 | B13: AMELIA | C13: ='true value analysis'!G13 -> 0.1472283863 | D13: ='true value analysis'!N13 -> 0.1667984965 | E13: ='true value analysis'!U13 -> 0.1437728791 | F13: ='AGI analysis'!G13 -> 0.1621306893 | G13: ='AGI analysis'!N13 -> 0.181955012 | H13: ='AGI analysis'!U13 -> 0.1586302957 | I13: ='taxable retail analysis'!G13 -> 0.04293789043 | J13: ='taxable retail analysis'!N13 -> 0.06072895082 | K13: ='taxable retail analysis'!U13 -> 0.03979651124 | M13: =VLOOKUP(A13,'Comp Index Comparison - Ranked'!$B$6:$E$140,4,FALSE) -> 0.3231 | N13: =IF(VLOOKUP(A13,'2020-22 Comp Index Non-Res. AGI'!$A$5:$J$138,10,FALSE)="YES",VLOOKUP(A13,'2020-22 Comp Index Non-Res. AGI'!$A$5:$H$147,8,FALSE),VLOOKUP(A13,'2020-2022 Composite Index Data'!$A$5:$H$139,8,FALSE)) -> 0.3479
A14: 5 | B14: AMHERST | C14: ='true value analysis'!G14 -> 0.04308048876 | D14: ='true value analysis'!N14 -> 0.07989477692 | E14: ='true value analysis'!U14 -> 0.04458076086 | F14: ='AGI analysis'!G14 -> 0.08693010864 | G14: ='AGI analysis'!N14 -> 0.1252920171 | H14: ='AGI analysis'!U14 -> 0.08849345005 | I14: ='taxable retail analysis'!G14 -> 0.06045221145 | J14: ='taxable retail analysis'!N14 -> 0.09787961395 | K14: ='taxable retail analysis'!U14 -> 0.06197746946 | M14: =VLOOKUP(A14,'Comp Index Comparison - Ranked'!$B$6:$E$140,4,FALSE) -> 0.3073 | N14: =IF(VLOOKUP(A14,'2020-22 Comp Index Non-Res. AGI'!$A$5:$J$138,10,FALSE)="YES",VLOOKUP(A14,'2020-22 Comp Index Non-Res. AGI'!$A$5:$H$147,8,FALSE),VLOOKUP(A14,'2020-2022 Composite Index Data'!$A$5:$H$139,8,FALSE)) -> 0.3141
A15: 6 | B15: APPOMATTOX | C15: ='true value analysis'!G15 -> 0.04569488611 | D15: ='true value analysis'!N15 -> 0.05020545959 | E15: ='true value analysis'!U15 -> 0.04024294959 | F15: ='AGI analysis'!G15 -> 0.1570148781 | G15: ='AGI analysis'!N15 -> 0.1620056271 | H15: ='AGI analysis'!U15 -> 0.1509825529 | I15: ='taxable retail analysis'!G15 -> 0.0543692374 | J15: ='taxable retail analysis'!N15 -> 0.05891722743 | K15: ='taxable retail analysis'!U15 -> 0.04887207544 | M15: =VLOOKUP(A15,'Comp Index Comparison - Ranked'!$B$6:$E$140,4,FALSE) -> 0.295 | N15: =IF(VLOOKUP(A15,'2020-22 Comp Index Non-Res. AGI'!$A$5:$J$138,10,FALSE)="YES",VLOOKUP(A15,'2020-22 Comp Index Non-Res. AGI'!$A$5:$H$147,8,FALSE),VLOOKUP(A15,'2020-2022 Composite Index Data'!$A$5:$H$139,8,FALSE)) -> 0.2978
A16: 7 | B16: ARLINGTON | C16: ='true value analysis'!G16 -> 0.05946522913 | D16: ='true value analysis'!N16 -> -0.003929389614 | E16: ='true value analysis'!U16 -> 0.03998419336 | F16: ='AGI analysis'!G16 -> 0.1823222433 | G16: ='AGI analysis'!N16 -> 0.1115762992 | H16: ='AGI analysis'!U16 -> 0.1605821603 | I16: ='taxable retail analysis'!G16 -> 0.02501887485 | J16: ='taxable retail analysis'!N16 -> -0.03631459697 | K16: ='taxable retail analysis'!U16 -> 0.006171225282 | M16: =VLOOKUP(A16,'Comp Index Comparison - Ranked'!$B$6:$E$140,4,FALSE) -> 0.8 | N16: =IF(VLOOKUP(A16,'2020-22 Comp Index Non-Res. AGI'!$A$5:$J$138,10,FALSE)="YES",VLOOKUP(A16,'2020-22 Comp Index Non-Res. AGI'!$A$5:$H$147,8,FALSE),VLOOKUP(A16,'2020-2022 Composite Index Data'!$A$5:$H$139,8,FALSE)) -> 0.8
A17: 8 | B17: AUGUSTA | C17: ='true value analysis'!G17 -> 0.09597676794 | D17: ='true value analysis'!N17 -> 0.1142773212 | E17: ='true value analysis'!U17 -> 0.09404818311 | F17: ='AGI analysis'!G17 -> 0.1514405503 | G17: ='AGI analysis'!N17 -> 0.1706672344 | H17: ='AGI analysis'!U17 -> 0.1494143661 | I17: ='taxable retail analysis'!G17 -> 0.08329335129 | J17: ='taxable retail analysis'!N17 -> 0.1013821176 | K17: ='taxable retail analysis'!U17 -> 0.08138708541 | M17: =VLOOKUP(A17,'Comp Index Comparison - Ranked'!$B$6:$E$140,4,FALSE) -> 0.3602 | N17: =IF(VLOOKUP(A17,'2020-22 Comp Index Non-Res. AGI'!$A$5:$J$138,10,FALSE)="YES",VLOOKUP(A17,'2020-22 Comp Index Non-Res. AGI'!$A$5:$H$147,8,FALSE),VLOOKUP(A17,'2020-2022 Composite Index Data'!$A$5:$H$139,8,FALSE)) -> 0.3769
A18: 9 | B18: BATH | C18: ='true value analysis'!G18 -> -0.09710053184 | D18: ='true value analysis'!N18 -> -0.05208661603 | E18: ='true value analysis'!U18 -> -0.06321207507 | F18: ='AGI analysis'!G18 -> -0.03630123803 | G18: ='AGI analysis'!N18 -> 0.01174381734 | H18: ='AGI analysis'!U18 -> -0.0001308060022 | I18: ='taxable retail analysis'!G18 -> -0.04078881032 | J18: ='taxable retail analysis'!N18 -> 0.007032517817 | K18: ='taxable retail analysis'!U18 -> -0.00478681 | M18: =VLOOKUP(A18,'Comp Index Comparison - Ranked'!$B$6:$E$140,4,FALSE) -> 0.8 | N18: =IF(VLOOKUP(A18,'2020-22 Comp Index Non-Res. AGI'!$A$5:$J$138,10,FALSE)="YES",VLOOKUP(A18,'2020-22 Comp Index Non-Res. AGI'!$A$5:$H$147,8,FALSE),VLOOKUP(A18,'2020-2022 Composite Index Data'!$A$5:$H$139,8,FALSE)) -> 0.8
A19: 10 | B19: BEDFORD COUNTY | C19: ='true value analysis'!G19 -> 0.07280804109 | D19: ='true value analysis'!N19 -> 0.08969292337 | E19: ='true value analysis'!U19 -> 0.06960920981 | F19: ='AGI analysis'!G19 -> 0.1344558198 | G19: ='AGI analysis'!N19 -> 0.1523109739 | H19: ='AGI analysis'!U19 -> 0.131073171 | I19: ='taxable retail analysis'!G19 -> 0.04572188109 | J19: ='taxable retail analysis'!N19 -> 0.0621804554 | K19: ='taxable retail analysis'!U19 -> 0.04260381361 | M19: =VLOOKUP(A19,'Comp Index Comparison - Ranked'!$B$6:$E$140,4,FALSE) -> 0.3132 | N19: =IF(VLOOKUP(A19,'2020-22 Comp Index Non-Res. AGI'!$A$5:$J$138,10,FALSE)="YES",VLOOKUP(A19,'2020-22 Comp Index Non-Res. AGI'!$A$5:$H$147,8,FALSE),VLOOKUP(A19,'2020-2022 Composite Index Data'!$A$5:$H$139,8,FALSE)) -> 0.3132
A20: 11 | B20: BLAND | C20: ='true value analysis'!G20 -> 0.07320615629 | D20: ='true value analysis'!N20 -> 0.1837922316 | E20: ='true value analysis'!U20 -> 0.1017216938 | F20: ='AGI analysis'!G20 -> -0.007425035179 | G20: ='AGI analysis'!N20 -> 0.09485258327 | H20: ='AGI analysis'!U20 -> 0.01894809781 | I20: ='taxable retail analysis'!G20 -> 0.5254453723 | J20: ='taxable retail analysis'!N20 -> 0.6826314038 | K20: ='taxable retail analysis'!U20 -> 0.5659770954 | M20: =VLOOKUP(A20,'Comp Index Comparison - Ranked'!$B$6:$E$140,4,FALSE) -> 0.307 | N20: =IF(VLOOKUP(A20,'2020-22 Comp Index Non-Res. AGI'!$A$5:$J$138,10,FALSE)="YES",VLOOKUP(A20,'2020-22 Comp Index Non-Res. AGI'!$A$5:$H$147,8,FALSE),VLOOKUP(A20,'2020-2022 Composite Index Data'!$A$5:$H$139,8,FALSE)) -> 0.338
A21: 12 | B21: BOTETOURT | C21: ='true value analysis'!G21 -> 0.08351815762 | D21: ='true value analysis'!N21 -> 0.1114215692 | E21: ='true value analysis'!U21 -> 0.08793670244 | F21: ='AGI analysis'!G21 -> 0.09169542835 | G21: ='AGI analysis'!N21 -> 0.119809426 | H21: ='AGI analysis'!U21 -> 0.09614731976 | I21: ='taxable retail analysis'!G21 -> 0.01565242544 | J21: ='taxable retail analysis'!N21 -> 0.04180811788 | K21: ='taxable retail analysis'!U21 -> 0.01979421644 | M21: =VLOOKUP(A21,'Comp Index Comparison - Ranked'!$B$6:$E$140,4,FALSE) -> 0.3856 | N21: =IF(VLOOKUP(A21,'2020-22 Comp Index Non-Res. AGI'!$A$5:$J$138,10,FALSE)="YES",VLOOKUP(A21,'2020-22 Comp Index Non-Res. AGI'!$A$5:$H$147,8,FALSE),VLOOKUP(A21,'2020-2022 Composite Index Data'!$A$5:$H$139,8,FALSE)) -> 0.3975
A22: 13 | B22: BRUNSWICK | C22: ='true value analysis'!G22 -> 0.2901283826 | D22: ='true value analysis'!N22 -> 0.3807822961 | E22: ='true value analysis'!U22 -> 0.317283247 | F22: ='AGI analysis'!G22 -> 0.06848401264 | G22: ='AGI analysis'!N22 -> 0.1435635617 | H22: ='AGI analysis'!U22 -> 0.09097366468 | I22: ='taxable retail analysis'!G22 -> 0.04455074341 | J22: ='taxable retail analysis'!N22 -> 0.1179485649 | K22: ='taxable retail analysis'!U22 -> 0.0665366435 | M22: =VLOOKUP(A22,'Comp Index Comparison - Ranked'!$B$6:$E$140,4,FALSE) -> 0.3537 | N22: =IF(VLOOKUP(A22,'2020-22 Comp Index Non-Res. AGI'!$A$5:$J$138,10,FALSE)="YES",VLOOKUP(A22,'2020-22 Comp Index Non-Res. AGI'!$A$5:$H$147,8,FALSE),VLOOKUP(A22,'2020-2022 Composite Index Data'!$A$5:$H$139,8,FALSE)) -> 0.429
A23: 14 | B23: BUCHANAN | C23: ='true value analysis'!G23 -> -0.04419521137 | D23: ='true value analysis'!N23 -> 0.01259995143 | E23: ='true value analysis'!U23 -> -0.001669630197 | F23: ='AGI analysis'!G23 -> -0.1051796758 | G23: ='AGI analysis'!N23 -> -0.05200828918 | H23: ='AGI analysis'!U23 -> -0.06536741 | I23: ='taxable retail analysis'!G23 -> -0.01030852896 | J23: ='taxable retail analysis'!N23 -> 0.04850022455 | K23: ='taxable retail analysis'!U23 -> 0.03372473546 | M23: =VLOOKUP(A23,'Comp Index Comparison - Ranked'!$B$6:$E$140,4,FALSE) -> 0.3078 | N23: =IF(VLOOKUP(A23,'2020-22 Comp Index Non-Res. AGI'!$A$5:$J$138,10,FALSE)="YES",VLOOKUP(A23,'2020-22 Comp Index Non-Res. AGI'!$A$5:$H$147,8,FALSE),VLOOKUP(A23,'2020-2022 Composite Index Data'!$A$5:$H$139,8,FALSE)) -> 0.2975
A24: 15 | B24: BUCKINGHAM | C24: ='true value analysis'!G24 -> 0.06263177155 | D24: ='true value analysis'!N24 -> 0.03806779428 | E24: ='true value analysis'!U24 -> 0.06457442561 | F24: ='AGI analysis'!G24 -> 0.1275189468 | G24: ='AGI analysis'!N24 -> 0.1014550265 | H24: ='AGI analysis'!U24 -> 0.1295802246 | I24: ='taxable retail analysis'!G24 -> 0.04561297721 | J24: ='taxable retail analysis'!N24 -> 0.0214424093 | K24: ='taxable retail analysis'!U24 -> 0.0475245183 | M24: =VLOOKUP(A24,'Comp Index Comparison - Ranked'!$B$6:$E$140,4,FALSE) -> 0.3485 | N24: =IF(VLOOKUP(A24,'2020-22 Comp Index Non-Res. AGI'!$A$5:$J$138,10,FALSE)="YES",VLOOKUP(A24,'2020-22 Comp Index Non-Res. AGI'!$A$5:$H$147,8,FALSE),VLOOKUP(A24,'2020-2022 Composite Index Data'!$A$5:$H$139,8,FALSE)) -> 0.3422
A25: 16 | B25: CAMPBELL | C25: ='true value analysis'!G25 -> 0.07406770398 | D25: ='true value analysis'!N25 -> 0.07026906725 | E25: ='true value analysis'!U25 -> 0.08691711672 | F25: ='AGI analysis'!G25 -> 0.1033368117 | G25: ='AGI analysis'!N25 -> 0.09943465945 | H25: ='AGI analysis'!U25 -> 0.1165363801 | I25: ='taxable retail analysis'!G25 -> 0.05081636512 | J25: ='taxable retail analysis'!N25 -> 0.047099961 | K25: ='taxable retail analysis'!U25 -> 0.06338761472 | M25: =VLOOKUP(A25,'Comp Index Comparison - Ranked'!$B$6:$E$140,4,FALSE) -> 0.2851 | N25: =IF(VLOOKUP(A25,'2020-22 Comp Index Non-Res. AGI'!$A$5:$J$138,10,FALSE)="YES",VLOOKUP(A25,'2020-22 Comp Index Non-Res. AGI'!$A$5:$H$147,8,FALSE),VLOOKUP(A25,'2020-2022 Composite Index Data'!$A$5:$H$139,8,FALSE)) -> 0.2878
A26: 17 | B26: CAROLINE | C26: ='true value analysis'!G26 -> 0.07928161642 | D26: ='true value analysis'!N26 -> 0.09431730427 | E26: ='true value analysis'!U26 -> 0.07215598254 | F26: ='AGI analysis'!G26 -> 0.1480475864 | G26: ='AGI analysis'!N26 -> 0.1640412667 | H26: ='AGI analysis'!U26 -> 0.1404679457 | I26: ='taxable retail analysis'!G26 -> 0.09791683636 | J26: ='taxable retail analysis'!N26 -> 0.1132121352 | K26: ='taxable retail analysis'!U26 -> 0.09066816902 | M26: =VLOOKUP(A26,'Comp Index Comparison - Ranked'!$B$6:$E$140,4,FALSE) -> 0.3446 | N26: =IF(VLOOKUP(A26,'2020-22 Comp Index Non-Res. AGI'!$A$5:$J$138,10,FALSE)="YES",VLOOKUP(A26,'2020-22 Comp Index Non-Res. AGI'!$A$5:$H$147,8,FALSE),VLOOKUP(A26,'2020-2022 Composite Index Data'!$A$5:$H$139,8,FALSE)) -> 0.3553
A27: 18 | B27: CARROLL | C27: ='true value analysis'!G27 -> 0.01524010022 | D27: ='true value analysis'!N27 -> 0.05464536552 | E27: ='true value analysis'!U27 -> 0.01770764942 | F27: ='AGI analysis'!G27 -> 0.1389170594 | G27: ='AGI analysis'!N27 -> 0.1831226901 | H27: ='AGI analysis'!U27 -> 0.1416852064 | I27: ='taxable retail analysis'!G27 -> 0.03041378769 | J27: ='taxable retail analysis'!N27 -> 0.07040800055 | K27: ='taxable retail analysis'!U27 -> 0.03291821665 | M27: =VLOOKUP(A27,'Comp Index Comparison - Ranked'!$B$6:$E$140,4,FALSE) -> 0.2727 | N27: =IF(VLOOKUP(A27,'2020-22 Comp Index Non-Res. AGI'!$A$5:$J$138,10,FALSE)="YES",VLOOKUP(A27,'2020-22 Comp Index Non-Res. AGI'!$A$5:$H$147,8,FALSE),VLOOKUP(A27,'2020-2022 Composite Index Data'!$A$5:$H$139,8,FALSE)) -> 0.2749
A28: 19 | B28: CHARLES CITY | C28: ='true value analysis'!G28 -> 0.1167997202 | D28: ='true value analysis'!N28 -> 0.2404792802 | E28: ='true value analysis'!U28 -> 0.1449110263 | F28: ='AGI analysis'!G28 -> 0.1347364345 | G28: ='AGI analysis'!N28 -> 0.2604023891 | H28: ='AGI analysis'!U28 -> 0.1632992311 | I28: ='taxable retail analysis'!G28 -> 0.03062251294 | J28: ='taxable retail analysis'!N28 -> 0.1447584109 | K28: ='taxable retail analysis'!U28 -> 0.05656462626 | M28: =VLOOKUP(A28,'Comp Index Comparison - Ranked'!$B$6:$E$140,4,FALSE) -> 0.5175 | N28: =IF(VLOOKUP(A28,'2020-22 Comp Index Non-Res. AGI'!$A$5:$J$138,10,FALSE)="YES",VLOOKUP(A28,'2020-22 Comp Index Non-Res. AGI'!$A$5:$H$147,8,FALSE),VLOOKUP(A28,'2020-2022 Composite Index Data'!$A$5:$H$139,8,FALSE)) -> 0.588
A29: 20 | B29: CHARLOTTE | C29: ='true value analysis'!G29 -> 0.03054617947 | D29: ='true value analysis'!N29 -> 0.05910419029 | E29: ='true value analysis'!U29 -> 0.04933546882 | F29: ='AGI analysis'!G29 -> 0.05994517133 | G29: ='AGI analysis'!N29 -> 0.08931787317 | H29: ='AGI analysis'!U29 -> 0.07927047369 | I29: ='taxable retail analysis'!G29 -> 0.0704077182 | J29: ='taxable retail analysis'!N29 -> 0.1000703532 | K29: ='taxable retail analysis'!U29 -> 0.08992377749 | M29: =VLOOKUP(A29,'Comp Index Comparison - Ranked'!$B$6:$E$140,4,FALSE) -> 0.2439 | N29: =IF(VLOOKUP(A29,'2020-22 Comp Index Non-Res. AGI'!$A$5:$J$138,10,FALSE)="YES",VLOOKUP(A29,'2020-22 Comp Index Non-Res. AGI'!$A$5:$H$147,8,FALSE),VLOOKUP(A29,'2020-2022 Composite Index Data'!$A$5:$H$139,8,FALSE)) -> 0.2444
A30: 21 | B30: CHESTERFIELD | C30: ='true value analysis'!G30 -> 0.1130117575 | D30: ='true value analysis'!N30 -> 0.0915503519 | E30: ='true value analysis'!U30 -> 0.09150570711 | F30: ='AGI analysis'!G30 -> 0.1447259084 | G30: ='AGI analysis'!N30 -> 0.1226529816 | H30: ='AGI analysis'!U30 -> 0.1226070647 | I30: ='taxable retail analysis'!G30 -> 0.07876868878 | J30: ='taxable retail analysis'!N30 -> 0.05796756768 | K30: ='taxable retail analysis'!U30 -> 0.05792429644 | M30: =VLOOKUP(A30,'Comp Index Comparison - Ranked'!$B$6:$E$140,4,FALSE) -> 0.3522 | N30: =IF(VLOOKUP(A30,'2020-22 Comp Index Non-Res. AGI'!$A$5:$J$138,10,FALSE)="YES",VLOOKUP(A30,'2020-22 Comp Index Non-Res. AGI'!$A$5:$H$147,8,FALSE),VLOOKUP(A30,'2020-2022 Composite Index Data'!$A$5:$H$139,8,FALSE)) -> 0.3584
A31: 22 | B31: CLARKE | C31: ='true value analysis'!G31 -> 0.05414294973 | D31: ='true value analysis'!N31 -> 0.07304023066 | E31: ='true value analysis'!U31 -> 0.04633557462 | F31: ='AGI analysis'!G31 -> 0.221474171 | G31: ='AGI analysis'!N31 -> 0.2433711448 | H31: ='AGI analysis'!U31 -> 0.2124274786 | I31: ='taxable retail analysis'!G31 -> 0.03413179215 | J31: ='taxable retail analysis'!N31 -> 0.0526703395 | K31: ='taxable retail analysis'!U31 -> 0.02647262712 | M31: =VLOOKUP(A31,'Comp Index Comparison - Ranked'!$B$6:$E$140,4,FALSE) -> 0.5506 | N31: =IF(VLOOKUP(A31,'2020-22 Comp Index Non-Res. AGI'!$A$5:$J$138,10,FALSE)="YES",VLOOKUP(A31,'2020-22 Comp Index Non-Res. AGI'!$A$5:$H$147,8,FALSE),VLOOKUP(A31,'2020-2022 Composite Index Data'!$A$5:$H$139,8,FALSE)) -> 0.5729
A32: 23 | B32: CRAIG | C32: ='true value analysis'!G32 -> 0.05470131449 | D32: ='true value analysis'!N32 -> 0.09153105756 | E32: ='true value analysis'!U32 -> 0.06765631211 | F32: ='AGI analysis'!G32 -> 0.09499415052 | G32: ='AGI analysis'!N32 -> 0.1332309031 | H32: ='AGI analysis'!U32 -> 0.1084440689 | I32: ='taxable retail analysis'!G32 -> -0.001166153574 | J32: ='taxable retail analysis'!N32 -> 0.03371272012 | K32: ='taxable retail analysis'!U32 -> 0.01110261857 | M32: =VLOOKUP(A32,'Comp Index Comparison - Ranked'!$B$6:$E$140,4,FALSE) -> 0.3235 | N32: =IF(VLOOKUP(A32,'2020-22 Comp Index Non-Res. AGI'!$A$5:$J$138,10,FALSE)="YES",VLOOKUP(A32,'2020-22 Comp Index Non-Res. AGI'!$A$5:$H$147,8,FALSE),VLOOKUP(A32,'2020-2022 Composite Index Data'!$A$5:$H$139,8,FALSE)) -> 0.3336
A33: 24 | B33: CULPEPER | C33: ='true value analysis'!G33 -> 0.111344487 | D33: ='true value analysis'!N33 -> 0.1040884977 | E33: ='true value analysis'!U33 -> 0.08119104413 | F33: ='AGI analysis'!G33 -> 0.1900073941 | G33: ='AGI analysis'!N33 -> 0.1822378131 | H33: ='AGI analysis'!U33 -> 0.1577196378 | I33: ='taxable retail analysis'!G33 -> 0.1738932817 | J33: ='taxable retail analysis'!N33 -> 0.1662289101 | K33: ='taxable retail analysis'!U33 -> 0.14204274 | M33: =VLOOKUP(A33,'Comp Index Comparison - Ranked'!$B$6:$E$140,4,FALSE) -> 0.3573 | N33: =IF(VLOOKUP(A33,'2020-22 Comp Index Non-Res. AGI'!$A$5:$J$138,10,FALSE)="YES",VLOOKUP(A33,'2020-22 Comp Index Non-Res. AGI'!$A$5:$H$147,8,FALSE),VLOOKUP(A33,'2020-2022 Composite Index Data'!$A$5:$H$139,8,FALSE)) -> 0.3741
A34: 25 | B34: CUMBERLAND | C34: ='true value analysis'!G34 -> 0.0916246741 | D34: ='true value analysis'!N34 -> 0.1351966324 | E34: ='true value analysis'!U34 -> 0.1057944295 | F34: ='AGI analysis'!G34 -> 0.1616024406 | G34: ='AGI analysis'!N34 -> 0.207967546 | H34: ='AGI analysis'!U34 -> 0.1766805374 | I34: ='taxable retail analysis'!G34 -> 0.04993201837 | J34: ='taxable retail analysis'!N34 -> 0.09183982348 | K34: ='taxable retail analysis'!U34 -> 0.06356058529 | M34: =VLOOKUP(A34,'Comp Index Comparison - Ranked'!$B$6:$E$140,4,FALSE) -> 0.281 | N34: =IF(VLOOKUP(A34,'2020-22 Comp Index Non-Res. AGI'!$A$5:$J$138,10,FALSE)="YES",VLOOKUP(A34,'2020-22 Comp Index Non-Res. AGI'!$A$5:$H$147,8,FALSE),VLOOKUP(A34,'2020-2022 Composite Index Data'!$A$5:$H$139,8,FALSE)) -> 0.2978
A35: 26 | B35: DICKENSON | C35: ='true value analysis'!G35 -> -0.032065622 | D35: ='true value analysis'!N35 -> 0.05703531094 | E35: ='true value analysis'!U35 -> 0.01124815584 | F35: ='AGI analysis'!G35 -> -0.01906242352 | G35: ='AGI analysis'!N35 -> 0.07123548842 | H35: ='AGI analysis'!U35 -> 0.02483323019 | I35: ='taxable retail analysis'!G35 -> -0.03197052501 | J35: ='taxable retail analysis'!N35 -> 0.05713916187 | K35: ='taxable retail analysis'!U35 -> 0.0113475083 | M35: =VLOOKUP(A35,'Comp Index Comparison - Ranked'!$B$6:$E$140,4,FALSE) -> 0.247 | N35: =IF(VLOOKUP(A35,'2020-22 Comp Index Non-Res. AGI'!$A$5:$J$138,10,FALSE)="YES",VLOOKUP(A35,'2020-22 Comp Index Non-Res. AGI'!$A$5:$H$147,8,FALSE),VLOOKUP(A35,'2020-2022 Composite Index Data'!$A$5:$H$139,8,FALSE)) -> 0.2471
A36: 27 | B36: DINWIDDIE | C36: ='true value analysis'!G36 -> 0.08366371041 | D36: ='true value analysis'!N36 -> 0.1099380627 | E36: ='true value analysis'!U36 -> 0.0932836023 | F36: ='AGI analysis'!G36 -> 0.09191870206 | G36: ='AGI analysis'!N36 -> 0.1183932036 | H36: ='AGI analysis'!U36 -> 0.1016118751 | I36: ='taxable retail analysis'!G36 -> 0.04039242656 | J36: ='taxable retail analysis'!N36 -> 0.06561762958 | K36: ='taxable retail analysis'!U36 -> 0.04962819091 | M36: =VLOOKUP(A36,'Comp Index Comparison - Ranked'!$B$6:$E$140,4,FALSE) -> 0.2783 | N36: =IF(VLOOKUP(A36,'2020-22 Comp Index Non-Res. AGI'!$A$5:$J$138,10,FALSE)="YES",VLOOKUP(A36,'2020-22 Comp Index Non-Res. AGI'!$A$5:$H$147,8,FALSE),VLOOKUP(A36,'2020-2022 Composite Index Data'!$A$5:$H$139,8,FALSE)) -> 0.2879
A37: 28 | B37: ESSEX | C37: ='true value analysis'!G37 -> 0.1290980318 | D37: ='true value analysis'!N37 -> 0.2028793143 | E37: ='true value analysis'!U37 -> 0.1396444945 | F37: ='AGI analysis'!G37 -> 0.0104840945 | G37: ='AGI analysis'!N37 -> 0.0765145102 | H37: ='AGI analysis'!U37 -> 0.01992263085 | I37: ='taxable retail analysis'!G37 -> 0.05639950282 | J37: ='taxable retail analysis'!N37 -> 0.125430276 | K37: ='taxable retail analysis'!U37 -> 0.06626691703 | M37: =VLOOKUP(A37,'Comp Index Comparison - Ranked'!$B$6:$E$140,4,FALSE) -> 0.4298 | N37: =IF(VLOOKUP(A37,'2020-22 Comp Index Non-Res. AGI'!$A$5:$J$138,10,FALSE)="YES",VLOOKUP(A37,'2020-22 Comp Index Non-Res. AGI'!$A$5:$H$147,8,FALSE),VLOOKUP(A37,'2020-2022 Composite Index Data'!$A$5:$H$139,8,FALSE)) -> 0.4636
A38: 29 | B38: FAIRFAX COUNTY | C38: ='true value analysis'!G38 -> 0.05454866004 | D38: ='true value analysis'!N38 -> 0.04337268363 | E38: ='true value analysis'!U38 -> 0.04154559508 | F38: ='AGI analysis'!G38 -> 0.08944401066 | G38: ='AGI analysis'!N38 -> 0.07789821765 | H38: ='AGI analysis'!U38 -> 0.07601067015 | I38: ='taxable retail analysis'!G38 -> -0.005304019069 | J38: ='taxable retail analysis'!N38 -> -0.01584568417 | K38: ='taxable retail analysis'!U38 -> -0.01756907325 | M38: =VLOOKUP(A38,'Comp Index Comparison - Ranked'!$B$6:$E$140,4,FALSE) -> 0.6754 | N38: =IF(VLOOKUP(A38,'2020-22 Comp Index Non-Res. AGI'!$A$5:$J$138,10,FALSE)="YES",VLOOKUP(A38,'2020-22 Comp Index Non-Res. AGI'!$A$5:$H$147,8,FALSE),VLOOKUP(A38,'2020-2022 Composite Index Data'!$A$5:$H$139,8,FALSE)) -> 0.6541
A39: 30 | B39: FAUQUIER | C39: ='true value analysis'!G39 -> 0.05879337483 | D39: ='true value analysis'!N39 -> 0.05384891713 | E39: ='true value analysis'!U39 -> 0.04040569284 | F39: ='AGI analysis'!G39 -> 0.122364166 | G39: ='AGI analysis'!N39 -> 0.1171228391 | H39: ='AGI analysis'!U39 -> 0.102872473 | I39: ='taxable retail analysis'!G39 -> 0.1573435532 | J39: ='taxable retail analysis'!N39 -> 0.1519388761 | K39: ='taxable retail analysis'!U39 -> 0.1372443858 | M39: =VLOOKUP(A39,'Comp Index Comparison - Ranked'!$B$6:$E$140,4,FALSE) -> 0.6114 | N39: =IF(VLOOKUP(A39,'2020-22 Comp Index Non-Res. AGI'!$A$5:$J$138,10,FALSE)="YES",VLOOKUP(A39,'2020-22 Comp Index Non-Res. AGI'!$A$5:$H$147,8,FALSE),VLOOKUP(A39,'2020-2022 Composite Index Data'!$A$5:$H$139,8,FALSE)) -> 0.5879
A40: 31 | B40: FLOYD | C40: ='true value analysis'!G40 -> 0.08850767661 | D40: ='true value analysis'!N40 -> 0.09981057979 | E40: ='true value analysis'!U40 -> 0.08010761737 | F40: ='AGI analysis'!G40 -> 0.08918621152 | G40: ='AGI analysis'!N40 -> 0.1004961605 | H40: ='AGI analysis'!U40 -> 0.080780916 | I40: ='taxable retail analysis'!G40 -> 0.04192811449 | J40: ='taxable retail analysis'!N40 -> 0.05274734237 | K40: ='taxable retail analysis'!U40 -> 0.03388751168 | M40: =VLOOKUP(A40,'Comp Index Comparison - Ranked'!$B$6:$E$140,4,FALSE) -> 0.3337 | N40: =IF(VLOOKUP(A40,'2020-22 Comp Index Non-Res. AGI'!$A$5:$J$138,10,FALSE)="YES",VLOOKUP(A40,'2020-22 Comp Index Non-Res. AGI'!$A$5:$H$147,8,FALSE),VLOOKUP(A40,'2020-2022 Composite Index Data'!$A$5:$H$139,8,FALSE)) -> 0.3418
A41: 32 | B41: FLUVANNA | C41: ='true value analysis'!G41 -> 0.04743937317 | D41: ='true value analysis'!N41 -> 0.04017141788 | E41: ='true value analysis'!U41 -> 0.03536890773 | F41: ='AGI analysis'!G41 -> 0.1745055379 | G41: ='AGI analysis'!N41 -> 0.166355898 | H41: ='AGI analysis'!U41 -> 0.1609707894 | I41: ='taxable retail analysis'!G41 -> 0.1321720839 | J41: ='taxable retail analysis'!N41 -> 0.1243161866 | K41: ='taxable retail analysis'!U41 -> 0.1191251769 | M41: =VLOOKUP(A41,'Comp Index Comparison - Ranked'!$B$6:$E$140,4,FALSE) -> 0.3912 | N41: =IF(VLOOKUP(A41,'2020-22 Comp Index Non-Res. AGI'!$A$5:$J$138,10,FALSE)="YES",VLOOKUP(A41,'2020-22 Comp Index Non-Res. AGI'!$A$5:$H$147,8,FALSE),VLOOKUP(A41,'2020-2022 Composite Index Data'!$A$5:$H$139,8,FALSE)) -> 0.394
A42: 33 | B42: FRANKLIN COUNTY | C42: ='true value analysis'!G42 -> 0.03599681336 | D42: ='true value analysis'!N42 -> 0.05007354251 | E42: ='true value analysis'!U42 -> 0.03500537614 | F42: ='AGI analysis'!G42 -> 0.1183191524 | G42: ='AGI analysis'!N42 -> 0.133514446 | H42: ='AGI analysis'!U42 -> 0.1172489336 | I42: ='taxable retail analysis'!G42 -> 0.04963538428 | J42: ='taxable retail analysis'!N42 -> 0.06389742912 | K42: ='taxable retail analysis'!U42 -> 0.0486308951 | M42: =VLOOKUP(A42,'Comp Index Comparison - Ranked'!$B$6:$E$140,4,FALSE) -> 0.3954 | N42: =IF(VLOOKUP(A42,'2020-22 Comp Index Non-Res. AGI'!$A$5:$J$138,10,FALSE)="YES",VLOOKUP(A42,'2020-22 Comp Index Non-Res. AGI'!$A$5:$H$147,8,FALSE),VLOOKUP(A42,'2020-2022 Composite Index Data'!$A$5:$H$139,8,FALSE)) -> 0.3953
A43: 34 | B43: FREDERICK | C43: ='true value analysis'!G43 -> 0.1960790939 | D43: ='true value analysis'!N43 -> 0.1690084625 | E43: ='true value analysis'!U43 -> 0.1515222905 | F43: ='AGI analysis'!G43 -> 0.1932985848 | G43: ='AGI analysis'!N43 -> 0.1662908842 | H43: ='AGI analysis'!U43 -> 0.1488453621 | I43: ='taxable retail analysis'!G43 -> 0.07757314557 | J43: ='taxable retail analysis'!N43 -> 0.05318463689 | K43: ='taxable retail analysis'!U43 -> 0.03743097187 | M43: =VLOOKUP(A43,'Comp Index Comparison - Ranked'!$B$6:$E$140,4,FALSE) -> 0.3898 | N43: =IF(VLOOKUP(A43,'2020-22 Comp Index Non-Res. AGI'!$A$5:$J$138,10,FALSE)="YES",VLOOKUP(A43,'2020-22 Comp Index Non-Res. AGI'!$A$5:$H$147,8,FALSE),VLOOKUP(A43,'2020-2022 Composite Index Data'!$A$5:$H$139,8,FALSE)) -> 0.412
A44: 35 | B44: GILES | C44: ='true value analysis'!G44 -> 0.04374869111 | D44: ='true value analysis'!N44 -> 0.0456510357 | E44: ='true value analysis'!U44 -> 0.0514606676 | F44: ='AGI analysis'!G44 -> 0.06062353259 | G44: ='AGI analysis'!N44 -> 0.0625566334 | H44: ='AGI analysis'!U44 -> 0.06846019271 | I44: ='taxable retail analysis'!G44 -> -0.1192082784 | J44: ='taxable retail analysis'!N44 -> -0.1176029405 | K44: ='taxable retail analysis'!U44 -> -0.1127003468 | M44: =VLOOKUP(A44,'Comp Index Comparison - Ranked'!$B$6:$E$140,4,FALSE) -> 0.2779 | N44: =IF(VLOOKUP(A44,'2020-22 Comp Index Non-Res. AGI'!$A$5:$J$138,10,FALSE)="YES",VLOOKUP(A44,'2020-22 Comp Index Non-Res. AGI'!$A$5:$H$147,8,FALSE),VLOOKUP(A44,'2020-2022 Composite Index Data'!$A$5:$H$139,8,FALSE)) -> 0.2695
A45: 36 | B45: GLOUCESTER | C45: ='true value analysis'!G45 -> 0.03798669303 | D45: ='true value analysis'!N45 -> 0.05984754418 | E45: ='true value analysis'!U45 -> 0.03527785746 | F45: ='AGI analysis'!G45 -> 0.1412977283 | G45: ='AGI analysis'!N45 -> 0.1653343946 | H45: ='AGI analysis'!U45 -> 0.1383192818 | I45: ='taxable retail analysis'!G45 -> 0.08668223869 | J45: ='taxable retail analysis'!N45 -> 0.109568658 | K45: ='taxable retail analysis'!U45 -> 0.08384632228 | M45: =VLOOKUP(A45,'Comp Index Comparison - Ranked'!$B$6:$E$140,4,FALSE) -> 0.3821 | N45: =IF(VLOOKUP(A45,'2020-22 Comp Index Non-Res. AGI'!$A$5:$J$138,10,FALSE)="YES",VLOOKUP(A45,'2020-22 Comp Index Non-Res. AGI'!$A$5:$H$147,8,FALSE),VLOOKUP(A45,'2020-2022 Composite Index Data'!$A$5:$H$139,8,FALSE)) -> 0.3885
A46: 37 | B46: GOOCHLAND | C46: ='true value analysis'!G46 -> 0.07364599744 | D46: ='true value analysis'!N46 -> 0.05036809277 | E46: ='true value analysis'!U46 -> 0.05340726206 | F46: ='AGI analysis'!G46 -> 0.2274852805 | G46: ='AGI analysis'!N46 -> 0.2008719597 | H46: ='AGI analysis'!U46 -> 0.2043466018 | I46: ='taxable retail analysis'!G46 -> 0.1313572426 | J46: ='taxable retail analysis'!N46 -> 0.1068280904 | K46: ='taxable retail analysis'!U46 -> 0.1100306229 | M46: =VLOOKUP(A46,'Comp Index Comparison - Ranked'!$B$6:$E$140,4,FALSE) -> 0.8 | N46: =IF(VLOOKUP(A46,'2020-22 Comp Index Non-Res. AGI'!$A$5:$J$138,10,FALSE)="YES",VLOOKUP(A46,'2020-22 Comp Index Non-Res. AGI'!$A$5:$H$147,8,FALSE),VLOOKUP(A46,'2020-2022 Composite Index Data'!$A$5:$H$139,8,FALSE)) -> 0.8
A47: 38 | B47: GRAYSON | C47: ='true value analysis'!G47 -> 0.09399779257 | D47: ='true value analysis'!N47 -> 0.1700995942 | E47: ='true value analysis'!U47 -> 0.1231822381 | F47: ='AGI analysis'!G47 -> 0.123624202 | G47: ='AGI analysis'!N47 -> 0.2017869065 | H47: ='AGI analysis'!U47 -> 0.1535989877 | I47: ='taxable retail analysis'!G47 -> 0.02429922985 | J47: ='taxable retail analysis'!N47 -> 0.09555258824 | K47: ='taxable retail analysis'!U47 -> 0.05162433535 | M47: =VLOOKUP(A47,'Comp Index Comparison - Ranked'!$B$6:$E$140,4,FALSE) -> 0.3462 | N47: =IF(VLOOKUP(A47,'2020-22 Comp Index Non-Res. AGI'!$A$5:$J$138,10,FALSE)="YES",VLOOKUP(A47,'2020-22 Comp Index Non-Res. AGI'!$A$5:$H$147,8,FALSE),VLOOKUP(A47,'2020-2022 Composite Index Data'!$A$5:$H$139,8,FALSE)) -> 0.3615
A48: 39 | B48: GREENE | C48: ='true value analysis'!G48 -> 0.059912839 | D48: ='true value analysis'!N48 -> 0.09092892304 | E48: ='true value analysis'!U48 -> 0.05222270331 | F48: ='AGI analysis'!G48 -> 0.1749804949 | G48: ='AGI analysis'!N48 -> 0.209363788 | H48: ='AGI analysis'!U48 -> 0.1664554926 | I48: ='taxable retail analysis'!G48 -> 0.06655501641 | J48: ='taxable retail analysis'!N48 -> 0.09776546958 | K48: ='taxable retail analysis'!U48 -> 0.0588166888 | M48: =VLOOKUP(A48,'Comp Index Comparison - Ranked'!$B$6:$E$140,4,FALSE) -> 0.3321 | N48: =IF(VLOOKUP(A48,'2020-22 Comp Index Non-Res. AGI'!$A$5:$J$138,10,FALSE)="YES",VLOOKUP(A48,'2020-22 Comp Index Non-Res. AGI'!$A$5:$H$147,8,FALSE),VLOOKUP(A48,'2020-2022 Composite Index Data'!$A$5:$H$139,8,FALSE)) -> 0.3446
A49: 40 | B49: GREENSVILLE | C49: ='true value analysis'!G49 -> 0.3246130298 | D49: ='true value analysis'!N49 -> 0.5220679683 | E49: ='true value analysis'!U49 -> 0.3522210676 | F49: ='AGI analysis'!G49 -> 0.1222200233 | G49: ='AGI analysis'!N49 -> 0.2895050195 | H49: ='AGI analysis'!U49 -> 0.1456097168 | I49: ='taxable retail analysis'!G49 -> 0.1269595231 | J49: ='taxable retail analysis'!N49 -> 0.2949510182 | K49: ='taxable retail analysis'!U49 -> 0.1504479988 | M49: =VLOOKUP(A49,'Comp Index Comparison - Ranked'!$B$6:$E$140,4,FALSE) -> 0.2189 | N49: =IF(VLOOKUP(A49,'2020-22 Comp Index Non-Res. AGI'!$A$5:$J$138,10,FALSE)="YES",VLOOKUP(A49,'2020-22 Comp Index Non-Res. AGI'!$A$5:$H$147,8,FALSE),VLOOKUP(A49,'2020-2022 Composite Index Data'!$A$5:$H$139,8,FALSE)) -> 0.2799
A50: 41 | B50: HALIFAX | C50: ='true value analysis'!G50 -> 0.03116245659 | D50: ='true value analysis'!N50 -> 0.1004561195 | E50: ='true value analysis'!U50 -> 0.04729678894 | F50: ='AGI analysis'!G50 -> 0.0622088758 | G50: ='AGI analysis'!N50 -> 0.1335888444 | H50: ='AGI analysis'!U50 -> 0.07882898344 | I50: ='taxable retail analysis'!G50 -> -0.03156828609 | J50: ='taxable retail analysis'!N50 -> 0.03350989855 | K50: ='taxable retail analysis'!U50 -> -0.01641548546 | M50: =VLOOKUP(A50,'Comp Index Comparison - Ranked'!$B$6:$E$140,4,FALSE) -> 0.3 | N50: =IF(VLOOKUP(A50,'2020-22 Comp Index Non-Res. AGI'!$A$5:$J$138,10,FALSE)="YES",VLOOKUP(A50,'2020-22 Comp Index Non-Res. AGI'!$A$5:$H$147,8,FALSE),VLOOKUP(A50,'2020-2022 Composite Index Data'!$A$5:$H$139,8,FALSE)) -> 0.3058
A51: 42 | B51: HANOVER | C51: ='true value analysis'!G51 -> 0.0979682145 | D51: ='true value analysis'!N51 -> 0.1066985348 | E51: ='true value analysis'!U51 -> 0.07358841734 | F51: ='AGI analysis'!G51 -> 0.1932264957 | G51: ='AGI analysis'!N51 -> 0.2027142471 | H51: ='AGI analysis'!U51 -> 0.1667315393 | I51: ='taxable retail analysis'!G51 -> 0.06837174873 | J51: ='taxable retail analysis'!N51 -> 0.07686673739 | K51: ='taxable retail analysis'!U51 -> 0.04464912527 | M51: =VLOOKUP(A51,'Comp Index Comparison - Ranked'!$B$6:$E$140,4,FALSE) -> 0.4468 | N51: =IF(VLOOKUP(A51,'2020-22 Comp Index Non-Res. AGI'!$A$5:$J$138,10,FALSE)="YES",VLOOKUP(A51,'2020-22 Comp Index Non-Res. AGI'!$A$5:$H$147,8,FALSE),VLOOKUP(A51,'2020-2022 Composite Index Data'!$A$5:$H$139,8,FALSE)) -> 0.4626
A52: 43 | B52: HENRICO | C52: ='true value analysis'!G52 -> 0.1084559344 | D52: ='true value analysis'!N52 -> 0.1090052711 | E52: ='true value analysis'!U52 -> 0.09588822859 | F52: ='AGI analysis'!G52 -> 0.1475188816 | G52: ='AGI analysis'!N52 -> 0.1480875774 | H52: ='AGI analysis'!U52 -> 0.134508279 | I52: ='taxable retail analysis'!G52 -> 0.04161951931 | J52: ='taxable retail analysis'!N52 -> 0.04213573276 | K52: ='taxable retail analysis'!U52 -> 0.02980960673 | M52: =VLOOKUP(A52,'Comp Index Comparison - Ranked'!$B$6:$E$140,4,FALSE) -> 0.4183 | N52: =IF(VLOOKUP(A52,'2020-22 Comp Index Non-Res. AGI'!$A$5:$J$138,10,FALSE)="YES",VLOOKUP(A52,'2020-22 Comp Index Non-Res. AGI'!$A$5:$H$147,8,FALSE),VLOOKUP(A52,'2020-2022 Composite Index Data'!$A$5:$H$139,8,FALSE)) -> 0.4279
A53: 44 | B53: HENRY | C53: ='true value analysis'!G53 -> 0.03657431959 | D53: ='true value analysis'!N53 -> 0.03648751196 | E53: ='true value analysis'!U53 -> 0.05346664183 | F53: ='AGI analysis'!G53 -> 0.1203098317 | G53: ='AGI analysis'!N53 -> 0.1202160116 | H53: ='AGI analysis'!U53 -> 0.1385667326 | I53: ='taxable retail analysis'!G53 -> -0.01765701562 | J53: ='taxable retail analysis'!N53 -> -0.01773928166 | K53: ='taxable retail analysis'!U53 -> -0.001648463279 | M53: =VLOOKUP(A53,'Comp Index Comparison - Ranked'!$B$6:$E$140,4,FALSE) -> 0.2253 | N53: =IF(VLOOKUP(A53,'2020-22 Comp Index Non-Res. AGI'!$A$5:$J$138,10,FALSE)="YES",VLOOKUP(A53,'2020-22 Comp Index Non-Res. AGI'!$A$5:$H$147,8,FALSE),VLOOKUP(A53,'2020-2022 Composite Index Data'!$A$5:$H$139,8,FALSE)) -> 0.2253
A54: 45 | B54: HIGHLAND | C54: ='true value analysis'!G54 -> -0.02403207521 | D54: ='true value analysis'!N54 -> -0.02302086667 | E54: ='true value analysis'!U54 -> -0.02702322034 | F54: ='AGI analysis'!G54 -> 0.03052997799 | G54: ='AGI analysis'!N54 -> 0.03159771874 | H54: ='AGI analysis'!U54 -> 0.02737161116 | I54: ='taxable retail analysis'!G54 -> -0.03734887969 | J54: ='taxable retail analysis'!N54 -> -0.0363514688 | K54: ='taxable retail analysis'!U54 -> -0.0402992115 | M54: =VLOOKUP(A54,'Comp Index Comparison - Ranked'!$B$6:$E$140,4,FALSE) -> 0.8 | N54: =IF(VLOOKUP(A54,'2020-22 Comp Index Non-Res. AGI'!$A$5:$J$138,10,FALSE)="YES",VLOOKUP(A54,'2020-22 Comp Index Non-Res. AGI'!$A$5:$H$147,8,FALSE),VLOOKUP(A54,'2020-2022 Composite Index Data'!$A$5:$H$139,8,FALSE)) -> 0.8
A55: 46 | B55: ISLE OF WIGHT | C55: ='true value analysis'!G55 -> 0.07107499593 | D55: ='true value analysis'!N55 -> 0.06628354898 | E55: ='true value analysis'!U55 -> 0.04539765628 | F55: ='AGI analysis'!G55 -> 0.09605163573 | G55: ='AGI analysis'!N55 -> 0.09114845594 | H55: ='AGI analysis'!U55 -> 0.06977552039 | I55: ='taxable retail analysis'!G55 -> 0.07485662731 | J55: ='taxable retail analysis'!N55 -> 0.07004826326 | K55: ='taxable retail analysis'!U55 -> 0.04908862899 | M55: =VLOOKUP(A55,'Comp Index Comparison - Ranked'!$B$6:$E$140,4,FALSE) -> 0.3968 | N55: =IF(VLOOKUP(A55,'2020-22 Comp Index Non-Res. AGI'!$A$5:$J$138,10,FALSE)="YES",VLOOKUP(A55,'2020-22 Comp Index Non-Res. AGI'!$A$5:$H$147,8,FALSE),VLOOKUP(A55,'2020-2022 Composite Index Data'!$A$5:$H$139,8,FALSE)) -> 0.3964
A56: 47 | B56: JAMES CITY | C56: ='true value analysis'!G56 -> 0.04296323765 | D56: ='true value analysis'!N56 -> 0.02852729632 | E56: ='true value analysis'!U56 -> 0.02346403202 | F56: ='AGI analysis'!G56 -> 0.1855554109 | G56: ='AGI analysis'!N56 -> 0.169145812 | H56: ='AGI analysis'!U56 -> 0.1633903068 | I56: ='taxable retail analysis'!G56 -> -0.02025875869 | J56: ='taxable retail analysis'!N56 -> -0.03381962696 | K56: ='taxable retail analysis'!U56 -> -0.038575968 | M56: =VLOOKUP(A56,'Comp Index Comparison - Ranked'!$B$6:$E$140,4,FALSE) -> 0.5657 | N56: =IF(VLOOKUP(A56,'2020-22 Comp Index Non-Res. AGI'!$A$5:$J$138,10,FALSE)="YES",VLOOKUP(A56,'2020-22 Comp Index Non-Res. AGI'!$A$5:$H$147,8,FALSE),VLOOKUP(A56,'2020-2022 Composite Index Data'!$A$5:$H$139,8,FALSE)) -> 0.5553
A57: 48 | B57: KING GEORGE | C57: ='true value analysis'!G57 -> 0.0884443456 | D57: ='true value analysis'!N57 -> 0.05262971825 | E57: ='true value analysis'!U57 -> 0.05495177108 | F57: ='AGI analysis'!G57 -> 0.1668318635 | G57: ='AGI analysis'!N57 -> 0.1284379406 | H57: ='AGI analysis'!U57 -> 0.1309272228 | I57: ='taxable retail analysis'!G57 -> 0.07328930674 | J57: ='taxable retail analysis'!N57 -> 0.03797334712 | K57: ='taxable retail analysis'!U57 -> 0.04026306867 | M57: =VLOOKUP(A57,'Comp Index Comparison - Ranked'!$B$6:$E$140,4,FALSE) -> 0.3721 | N57: =IF(VLOOKUP(A57,'2020-22 Comp Index Non-Res. AGI'!$A$5:$J$138,10,FALSE)="YES",VLOOKUP(A57,'2020-22 Comp Index Non-Res. AGI'!$A$5:$H$147,8,FALSE),VLOOKUP(A57,'2020-2022 Composite Index Data'!$A$5:$H$139,8,FALSE)) -> 0.3703
A58: 49 | B58: KING AND QUEEN | C58: ='true value analysis'!G58 -> 0.04140169118 | D58: ='true value analysis'!N58 -> 0.09549208425 | E58: ='true value analysis'!U58 -> 0.07969403888 | F58: ='AGI analysis'!G58 -> 0.1086799277 | G58: ='AGI analysis'!N58 -> 0.1662647516 | H58: ='AGI analysis'!U58 -> 0.1494460966 | I58: ='taxable retail analysis'!G58 -> 0.09386523249 | J58: ='taxable retail analysis'!N58 -> 0.1506805813 | K58: ='taxable retail analysis'!U58 -> 0.134086665 | M58: =VLOOKUP(A58,'Comp Index Comparison - Ranked'!$B$6:$E$140,4,FALSE) -> 0.3945 | N58: =IF(VLOOKUP(A58,'2020-22 Comp Index Non-Res. AGI'!$A$5:$J$138,10,FALSE)="YES",VLOOKUP(A58,'2020-22 Comp Index Non-Res. AGI'!$A$5:$H$147,8,FALSE),VLOOKUP(A58,'2020-2022 Composite Index Data'!$A$5:$H$139,8,FALSE)) -> 0.4139
A59: 50 | B59: KING WILLIAM | C59: ='true value analysis'!G59 -> 0.1072234127 | D59: ='true value analysis'!N59 -> 0.1270639707 | E59: ='true value analysis'!U59 -> 0.07445745024 | F59: ='AGI analysis'!G59 -> 0.1941789321 | G59: ='AGI analysis'!N59 -> 0.2155776634 | H59: ='AGI analysis'!U59 -> 0.1588397027 | I59: ='taxable retail analysis'!G59 -> 0.02784331558 | J59: ='taxable retail analysis'!N59 -> 0.04626144572 | K59: ='taxable retail analysis'!U59 -> -0.002573558864 | M59: =VLOOKUP(A59,'Comp Index Comparison - Ranked'!$B$6:$E$140,4,FALSE) -> 0.3283 | N59: =IF(VLOOKUP(A59,'2020-22 Comp Index Non-Res. AGI'!$A$5:$J$138,10,FALSE)="YES",VLOOKUP(A59,'2020-22 Comp Index Non-Res. AGI'!$A$5:$H$147,8,FALSE),VLOOKUP(A59,'2020-2022 Composite Index Data'!$A$5:$H$139,8,FALSE)) -> 0.3407
A60: 51 | B60: LANCASTER | C60: ='true value analysis'!G60 -> -0.003331857233 | D60: ='true value analysis'!N60 -> 0.06208064669 | E60: ='true value analysis'!U60 -> 0.00790976715 | F60: ='AGI analysis'!G60 -> 0.1443575884 | G60: ='AGI analysis'!N60 -> 0.2194631246 | H60: ='AGI analysis'!U60 -> 0.1572650323 | I60: ='taxable retail analysis'!G60 -> 0.04990479311 | J60: ='taxable retail analysis'!N60 -> 0.1188112811 | K60: ='taxable retail analysis'!U60 -> 0.0617468846 | M60: =VLOOKUP(A60,'Comp Index Comparison - Ranked'!$B$6:$E$140,4,FALSE) -> 0.7718 | N60: =IF(VLOOKUP(A60,'2020-22 Comp Index Non-Res. AGI'!$A$5:$J$138,10,FALSE)="YES",VLOOKUP(A60,'2020-22 Comp Index Non-Res. AGI'!$A$5:$H$147,8,FALSE),VLOOKUP(A60,'2020-2022 Composite Index Data'!$A$5:$H$139,8,FALSE)) -> 0.7835
A61: 52 | B61: LEE | C61: ='true value analysis'!G61 -> -0.01393999387 | D61: ='true value analysis'!N61 -> -0.01069775639 | E61: ='true value analysis'!U61 -> 0.01920794132 | F61: ='AGI analysis'!G61 -> 0.04582198061 | G61: ='AGI analysis'!N61 -> 0.04926071984 | H61: ='AGI analysis'!U61 -> 0.08097890718 | I61: ='taxable retail analysis'!G61 -> -0.06860763397 | J61: ='taxable retail analysis'!N61 -> -0.06554514769 | K61: ='taxable retail analysis'!U61 -> -0.03729743622 | M61: =VLOOKUP(A61,'Comp Index Comparison - Ranked'!$B$6:$E$140,4,FALSE) -> 0.1754 | N61: =IF(VLOOKUP(A61,'2020-22 Comp Index Non-Res. AGI'!$A$5:$J$138,10,FALSE)="YES",VLOOKUP(A61,'2020-22 Comp Index Non-Res. AGI'!$A$5:$H$147,8,FALSE),VLOOKUP(A61,'2020-2022 Composite Index Data'!$A$5:$H$139,8,FALSE)) -> 0.1692
A62: 53 | B62: LOUDOUN | C62: ='true value analysis'!G62 -> 0.1466452997 | D62: ='true value analysis'!N62 -> 0.07920358398 | E62: ='true value analysis'!U62 -> 0.08406253246 | F62: ='AGI analysis'!G62 -> 0.2676324623 | G62: ='AGI analysis'!N62 -> 0.1930746997 | H62: ='AGI analysis'!U62 -> 0.1984463354 | I62: ='taxable retail analysis'!G62 -> 0.06783540932 | J62: ='taxable retail analysis'!N62 -> 0.005029019156 | K62: ='taxable retail analysis'!U62 -> 0.009554008038 | M62: =VLOOKUP(A62,'Comp Index Comparison - Ranked'!$B$6:$E$140,4,FALSE) -> 0.5383 | N62: =IF(VLOOKUP(A62,'2020-22 Comp Index Non-Res. AGI'!$A$5:$J$138,10,FALSE)="YES",VLOOKUP(A62,'2020-22 Comp Index Non-Res. AGI'!$A$5:$H$147,8,FALSE),VLOOKUP(A62,'2020-2022 Composite Index Data'!$A$5:$H$139,8,FALSE)) -> 0.5466
A63: 54 | B63: LOUISA | C63: ='true value analysis'!G63 -> 0.0272953287 | D63: ='true value analysis'!N63 -> 0.02376196736 | E63: ='true value analysis'!U63 -> 0.004101647949 | F63: ='AGI analysis'!G63 -> 0.2074401678 | G63: ='AGI analysis'!N63 -> 0.2032872019 | H63: ='AGI analysis'!U63 -> 0.1801792809 | I63: ='taxable retail analysis'!G63 -> 0.08060803681 | J63: ='taxable retail analysis'!N63 -> 0.0768913075 | K63: ='taxable retail analysis'!U63 -> 0.05621069252 | M63: =VLOOKUP(A63,'Comp Index Comparison - Ranked'!$B$6:$E$140,4,FALSE) -> 0.5474 | N63: =IF(VLOOKUP(A63,'2020-22 Comp Index Non-Res. AGI'!$A$5:$J$138,10,FALSE)="YES",VLOOKUP(A63,'2020-22 Comp Index Non-Res. AGI'!$A$5:$H$147,8,FALSE),VLOOKUP(A63,'2020-2022 Composite Index Data'!$A$5:$H$139,8,FALSE)) -> 0.5406
A64: 55 | B64: LUNENBURG | C64: ='true value analysis'!G64 -> 0.02201820861 | D64: ='true value analysis'!N64 -> 0.05170244343 | E64: ='true value analysis'!U64 -> 0.02606139383 | F64: ='AGI analysis'!G64 -> 0.1250861809 | G64: ='AGI analysis'!N64 -> 0.1577639963 | H64: ='AGI analysis'!U64 -> 0.1295371112 | I64: ='taxable retail analysis'!G64 -> 0.02126912708 | J64: ='taxable retail analysis'!N64 -> 0.05093160504 | K64: ='taxable retail analysis'!U64 -> 0.02530934888 | M64: =VLOOKUP(A64,'Comp Index Comparison - Ranked'!$B$6:$E$140,4,FALSE) -> 0.2525 | N64: =IF(VLOOKUP(A64,'2020-22 Comp Index Non-Res. AGI'!$A$5:$J$138,10,FALSE)="YES",VLOOKUP(A64,'2020-22 Comp Index Non-Res. AGI'!$A$5:$H$147,8,FALSE),VLOOKUP(A64,'2020-2022 Composite Index Data'!$A$5:$H$139,8,FALSE)) -> 0.2561
A65: 56 | B65: MADISON | C65: ='true value analysis'!G65 -> 0.06228175555 | D65: ='true value analysis'!N65 -> 0.08593753774 | E65: ='true value analysis'!U65 -> 0.05495289734 | F65: ='AGI analysis'!G65 -> 0.1289217507 | G65: ='AGI analysis'!N65 -> 0.1540615283 | H65: ='AGI analysis'!U65 -> 0.1211331321 | I65: ='taxable retail analysis'!G65 -> 0.06559090438 | J65: ='taxable retail analysis'!N65 -> 0.08932037749 | K65: ='taxable retail analysis'!U65 -> 0.05823921581 | M65: =VLOOKUP(A65,'Comp Index Comparison - Ranked'!$B$6:$E$140,4,FALSE) -> 0.4608 | N65: =IF(VLOOKUP(A65,'2020-22 Comp Index Non-Res. AGI'!$A$5:$J$138,10,FALSE)="YES",VLOOKUP(A65,'2020-22 Comp Index Non-Res. AGI'!$A$5:$H$147,8,FALSE),VLOOKUP(A65,'2020-2022 Composite Index Data'!$A$5:$H$139,8,FALSE)) -> 0.4738
A66: 57 | B66: MATHEWS | C66: ='true value analysis'!G66 -> 0.08873354546 | D66: ='true value analysis'!N66 -> 0.1093091055 | E66: ='true value analysis'!U66 -> 0.09955669711 | F66: ='AGI analysis'!G66 -> 0.1029078256 | G66: ='AGI analysis'!N66 -> 0.12375126 | H66: ='AGI analysis'!U66 -> 0.1138718845 | I66: ='taxable retail analysis'!G66 -> -0.0181308609 | J66: ='taxable retail analysis'!N66 -> 0.000425109503 | K66: ='taxable retail analysis'!U66 -> -0.008370053365 | M66: =VLOOKUP(A66,'Comp Index Comparison - Ranked'!$B$6:$E$140,4,FALSE) -> 0.506 | N66: =IF(VLOOKUP(A66,'2020-22 Comp Index Non-Res. AGI'!$A$5:$J$138,10,FALSE)="YES",VLOOKUP(A66,'2020-22 Comp Index Non-Res. AGI'!$A$5:$H$147,8,FALSE),VLOOKUP(A66,'2020-2022 Composite Index Data'!$A$5:$H$139,8,FALSE)) -> 0.5162
A67: 58 | B67: MECKLENBURG | C67: ='true value analysis'!G67 -> 0.1137869311 | D67: ='true value analysis'!N67 -> 0.1679434138 | E67: ='true value analysis'!U67 -> 0.1260420073 | F67: ='AGI analysis'!G67 -> 0.06700011445 | G67: ='AGI analysis'!N67 -> 0.1188816473 | H67: ='AGI analysis'!U67 -> 0.07874039207 | I67: ='taxable retail analysis'!G67 -> 0.009977926801 | J67: ='taxable retail analysis'!N67 -> 0.05908682783 | K67: ='taxable retail analysis'!U67 -> 0.02109078526 | M67: =VLOOKUP(A67,'Comp Index Comparison - Ranked'!$B$6:$E$140,4,FALSE) -> 0.3767 | N67: =IF(VLOOKUP(A67,'2020-22 Comp Index Non-Res. AGI'!$A$5:$J$138,10,FALSE)="YES",VLOOKUP(A67,'2020-22 Comp Index Non-Res. AGI'!$A$5:$H$147,8,FALSE),VLOOKUP(A67,'2020-2022 Composite Index Data'!$A$5:$H$139,8,FALSE)) -> 0.3996
A68: 59 | B68: MIDDLESEX | C68: ='true value analysis'!G68 -> 0.02037107375 | D68: ='true value analysis'!N68 -> 0.01943123805 | E68: ='true value analysis'!U68 -> 0.02760380219 | F68: ='AGI analysis'!G68 -> 0.1178219948 | G68: ='AGI analysis'!N68 -> 0.1167923997 | H68: ='AGI analysis'!U68 -> 0.1257454876 | I68: ='taxable retail analysis'!G68 -> 0.0456953991 | J68: ='taxable retail analysis'!N68 -> 0.04473223787 | K68: ='taxable retail analysis'!U68 -> 0.05310763476 | M68: =VLOOKUP(A68,'Comp Index Comparison - Ranked'!$B$6:$E$140,4,FALSE) -> 0.616 | N68: =IF(VLOOKUP(A68,'2020-22 Comp Index Non-Res. AGI'!$A$5:$J$138,10,FALSE)="YES",VLOOKUP(A68,'2020-22 Comp Index Non-Res. AGI'!$A$5:$H$147,8,FALSE),VLOOKUP(A68,'2020-2022 Composite Index Data'!$A$5:$H$139,8,FALSE)) -> 0.6008
A69: 60 | B69: MONTGOMERY | C69: ='true value analysis'!G69 -> 0.1063984615 | D69: ='true value analysis'!N69 -> 0.08929322524 | E69: ='true value analysis'!U69 -> 0.09906175025 | F69: ='AGI analysis'!G69 -> 0.1719349651 | G69: ='AGI analysis'!N69 -> 0.1538165157 | H69: ='AGI analysis'!U69 -> 0.1641636704 | I69: ='taxable retail analysis'!G69 -> 0.04212807731 | J69: ='taxable retail analysis'!N69 -> 0.02601647953 | K69: ='taxable retail analysis'!U69 -> 0.03521755359 | M69: =VLOOKUP(A69,'Comp Index Comparison - Ranked'!$B$6:$E$140,4,FALSE) -> 0.392 | N69: =IF(VLOOKUP(A69,'2020-22 Comp Index Non-Res. AGI'!$A$5:$J$138,10,FALSE)="YES",VLOOKUP(A69,'2020-22 Comp Index Non-Res. AGI'!$A$5:$H$147,8,FALSE),VLOOKUP(A69,'2020-2022 Composite Index Data'!$A$5:$H$139,8,FALSE)) -> 0.4005
A70: 62 | B70: NELSON | C70: ='true value analysis'!G70 -> 0.06399068527 | D70: ='true value analysis'!N70 -> 0.1242216075 | E70: ='true value analysis'!U70 -> 0.07365811981 | F70: ='AGI analysis'!G70 -> 0.09577600998 | G70: ='AGI analysis'!N70 -> 0.157806252 | H70: ='AGI analysis'!U70 -> 0.1057322464 | I70: ='taxable retail analysis'!G70 -> 0.04951221131 | J70: ='taxable retail analysis'!N70 -> 0.1089235288 | K70: ='taxable retail analysis'!U70 -> 0.05904809424 | M70: =VLOOKUP(A70,'Comp Index Comparison - Ranked'!$B$6:$E$140,4,FALSE) -> 0.5356 | N70: =IF(VLOOKUP(A70,'2020-22 Comp Index Non-Res. AGI'!$A$5:$J$138,10,FALSE)="YES",VLOOKUP(A70,'2020-22 Comp Index Non-Res. AGI'!$A$5:$H$147,8,FALSE),VLOOKUP(A70,'2020-2022 Composite Index Data'!$A$5:$H$139,8,FALSE)) -> 0.5604
A71: 63 | B71: NEW KENT | C71: ='true value analysis'!G71 -> 0.1134808802 | D71: ='true value analysis'!N71 -> 0.05186370699 | E71: ='true value analysis'!U71 -> 0.04982848844 | F71: ='AGI analysis'!G71 -> 0.1981052677 | G71: ='AGI analysis'!N71 -> 0.1318051982 | H71: ='AGI analysis'!U71 -> 0.1296153033 | I71: ='taxable retail analysis'!G71 -> 0.09646848409 | J71: ='taxable retail analysis'!N71 -> 0.03579273321 | K71: ='taxable retail analysis'!U71 -> 0.0337886099 | M71: =VLOOKUP(A71,'Comp Index Comparison - Ranked'!$B$6:$E$140,4,FALSE) -> 0.4172 | N71: =IF(VLOOKUP(A71,'2020-22 Comp Index Non-Res. AGI'!$A$5:$J$138,10,FALSE)="YES",VLOOKUP(A71,'2020-22 Comp Index Non-Res. AGI'!$A$5:$H$147,8,FALSE),VLOOKUP(A71,'2020-2022 Composite Index Data'!$A$5:$H$139,8,FALSE)) -> 0.4166
A72: 65 | B72: NORTHAMPTON | C72: ='true value analysis'!G72 -> -0.009429636101 | D72: ='true value analysis'!N72 -> 0.01109867395 | E72: ='true value analysis'!U72 -> 0.005098729236 | F72: ='AGI analysis'!G72 -> 0.1438954499 | G72: ='AGI analysis'!N72 -> 0.1676012273 | H72: ='AGI analysis'!U72 -> 0.1606725832 | I72: ='taxable retail analysis'!G72 -> 0.1101462704 | J72: ='taxable retail analysis'!N72 -> 0.133152639 | K72: ='taxable retail analysis'!U72 -> 0.1264284157 | M72: =VLOOKUP(A72,'Comp Index Comparison - Ranked'!$B$6:$E$140,4,FALSE) -> 0.4746 | N72: =IF(VLOOKUP(A72,'2020-22 Comp Index Non-Res. AGI'!$A$5:$J$138,10,FALSE)="YES",VLOOKUP(A72,'2020-22 Comp Index Non-Res. AGI'!$A$5:$H$147,8,FALSE),VLOOKUP(A72,'2020-2022 Composite Index Data'!$A$5:$H$139,8,FALSE)) -> 0.4696
A73: 66 | B73: NORTHUMBERLAND | C73: ='true value analysis'!G73 -> 0.01313212782 | D73: ='true value analysis'!N73 -> 0.06337311032 | E73: ='true value analysis'!U73 -> 0.02716955131 | F73: ='AGI analysis'!G73 -> 0.09959356982 | G73: ='AGI analysis'!N73 -> 0.1541221548 | H73: ='AGI analysis'!U73 -> 0.1148289574 | I73: ='taxable retail analysis'!G73 -> -0.01904929987 | J73: ='taxable retail analysis'!N73 -> 0.02959581324 | K73: ='taxable retail analysis'!U73 -> -0.005457765241 | M73: =VLOOKUP(A73,'Comp Index Comparison - Ranked'!$B$6:$E$140,4,FALSE) -> 0.7187 | N73: =IF(VLOOKUP(A73,'2020-22 Comp Index Non-Res. AGI'!$A$5:$J$138,10,FALSE)="YES",VLOOKUP(A73,'2020-22 Comp Index Non-Res. AGI'!$A$5:$H$147,8,FALSE),VLOOKUP(A73,'2020-2022 Composite Index Data'!$A$5:$H$139,8,FALSE)) -> 0.7116
A74: 67 | B74: NOTTOWAY | C74: ='true value analysis'!G74 -> 0.1144405587 | D74: ='true value analysis'!N74 -> 0.1911529 | E74: ='true value analysis'!U74 -> 0.1436994588 | F74: ='AGI analysis'!G74 -> 0.0569266317 | G74: ='AGI analysis'!N74 -> 0.1296800108 | H74: ='AGI analysis'!U74 -> 0.08467554169 | I74: ='taxable retail analysis'!G74 -> 0.1007495712 | J74: ='taxable retail analysis'!N74 -> 0.1765194955 | K74: ='taxable retail analysis'!U74 -> 0.1296490235 | M74: =VLOOKUP(A74,'Comp Index Comparison - Ranked'!$B$6:$E$140,4,FALSE) -> 0.2385 | N74: =IF(VLOOKUP(A74,'2020-22 Comp Index Non-Res. AGI'!$A$5:$J$138,10,FALSE)="YES",VLOOKUP(A74,'2020-22 Comp Index Non-Res. AGI'!$A$5:$H$147,8,FALSE),VLOOKUP(A74,'2020-2022 Composite Index Data'!$A$5:$H$139,8,FALSE)) -> 0.2597
A75: 68 | B75: ORANGE | C75: ='true value analysis'!G75 -> 0.01781414387 | D75: ='true value analysis'!N75 -> 0.03812508638 | E75: ='true value analysis'!U75 -> 0.00289528414 | F75: ='AGI analysis'!G75 -> 0.1677765183 | G75: ='AGI analysis'!N75 -> 0.191080028 | H75: ='AGI analysis'!U75 -> 0.1506595484 | I75: ='taxable retail analysis'!G75 -> 0.1724848854 | J75: ='taxable retail analysis'!N75 -> 0.1958823527 | K75: ='taxable retail analysis'!U75 -> 0.1552989015 | M75: =VLOOKUP(A75,'Comp Index Comparison - Ranked'!$B$6:$E$140,4,FALSE) -> 0.4025 | N75: =IF(VLOOKUP(A75,'2020-22 Comp Index Non-Res. AGI'!$A$5:$J$138,10,FALSE)="YES",VLOOKUP(A75,'2020-22 Comp Index Non-Res. AGI'!$A$5:$H$147,8,FALSE),VLOOKUP(A75,'2020-2022 Composite Index Data'!$A$5:$H$139,8,FALSE)) -> 0.4105
A76: 69 | B76: PAGE | C76: ='true value analysis'!G76 -> 0.1384230594 | D76: ='true value analysis'!N76 -> 0.154950367 | E76: ='true value analysis'!U76 -> 0.141020771 | F76: ='AGI analysis'!G76 -> 0.1385127668 | G76: ='AGI analysis'!N76 -> 0.1550413767 | H76: ='AGI analysis'!U76 -> 0.1411106831 | I76: ='taxable retail analysis'!G76 -> 0.05346212014 | J76: ='taxable retail analysis'!N76 -> 0.06875598859 | K76: ='taxable retail analysis'!U76 -> 0.05586596356 | M76: =VLOOKUP(A76,'Comp Index Comparison - Ranked'!$B$6:$E$140,4,FALSE) -> 0.3007 | N76: =IF(VLOOKUP(A76,'2020-22 Comp Index Non-Res. AGI'!$A$5:$J$138,10,FALSE)="YES",VLOOKUP(A76,'2020-22 Comp Index Non-Res. AGI'!$A$5:$H$147,8,FALSE),VLOOKUP(A76,'2020-2022 Composite Index Data'!$A$5:$H$139,8,FALSE)) -> 0.3198
A77: 70 | B77: PATRICK | C77: ='true value analysis'!G77 -> -0.007230720093 | D77: ='true value analysis'!N77 -> 0.07401635977 | E77: ='true value analysis'!U77 -> 0.0215612501 | F77: ='AGI analysis'!G77 -> 0.1298174365 | G77: ='AGI analysis'!N77 -> 0.2222803777 | H77: ='AGI analysis'!U77 -> 0.1625840326 | I77: ='taxable retail analysis'!G77 -> -0.008121877783 | J77: ='taxable retail analysis'!N77 -> 0.07305227077 | K77: ='taxable retail analysis'!U77 -> 0.02064424735 | M77: =VLOOKUP(A77,'Comp Index Comparison - Ranked'!$B$6:$E$140,4,FALSE) -> 0.2396 | N77: =IF(VLOOKUP(A77,'2020-22 Comp Index Non-Res. AGI'!$A$5:$J$138,10,FALSE)="YES",VLOOKUP(A77,'2020-22 Comp Index Non-Res. AGI'!$A$5:$H$147,8,FALSE),VLOOKUP(A77,'2020-2022 Composite Index Data'!$A$5:$H$139,8,FALSE)) -> 0.2456
A78: 71 | B78: PITTSYLVANIA | C78: ='true value analysis'!G78 -> 0.01471536212 | D78: ='true value analysis'!N78 -> 0.04201624446 | E78: ='true value analysis'!U78 -> 0.03249075429 | F78: ='AGI analysis'!G78 -> 0.08912662794 | G78: ='AGI analysis'!N78 -> 0.1184295429 | H78: ='AGI analysis'!U78 -> 0.1082055279 | I78: ='taxable retail analysis'!G78 -> 0.0265484088 | J78: ='taxable retail analysis'!N78 -> 0.05416765886 | K78: ='taxable retail analysis'!U78 -> 0.04453108771 | M78: =VLOOKUP(A78,'Comp Index Comparison - Ranked'!$B$6:$E$140,4,FALSE) -> 0.2443 | N78: =IF(VLOOKUP(A78,'2020-22 Comp Index Non-Res. AGI'!$A$5:$J$138,10,FALSE)="YES",VLOOKUP(A78,'2020-22 Comp Index Non-Res. AGI'!$A$5:$H$147,8,FALSE),VLOOKUP(A78,'2020-2022 Composite Index Data'!$A$5:$H$139,8,FALSE)) -> 0.2446
A79: 72 | B79: POWHATAN | C79: ='true value analysis'!G79 -> 0.09921145991 | D79: ='true value analysis'!N79 -> 0.09791950492 | E79: ='true value analysis'!U79 -> 0.07192526719 | F79: ='AGI analysis'!G79 -> 0.2345225296 | G79: ='AGI analysis'!N79 -> 0.2330715371 | H79: ='AGI analysis'!U79 -> 0.2038774528 | I79: ='taxable retail analysis'!G79 -> 0.1870236422 | J79: ='taxable retail analysis'!N79 -> 0.1856284774 | K79: ='taxable retail analysis'!U79 -> 0.1575576504 | M79: =VLOOKUP(A79,'Comp Index Comparison - Ranked'!$B$6:$E$140,4,FALSE) -> 0.4302 | N79: =IF(VLOOKUP(A79,'2020-22 Comp Index Non-Res. AGI'!$A$5:$J$138,10,FALSE)="YES",VLOOKUP(A79,'2020-22 Comp Index Non-Res. AGI'!$A$5:$H$147,8,FALSE),VLOOKUP(A79,'2020-2022 Composite Index Data'!$A$5:$H$139,8,FALSE)) -> 0.4507
A80: 73 | B80: PRINCE EDWARD | C80: ='true value analysis'!G80 -> 0.03127947256 | D80: ='true value analysis'!N80 -> 0.03519339579 | E80: ='true value analysis'!U80 -> 0.0493978046 | F80: ='AGI analysis'!G80 -> 0.08710649799 | G80: ='AGI analysis'!N80 -> 0.09123229655 | H80: ='AGI analysis'!U80 -> 0.1062056433 | I80: ='taxable retail analysis'!G80 -> 0.01172961255 | J80: ='taxable retail analysis'!N80 -> 0.01556933993 | K80: ='taxable retail analysis'!U80 -> 0.02950447721 | M80: =VLOOKUP(A80,'Comp Index Comparison - Ranked'!$B$6:$E$140,4,FALSE) -> 0.3598 | N80: =IF(VLOOKUP(A80,'2020-22 Comp Index Non-Res. AGI'!$A$5:$J$138,10,FALSE)="YES",VLOOKUP(A80,'2020-22 Comp Index Non-Res. AGI'!$A$5:$H$147,8,FALSE),VLOOKUP(A80,'2020-2022 Composite Index Data'!$A$5:$H$139,8,FALSE)) -> 0.3554
A81: 74 | B81: PRINCE GEORGE | C81: ='true value analysis'!G81 -> 0.07803233644 | D81: ='true value analysis'!N81 -> 0.09606320397 | E81: ='true value analysis'!U81 -> 0.08111866805 | F81: ='AGI analysis'!G81 -> 0.09592455334 | G81: ='AGI analysis'!N81 -> 0.1142546811 | H81: ='AGI analysis'!U81 -> 0.09906210911 | I81: ='taxable retail analysis'!G81 -> 0.1831814015 | J81: ='taxable retail analysis'!N81 -> 0.2029709629 | K81: ='taxable retail analysis'!U81 -> 0.1865687675 | M81: =VLOOKUP(A81,'Comp Index Comparison - Ranked'!$B$6:$E$140,4,FALSE) -> 0.2391 | N81: =IF(VLOOKUP(A81,'2020-22 Comp Index Non-Res. AGI'!$A$5:$J$138,10,FALSE)="YES",VLOOKUP(A81,'2020-22 Comp Index Non-Res. AGI'!$A$5:$H$147,8,FALSE),VLOOKUP(A81,'2020-2022 Composite Index Data'!$A$5:$H$139,8,FALSE)) -> 0.2467
A82: 75 | B82: PRINCE WILLIAM | C82: ='true value analysis'!G82 -> 0.09716446895 | D82: ='true value analysis'!N82 -> 0.06676632981 | E82: ='true value analysis'!U82 -> 0.06702306387 | F82: ='AGI analysis'!G82 -> 0.1413603315 | G82: ='AGI analysis'!N82 -> 0.1097376977 | H82: ='AGI analysis'!U82 -> 0.1100047735 | I82: ='taxable retail analysis'!G82 -> 0.05239592575 | J82: ='taxable retail analysis'!N82 -> 0.02323814796 | K82: ='taxable retail analysis'!U82 -> 0.02348440629 | M82: =VLOOKUP(A82,'Comp Index Comparison - Ranked'!$B$6:$E$140,4,FALSE) -> 0.3783 | N82: =IF(VLOOKUP(A82,'2020-22 Comp Index Non-Res. AGI'!$A$5:$J$138,10,FALSE)="YES",VLOOKUP(A82,'2020-22 Comp Index Non-Res. AGI'!$A$5:$H$147,8,FALSE),VLOOKUP(A82,'2020-2022 Composite Index Data'!$A$5:$H$139,8,FALSE)) -> 0.3799
A83: 77 | B83: PULASKI | C83: ='true value analysis'!G83 -> 0.02552248035 | D83: ='true value analysis'!N83 -> 0.0713427843 | E83: ='true value analysis'!U83 -> 0.03665038263 | F83: ='AGI analysis'!G83 -> 0.06656681693 | G83: ='AGI analysis'!N83 -> 0.1142209802 | H83: ='AGI analysis'!U83 -> 0.07814008961 | I83: ='taxable retail analysis'!G83 -> 0.0533481862 | J83: ='taxable retail analysis'!N83 -> 0.1004117416 | K83: ='taxable retail analysis'!U83 -> 0.06477802406 | M83: =VLOOKUP(A83,'Comp Index Comparison - Ranked'!$B$6:$E$140,4,FALSE) -> 0.3192 | N83: =IF(VLOOKUP(A83,'2020-22 Comp Index Non-Res. AGI'!$A$5:$J$138,10,FALSE)="YES",VLOOKUP(A83,'2020-22 Comp Index Non-Res. AGI'!$A$5:$H$147,8,FALSE),VLOOKUP(A83,'2020-2022 Composite Index Data'!$A$5:$H$139,8,FALSE)) -> 0.3235
A84: 78 | B84: RAPPAHANNOCK | C84: ='true value analysis'!G84 -> 0.06357465915 | D84: ='true value analysis'!N84 -> 0.1300415717 | E84: ='true value analysis'!U84 -> 0.06649336019 | F84: ='AGI analysis'!G84 -> 0.1606386594 | G84: ='AGI analysis'!N84 -> 0.2331714784 | H84: ='AGI analysis'!U84 -> 0.163823727 | I84: ='taxable retail analysis'!G84 -> 0.009603292853 | J84: ='taxable retail analysis'!N84 -> 0.07269732507 | K84: ='taxable retail analysis'!U84 -> 0.01237388367 | M84: =VLOOKUP(A84,'Comp Index Comparison - Ranked'!$B$6:$E$140,4,FALSE) -> 0.7672 | N84: =IF(VLOOKUP(A84,'2020-22 Comp Index Non-Res. AGI'!$A$5:$J$138,10,FALSE)="YES",VLOOKUP(A84,'2020-22 Comp Index Non-Res. AGI'!$A$5:$H$147,8,FALSE),VLOOKUP(A84,'2020-2022 Composite Index Data'!$A$5:$H$139,8,FALSE)) -> 0.799
A85: 79 | B85: RICHMOND COUNTY | C85: ='true value analysis'!G85 -> 0.08902147161 | D85: ='true value analysis'!N85 -> 0.06495380253 | E85: ='true value analysis'!U85 -> 0.09201526276 | F85: ='AGI analysis'!G85 -> 0.1152563587 | G85: ='AGI analysis'!N85 -> 0.09060889149 | H85: ='AGI analysis'!U85 -> 0.1183222712 | I85: ='taxable retail analysis'!G85 -> 0.09903670873 | J85: ='taxable retail analysis'!N85 -> 0.07474770021 | K85: ='taxable retail analysis'!U85 -> 0.1020580324 | M85: =VLOOKUP(A85,'Comp Index Comparison - Ranked'!$B$6:$E$140,4,FALSE) -> 0.31 | N85: =IF(VLOOKUP(A85,'2020-22 Comp Index Non-Res. AGI'!$A$5:$J$138,10,FALSE)="YES",VLOOKUP(A85,'2020-22 Comp Index Non-Res. AGI'!$A$5:$H$147,8,FALSE),VLOOKUP(A85,'2020-2022 Composite Index Data'!$A$5:$H$139,8,FALSE)) -> 0.312
A86: 80 | B86: ROANOKE COUNTY | C86: ='true value analysis'!G86 -> 0.04672620607 | D86: ='true value analysis'!N86 -> 0.06214949067 | E86: ='true value analysis'!U86 -> 0.04717288072 | F86: ='AGI analysis'!G86 -> 0.100084832 | G86: ='AGI analysis'!N86 -> 0.1162943444 | H86: ='AGI analysis'!U86 -> 0.1005542766 | I86: ='taxable retail analysis'!G86 -> 0.02757143512 | J86: ='taxable retail analysis'!N86 -> 0.04271247831 | K86: ='taxable retail analysis'!U86 -> 0.02800993576 | M86: =VLOOKUP(A86,'Comp Index Comparison - Ranked'!$B$6:$E$140,4,FALSE) -> 0.362 | N86: =IF(VLOOKUP(A86,'2020-22 Comp Index Non-Res. AGI'!$A$5:$J$138,10,FALSE)="YES",VLOOKUP(A86,'2020-22 Comp Index Non-Res. AGI'!$A$5:$H$147,8,FALSE),VLOOKUP(A86,'2020-2022 Composite Index Data'!$A$5:$H$139,8,FALSE)) -> 0.366
A87: 81 | B87: ROCKBRIDGE | C87: ='true value analysis'!G87 -> 0.1050355813 | D87: ='true value analysis'!N87 -> 0.09502215 | E87: ='true value analysis'!U87 -> 0.08386013403 | F87: ='AGI analysis'!G87 -> 0.1036139192 | G87: ='AGI analysis'!N87 -> 0.09361337045 | H87: ='AGI analysis'!U87 -> 0.08246571476 | I87: ='taxable retail analysis'!G87 -> 0.01087196011 | J87: ='taxable retail analysis'!N87 -> 0.001711805354 | K87: ='taxable retail analysis'!U87 -> -0.008499059484 | M87: =VLOOKUP(A87,'Comp Index Comparison - Ranked'!$B$6:$E$140,4,FALSE) -> 0.4498 | N87: =IF(VLOOKUP(A87,'2020-22 Comp Index Non-Res. AGI'!$A$5:$J$138,10,FALSE)="YES",VLOOKUP(A87,'2020-22 Comp Index Non-Res. AGI'!$A$5:$H$147,8,FALSE),VLOOKUP(A87,'2020-2022 Composite Index Data'!$A$5:$H$139,8,FALSE)) -> 0.4506
A88: 82 | B88: ROCKINGHAM | C88: ='true value analysis'!G88 -> 0.09132647387 | D88: ='true value analysis'!N88 -> 0.0946928078 | E88: ='true value analysis'!U88 -> 0.0706001188 | F88: ='AGI analysis'!G88 -> 0.1643597475 | G88: ='AGI analysis'!N88 -> 0.1679513618 | H88: ='AGI analysis'!U88 -> 0.1422463524 | I88: ='taxable retail analysis'!G88 -> 0.1477421548 | J88: ='taxable retail analysis'!N88 -> 0.15128251 | K88: ='taxable retail analysis'!U88 -> 0.1259443591 | M88: =VLOOKUP(A88,'Comp Index Comparison - Ranked'!$B$6:$E$140,4,FALSE) -> 0.3682 | N88: =IF(VLOOKUP(A88,'2020-22 Comp Index Non-Res. AGI'!$A$5:$J$138,10,FALSE)="YES",VLOOKUP(A88,'2020-22 Comp Index Non-Res. AGI'!$A$5:$H$147,8,FALSE),VLOOKUP(A88,'2020-2022 Composite Index Data'!$A$5:$H$139,8,FALSE)) -> 0.3799
A89: 83 | B89: RUSSELL | C89: ='true value analysis'!G89 -> 0.06960794411 | D89: ='true value analysis'!N89 -> 0.134645577 | E89: ='true value analysis'!U89 -> 0.09698558345 | F89: ='AGI analysis'!G89 -> -0.001723176596 | G89: ='AGI analysis'!N89 -> 0.05897715939 | H89: ='AGI analysis'!U89 -> 0.02382867443 | I89: ='taxable retail analysis'!G89 -> -0.09456914602 | J89: ='taxable retail analysis'!N89 -> -0.03951431979 | K89: ='taxable retail analysis'!U89 -> -0.07139377648 | M89: =VLOOKUP(A89,'Comp Index Comparison - Ranked'!$B$6:$E$140,4,FALSE) -> 0.2322 | N89: =IF(VLOOKUP(A89,'2020-22 Comp Index Non-Res. AGI'!$A$5:$J$138,10,FALSE)="YES",VLOOKUP(A89,'2020-22 Comp Index Non-Res. AGI'!$A$5:$H$147,8,FALSE),VLOOKUP(A89,'2020-2022 Composite Index Data'!$A$5:$H$139,8,FALSE)) -> 0.2373
A90: 84 | B90: SCOTT | C90: ='true value analysis'!G90 -> 0.02684387719 | D90: ='true value analysis'!N90 -> 0.05933850099 | E90: ='true value analysis'!U90 -> 0.04437323149 | F90: ='AGI analysis'!G90 -> 0.02919072466 | G90: ='AGI analysis'!N90 -> 0.06175961479 | H90: ='AGI analysis'!U90 -> 0.04676014222 | I90: ='taxable retail analysis'!G90 -> -0.009052926844 | J90: ='taxable retail analysis'!N90 -> 0.02230573737 | K90: ='taxable retail analysis'!U90 -> 0.007863629528 | M90: =VLOOKUP(A90,'Comp Index Comparison - Ranked'!$B$6:$E$140,4,FALSE) -> 0.1917 | N90: =IF(VLOOKUP(A90,'2020-22 Comp Index Non-Res. AGI'!$A$5:$J$138,10,FALSE)="YES",VLOOKUP(A90,'2020-22 Comp Index Non-Res. AGI'!$A$5:$H$147,8,FALSE),VLOOKUP(A90,'2020-2022 Composite Index Data'!$A$5:$H$139,8,FALSE)) -> 0.1899
A91: 85 | B91: SHENANDOAH | C91: ='true value analysis'!G91 -> 0.03687636336 | D91: ='true value analysis'!N91 -> 0.04035461712 | E91: ='true value analysis'!U91 -> 0.02963468717 | F91: ='AGI analysis'!G91 -> 0.1419935024 | G91: ='AGI analysis'!N91 -> 0.1458243769 | H91: ='AGI analysis'!U91 -> 0.1340176748 | I91: ='taxable retail analysis'!G91 -> 0.03705081321 | J91: ='taxable retail analysis'!N91 -> 0.04052965217 | K91: ='taxable retail analysis'!U91 -> 0.02980791864 | M91: =VLOOKUP(A91,'Comp Index Comparison - Ranked'!$B$6:$E$140,4,FALSE) -> 0.3821 | N91: =IF(VLOOKUP(A91,'2020-22 Comp Index Non-Res. AGI'!$A$5:$J$138,10,FALSE)="YES",VLOOKUP(A91,'2020-22 Comp Index Non-Res. AGI'!$A$5:$H$147,8,FALSE),VLOOKUP(A91,'2020-2022 Composite Index Data'!$A$5:$H$139,8,FALSE)) -> 0.3832
A92: 86 | B92: SMYTH | C92: ='true value analysis'!G92 -> 0.07280064559 | D92: ='true value analysis'!N92 -> 0.1197917261 | E92: ='true value analysis'!U92 -> 0.09835683643 | F92: ='AGI analysis'!G92 -> 0.02354447001 | G92: ='AGI analysis'!N92 -> 0.0683780193 | H92: ='AGI analysis'!U92 -> 0.04792728327 | I92: ='taxable retail analysis'!G92 -> -0.01132406867 | J92: ='taxable retail analysis'!N92 -> 0.03198216021 | K92: ='taxable retail analysis'!U92 -> 0.01222810841 | M92: =VLOOKUP(A92,'Comp Index Comparison - Ranked'!$B$6:$E$140,4,FALSE) -> 0.2174 | N92: =IF(VLOOKUP(A92,'2020-22 Comp Index Non-Res. AGI'!$A$5:$J$138,10,FALSE)="YES",VLOOKUP(A92,'2020-22 Comp Index Non-Res. AGI'!$A$5:$H$147,8,FALSE),VLOOKUP(A92,'2020-2022 Composite Index Data'!$A$5:$H$139,8,FALSE)) -> 0.2228
A93: 87 | B93: SOUTHAMPTON | C93: ='true value analysis'!G93 -> 0.09860904122 | D93: ='true value analysis'!N93 -> 0.09493153195 | E93: ='true value analysis'!U93 -> 0.1248024904 | F93: ='AGI analysis'!G93 -> 0.07214003673 | G93: ='AGI analysis'!N93 -> 0.06855113042 | H93: ='AGI analysis'!U93 -> 0.09770240198 | I93: ='taxable retail analysis'!G93 -> -0.0325810461 | J93: ='taxable retail analysis'!N93 -> -0.03581940664 | K93: ='taxable retail analysis'!U93 -> -0.00951548022 | M93: =VLOOKUP(A93,'Comp Index Comparison - Ranked'!$B$6:$E$140,4,FALSE) -> 0.2963 | N93: =IF(VLOOKUP(A93,'2020-22 Comp Index Non-Res. AGI'!$A$5:$J$138,10,FALSE)="YES",VLOOKUP(A93,'2020-22 Comp Index Non-Res. AGI'!$A$5:$H$147,8,FALSE),VLOOKUP(A93,'2020-2022 Composite Index Data'!$A$5:$H$139,8,FALSE)) -> 0.3015
A94: 88 | B94: SPOTSYLVANIA | C94: ='true value analysis'!G94 -> 0.08739787302 | D94: ='true value analysis'!N94 -> 0.08317419725 | E94: ='true value analysis'!U94 -> 0.06631103866 | F94: ='AGI analysis'!G94 -> 0.1644714452 | G94: ='AGI analysis'!N94 -> 0.1599483999 | H94: ='AGI analysis'!U94 -> 0.141889999 | I94: ='taxable retail analysis'!G94 -> 0.05621905877 | J94: ='taxable retail analysis'!N94 -> 0.05211648789 | K94: ='taxable retail analysis'!U94 -> 0.03573684439 | M94: =VLOOKUP(A94,'Comp Index Comparison - Ranked'!$B$6:$E$140,4,FALSE) -> 0.3627 | N94: =IF(VLOOKUP(A94,'2020-22 Comp Index Non-Res. AGI'!$A$5:$J$138,10,FALSE)="YES",VLOOKUP(A94,'2020-22 Comp Index Non-Res. AGI'!$A$5:$H$147,8,FALSE),VLOOKUP(A94,'2020-2022 Composite Index Data'!$A$5:$H$139,8,FALSE)) -> 0.3722
A95: 89 | B95: STAFFORD | C95: ='true value analysis'!G95 -> 0.09030720149 | D95: ='true value analysis'!N95 -> 0.05324495723 | E95: ='true value analysis'!U95 -> 0.04897701615 | F95: ='AGI analysis'!G95 -> 0.1760686799 | G95: ='AGI analysis'!N95 -> 0.1360911904 | H95: ='AGI analysis'!U95 -> 0.1314875413 | I95: ='taxable retail analysis'!G95 -> 0.06509340741 | J95: ='taxable retail analysis'!N95 -> 0.02888824251 | K95: ='taxable retail analysis'!U95 -> 0.02471899929 | M95: =VLOOKUP(A95,'Comp Index Comparison - Ranked'!$B$6:$E$140,4,FALSE) -> 0.3462 | N95: =IF(VLOOKUP(A95,'2020-22 Comp Index Non-Res. AGI'!$A$5:$J$138,10,FALSE)="YES",VLOOKUP(A95,'2020-22 Comp Index Non-Res. AGI'!$A$5:$H$147,8,FALSE),VLOOKUP(A95,'2020-2022 Composite Index Data'!$A$5:$H$139,8,FALSE)) -> 0.347
A96: 90 | B96: SURRY | C96: ='true value analysis'!G96 -> 0.06658231788 | D96: ='true value analysis'!N96 -> 0.1461146546 | E96: ='true value analysis'!U96 -> 0.08975499335 | F96: ='AGI analysis'!G96 -> -0.006540907593 | G96: ='AGI analysis'!N96 -> 0.06753881574 | H96: ='AGI analysis'!U96 -> 0.01504308527 | I96: ='taxable retail analysis'!G96 -> -0.3147823375 | J96: ='taxable retail analysis'!N96 -> -0.2636873953 | K96: ='taxable retail analysis'!U96 -> -0.2998952291 | M96: =VLOOKUP(A96,'Comp Index Comparison - Ranked'!$B$6:$E$140,4,FALSE) -> 0.8 | N96: =IF(VLOOKUP(A96,'2020-22 Comp Index Non-Res. AGI'!$A$5:$J$138,10,FALSE)="YES",VLOOKUP(A96,'2020-22 Comp Index Non-Res. AGI'!$A$5:$H$147,8,FALSE),VLOOKUP(A96,'2020-2022 Composite Index Data'!$A$5:$H$139,8,FALSE)) -> 0.8
A97: 91 | B97: SUSSEX | C97: ='true value analysis'!G97 -> 0.04386357341 | D97: ='true value analysis'!N97 -> 0.04743711614 | E97: ='true value analysis'!U97 -> 0.06464232494 | F97: ='AGI analysis'!G97 -> 0.05726261112 | G97: ='AGI analysis'!N97 -> 0.06088202386 | H97: ='AGI analysis'!U97 -> 0.0783080788 | I97: ='taxable retail analysis'!G97 -> 0.1131574546 | J97: ='taxable retail analysis'!N97 -> 0.1169682167 | K97: ='taxable retail analysis'!U97 -> 0.1353155438 | M97: =VLOOKUP(A97,'Comp Index Comparison - Ranked'!$B$6:$E$140,4,FALSE) -> 0.3482 | N97: =IF(VLOOKUP(A97,'2020-22 Comp Index Non-Res. AGI'!$A$5:$J$138,10,FALSE)="YES",VLOOKUP(A97,'2020-22 Comp Index Non-Res. AGI'!$A$5:$H$147,8,FALSE),VLOOKUP(A97,'2020-2022 Composite Index Data'!$A$5:$H$139,8,FALSE)) -> 0.3492
A98: 92 | B98: TAZEWELL | C98: ='true value analysis'!G98 -> 0.01332336898 | D98: ='true value analysis'!N98 -> 0.06923754844 | E98: ='true value analysis'!U98 -> 0.04847812578 | F98: ='AGI analysis'!G98 -> -0.08197421459 | G98: ='AGI analysis'!N98 -> -0.03131846137 | H98: ='AGI analysis'!U98 -> -0.05012557257 | I98: ='taxable retail analysis'!G98 -> -0.03822808819 | J98: ='taxable retail analysis'!N98 -> 0.01484153293 | K98: ='taxable retail analysis'!U98 -> -0.004861782144 | M98: =VLOOKUP(A98,'Comp Index Comparison - Ranked'!$B$6:$E$140,4,FALSE) -> 0.2624 | N98: =IF(VLOOKUP(A98,'2020-22 Comp Index Non-Res. AGI'!$A$5:$J$138,10,FALSE)="YES",VLOOKUP(A98,'2020-22 Comp Index Non-Res. AGI'!$A$5:$H$147,8,FALSE),VLOOKUP(A98,'2020-2022 Composite Index Data'!$A$5:$H$139,8,FALSE)) -> 0.2575
A99: 93 | B99: WARREN | C99: ='true value analysis'!G99 -> 0.05970688211 | D99: ='true value analysis'!N99 -> 0.07027611287 | E99: ='true value analysis'!U99 -> 0.04863422935 | F99: ='AGI analysis'!G99 -> 0.1197769748 | G99: ='AGI analysis'!N99 -> 0.1309453284 | H99: ='AGI analysis'!U99 -> 0.1080766623 | I99: ='taxable retail analysis'!G99 -> 0.09524180035 | J99: ='taxable retail analysis'!N99 -> 0.1061654468 | K99: ='taxable retail analysis'!U99 -> 0.08379785075 | M99: =VLOOKUP(A99,'Comp Index Comparison - Ranked'!$B$6:$E$140,4,FALSE) -> 0.4333 | N99: =IF(VLOOKUP(A99,'2020-22 Comp Index Non-Res. AGI'!$A$5:$J$138,10,FALSE)="YES",VLOOKUP(A99,'2020-22 Comp Index Non-Res. AGI'!$A$5:$H$147,8,FALSE),VLOOKUP(A99,'2020-2022 Composite Index Data'!$A$5:$H$139,8,FALSE)) -> 0.4432
A100: 94 | B100: WASHINGTON | C100: ='true value analysis'!G100 -> 0.0478124058 | D100: ='true value analysis'!N100 -> 0.06432317626 | E100: ='true value analysis'!U100 -> 0.05445510283 | F100: ='AGI analysis'!G100 -> 0.0443565922 | G100: ='AGI analysis'!N100 -> 0.06081290812 | H100: ='AGI analysis'!U100 -> 0.0509773808 | I100: ='taxable retail analysis'!G100 -> 0.02419008335 | J100: ='taxable retail analysis'!N100 -> 0.04032862808 | K100: ='taxable retail analysis'!U100 -> 0.03068302463 | M100: =VLOOKUP(A100,'Comp Index Comparison - Ranked'!$B$6:$E$140,4,FALSE) -> 0.3434 | N100: =IF(VLOOKUP(A100,'2020-22 Comp Index Non-Res. AGI'!$A$5:$J$138,10,FALSE)="YES",VLOOKUP(A100,'2020-22 Comp Index Non-Res. AGI'!$A$5:$H$147,8,FALSE),VLOOKUP(A100,'2020-2022 Composite Index Data'!$A$5:$H$139,8,FALSE)) -> 0.3416
A101: 95 | B101: WESTMORELAND | C101: ='true value analysis'!G101 -> -0.01473601358 | D101: ='true value analysis'!N101 -> 0.01339547847 | E101: ='true value analysis'!U101 -> -0.017929738 | F101: ='AGI analysis'!G101 -> 0.1364549873 | G101: ='AGI analysis'!N101 -> 0.1689033208 | H101: ='AGI analysis'!U101 -> 0.1327711786 | I101: ='taxable retail analysis'!G101 -> 0.001274902948 | J101: ='taxable retail analysis'!N101 -> 0.0298635425 | K101: ='taxable retail analysis'!U101 -> -0.001970720724 | M101: =VLOOKUP(A101,'Comp Index Comparison - Ranked'!$B$6:$E$140,4,FALSE) -> 0.4743 | N101: =IF(VLOOKUP(A101,'2020-22 Comp Index Non-Res. AGI'!$A$5:$J$138,10,FALSE)="YES",VLOOKUP(A101,'2020-22 Comp Index Non-Res. AGI'!$A$5:$H$147,8,FALSE),VLOOKUP(A101,'2020-2022 Composite Index Data'!$A$5:$H$139,8,FALSE)) -> 0.4618
A102: 96 | B102: WISE | C102: ='true value analysis'!G102 -> -0.01489963128 | D102: ='true value analysis'!N102 -> 0.01667835741 | E102: ='true value analysis'!U102 -> 0.005490609664 | F102: ='AGI analysis'!G102 -> -0.04250300375 | G102: ='AGI analysis'!N102 -> -0.01180985789 | H102: ='AGI analysis'!U102 -> -0.02268411517 | I102: ='taxable retail analysis'!G102 -> -0.05525883708 | J102: ='taxable retail analysis'!N102 -> -0.02497458717 | K102: ='taxable retail analysis'!U102 -> -0.03570397694 | M102: =VLOOKUP(A102,'Comp Index Comparison - Ranked'!$B$6:$E$140,4,FALSE) -> 0.2474 | N102: =IF(VLOOKUP(A102,'2020-22 Comp Index Non-Res. AGI'!$A$5:$J$138,10,FALSE)="YES",VLOOKUP(A102,'2020-22 Comp Index Non-Res. AGI'!$A$5:$H$147,8,FALSE),VLOOKUP(A102,'2020-2022 Composite Index Data'!$A$5:$H$139,8,FALSE)) -> 0.2372
A103: 97 | B103: WYTHE | C103: ='true value analysis'!G103 -> 0.07329069027 | D103: ='true value analysis'!N103 -> 0.09531304764 | E103: ='true value analysis'!U103 -> 0.07403802912 | F103: ='AGI analysis'!G103 -> 0.09175257984 | G103: ='AGI analysis'!N103 -> 0.1141537482 | H103: ='AGI analysis'!U103 -> 0.09251277382 | I103: ='taxable retail analysis'!G103 -> 0.02602691019 | J103: ='taxable retail analysis'!N103 -> 0.04707948382 | K103: ='taxable retail analysis'!U103 -> 0.02674133898 | M103: =VLOOKUP(A103,'Comp Index Comparison - Ranked'!$B$6:$E$140,4,FALSE) -> 0.3146 | N103: =IF(VLOOKUP(A103,'2020-22 Comp Index Non-Res. AGI'!$A$5:$J$138,10,FALSE)="YES",VLOOKUP(A103,'2020-22 Comp Index Non-Res. AGI'!$A$5:$H$147,8,FALSE),VLOOKUP(A103,'2020-2022 Composite Index Data'!$A$5:$H$139,8,FALSE)) -> 0.3204
A104: 98 | B104: YORK | C104: ='true value analysis'!G104 -> 0.05330239086 | D104: ='true value analysis'!N104 -> 0.04595918156 | E104: ='true value analysis'!U104 -> 0.0621092159 | F104: ='AGI analysis'!G104 -> 0.09907588384 | G104: ='AGI analysis'!N104 -> 0.09141355978 | H104: ='AGI analysis'!U104 -> 0.1082654282 | I104: ='taxable retail analysis'!G104 -> 0.02956008606 | J104: ='taxable retail analysis'!N104 -> 0.02238239876 | K104: ='taxable retail analysis'!U104 -> 0.038168398 | M104: =VLOOKUP(A104,'Comp Index Comparison - Ranked'!$B$6:$E$140,4,FALSE) -> 0.3822 | N104: =IF(VLOOKUP(A104,'2020-22 Comp Index Non-Res. AGI'!$A$5:$J$138,10,FALSE)="YES",VLOOKUP(A104,'2020-22 Comp Index Non-Res. AGI'!$A$5:$H$147,8,FALSE),VLOOKUP(A104,'2020-2022 Composite Index Data'!$A$5:$H$139,8,FALSE)) -> 0.3812
A105: 101 | B105: ALEXANDRIA | C105: ='true value analysis'!G105 -> 0.04732730273 | D105: ='true value analysis'!N105 -> 0.002124258819 | E105: ='true value analysis'!U105 -> 0.03984634688 | F105: ='AGI analysis'!G105 -> 0.1503012371 | G105: ='AGI analysis'!N105 -> 0.1006537991 | H105: ='AGI analysis'!U105 -> 0.1420847486 | I105: ='taxable retail analysis'!G105 -> 0.03733453212 | J105: ='taxable retail analysis'!N105 -> -0.007437220023 | K105: ='taxable retail analysis'!U105 -> 0.02992495364 | M105: =VLOOKUP(A105,'Comp Index Comparison - Ranked'!$B$6:$E$140,4,FALSE) -> 0.8 | N105: =IF(VLOOKUP(A105,'2020-22 Comp Index Non-Res. AGI'!$A$5:$J$138,10,FALSE)="YES",VLOOKUP(A105,'2020-22 Comp Index Non-Res. AGI'!$A$5:$H$147,8,FALSE),VLOOKUP(A105,'2020-2022 Composite Index Data'!$A$5:$H$139,8,FALSE)) -> 0.8
A106: 102 | B106: BRISTOL | C106: ='true value analysis'!G106 -> 0.1039049288 | D106: ='true value analysis'!N106 -> 0.1223270542 | E106: ='true value analysis'!U106 -> 0.1338184365 | F106: ='AGI analysis'!G106 -> 0.03375589497 | G106: ='AGI analysis'!N106 -> 0.05100736317 | H106: ='AGI analysis'!U106 -> 0.06176851101 | I106: ='taxable retail analysis'!G106 -> 0.0671809468 | J106: ='taxable retail analysis'!N106 -> 0.0849902171 | K106: ='taxable retail analysis'!U106 -> 0.09609931161 | M106: =VLOOKUP(A106,'Comp Index Comparison - Ranked'!$B$6:$E$140,4,FALSE) -> 0.2922 | N106: =IF(VLOOKUP(A106,'2020-22 Comp Index Non-Res. AGI'!$A$5:$J$138,10,FALSE)="YES",VLOOKUP(A106,'2020-22 Comp Index Non-Res. AGI'!$A$5:$H$147,8,FALSE),VLOOKUP(A106,'2020-2022 Composite Index Data'!$A$5:$H$139,8,FALSE)) -> 0.3051
A107: 103 | B107: BUENA VISTA | C107: ='true value analysis'!G107 -> -0.01486854028 | D107: ='true value analysis'!N107 -> 0.06546814169 | E107: ='true value analysis'!U107 -> 0.04539868632 | F107: ='AGI analysis'!G107 -> 0.06895686081 | G107: ='AGI analysis'!N107 -> 0.1561294371 | H107: ='AGI analysis'!U107 -> 0.1343522603 | I107: ='taxable retail analysis'!G107 -> -0.0779034304 | J107: ='taxable retail analysis'!N107 -> -0.002707193272 | K107: ='taxable retail analysis'!U107 -> -0.02149247899 | M107: =VLOOKUP(A107,'Comp Index Comparison - Ranked'!$B$6:$E$140,4,FALSE) -> 0.1849 | N107: =IF(VLOOKUP(A107,'2020-22 Comp Index Non-Res. AGI'!$A$5:$J$138,10,FALSE)="YES",VLOOKUP(A107,'2020-22 Comp Index Non-Res. AGI'!$A$5:$H$147,8,FALSE),VLOOKUP(A107,'2020-2022 Composite Index Data'!$A$5:$H$139,8,FALSE)) -> 0.1893
A108: 104 | B108: CHARLOTTESVILLE | C108: ='true value analysis'!G108 -> 0.2376926249 | D108: ='true value analysis'!N108 -> 0.2010617395 | E108: ='true value analysis'!U108 -> 0.214466365 | F108: ='AGI analysis'!G108 -> 0.1449638618 | G108: ='AGI analysis'!N108 -> 0.111077387 | H108: ='AGI analysis'!U108 -> 0.1234777289 | I108: ='taxable retail analysis'!G108 -> 0.01242771785 | J108: ='taxable retail analysis'!N108 -> -0.01753620282 | K108: ='taxable retail analysis'!U108 -> -0.006571271724 | M108: =VLOOKUP(A108,'Comp Index Comparison - Ranked'!$B$6:$E$140,4,FALSE) -> 0.6772 | N108: =IF(VLOOKUP(A108,'2020-22 Comp Index Non-Res. AGI'!$A$5:$J$138,10,FALSE)="YES",VLOOKUP(A108,'2020-22 Comp Index Non-Res. AGI'!$A$5:$H$147,8,FALSE),VLOOKUP(A108,'2020-2022 Composite Index Data'!$A$5:$H$139,8,FALSE)) -> 0.6886
A109: 106 | B109: COLONIAL HEIGHTS | C109: ='true value analysis'!G109 -> 0.06843701776 | D109: ='true value analysis'!N109 -> 0.0725688058 | E109: ='true value analysis'!U109 -> 0.06195977256 | F109: ='AGI analysis'!G109 -> 0.07131820084 | G109: ='AGI analysis'!N109 -> 0.0754611308 | H109: ='AGI analysis'!U109 -> 0.06482348888 | I109: ='taxable retail analysis'!G109 -> -0.004851973196 | J109: ='taxable retail analysis'!N109 -> -0.001003603428 | K109: ='taxable retail analysis'!U109 -> -0.01088491447 | M109: =VLOOKUP(A109,'Comp Index Comparison - Ranked'!$B$6:$E$140,4,FALSE) -> 0.4179 | N109: =IF(VLOOKUP(A109,'2020-22 Comp Index Non-Res. AGI'!$A$5:$J$138,10,FALSE)="YES",VLOOKUP(A109,'2020-22 Comp Index Non-Res. AGI'!$A$5:$H$147,8,FALSE),VLOOKUP(A109,'2020-2022 Composite Index Data'!$A$5:$H$139,8,FALSE)) -> 0.4156
A110: 107 | B110: COVINGTON | C110: ='true value analysis'!G110 -> 0.04063580119 | D110: ='true value analysis'!N110 -> 0.01765799816 | E110: ='true value analysis'!U110 -> 0.1025402899 | F110: ='AGI analysis'!G110 -> 0.05467078176 | G110: ='AGI analysis'!N110 -> 0.03138307874 | H110: ='AGI analysis'!U110 -> 0.1174101719 | I110: ='taxable retail analysis'!G110 -> -0.01783594913 | J110: ='taxable retail analysis'!N110 -> -0.0395226642 | K110: ='taxable retail analysis'!U110 -> 0.04059022005 | M110: =VLOOKUP(A110,'Comp Index Comparison - Ranked'!$B$6:$E$140,4,FALSE) -> 0.2981 | N110: =IF(VLOOKUP(A110,'2020-22 Comp Index Non-Res. AGI'!$A$5:$J$138,10,FALSE)="YES",VLOOKUP(A110,'2020-22 Comp Index Non-Res. AGI'!$A$5:$H$147,8,FALSE),VLOOKUP(A110,'2020-2022 Composite Index Data'!$A$5:$H$139,8,FALSE)) -> 0.2913
A111: 108 | B111: DANVILLE | C111: ='true value analysis'!G111 -> -0.005830079515 | D111: ='true value analysis'!N111 -> 0.06909652581 | E111: ='true value analysis'!U111 -> 0.02267916962 | F111: ='AGI analysis'!G111 -> 0.05760226405 | G111: ='AGI analysis'!N111 -> 0.1373095111 | H111: ='AGI analysis'!U111 -> 0.08793052667 | I111: ='taxable retail analysis'!G111 -> 0.03035698171 | J111: ='taxable retail analysis'!N111 -> 0.1080108609 | K111: ='taxable retail analysis'!U111 -> 0.05990394675 | M111: =VLOOKUP(A111,'Comp Index Comparison - Ranked'!$B$6:$E$140,4,FALSE) -> 0.2546 | N111: =IF(VLOOKUP(A111,'2020-22 Comp Index Non-Res. AGI'!$A$5:$J$138,10,FALSE)="YES",VLOOKUP(A111,'2020-22 Comp Index Non-Res. AGI'!$A$5:$H$147,8,FALSE),VLOOKUP(A111,'2020-2022 Composite Index Data'!$A$5:$H$139,8,FALSE)) -> 0.2622
A112: 109 | B112: FALLS CHURCH | C112: ='true value analysis'!G112 -> 0.1006398255 | D112: ='true value analysis'!N112 -> 0.03713763976 | E112: ='true value analysis'!U112 -> 0.09400621245 | F112: ='AGI analysis'!G112 -> 0.2207140152 | G112: ='AGI analysis'!N112 -> 0.1502840649 | H112: ='AGI analysis'!U112 -> 0.2133567088 | I112: ='taxable retail analysis'!G112 -> 0.124247433 | J112: ='taxable retail analysis'!N112 -> 0.05938318975 | K112: ='taxable retail analysis'!U112 -> 0.1174715356 | M112: =VLOOKUP(A112,'Comp Index Comparison - Ranked'!$B$6:$E$140,4,FALSE) -> 0.8 | N112: =IF(VLOOKUP(A112,'2020-22 Comp Index Non-Res. AGI'!$A$5:$J$138,10,FALSE)="YES",VLOOKUP(A112,'2020-22 Comp Index Non-Res. AGI'!$A$5:$H$147,8,FALSE),VLOOKUP(A112,'2020-2022 Composite Index Data'!$A$5:$H$139,8,FALSE)) -> 0.8
A113: 110 | B113: FREDERICKSBURG | C113: ='true value analysis'!G113 -> -0.003714997405 | D113: ='true value analysis'!N113 -> -0.03303912829 | E113: ='true value analysis'!U113 -> -0.02807703979 | F113: ='AGI analysis'!G113 -> 0.09638695427 | G113: ='AGI analysis'!N113 -> 0.06411647499 | H113: ='AGI analysis'!U113 -> 0.0695771304 | I113: ='taxable retail analysis'!G113 -> 0.03084008259 | J113: ='taxable retail analysis'!N113 -> 0.0004988755907 | K113: ='taxable retail analysis'!U113 -> 0.005633068819 | M113: =VLOOKUP(A113,'Comp Index Comparison - Ranked'!$B$6:$E$140,4,FALSE) -> 0.621 | N113: =IF(VLOOKUP(A113,'2020-22 Comp Index Non-Res. AGI'!$A$5:$J$138,10,FALSE)="YES",VLOOKUP(A113,'2020-22 Comp Index Non-Res. AGI'!$A$5:$H$147,8,FALSE),VLOOKUP(A113,'2020-2022 Composite Index Data'!$A$5:$H$139,8,FALSE)) -> 0.584
A114: 111 | B114: GALAX | C114: ='true value analysis'!G114 -> 0.1423163204 | D114: ='true value analysis'!N114 -> 0.2122955736 | E114: ='true value analysis'!U114 -> 0.1922545709 | F114: ='AGI analysis'!G114 -> 0.04074888873 | G114: ='AGI analysis'!N114 -> 0.1045060361 | H114: ='AGI analysis'!U114 -> 0.0862469507 | I114: ='taxable retail analysis'!G114 -> 0.02146144721 | J114: ='taxable retail analysis'!N114 -> 0.08403702974 | K114: ='taxable retail analysis'!U114 -> 0.06611632672 | M114: =VLOOKUP(A114,'Comp Index Comparison - Ranked'!$B$6:$E$140,4,FALSE) -> 0.2587 | N114: =IF(VLOOKUP(A114,'2020-22 Comp Index Non-Res. AGI'!$A$5:$J$138,10,FALSE)="YES",VLOOKUP(A114,'2020-22 Comp Index Non-Res. AGI'!$A$5:$H$147,8,FALSE),VLOOKUP(A114,'2020-2022 Composite Index Data'!$A$5:$H$139,8,FALSE)) -> 0.2775
A115: 112 | B115: HAMPTON | C115: ='true value analysis'!G115 -> 0.03780076643 | D115: ='true value analysis'!N115 -> 0.07793507923 | E115: ='true value analysis'!U115 -> 0.05209165403 | F115: ='AGI analysis'!G115 -> 0.04931679264 | G115: ='AGI analysis'!N115 -> 0.08989645855 | H115: ='AGI analysis'!U115 -> 0.06376626004 | I115: ='taxable retail analysis'!G115 -> -0.02979270973 | J115: ='taxable retail analysis'!N115 -> 0.007727596796 | K115: ='taxable retail analysis'!U115 -> -0.01643260846 | M115: =VLOOKUP(A115,'Comp Index Comparison - Ranked'!$B$6:$E$140,4,FALSE) -> 0.2741 | N115: =IF(VLOOKUP(A115,'2020-22 Comp Index Non-Res. AGI'!$A$5:$J$138,10,FALSE)="YES",VLOOKUP(A115,'2020-22 Comp Index Non-Res. AGI'!$A$5:$H$147,8,FALSE),VLOOKUP(A115,'2020-2022 Composite Index Data'!$A$5:$H$139,8,FALSE)) -> 0.2743
A116: 113 | B116: HARRISONBURG | C116: ='true value analysis'!G116 -> 0.09295642549 | D116: ='true value analysis'!N116 -> 0.02531339706 | E116: ='true value analysis'!U116 -> 0.07668868371 | F116: ='AGI analysis'!G116 -> 0.1721665571 | G116: ='AGI analysis'!N116 -> 0.09962121688 | H116: ='AGI analysis'!U116 -> 0.1547198388 | I116: ='taxable retail analysis'!G116 -> 0.03678219003 | J116: ='taxable retail analysis'!N116 -> -0.02738421727 | K116: ='taxable retail analysis'!U116 -> 0.02135055473 | M116: =VLOOKUP(A116,'Comp Index Comparison - Ranked'!$B$6:$E$140,4,FALSE) -> 0.3645 | N116: =IF(VLOOKUP(A116,'2020-22 Comp Index Non-Res. AGI'!$A$5:$J$138,10,FALSE)="YES",VLOOKUP(A116,'2020-22 Comp Index Non-Res. AGI'!$A$5:$H$147,8,FALSE),VLOOKUP(A116,'2020-2022 Composite Index Data'!$A$5:$H$139,8,FALSE)) -> 0.3537
A117: 114 | B117: HOPEWELL | C117: ='true value analysis'!G117 -> 0.08464006353 | D117: ='true value analysis'!N117 -> 0.0929505725 | E117: ='true value analysis'!U117 -> 0.09257865715 | F117: ='AGI analysis'!G117 -> 0.07544119667 | G117: ='AGI analysis'!N117 -> 0.08368122394 | H117: ='AGI analysis'!U117 -> 0.08331246282 | I117: ='taxable retail analysis'!G117 -> -0.01168620263 | J117: ='taxable retail analysis'!N117 -> -0.004113745233 | K117: ='taxable retail analysis'!U117 -> -0.004452630989 | M117: =VLOOKUP(A117,'Comp Index Comparison - Ranked'!$B$6:$E$140,4,FALSE) -> 0.2032 | N117: =IF(VLOOKUP(A117,'2020-22 Comp Index Non-Res. AGI'!$A$5:$J$138,10,FALSE)="YES",VLOOKUP(A117,'2020-22 Comp Index Non-Res. AGI'!$A$5:$H$147,8,FALSE),VLOOKUP(A117,'2020-2022 Composite Index Data'!$A$5:$H$139,8,FALSE)) -> 0.2053
A118: 115 | B118: LYNCHBURG | C118: ='true value analysis'!G118 -> 0.05735299261 | D118: ='true value analysis'!N118 -> 0.06135371035 | E118: ='true value analysis'!U118 -> 0.03492469138 | F118: ='AGI analysis'!G118 -> 0.09460769344 | G118: ='AGI analysis'!N118 -> 0.0987493722 | H118: ='AGI analysis'!U118 -> 0.07138915503 | I118: ='taxable retail analysis'!G118 -> 0.01424568074 | J118: ='taxable retail analysis'!N118 -> 0.01808329289 | K118: ='taxable retail analysis'!U118 -> -0.00726823921 | M118: =VLOOKUP(A118,'Comp Index Comparison - Ranked'!$B$6:$E$140,4,FALSE) -> 0.37 | N118: =IF(VLOOKUP(A118,'2020-22 Comp Index Non-Res. AGI'!$A$5:$J$138,10,FALSE)="YES",VLOOKUP(A118,'2020-22 Comp Index Non-Res. AGI'!$A$5:$H$147,8,FALSE),VLOOKUP(A118,'2020-2022 Composite Index Data'!$A$5:$H$139,8,FALSE)) -> 0.3668
A119: 116 | B119: MARTINSVILLE | C119: ='true value analysis'!G119 -> -0.005392046429 | D119: ='true value analysis'!N119 -> 0.08018550343 | E119: ='true value analysis'!U119 -> 0.001445790346 | F119: ='AGI analysis'!G119 -> 0.06624085837 | G119: ='AGI analysis'!N119 -> 0.1579818101 | H119: ='AGI analysis'!U119 -> 0.07357116467 | I119: ='taxable retail analysis'!G119 -> 0.008773101898 | J119: ='taxable retail analysis'!N119 -> 0.09556944222 | K119: ='taxable retail analysis'!U119 -> 0.01570832275 | M119: =VLOOKUP(A119,'Comp Index Comparison - Ranked'!$B$6:$E$140,4,FALSE) -> 0.2135 | N119: =IF(VLOOKUP(A119,'2020-22 Comp Index Non-Res. AGI'!$A$5:$J$138,10,FALSE)="YES",VLOOKUP(A119,'2020-22 Comp Index Non-Res. AGI'!$A$5:$H$147,8,FALSE),VLOOKUP(A119,'2020-2022 Composite Index Data'!$A$5:$H$139,8,FALSE)) -> 0.2185
A120: 117 | B120: NEWPORT NEWS | C120: ='true value analysis'!G120 -> 0.0685197119 | D120: ='true value analysis'!N120 -> 0.08364854146 | E120: ='true value analysis'!U120 -> 0.07613963508 | F120: ='AGI analysis'!G120 -> 0.07773937092 | G120: ='AGI analysis'!N120 -> 0.09299873869 | H120: ='AGI analysis'!U120 -> 0.08542504215 | I120: ='taxable retail analysis'!G120 -> 0.05101426758 | J120: ='taxable retail analysis'!N120 -> 0.06589524314 | K120: ='taxable retail analysis'!U120 -> 0.05850935437 | M120: =VLOOKUP(A120,'Comp Index Comparison - Ranked'!$B$6:$E$140,4,FALSE) -> 0.2781 | N120: =IF(VLOOKUP(A120,'2020-22 Comp Index Non-Res. AGI'!$A$5:$J$138,10,FALSE)="YES",VLOOKUP(A120,'2020-22 Comp Index Non-Res. AGI'!$A$5:$H$147,8,FALSE),VLOOKUP(A120,'2020-2022 Composite Index Data'!$A$5:$H$139,8,FALSE)) -> 0.2842
A121: 118 | B121: NORFOLK | C121: ='true value analysis'!G121 -> 0.0676109426 | D121: ='true value analysis'!N121 -> 0.1117414315 | E121: ='true value analysis'!U121 -> 0.07165584307 | F121: ='AGI analysis'!G121 -> 0.1079106325 | G121: ='AGI analysis'!N121 -> 0.153706939 | H121: ='AGI analysis'!U121 -> 0.1121082181 | I121: ='taxable retail analysis'!G121 -> 0.04804938964 | J121: ='taxable retail analysis'!N121 -> 0.09137128726 | K121: ='taxable retail analysis'!U121 -> 0.05202017647 | M121: =VLOOKUP(A121,'Comp Index Comparison - Ranked'!$B$6:$E$140,4,FALSE) -> 0.2958 | N121: =IF(VLOOKUP(A121,'2020-22 Comp Index Non-Res. AGI'!$A$5:$J$138,10,FALSE)="YES",VLOOKUP(A121,'2020-22 Comp Index Non-Res. AGI'!$A$5:$H$147,8,FALSE),VLOOKUP(A121,'2020-2022 Composite Index Data'!$A$5:$H$139,8,FALSE)) -> 0.3059
A122: 119 | B122: NORTON | C122: ='true value analysis'!G122 -> 0.0238729019 | D122: ='true value analysis'!N122 -> 0.08702313335 | E122: ='true value analysis'!U122 -> 0.04075282609 | F122: ='AGI analysis'!G122 -> -0.1217193457 | G122: ='AGI analysis'!N122 -> -0.06754892425 | H122: ='AGI analysis'!U122 -> -0.1072397058 | I122: ='taxable retail analysis'!G122 -> -0.06458300976 | J122: ='taxable retail analysis'!N122 -> -0.006888544636 | K122: ='taxable retail analysis'!U122 -> -0.04916140044 | M122: =VLOOKUP(A122,'Comp Index Comparison - Ranked'!$B$6:$E$140,4,FALSE) -> 0.287 | N122: =IF(VLOOKUP(A122,'2020-22 Comp Index Non-Res. AGI'!$A$5:$J$138,10,FALSE)="YES",VLOOKUP(A122,'2020-22 Comp Index Non-Res. AGI'!$A$5:$H$147,8,FALSE),VLOOKUP(A122,'2020-2022 Composite Index Data'!$A$5:$H$139,8,FALSE)) -> 0.271
A123: 120 | B123: PETERSBURG | C123: ='true value analysis'!G123 -> 0.05184992698 | D123: ='true value analysis'!N123 -> 0.08901872325 | E123: ='true value analysis'!U123 -> 0.0635279328 | F123: ='AGI analysis'!G123 -> 0.03161273578 | G123: ='AGI analysis'!N123 -> 0.06806641859 | H123: ='AGI analysis'!U123 -> 0.04306606122 | I123: ='taxable retail analysis'!G123 -> -0.03049581722 | J123: ='taxable retail analysis'!N123 -> 0.003763160727 | K123: ='taxable retail analysis'!U123 -> -0.01973204266 | M123: =VLOOKUP(A123,'Comp Index Comparison - Ranked'!$B$6:$E$140,4,FALSE) -> 0.243 | N123: =IF(VLOOKUP(A123,'2020-22 Comp Index Non-Res. AGI'!$A$5:$J$138,10,FALSE)="YES",VLOOKUP(A123,'2020-22 Comp Index Non-Res. AGI'!$A$5:$H$147,8,FALSE),VLOOKUP(A123,'2020-2022 Composite Index Data'!$A$5:$H$139,8,FALSE)) -> 0.2442
A124: 121 | B124: PORTSMOUTH | C124: ='true value analysis'!G124 -> -0.00325338577 | D124: ='true value analysis'!N124 -> 0.03573606889 | E124: ='true value analysis'!U124 -> 0.01172287832 | F124: ='AGI analysis'!G124 -> 0.04796177041 | G124: ='AGI analysis'!N124 -> 0.08895459381 | H124: ='AGI analysis'!U124 -> 0.06370754973 | I124: ='taxable retail analysis'!G124 -> -0.01517988973 | J124: ='taxable retail analysis'!N124 -> 0.02334303926 | K124: ='taxable retail analysis'!U124 -> -0.0003828231082 | M124: =VLOOKUP(A124,'Comp Index Comparison - Ranked'!$B$6:$E$140,4,FALSE) -> 0.2462 | N124: =IF(VLOOKUP(A124,'2020-22 Comp Index Non-Res. AGI'!$A$5:$J$138,10,FALSE)="YES",VLOOKUP(A124,'2020-22 Comp Index Non-Res. AGI'!$A$5:$H$147,8,FALSE),VLOOKUP(A124,'2020-2022 Composite Index Data'!$A$5:$H$139,8,FALSE)) -> 0.2426
A125: 122 | B125: RADFORD | C125: ='true value analysis'!G125 -> 0.06122715889 | D125: ='true value analysis'!N125 -> 0.0794084022 | E125: ='true value analysis'!U125 -> 0.07430131961 | F125: ='AGI analysis'!G125 ->  | G125: ='AGI analysis'!N125 ->  | H125: ='AGI analysis'!U125 ->  | I125: ='taxable retail analysis'!G125 -> -0.120957078 | J125: ='taxable retail analysis'!N125 -> -0.1058970665 | K125: ='taxable retail analysis'!U125 -> -0.1101274 | M125: =VLOOKUP(A125,'Comp Index Comparison - Ranked'!$B$6:$E$140,4,FALSE) -> 0.2429 | N125: =IF(VLOOKUP(A125,'2020-22 Comp Index Non-Res. AGI'!$A$5:$J$138,10,FALSE)="YES",VLOOKUP(A125,'2020-22 Comp Index Non-Res. AGI'!$A$5:$H$147,8,FALSE),VLOOKUP(A125,'2020-2022 Composite Index Data'!$A$5:$H$139,8,FALSE)) -> 
A126: 123 | B126: RICHMOND CITY | C126: ='true value analysis'!G126 -> 0.1015938983 | D126: ='true value analysis'!N126 -> 0.04290445005 | E126: ='true value analysis'!U126 -> 0.07729835816 | F126: ='AGI analysis'!G126 -> 0.1372646461 | G126: ='AGI analysis'!N126 -> 0.07667477289 | H126: ='AGI analysis'!U126 -> 0.1121823913 | I126: ='taxable retail analysis'!G126 -> 0.01026778923 | J126: ='taxable retail analysis'!N126 -> -0.043556092 | K126: ='taxable retail analysis'!U126 -> -0.01201356298 | M126: =VLOOKUP(A126,'Comp Index Comparison - Ranked'!$B$6:$E$140,4,FALSE) -> 0.4925 | N126: =IF(VLOOKUP(A126,'2020-22 Comp Index Non-Res. AGI'!$A$5:$J$138,10,FALSE)="YES",VLOOKUP(A126,'2020-22 Comp Index Non-Res. AGI'!$A$5:$H$147,8,FALSE),VLOOKUP(A126,'2020-2022 Composite Index Data'!$A$5:$H$139,8,FALSE)) -> 0.4688
A127: 124 | B127: ROANOKE CITY | C127: ='true value analysis'!G127 -> 0.03867389262 | D127: ='true value analysis'!N127 -> 0.03613124224 | E127: ='true value analysis'!U127 -> 0.03631393172 | F127: ='AGI analysis'!G127 -> 0.05605623111 | G127: ='AGI analysis'!N127 -> 0.05347102916 | H127: ='AGI analysis'!U127 -> 0.05365677597 | I127: ='taxable retail analysis'!G127 -> -0.003009260085 | J127: ='taxable retail analysis'!N127 -> -0.005449871037 | K127: ='taxable retail analysis'!U127 -> -0.005274513098 | M127: =VLOOKUP(A127,'Comp Index Comparison - Ranked'!$B$6:$E$140,4,FALSE) -> 0.3416 | N127: =IF(VLOOKUP(A127,'2020-22 Comp Index Non-Res. AGI'!$A$5:$J$138,10,FALSE)="YES",VLOOKUP(A127,'2020-22 Comp Index Non-Res. AGI'!$A$5:$H$147,8,FALSE),VLOOKUP(A127,'2020-2022 Composite Index Data'!$A$5:$H$139,8,FALSE)) -> 0.3284
A128: 126 | B128: STAUNTON | C128: ='true value analysis'!G128 -> 0.07296731768 | D128: ='true value analysis'!N128 -> 0.06131796062 | E128: ='true value analysis'!U128 -> 0.06347740037 | F128: ='AGI analysis'!G128 -> 0.1407098568 | G128: ='AGI analysis'!N128 -> 0.1283250095 | H128: ='AGI analysis'!U128 -> 0.130620787 | I128: ='taxable retail analysis'!G128 -> -0.008614326246 | J128: ='taxable retail analysis'!N128 -> -0.01937793992 | K128: ='taxable retail analysis'!U128 -> -0.01738269031 | M128: =VLOOKUP(A128,'Comp Index Comparison - Ranked'!$B$6:$E$140,4,FALSE) -> 0.3867 | N128: =IF(VLOOKUP(A128,'2020-22 Comp Index Non-Res. AGI'!$A$5:$J$138,10,FALSE)="YES",VLOOKUP(A128,'2020-22 Comp Index Non-Res. AGI'!$A$5:$H$147,8,FALSE),VLOOKUP(A128,'2020-2022 Composite Index Data'!$A$5:$H$139,8,FALSE)) -> 0.3877
A129: 127 | B129: SUFFOLK | C129: ='true value analysis'!G129 -> 0.06944785497 | D129: ='true value analysis'!N129 -> 0.07360597569 | E129: ='true value analysis'!U129 -> 0.04509625467 | F129: ='AGI analysis'!G129 -> 0.1517594586 | G129: ='AGI analysis'!N129 -> 0.1562376151 | H129: ='AGI analysis'!U129 -> 0.1255336021 | I129: ='taxable retail analysis'!G129 -> 0.09026015239 | J129: ='taxable retail analysis'!N129 -> 0.09449919341 | K129: ='taxable retail analysis'!U129 -> 0.06543465077 | M129: =VLOOKUP(A129,'Comp Index Comparison - Ranked'!$B$6:$E$140,4,FALSE) -> 0.342 | N129: =IF(VLOOKUP(A129,'2020-22 Comp Index Non-Res. AGI'!$A$5:$J$138,10,FALSE)="YES",VLOOKUP(A129,'2020-22 Comp Index Non-Res. AGI'!$A$5:$H$147,8,FALSE),VLOOKUP(A129,'2020-2022 Composite Index Data'!$A$5:$H$139,8,FALSE)) -> 0.3487
A130: 128 | B130: VIRGINIA BEACH | C130: ='true value analysis'!G130 -> 0.06499029848 | D130: ='true value analysis'!N130 -> 0.07766999786 | E130: ='true value analysis'!U130 -> 0.06276867839 | F130: ='AGI analysis'!G130 -> 0.1268743124 | G130: ='AGI analysis'!N130 -> 0.1402907985 | H130: ='AGI analysis'!U130 -> 0.1245235994 | I130: ='taxable retail analysis'!G130 -> 0.0414144971 | J130: ='taxable retail analysis'!N130 -> 0.05381350465 | K130: ='taxable retail analysis'!U130 -> 0.03924205725 | M130: =VLOOKUP(A130,'Comp Index Comparison - Ranked'!$B$6:$E$140,4,FALSE) -> 0.4046 | N130: =IF(VLOOKUP(A130,'2020-22 Comp Index Non-Res. AGI'!$A$5:$J$138,10,FALSE)="YES",VLOOKUP(A130,'2020-22 Comp Index Non-Res. AGI'!$A$5:$H$147,8,FALSE),VLOOKUP(A130,'2020-2022 Composite Index Data'!$A$5:$H$139,8,FALSE)) -> 0.4082
A131: 130 | B131: WAYNESBORO | C131: ='true value analysis'!G131 -> 0.07228139624 | D131: ='true value analysis'!N131 -> 0.1114226896 | E131: ='true value analysis'!U131 -> 0.0644670021 | F131: ='AGI analysis'!G131 -> 0.1559109762 | G131: ='AGI analysis'!N131 -> 0.198104985 | H131: ='AGI analysis'!U131 -> 0.1474871203 | I131: ='taxable retail analysis'!G131 -> -0.03454628893 | J131: ='taxable retail analysis'!N131 -> 0.0006954928079 | K131: ='taxable retail analysis'!U131 -> -0.04158216202 | M131: =VLOOKUP(A131,'Comp Index Comparison - Ranked'!$B$6:$E$140,4,FALSE) -> 0.3578 | N131: =IF(VLOOKUP(A131,'2020-22 Comp Index Non-Res. AGI'!$A$5:$J$138,10,FALSE)="YES",VLOOKUP(A131,'2020-22 Comp Index Non-Res. AGI'!$A$5:$H$147,8,FALSE),VLOOKUP(A131,'2020-2022 Composite Index Data'!$A$5:$H$139,8,FALSE)) -> 0.3652
A132: 131 | B132: WILLIAMSBURG | C132: ='true value analysis'!G132 -> 0.06433846707 | D132: ='true value analysis'!N132 -> 0.05528738972 | E132: ='true value analysis'!U132 -> 0.02675081931 | F132: ='AGI analysis'!G132 -> 0.06231479448 | G132: ='AGI analysis'!N132 -> 0.05328092633 | H132: ='AGI analysis'!U132 -> 0.02479861373 | I132: ='taxable retail analysis'!G132 -> 0.02760964368 | J132: ='taxable retail analysis'!N132 -> 0.01887090628 | K132: ='taxable retail analysis'!U132 -> -0.008680907224 | M132: =VLOOKUP(A132,'Comp Index Comparison - Ranked'!$B$6:$E$140,4,FALSE) -> 0.7703 | N132: =IF(VLOOKUP(A132,'2020-22 Comp Index Non-Res. AGI'!$A$5:$J$138,10,FALSE)="YES",VLOOKUP(A132,'2020-22 Comp Index Non-Res. AGI'!$A$5:$H$147,8,FALSE),VLOOKUP(A132,'2020-2022 Composite Index Data'!$A$5:$H$139,8,FALSE)) -> 0.7459
A133: 132 | B133: WINCHESTER | C133: ='true value analysis'!G133 -> 0.07060372933 | D133: ='true value analysis'!N133 -> 0.08531796427 | E133: ='true value analysis'!U133 -> 0.0518715091 | F133: ='AGI analysis'!G133 -> 0.1773784937 | G133: ='AGI analysis'!N133 -> 0.1935602268 | H133: ='AGI analysis'!U133 -> 0.1567780487 | I133: ='taxable retail analysis'!G133 -> 0.0688725695 | J133: ='taxable retail analysis'!N133 -> 0.08356301161 | K133: ='taxable retail analysis'!U133 -> 0.05017063916 | M133: =VLOOKUP(A133,'Comp Index Comparison - Ranked'!$B$6:$E$140,4,FALSE) -> 0.4244 | N133: =IF(VLOOKUP(A133,'2020-22 Comp Index Non-Res. AGI'!$A$5:$J$138,10,FALSE)="YES",VLOOKUP(A133,'2020-22 Comp Index Non-Res. AGI'!$A$5:$H$147,8,FALSE),VLOOKUP(A133,'2020-2022 Composite Index Data'!$A$5:$H$139,8,FALSE)) -> 0.4319
A134: 134 | B134: FAIRFAX CITY | C134: ='true value analysis'!G134 -> 0.04293606396 | D134: ='true value analysis'!N134 -> 0.05839384275 | E134: ='true value analysis'!U134 -> 0.01527035179 | F134: ='AGI analysis'!G134 -> 0.1338765684 | G134: ='AGI analysis'!N134 -> 0.1506822133 | H134: ='AGI analysis'!U134 -> 0.1037984995 | I134: ='taxable retail analysis'!G134 -> 0.008725688254 | J134: ='taxable retail analysis'!N134 -> 0.02367642118 | K134: ='taxable retail analysis'!U134 -> -0.01803253357 | M134: =VLOOKUP(A134,'Comp Index Comparison - Ranked'!$B$6:$E$140,4,FALSE) -> 0.8 | N134: =IF(VLOOKUP(A134,'2020-22 Comp Index Non-Res. AGI'!$A$5:$J$138,10,FALSE)="YES",VLOOKUP(A134,'2020-22 Comp Index Non-Res. AGI'!$A$5:$H$147,8,FALSE),VLOOKUP(A134,'2020-2022 Composite Index Data'!$A$5:$H$139,8,FALSE)) -> 0.8
A135: 135 | B135: FRANKLIN CITY | C135: ='true value analysis'!G135 -> 0.025134612 | D135: ='true value analysis'!N135 -> 0.04956763556 | E135: ='true value analysis'!U135 -> 0.03251403274 | F135: ='AGI analysis'!G135 -> 0.03318290743 | G135: ='AGI analysis'!N135 -> 0.05780775378 | H135: ='AGI analysis'!U135 -> 0.04062026374 | I135: ='taxable retail analysis'!G135 -> 0.01203132544 | J135: ='taxable retail analysis'!N135 -> 0.03615204571 | K135: ='taxable retail analysis'!U135 -> 0.01931642231 | M135: =VLOOKUP(A135,'Comp Index Comparison - Ranked'!$B$6:$E$140,4,FALSE) -> 0.2952 | N135: =IF(VLOOKUP(A135,'2020-22 Comp Index Non-Res. AGI'!$A$5:$J$138,10,FALSE)="YES",VLOOKUP(A135,'2020-22 Comp Index Non-Res. AGI'!$A$5:$H$147,8,FALSE),VLOOKUP(A135,'2020-2022 Composite Index Data'!$A$5:$H$139,8,FALSE)) -> 0.2929
A136: 136 | B136: CHESAPEAKE | C136: ='true value analysis'!G136 -> 0.07758233003 | D136: ='true value analysis'!N136 -> 0.05777448438 | E136: ='true value analysis'!U136 -> 0.05816715232 | F136: ='AGI analysis'!G136 -> 0.1568469271 | G136: ='AGI analysis'!N136 -> 0.1355820597 | H136: ='AGI analysis'!U136 -> 0.1360036114 | I136: ='taxable retail analysis'!G136 -> 0.05120172615 | J136: ='taxable retail analysis'!N136 -> 0.03187880208 | K136: ='taxable retail analysis'!U136 -> 0.03226185701 | M136: =VLOOKUP(A136,'Comp Index Comparison - Ranked'!$B$6:$E$140,4,FALSE) -> 0.3476 | N136: =IF(VLOOKUP(A136,'2020-22 Comp Index Non-Res. AGI'!$A$5:$J$138,10,FALSE)="YES",VLOOKUP(A136,'2020-22 Comp Index Non-Res. AGI'!$A$5:$H$147,8,FALSE),VLOOKUP(A136,'2020-2022 Composite Index Data'!$A$5:$H$139,8,FALSE)) -> 0.3486
A137: 137 | B137: LEXINGTON | C137: ='true value analysis'!G137 -> -0.0124331695 | D137: ='true value analysis'!N137 -> -0.02274605006 | E137: ='true value analysis'!U137 -> 0.004649947007 | F137: ='AGI analysis'!G137 -> 0.07459500593 | G137: ='AGI analysis'!N137 -> 0.0633733148 | H137: ='AGI analysis'!U137 -> 0.09318355216 | I137: ='taxable retail analysis'!G137 -> 0.05794211761 | J137: ='taxable retail analysis'!N137 -> 0.04689432787 | K137: ='taxable retail analysis'!U137 -> 0.07624259905 | M137: =VLOOKUP(A137,'Comp Index Comparison - Ranked'!$B$6:$E$140,4,FALSE) -> 0.4172 | N137: =IF(VLOOKUP(A137,'2020-22 Comp Index Non-Res. AGI'!$A$5:$J$138,10,FALSE)="YES",VLOOKUP(A137,'2020-22 Comp Index Non-Res. AGI'!$A$5:$H$147,8,FALSE),VLOOKUP(A137,'2020-2022 Composite Index Data'!$A$5:$H$139,8,FALSE)) -> 0.392
A138: 138 | B138: EMPORIA | C138: ='true value analysis'!G138 -> 0.04643256255 | D138: ='true value analysis'!N138 -> 0.04808126192 | E138: ='true value analysis'!U138 -> 0.09787870371 | F138: ='AGI analysis'!G138 -> 0.06624952539 | G138: ='AGI analysis'!N138 -> 0.06792944724 | H138: ='AGI analysis'!U138 -> 0.118669935 | I138: ='taxable retail analysis'!G138 -> 0.05907272694 | J138: ='taxable retail analysis'!N138 -> 0.06074134143 | K138: ='taxable retail analysis'!U138 -> 0.1111403011 | M138: =VLOOKUP(A138,'Comp Index Comparison - Ranked'!$B$6:$E$140,4,FALSE) -> 0.2168 | N138: =IF(VLOOKUP(A138,'2020-22 Comp Index Non-Res. AGI'!$A$5:$J$138,10,FALSE)="YES",VLOOKUP(A138,'2020-22 Comp Index Non-Res. AGI'!$A$5:$H$147,8,FALSE),VLOOKUP(A138,'2020-2022 Composite Index Data'!$A$5:$H$139,8,FALSE)) -> 0.2228
A139: 139 | B139: SALEM | C139: ='true value analysis'!G139 -> 0.0769550166 | D139: ='true value analysis'!N139 -> 0.03356731702 | E139: ='true value analysis'!U139 -> 0.06684768536 | F139: ='AGI analysis'!G139 -> 0.09739173563 | G139: ='AGI analysis'!N139 -> 0.05318069411 | H139: ='AGI analysis'!U139 -> 0.08709260372 | I139: ='taxable retail analysis'!G139 -> 0.04813169653 | J139: ='taxable retail analysis'!N139 -> 0.005905213087 | K139: ='taxable retail analysis'!U139 -> 0.03829487505 | M139: =VLOOKUP(A139,'Comp Index Comparison - Ranked'!$B$6:$E$140,4,FALSE) -> 0.3715 | N139: =IF(VLOOKUP(A139,'2020-22 Comp Index Non-Res. AGI'!$A$5:$J$138,10,FALSE)="YES",VLOOKUP(A139,'2020-22 Comp Index Non-Res. AGI'!$A$5:$H$147,8,FALSE),VLOOKUP(A139,'2020-2022 Composite Index Data'!$A$5:$H$139,8,FALSE)) -> 0.3641
A140: 142 | B140: POQUOSON | C140: ='true value analysis'!G140 -> 0.04224208313 | D140: ='true value analysis'!N140 -> 0.03384524924 | E140: ='true value analysis'!U140 -> 0.04630573514 | F140: ='AGI analysis'!G140 -> 0.07820437743 | G140: ='AGI analysis'!N140 -> 0.06951781295 | H140: ='AGI analysis'!U140 -> 0.08240824471 | I140: ='taxable retail analysis'!G140 -> 0.003714511357 | J140: ='taxable retail analysis'!N140 -> -0.00437192476 | K140: ='taxable retail analysis'!U140 -> 0.007627946215 | M140: =VLOOKUP(A140,'Comp Index Comparison - Ranked'!$B$6:$E$140,4,FALSE) -> 0.3742 | N140: =IF(VLOOKUP(A140,'2020-22 Comp Index Non-Res. AGI'!$A$5:$J$138,10,FALSE)="YES",VLOOKUP(A140,'2020-22 Comp Index Non-Res. AGI'!$A$5:$H$147,8,FALSE),VLOOKUP(A140,'2020-2022 Composite Index Data'!$A$5:$H$139,8,FALSE)) -> 0.3703
A141: 143 | B141: MANASSAS | C141: ='true value analysis'!G141 -> 0.1042629295 | D141: ='true value analysis'!N141 -> 0.07594971641 | E141: ='true value analysis'!U141 -> 0.09881865396 | F141: ='AGI analysis'!G141 -> 0.06926123508 | G141: ='AGI analysis'!N141 -> 0.04184546266 | H141: ='AGI analysis'!U141 -> 0.06398952614 | I141: ='taxable retail analysis'!G141 -> 0.1038226661 | J141: ='taxable retail analysis'!N141 -> 0.07552074133 | K141: ='taxable retail analysis'!U141 -> 0.09838056116 | M141: =VLOOKUP(A141,'Comp Index Comparison - Ranked'!$B$6:$E$140,4,FALSE) -> 0.3557 | N141: =IF(VLOOKUP(A141,'2020-22 Comp Index Non-Res. AGI'!$A$5:$J$138,10,FALSE)="YES",VLOOKUP(A141,'2020-22 Comp Index Non-Res. AGI'!$A$5:$H$147,8,FALSE),VLOOKUP(A141,'2020-2022 Composite Index Data'!$A$5:$H$139,8,FALSE)) -> 0.3611
A142: 144 | B142: MANASSAS PARK | C142: ='true value analysis'!G142 -> 0.1015261205 | D142: ='true value analysis'!N142 -> 0.03598938202 | E142: ='true value analysis'!U142 -> 0.07136414889 | F142: ='AGI analysis'!G142 -> 0.2386656557 | G142: ='AGI analysis'!N142 -> 0.1649696211 | H142: ='AGI analysis'!U142 -> 0.2047485315 | I142: ='taxable retail analysis'!G142 -> 0.08891912696 | J142: ='taxable retail analysis'!N142 -> 0.02413245809 | K142: ='taxable retail analysis'!U142 -> 0.05910235989 | M142: =VLOOKUP(A142,'Comp Index Comparison - Ranked'!$B$6:$E$140,4,FALSE) -> 0.2675 | N142: =IF(VLOOKUP(A142,'2020-22 Comp Index Non-Res. AGI'!$A$5:$J$138,10,FALSE)="YES",VLOOKUP(A142,'2020-22 Comp Index Non-Res. AGI'!$A$5:$H$147,8,FALSE),VLOOKUP(A142,'2020-2022 Composite Index Data'!$A$5:$H$139,8,FALSE)) -> 0.2755
A143: 202 | B143: COLONIAL BEACH | C143: ='true value analysis'!G143 -> -0.02312559965 | D143: ='true value analysis'!N143 -> -0.06724556196 | E143: ='true value analysis'!U143 -> -0.02011477914 | F143: ='AGI analysis'!G143 -> 0.1352936405 | G143: ='AGI analysis'!N143 -> 0.08401876564 | H143: ='AGI analysis'!U143 -> 0.1387927243 | I143: ='taxable retail analysis'!G143 -> -0.00503729112 | J143: ='taxable retail analysis'!N143 -> -0.04997420133 | K143: ='taxable retail analysis'!U143 -> -0.001970720709 | M143: =VLOOKUP(A143,'Comp Index Comparison - Ranked'!$B$6:$E$140,4,FALSE) -> 0.36 | N143: =IF(VLOOKUP(A143,'2020-22 Comp Index Non-Res. AGI'!$A$5:$J$138,10,FALSE)="YES",VLOOKUP(A143,'2020-22 Comp Index Non-Res. AGI'!$A$5:$H$147,8,FALSE),VLOOKUP(A143,'2020-2022 Composite Index Data'!$A$5:$H$139,8,FALSE)) -> 0.3317
A144: 207 | B144: WEST POINT | C144: ='true value analysis'!G144 -> 0.1618258646 | D144: ='true value analysis'!N144 -> 0.1156549433 | E144: ='true value analysis'!U144 -> 0.1688396036 | F144: ='AGI analysis'!G144 -> 0.1386476113 | G144: ='AGI analysis'!N144 -> 0.093397793 | H144: ='AGI analysis'!U144 -> 0.1455214272 | I144: ='taxable retail analysis'!G144 -> -0.008558715867 | J144: ='taxable retail analysis'!N144 -> -0.04795855958 | K144: ='taxable retail analysis'!U144 -> -0.002573558703 | M144: =VLOOKUP(A144,'Comp Index Comparison - Ranked'!$B$6:$E$140,4,FALSE) -> 0.2554 | N144: =IF(VLOOKUP(A144,'2020-22 Comp Index Non-Res. AGI'!$A$5:$J$138,10,FALSE)="YES",VLOOKUP(A144,'2020-22 Comp Index Non-Res. AGI'!$A$5:$H$147,8,FALSE),VLOOKUP(A144,'2020-2022 Composite Index Data'!$A$5:$H$139,8,FALSE)) -> 0.2614

Sheet Appropriation Act Language
A1: Excerpts from Current Budget Language on the Composite Index from
A2: Chapter 854, 2019 Acts of Assembly (2018-2020 Appropriation Act)
A3: no data
A4: Item 136 Definitions:
A5: no data
A6: 4.a. "Composite Index of Local Ability-to-Pay" - An index figure computed for each locality. The composite index is the sum of 2/3 of the index of wealth per pupil in unadjusted March 31 ADM reported for the first seven (7) months of the 2015-2016 school year and 1/3 of the index of wealth per capita (population estimates for 2015 as determined by the Weldon Cooper Center for Public Service of the University of Virginia) multiplied by the local nominal share of the costs of the Standards of Quality of 0.45 in each year. The indices of wealth are determined by combining the following constituent index elements with the indicated weighting:
A7: (1) true values of real estate and public service corporations as reported by the State Department of Taxation for the calendar year 2015 - 50 percent; (2) adjusted gross income for the calendar year 2015 as reported by the State Department of Taxation - 40 percent; (3) the sales for the calendar year 2015 which are subject to the state general sales and use tax, as reported by the State Department of Taxation - 10 percent. Each constituent index element for a locality is its sum per March 31 ADM, or per capita, expressed as a percentage of the state average per March 31 ADM, or per capita, for the same element. A locality whose composite index exceeds 0.8000 shall be considered as having an index of 0.8000 for purposes of distributing all payments based on the composite index of local ability-to-pay. Each constituent index element for a locality used to determine the composite index of local ability-to-pay for the current biennium shall be the latest available data for the specified official base year provided to the Department of Education by the responsible source agencies no later than November 15, 2017.
A8: b. For any locality whose total calendar year 2015 Virginia Adjusted Gross Income is comprised of at least 3 percent or more by nonresidents of Virginia, such nonresident income shall be excluded in computing the composite index of ability-to-pay. The Department of Education shall compute the composite index for such localities by using adjusted gross income data which exclude nonresident income, but shall not adjust the composite index of any other localities. The Department of Taxation shall furnish to the Department of Education such data as are necessary to implement this provision.
A9: c.1) Notwithstanding the funding provisions in § 22.1-25 D, Code of Virginia, additional state funding for future consolidations shall be as set forth in future Appropriation Acts.
A10: 2) In the case of the consolidation of Clifton Forge and Alleghany County school divisions, the fifteen year period for the application of a new composite index shall apply beginning with the fiscal year that starts on July 1, 2004. The composite index established by the Board of Education shall equal the lowest composite index that was in effect prior to July 1, 2004, of any individual localities involved in such consolidation, and this index shall remain in effect for a period of fifteen years, unless a lower composite index is calculated for the combined division through the process for computing an index as set forth above.
A11: 3) If the composite index of a consolidated school division is reduced during the course of the fifteen year period to a level that would entitle the school division to a lower interest rate for a Literary Fund loan than it received when the loan was originally released, the Board of Education shall reduce the interest rate of such loan for the remainder of the period of the loan. Such reduction shall be based on the interest rate that would apply at the time of such adjustment. This rate shall remain in effect for the duration of the loan and shall apply only to those years remaining to be paid.
A12: 4) In the case of the consolidation of Bedford County and Bedford City school divisions, the fifteen year period for the application of a new composite shall apply beginning with the fiscal year that starts on July 1, 2013. The composite index established by the Board of Education shall equal the lowest composite index that was in effect prior to July 1, 2013, of any individual localities involved in such consolidation, and this index shall remain in effect for a period of fifteen years, unless a lower composite index is calculated for the combined division through the process for computing an index as set forth above.
A13: d. When it is determined that a substantial error exists in a constituent index element, the Department of Education will make adjustments in funding for the current school year only in the division where the error occurred. The composite index of any other locality shall not be changed as a result of the adjustment. No adjustment during the biennium will be made as a result of updating of data used in a constituent index element.
A14: End of worksheet

Sheet 2020-2022 Composite Index Data
A1: 2020-2022 COMPOSITE INDEX OF LOCAL ABILITY-TO-PAY
A2: 2017 is the base year of Indicators of Ability-to-Pay in the table below
A3: Footnotes are provided in cell A149 and A150
A4: DivNum | B4: DIVISION | C4: TRUE VALUE OF PROPERTY INDICATOR | D4: ADJUSTED GROSS INCOME (including nonresident AGI ) INDICATOR | E4: TAXABLE RETAIL SALES INDICATOR | F4: =+'2020-2022 Composite Index'!G5 -> MARCH 31, 2018 ADM INDICATOR | G4: TOTAL POPULATION INDICATOR | H4: 2012-2014 Composite Index Calculated Including Nonresident AGI
A5: 1 | B5: ACCOMACK | C5: =VLOOKUP($A5,'2020-2022 Composite Index'!$A$6:$K$140,3,FALSE) -> 4275437691 | D5: =VLOOKUP($A5,'2020-2022 Composite Index'!$A$6:$K$140,4,FALSE) -> 710967096.7 | E5: =VLOOKUP($A5,'2020-2022 Composite Index'!$A$6:$K$140,6,FALSE) -> 342140946.1 | F5: =VLOOKUP($A5,'2020-2022 Composite Index'!$A$6:$K$140,7,FALSE) -> 5017.54 | G5: =VLOOKUP($A5,'2020-2022 Composite Index'!$A$6:$K$140,8,FALSE) -> 33041 | H5: =VLOOKUP($A5,'2020-2022 Composite Index'!$A$6:$K$140,9,FALSE) -> 0.3457
A6: 2 | B6: ALBEMARLE | C6: =VLOOKUP($A6,'2020-2022 Composite Index'!$A$6:$K$140,3,FALSE) -> 2.033039288e+10 | D6: =VLOOKUP($A6,'2020-2022 Composite Index'!$A$6:$K$140,4,FALSE) -> 4705654613 | E6: =VLOOKUP($A6,'2020-2022 Composite Index'!$A$6:$K$140,6,FALSE) -> 1490607721 | F6: =VLOOKUP($A6,'2020-2022 Composite Index'!$A$6:$K$140,7,FALSE) -> 13510.2 | G6: =VLOOKUP($A6,'2020-2022 Composite Index'!$A$6:$K$140,8,FALSE) -> 107697 | H6: =VLOOKUP($A6,'2020-2022 Composite Index'!$A$6:$K$140,9,FALSE) -> 0.6449
A7: 3 | B7: ALLEGHANY | C7: =VLOOKUP($A7,'2020-2022 Composite Index'!$A$6:$K$140,3,FALSE) -> 1375295244 | D7: =VLOOKUP($A7,'2020-2022 Composite Index'!$A$6:$K$140,4,FALSE) -> 314799601 | E7: =VLOOKUP($A7,'2020-2022 Composite Index'!$A$6:$K$140,6,FALSE) -> 70845093.01 | F7: =VLOOKUP($A7,'2020-2022 Composite Index'!$A$6:$K$140,7,FALSE) -> 2069.58 | G7: =VLOOKUP($A7,'2020-2022 Composite Index'!$A$6:$K$140,8,FALSE) -> 15405 | H7: =VLOOKUP($A7,'2020-2022 Composite Index'!$A$6:$K$140,11,FALSE) -> 0.2819
A8: 4 | B8: AMELIA | C8: =VLOOKUP($A8,'2020-2022 Composite Index'!$A$6:$K$140,3,FALSE) -> 1539511713 | D8: =VLOOKUP($A8,'2020-2022 Composite Index'!$A$6:$K$140,4,FALSE) -> 301430326.5 | E8: =VLOOKUP($A8,'2020-2022 Composite Index'!$A$6:$K$140,6,FALSE) -> 64025091.09 | F8: =VLOOKUP($A8,'2020-2022 Composite Index'!$A$6:$K$140,7,FALSE) -> 1737.54 | G8: =VLOOKUP($A8,'2020-2022 Composite Index'!$A$6:$K$140,8,FALSE) -> 12948 | H8: =VLOOKUP($A8,'2020-2022 Composite Index'!$A$6:$K$140,9,FALSE) -> 0.3479
A9: 5 | B9: AMHERST | C9: =VLOOKUP($A9,'2020-2022 Composite Index'!$A$6:$K$140,3,FALSE) -> 2927837118 | D9: =VLOOKUP($A9,'2020-2022 Composite Index'!$A$6:$K$140,4,FALSE) -> 620940701.7 | E9: =VLOOKUP($A9,'2020-2022 Composite Index'!$A$6:$K$140,6,FALSE) -> 247735438.9 | F9: =VLOOKUP($A9,'2020-2022 Composite Index'!$A$6:$K$140,7,FALSE) -> 3867.25 | G9: =VLOOKUP($A9,'2020-2022 Composite Index'!$A$6:$K$140,8,FALSE) -> 31982 | H9: =VLOOKUP($A9,'2020-2022 Composite Index'!$A$6:$K$140,9,FALSE) -> 0.3141
A10: 6 | B10: APPOMATTOX | C10: =VLOOKUP($A10,'2020-2022 Composite Index'!$A$6:$K$140,3,FALSE) -> 1518108117 | D10: =VLOOKUP($A10,'2020-2022 Composite Index'!$A$6:$K$140,4,FALSE) -> 316652150.2 | E10: =VLOOKUP($A10,'2020-2022 Composite Index'!$A$6:$K$140,6,FALSE) -> 117292203.8 | F10: =VLOOKUP($A10,'2020-2022 Composite Index'!$A$6:$K$140,7,FALSE) -> 2179.22 | G10: =VLOOKUP($A10,'2020-2022 Composite Index'!$A$6:$K$140,8,FALSE) -> 15536 | H10: =VLOOKUP($A10,'2020-2022 Composite Index'!$A$6:$K$140,9,FALSE) -> 0.2978
A11: 7 | B11: ARLINGTON | C11: =VLOOKUP($A11,'2020-2022 Composite Index'!$A$6:$K$140,3,FALSE) -> 7.964513069e+10 | D11: =VLOOKUP($A11,'2020-2022 Composite Index'!$A$6:$K$140,4,FALSE) -> 1.443369526e+10 | E11: =VLOOKUP($A11,'2020-2022 Composite Index'!$A$6:$K$140,6,FALSE) -> 3258772638 | F11: =VLOOKUP($A11,'2020-2022 Composite Index'!$A$6:$K$140,7,FALSE) -> 25750.7 | G11: =VLOOKUP($A11,'2020-2022 Composite Index'!$A$6:$K$140,8,FALSE) -> 239074 | H11: =VLOOKUP($A11,'2020-2022 Composite Index'!$A$6:$K$140,9,FALSE) -> 0.8
A12: 8 | B12: AUGUSTA | C12: =VLOOKUP($A12,'2020-2022 Composite Index'!$A$6:$K$140,3,FALSE) -> 9526531505 | D12: =VLOOKUP($A12,'2020-2022 Composite Index'!$A$6:$K$140,4,FALSE) -> 1840044888 | E12: =VLOOKUP($A12,'2020-2022 Composite Index'!$A$6:$K$140,6,FALSE) -> 471863459.8 | F12: =VLOOKUP($A12,'2020-2022 Composite Index'!$A$6:$K$140,7,FALSE) -> 9939.55 | G12: =VLOOKUP($A12,'2020-2022 Composite Index'!$A$6:$K$140,8,FALSE) -> 75013 | H12: =VLOOKUP($A12,'2020-2022 Composite Index'!$A$6:$K$140,9,FALSE) -> 0.3769
A13: 9 | B13: BATH | C13: =VLOOKUP($A13,'2020-2022 Composite Index'!$A$6:$K$140,3,FALSE) -> 2210598733 | D13: =VLOOKUP($A13,'2020-2022 Composite Index'!$A$6:$K$140,4,FALSE) -> 105911017.5 | E13: =VLOOKUP($A13,'2020-2022 Composite Index'!$A$6:$K$140,6,FALSE) -> 74264255.15 | F13: =VLOOKUP($A13,'2020-2022 Composite Index'!$A$6:$K$140,7,FALSE) -> 516.7 | G13: =VLOOKUP($A13,'2020-2022 Composite Index'!$A$6:$K$140,8,FALSE) -> 4556 | H13: =VLOOKUP($A13,'2020-2022 Composite Index'!$A$6:$K$140,9,FALSE) -> 0.8
A14: 10 | B14: BEDFORD | C14: =VLOOKUP($A14,'2020-2022 Composite Index'!$A$6:$K$140,3,FALSE) -> 1.055713417e+10 | D14: =VLOOKUP($A14,'2020-2022 Composite Index'!$A$6:$K$140,4,FALSE) -> 2154075391 | E14: =VLOOKUP($A14,'2020-2022 Composite Index'!$A$6:$K$140,6,FALSE) -> 504850970.6 | F14: =VLOOKUP($A14,'2020-2022 Composite Index'!$A$6:$K$140,7,FALSE) -> 9460.6 | G14: =VLOOKUP($A14,'2020-2022 Composite Index'!$A$6:$K$140,8,FALSE) -> 77807 | H14: =VLOOKUP($A14,'2020-2022 Composite Index'!$A$6:$K$140,11,FALSE) -> 0.3132
A15: 11 | B15: BLAND | C15: =VLOOKUP($A15,'2020-2022 Composite Index'!$A$6:$K$140,3,FALSE) -> 721512817.2 | D15: =VLOOKUP($A15,'2020-2022 Composite Index'!$A$6:$K$140,4,FALSE) -> 111626985.6 | E15: =VLOOKUP($A15,'2020-2022 Composite Index'!$A$6:$K$140,6,FALSE) -> 30921905 | F15: =VLOOKUP($A15,'2020-2022 Composite Index'!$A$6:$K$140,7,FALSE) -> 722.71 | G15: =VLOOKUP($A15,'2020-2022 Composite Index'!$A$6:$K$140,8,FALSE) -> 6511 | H15: =VLOOKUP($A15,'2020-2022 Composite Index'!$A$6:$K$140,9,FALSE) -> 0.3409
A16: 12 | B16: BOTETOURT | C16: =VLOOKUP($A16,'2020-2022 Composite Index'!$A$6:$K$140,3,FALSE) -> 4369317736 | D16: =VLOOKUP($A16,'2020-2022 Composite Index'!$A$6:$K$140,4,FALSE) -> 938448526.8 | E16: =VLOOKUP($A16,'2020-2022 Composite Index'!$A$6:$K$140,6,FALSE) -> 215688997.5 | F16: =VLOOKUP($A16,'2020-2022 Composite Index'!$A$6:$K$140,7,FALSE) -> 4547.89 | G16: =VLOOKUP($A16,'2020-2022 Composite Index'!$A$6:$K$140,8,FALSE) -> 33350 | H16: =VLOOKUP($A16,'2020-2022 Composite Index'!$A$6:$K$140,9,FALSE) -> 0.3975
A17: 13 | B17: BRUNSWICK | C17: =VLOOKUP($A17,'2020-2022 Composite Index'!$A$6:$K$140,3,FALSE) -> 2340978033 | D17: =VLOOKUP($A17,'2020-2022 Composite Index'!$A$6:$K$140,4,FALSE) -> 254869443.6 | E17: =VLOOKUP($A17,'2020-2022 Composite Index'!$A$6:$K$140,6,FALSE) -> 69549513.51 | F17: =VLOOKUP($A17,'2020-2022 Composite Index'!$A$6:$K$140,7,FALSE) -> 1559.33 | G17: =VLOOKUP($A17,'2020-2022 Composite Index'!$A$6:$K$140,8,FALSE) -> 16581 | H17: =VLOOKUP($A17,'2020-2022 Composite Index'!$A$6:$K$140,9,FALSE) -> 0.4328
A18: 14 | B18: BUCHANAN | C18: =VLOOKUP($A18,'2020-2022 Composite Index'!$A$6:$K$140,3,FALSE) -> 2465511602 | D18: =VLOOKUP($A18,'2020-2022 Composite Index'!$A$6:$K$140,4,FALSE) -> 283142350.6 | E18: =VLOOKUP($A18,'2020-2022 Composite Index'!$A$6:$K$140,6,FALSE) -> 140412697.7 | F18: =VLOOKUP($A18,'2020-2022 Composite Index'!$A$6:$K$140,7,FALSE) -> 2726.8 | G18: =VLOOKUP($A18,'2020-2022 Composite Index'!$A$6:$K$140,8,FALSE) -> 22004 | H18: =VLOOKUP($A18,'2020-2022 Composite Index'!$A$6:$K$140,9,FALSE) -> 0.2975
A19: 15 | B19: BUCKINGHAM | C19: =VLOOKUP($A19,'2020-2022 Composite Index'!$A$6:$K$140,3,FALSE) -> 2191369035 | D19: =VLOOKUP($A19,'2020-2022 Composite Index'!$A$6:$K$140,4,FALSE) -> 245258412.3 | E19: =VLOOKUP($A19,'2020-2022 Composite Index'!$A$6:$K$140,6,FALSE) -> 57962895.84 | F19: =VLOOKUP($A19,'2020-2022 Composite Index'!$A$6:$K$140,7,FALSE) -> 1950.15 | G19: =VLOOKUP($A19,'2020-2022 Composite Index'!$A$6:$K$140,8,FALSE) -> 16957 | H19: =VLOOKUP($A19,'2020-2022 Composite Index'!$A$6:$K$140,9,FALSE) -> 0.3422
A20: 16 | B20: CAMPBELL | C20: =VLOOKUP($A20,'2020-2022 Composite Index'!$A$6:$K$140,3,FALSE) -> 4813934063 | D20: =VLOOKUP($A20,'2020-2022 Composite Index'!$A$6:$K$140,4,FALSE) -> 1117736709 | E20: =VLOOKUP($A20,'2020-2022 Composite Index'!$A$6:$K$140,6,FALSE) -> 485915056 | F20: =VLOOKUP($A20,'2020-2022 Composite Index'!$A$6:$K$140,7,FALSE) -> 7625.79 | G20: =VLOOKUP($A20,'2020-2022 Composite Index'!$A$6:$K$140,8,FALSE) -> 55503 | H20: =VLOOKUP($A20,'2020-2022 Composite Index'!$A$6:$K$140,9,FALSE) -> 0.2878
A21: 17 | B21: CAROLINE | C21: =VLOOKUP($A21,'2020-2022 Composite Index'!$A$6:$K$140,3,FALSE) -> 3733516557 | D21: =VLOOKUP($A21,'2020-2022 Composite Index'!$A$6:$K$140,4,FALSE) -> 714592169 | E21: =VLOOKUP($A21,'2020-2022 Composite Index'!$A$6:$K$140,6,FALSE) -> 151212078.5 | F21: =VLOOKUP($A21,'2020-2022 Composite Index'!$A$6:$K$140,7,FALSE) -> 4113.07 | G21: =VLOOKUP($A21,'2020-2022 Composite Index'!$A$6:$K$140,8,FALSE) -> 29990 | H21: =VLOOKUP($A21,'2020-2022 Composite Index'!$A$6:$K$140,9,FALSE) -> 0.3553
A22: 18 | B22: CARROLL | C22: =VLOOKUP($A22,'2020-2022 Composite Index'!$A$6:$K$140,3,FALSE) -> 2572214999 | D22: =VLOOKUP($A22,'2020-2022 Composite Index'!$A$6:$K$140,4,FALSE) -> 472967570.4 | E22: =VLOOKUP($A22,'2020-2022 Composite Index'!$A$6:$K$140,6,FALSE) -> 167345734.2 | F22: =VLOOKUP($A22,'2020-2022 Composite Index'!$A$6:$K$140,7,FALSE) -> 3611.35 | G22: =VLOOKUP($A22,'2020-2022 Composite Index'!$A$6:$K$140,8,FALSE) -> 29212 | H22: =VLOOKUP($A22,'2020-2022 Composite Index'!$A$6:$K$140,9,FALSE) -> 0.2749
A23: 19 | B23: CHARLES CITY | C23: =VLOOKUP($A23,'2020-2022 Composite Index'!$A$6:$K$140,3,FALSE) -> 1062603295 | D23: =VLOOKUP($A23,'2020-2022 Composite Index'!$A$6:$K$140,4,FALSE) -> 180272189 | E23: =VLOOKUP($A23,'2020-2022 Composite Index'!$A$6:$K$140,6,FALSE) -> 58539334 | F23: =VLOOKUP($A23,'2020-2022 Composite Index'!$A$6:$K$140,7,FALSE) -> 606.35 | G23: =VLOOKUP($A23,'2020-2022 Composite Index'!$A$6:$K$140,8,FALSE) -> 7151 | H23: =VLOOKUP($A23,'2020-2022 Composite Index'!$A$6:$K$140,9,FALSE) -> 0.588
A24: 20 | B24: CHARLOTTE | C24: =VLOOKUP($A24,'2020-2022 Composite Index'!$A$6:$K$140,3,FALSE) -> 1093540388 | D24: =VLOOKUP($A24,'2020-2022 Composite Index'!$A$6:$K$140,4,FALSE) -> 206130724.8 | E24: =VLOOKUP($A24,'2020-2022 Composite Index'!$A$6:$K$140,6,FALSE) -> 54357115.82 | F24: =VLOOKUP($A24,'2020-2022 Composite Index'!$A$6:$K$140,7,FALSE) -> 1773.63 | G24: =VLOOKUP($A24,'2020-2022 Composite Index'!$A$6:$K$140,8,FALSE) -> 12231 | H24: =VLOOKUP($A24,'2020-2022 Composite Index'!$A$6:$K$140,9,FALSE) -> 0.2473
A25: 21 | B25: CHESTERFIELD | C25: =VLOOKUP($A25,'2020-2022 Composite Index'!$A$6:$K$140,3,FALSE) -> 3.947060037e+10 | D25: =VLOOKUP($A25,'2020-2022 Composite Index'!$A$6:$K$140,4,FALSE) -> 1.108768007e+10 | E25: =VLOOKUP($A25,'2020-2022 Composite Index'!$A$6:$K$140,6,FALSE) -> 4394824320 | F25: =VLOOKUP($A25,'2020-2022 Composite Index'!$A$6:$K$140,7,FALSE) -> 60060.84 | G25: =VLOOKUP($A25,'2020-2022 Composite Index'!$A$6:$K$140,8,FALSE) -> 340020 | H25: =VLOOKUP($A25,'2020-2022 Composite Index'!$A$6:$K$140,9,FALSE) -> 0.3584
A26: 22 | B26: CLARKE | C26: =VLOOKUP($A26,'2020-2022 Composite Index'!$A$6:$K$140,3,FALSE) -> 2715153460 | D26: =VLOOKUP($A26,'2020-2022 Composite Index'!$A$6:$K$140,4,FALSE) -> 598066141.1 | E26: =VLOOKUP($A26,'2020-2022 Composite Index'!$A$6:$K$140,6,FALSE) -> 85971890.57 | F26: =VLOOKUP($A26,'2020-2022 Composite Index'!$A$6:$K$140,7,FALSE) -> 1931.2 | G26: =VLOOKUP($A26,'2020-2022 Composite Index'!$A$6:$K$140,8,FALSE) -> 14312 | H26: =VLOOKUP($A26,'2020-2022 Composite Index'!$A$6:$K$140,9,FALSE) -> 0.5729
A27: 23 | B27: CRAIG | C27: =VLOOKUP($A27,'2020-2022 Composite Index'!$A$6:$K$140,3,FALSE) -> 543813795.6 | D27: =VLOOKUP($A27,'2020-2022 Composite Index'!$A$6:$K$140,4,FALSE) -> 100292646.9 | E27: =VLOOKUP($A27,'2020-2022 Composite Index'!$A$6:$K$140,6,FALSE) -> 12876065 | F27: =VLOOKUP($A27,'2020-2022 Composite Index'!$A$6:$K$140,7,FALSE) -> 580.19 | G27: =VLOOKUP($A27,'2020-2022 Composite Index'!$A$6:$K$140,8,FALSE) -> 5129 | H27: =VLOOKUP($A27,'2020-2022 Composite Index'!$A$6:$K$140,9,FALSE) -> 0.3336
A28: 24 | B28: CULPEPER | C28: =VLOOKUP($A28,'2020-2022 Composite Index'!$A$6:$K$140,3,FALSE) -> 6331241639 | D28: =VLOOKUP($A28,'2020-2022 Composite Index'!$A$6:$K$140,4,FALSE) -> 1366184411 | E28: =VLOOKUP($A28,'2020-2022 Composite Index'!$A$6:$K$140,6,FALSE) -> 703603206.8 | F28: =VLOOKUP($A28,'2020-2022 Composite Index'!$A$6:$K$140,7,FALSE) -> 7952.19 | G28: =VLOOKUP($A28,'2020-2022 Composite Index'!$A$6:$K$140,8,FALSE) -> 50272 | H28: =VLOOKUP($A28,'2020-2022 Composite Index'!$A$6:$K$140,9,FALSE) -> 0.3741
A29: 25 | B29: CUMBERLAND | C29: =VLOOKUP($A29,'2020-2022 Composite Index'!$A$6:$K$140,3,FALSE) -> 1037409992 | D29: =VLOOKUP($A29,'2020-2022 Composite Index'!$A$6:$K$140,4,FALSE) -> 170132350.2 | E29: =VLOOKUP($A29,'2020-2022 Composite Index'!$A$6:$K$140,6,FALSE) -> 33660951.32 | F29: =VLOOKUP($A29,'2020-2022 Composite Index'!$A$6:$K$140,7,FALSE) -> 1239.14 | G29: =VLOOKUP($A29,'2020-2022 Composite Index'!$A$6:$K$140,8,FALSE) -> 9861 | H29: =VLOOKUP($A29,'2020-2022 Composite Index'!$A$6:$K$140,9,FALSE) -> 0.2978
A30: 26 | B30: DICKENSON | C30: =VLOOKUP($A30,'2020-2022 Composite Index'!$A$6:$K$140,3,FALSE) -> 1459712435 | D30: =VLOOKUP($A30,'2020-2022 Composite Index'!$A$6:$K$140,4,FALSE) -> 183436909.2 | E30: =VLOOKUP($A30,'2020-2022 Composite Index'!$A$6:$K$140,6,FALSE) -> 58585686.92 | F30: =VLOOKUP($A30,'2020-2022 Composite Index'!$A$6:$K$140,7,FALSE) -> 1998.53 | G30: =VLOOKUP($A30,'2020-2022 Composite Index'!$A$6:$K$140,8,FALSE) -> 14682 | H30: =VLOOKUP($A30,'2020-2022 Composite Index'!$A$6:$K$140,9,FALSE) -> 0.2471
A31: 27 | B31: DINWIDDIE | C31: =VLOOKUP($A31,'2020-2022 Composite Index'!$A$6:$K$140,3,FALSE) -> 2963784008 | D31: =VLOOKUP($A31,'2020-2022 Composite Index'!$A$6:$K$140,4,FALSE) -> 596767440.3 | E31: =VLOOKUP($A31,'2020-2022 Composite Index'!$A$6:$K$140,6,FALSE) -> 136670242.3 | F31: =VLOOKUP($A31,'2020-2022 Composite Index'!$A$6:$K$140,7,FALSE) -> 4258.46 | G31: =VLOOKUP($A31,'2020-2022 Composite Index'!$A$6:$K$140,8,FALSE) -> 28500 | H31: =VLOOKUP($A31,'2020-2022 Composite Index'!$A$6:$K$140,9,FALSE) -> 0.2879
A32: 28 | B32: ESSEX | C32: =VLOOKUP($A32,'2020-2022 Composite Index'!$A$6:$K$140,3,FALSE) -> 1593364500 | D32: =VLOOKUP($A32,'2020-2022 Composite Index'!$A$6:$K$140,4,FALSE) -> 238178111.2 | E32: =VLOOKUP($A32,'2020-2022 Composite Index'!$A$6:$K$140,6,FALSE) -> 191246470.5 | F32: =VLOOKUP($A32,'2020-2022 Composite Index'!$A$6:$K$140,7,FALSE) -> 1330.47 | G32: =VLOOKUP($A32,'2020-2022 Composite Index'!$A$6:$K$140,8,FALSE) -> 10813 | H32: =VLOOKUP($A32,'2020-2022 Composite Index'!$A$6:$K$140,9,FALSE) -> 0.4636
A33: 29 | B33: FAIRFAX COUNTY | C33: =VLOOKUP($A33,'2020-2022 Composite Index'!$A$6:$K$140,3,FALSE) -> 2.62828932e+11 | D33: =VLOOKUP($A33,'2020-2022 Composite Index'!$A$6:$K$140,4,FALSE) -> 5.970427083e+10 | E33: =VLOOKUP($A33,'2020-2022 Composite Index'!$A$6:$K$140,6,FALSE) -> 1.493982853e+10 | F33: =VLOOKUP($A33,'2020-2022 Composite Index'!$A$6:$K$140,7,FALSE) -> 180294.61 | G33: =VLOOKUP($A33,'2020-2022 Composite Index'!$A$6:$K$140,8,FALSE) -> 1143429 | H33: =VLOOKUP($A33,'2020-2022 Composite Index'!$A$6:$K$140,9,FALSE) -> 0.6541
A34: 30 | B34: FAUQUIER | C34: =VLOOKUP($A34,'2020-2022 Composite Index'!$A$6:$K$140,3,FALSE) -> 1.526589681e+10 | D34: =VLOOKUP($A34,'2020-2022 Composite Index'!$A$6:$K$140,4,FALSE) -> 2964279243 | E34: =VLOOKUP($A34,'2020-2022 Composite Index'!$A$6:$K$140,6,FALSE) -> 861595287.3 | F34: =VLOOKUP($A34,'2020-2022 Composite Index'!$A$6:$K$140,7,FALSE) -> 10955.27 | G34: =VLOOKUP($A34,'2020-2022 Composite Index'!$A$6:$K$140,8,FALSE) -> 69098 | H34: =VLOOKUP($A34,'2020-2022 Composite Index'!$A$6:$K$140,9,FALSE) -> 0.5879
A35: 31 | B35: FLOYD | C35: =VLOOKUP($A35,'2020-2022 Composite Index'!$A$6:$K$140,3,FALSE) -> 1882566203 | D35: =VLOOKUP($A35,'2020-2022 Composite Index'!$A$6:$K$140,4,FALSE) -> 302811476.9 | E35: =VLOOKUP($A35,'2020-2022 Composite Index'!$A$6:$K$140,6,FALSE) -> 74718941.38 | F35: =VLOOKUP($A35,'2020-2022 Composite Index'!$A$6:$K$140,7,FALSE) -> 1971.33 | G35: =VLOOKUP($A35,'2020-2022 Composite Index'!$A$6:$K$140,8,FALSE) -> 15550 | H35: =VLOOKUP($A35,'2020-2022 Composite Index'!$A$6:$K$140,9,FALSE) -> 0.3418
A36: 32 | B36: FLUVANNA | C36: =VLOOKUP($A36,'2020-2022 Composite Index'!$A$6:$K$140,3,FALSE) -> 3522241579 | D36: =VLOOKUP($A36,'2020-2022 Composite Index'!$A$6:$K$140,4,FALSE) -> 693123058.7 | E36: =VLOOKUP($A36,'2020-2022 Composite Index'!$A$6:$K$140,6,FALSE) -> 130487206.6 | F36: =VLOOKUP($A36,'2020-2022 Composite Index'!$A$6:$K$140,7,FALSE) -> 3471.79 | G36: =VLOOKUP($A36,'2020-2022 Composite Index'!$A$6:$K$140,8,FALSE) -> 26467 | H36: =VLOOKUP($A36,'2020-2022 Composite Index'!$A$6:$K$140,9,FALSE) -> 0.394
A37: 33 | B37: FRANKLIN COUNTY | C37: =VLOOKUP($A37,'2020-2022 Composite Index'!$A$6:$K$140,3,FALSE) -> 7625278760 | D37: =VLOOKUP($A37,'2020-2022 Composite Index'!$A$6:$K$140,4,FALSE) -> 1165860878 | E37: =VLOOKUP($A37,'2020-2022 Composite Index'!$A$6:$K$140,6,FALSE) -> 424098901.1 | F37: =VLOOKUP($A37,'2020-2022 Composite Index'!$A$6:$K$140,7,FALSE) -> 6858.45 | G37: =VLOOKUP($A37,'2020-2022 Composite Index'!$A$6:$K$140,8,FALSE) -> 56427 | H37: =VLOOKUP($A37,'2020-2022 Composite Index'!$A$6:$K$140,9,FALSE) -> 0.3953
A38: 34 | B38: FREDERICK | C38: =VLOOKUP($A38,'2020-2022 Composite Index'!$A$6:$K$140,3,FALSE) -> 1.163166856e+10 | D38: =VLOOKUP($A38,'2020-2022 Composite Index'!$A$6:$K$140,4,FALSE) -> 2617118113 | E38: =VLOOKUP($A38,'2020-2022 Composite Index'!$A$6:$K$140,6,FALSE) -> 1249749136 | F38: =VLOOKUP($A38,'2020-2022 Composite Index'!$A$6:$K$140,7,FALSE) -> 13343.46 | G38: =VLOOKUP($A38,'2020-2022 Composite Index'!$A$6:$K$140,8,FALSE) -> 85820 | H38: =VLOOKUP($A38,'2020-2022 Composite Index'!$A$6:$K$140,9,FALSE) -> 0.412
A39: 35 | B39: GILES | C39: =VLOOKUP($A39,'2020-2022 Composite Index'!$A$6:$K$140,3,FALSE) -> 1422595319 | D39: =VLOOKUP($A39,'2020-2022 Composite Index'!$A$6:$K$140,4,FALSE) -> 322847137.8 | E39: =VLOOKUP($A39,'2020-2022 Composite Index'!$A$6:$K$140,6,FALSE) -> 137678547.1 | F39: =VLOOKUP($A39,'2020-2022 Composite Index'!$A$6:$K$140,7,FALSE) -> 2386.69 | G39: =VLOOKUP($A39,'2020-2022 Composite Index'!$A$6:$K$140,8,FALSE) -> 17053 | H39: =VLOOKUP($A39,'2020-2022 Composite Index'!$A$6:$K$140,9,FALSE) -> 0.2695
A40: 36 | B40: GLOUCESTER | C40: =VLOOKUP($A40,'2020-2022 Composite Index'!$A$6:$K$140,3,FALSE) -> 4714496645 | D40: =VLOOKUP($A40,'2020-2022 Composite Index'!$A$6:$K$140,4,FALSE) -> 987497269.9 | E40: =VLOOKUP($A40,'2020-2022 Composite Index'!$A$6:$K$140,6,FALSE) -> 405650909.3 | F40: =VLOOKUP($A40,'2020-2022 Composite Index'!$A$6:$K$140,7,FALSE) -> 5270.45 | G40: =VLOOKUP($A40,'2020-2022 Composite Index'!$A$6:$K$140,8,FALSE) -> 37169 | H40: =VLOOKUP($A40,'2020-2022 Composite Index'!$A$6:$K$140,9,FALSE) -> 0.3885
A41: 37 | B41: GOOCHLAND | C41: =VLOOKUP($A41,'2020-2022 Composite Index'!$A$6:$K$140,3,FALSE) -> 5635699924 | D41: =VLOOKUP($A41,'2020-2022 Composite Index'!$A$6:$K$140,4,FALSE) -> 1455957066 | E41: =VLOOKUP($A41,'2020-2022 Composite Index'!$A$6:$K$140,6,FALSE) -> 227534841.1 | F41: =VLOOKUP($A41,'2020-2022 Composite Index'!$A$6:$K$140,7,FALSE) -> 2550.6 | G41: =VLOOKUP($A41,'2020-2022 Composite Index'!$A$6:$K$140,8,FALSE) -> 22705 | H41: =VLOOKUP($A41,'2020-2022 Composite Index'!$A$6:$K$140,9,FALSE) -> 0.8
A42: 38 | B42: GRAYSON | C42: =VLOOKUP($A42,'2020-2022 Composite Index'!$A$6:$K$140,3,FALSE) -> 1827586769 | D42: =VLOOKUP($A42,'2020-2022 Composite Index'!$A$6:$K$140,4,FALSE) -> 243209841.8 | E42: =VLOOKUP($A42,'2020-2022 Composite Index'!$A$6:$K$140,6,FALSE) -> 34104091 | F42: =VLOOKUP($A42,'2020-2022 Composite Index'!$A$6:$K$140,7,FALSE) -> 1510.86 | G42: =VLOOKUP($A42,'2020-2022 Composite Index'!$A$6:$K$140,8,FALSE) -> 15669 | H42: =VLOOKUP($A42,'2020-2022 Composite Index'!$A$6:$K$140,9,FALSE) -> 0.3654
A43: 39 | B43: GREENE | C43: =VLOOKUP($A43,'2020-2022 Composite Index'!$A$6:$K$140,3,FALSE) -> 2392404008 | D43: =VLOOKUP($A43,'2020-2022 Composite Index'!$A$6:$K$140,4,FALSE) -> 485417962.5 | E43: =VLOOKUP($A43,'2020-2022 Composite Index'!$A$6:$K$140,6,FALSE) -> 175413564.5 | F43: =VLOOKUP($A43,'2020-2022 Composite Index'!$A$6:$K$140,7,FALSE) -> 2982.62 | G43: =VLOOKUP($A43,'2020-2022 Composite Index'!$A$6:$K$140,8,FALSE) -> 19985 | H43: =VLOOKUP($A43,'2020-2022 Composite Index'!$A$6:$K$140,9,FALSE) -> 0.3446
A44: 40 | B44: GREENSVILLE | C44: =VLOOKUP($A44,'2020-2022 Composite Index'!$A$6:$K$140,3,FALSE) -> 949033753.8 | D44: =VLOOKUP($A44,'2020-2022 Composite Index'!$A$6:$K$140,4,FALSE) -> 206649112.3 | E44: =VLOOKUP($A44,'2020-2022 Composite Index'!$A$6:$K$140,6,FALSE) -> 47788891 | F44: =VLOOKUP($A44,'2020-2022 Composite Index'!$A$6:$K$140,7,FALSE) -> 1218.05 | G44: =VLOOKUP($A44,'2020-2022 Composite Index'!$A$6:$K$140,8,FALSE) -> 11563 | H44: =VLOOKUP($A44,'2020-2022 Composite Index'!$A$6:$K$140,9,FALSE) -> 0.3013
A45: 41 | B45: HALIFAX | C45: =VLOOKUP($A45,'2020-2022 Composite Index'!$A$6:$K$140,3,FALSE) -> 3781125840 | D45: =VLOOKUP($A45,'2020-2022 Composite Index'!$A$6:$K$140,4,FALSE) -> 617703634.3 | E45: =VLOOKUP($A45,'2020-2022 Composite Index'!$A$6:$K$140,6,FALSE) -> 294706517.6 | F45: =VLOOKUP($A45,'2020-2022 Composite Index'!$A$6:$K$140,7,FALSE) -> 4722.65 | G45: =VLOOKUP($A45,'2020-2022 Composite Index'!$A$6:$K$140,8,FALSE) -> 35215 | H45: =VLOOKUP($A45,'2020-2022 Composite Index'!$A$6:$K$140,9,FALSE) -> 0.3092
A46: 42 | B46: HANOVER | C46: =VLOOKUP($A46,'2020-2022 Composite Index'!$A$6:$K$140,3,FALSE) -> 1.641966489e+10 | D46: =VLOOKUP($A46,'2020-2022 Composite Index'!$A$6:$K$140,4,FALSE) -> 3845688564 | E46: =VLOOKUP($A46,'2020-2022 Composite Index'!$A$6:$K$140,6,FALSE) -> 1915809188 | F46: =VLOOKUP($A46,'2020-2022 Composite Index'!$A$6:$K$140,7,FALSE) -> 17613.38 | G46: =VLOOKUP($A46,'2020-2022 Composite Index'!$A$6:$K$140,8,FALSE) -> 106375 | H46: =VLOOKUP($A46,'2020-2022 Composite Index'!$A$6:$K$140,9,FALSE) -> 0.4626
A47: 43 | B47: HENRICO | C47: =VLOOKUP($A47,'2020-2022 Composite Index'!$A$6:$K$140,3,FALSE) -> 4.092662414e+10 | D47: =VLOOKUP($A47,'2020-2022 Composite Index'!$A$6:$K$140,4,FALSE) -> 1.102554263e+10 | E47: =VLOOKUP($A47,'2020-2022 Composite Index'!$A$6:$K$140,6,FALSE) -> 5656612709 | F47: =VLOOKUP($A47,'2020-2022 Composite Index'!$A$6:$K$140,7,FALSE) -> 50283.77 | G47: =VLOOKUP($A47,'2020-2022 Composite Index'!$A$6:$K$140,8,FALSE) -> 324395 | H47: =VLOOKUP($A47,'2020-2022 Composite Index'!$A$6:$K$140,9,FALSE) -> 0.4279
A48: 44 | B48: HENRY | C48: =VLOOKUP($A48,'2020-2022 Composite Index'!$A$6:$K$140,3,FALSE) -> 3232443251 | D48: =VLOOKUP($A48,'2020-2022 Composite Index'!$A$6:$K$140,4,FALSE) -> 897040682.5 | E48: =VLOOKUP($A48,'2020-2022 Composite Index'!$A$6:$K$140,6,FALSE) -> 371100551.5 | F48: =VLOOKUP($A48,'2020-2022 Composite Index'!$A$6:$K$140,7,FALSE) -> 7045.22 | G48: =VLOOKUP($A48,'2020-2022 Composite Index'!$A$6:$K$140,8,FALSE) -> 51975 | H48: =VLOOKUP($A48,'2020-2022 Composite Index'!$A$6:$K$140,9,FALSE) -> 0.2281
A49: 45 | B49: HIGHLAND | C49: =VLOOKUP($A49,'2020-2022 Composite Index'!$A$6:$K$140,3,FALSE) -> 637887453.2 | D49: =VLOOKUP($A49,'2020-2022 Composite Index'!$A$6:$K$140,4,FALSE) -> 48628507.69 | E49: =VLOOKUP($A49,'2020-2022 Composite Index'!$A$6:$K$140,6,FALSE) -> 10023126.42 | F49: =VLOOKUP($A49,'2020-2022 Composite Index'!$A$6:$K$140,7,FALSE) -> 193.03 | G49: =VLOOKUP($A49,'2020-2022 Composite Index'!$A$6:$K$140,8,FALSE) -> 2284 | H49: =VLOOKUP($A49,'2020-2022 Composite Index'!$A$6:$K$140,9,FALSE) -> 0.8
A50: 46 | B50: ISLE OF WIGHT | C50: =VLOOKUP($A50,'2020-2022 Composite Index'!$A$6:$K$140,3,FALSE) -> 5005182812 | D50: =VLOOKUP($A50,'2020-2022 Composite Index'!$A$6:$K$140,4,FALSE) -> 1097860214 | E50: =VLOOKUP($A50,'2020-2022 Composite Index'!$A$6:$K$140,6,FALSE) -> 236926649 | F50: =VLOOKUP($A50,'2020-2022 Composite Index'!$A$6:$K$140,7,FALSE) -> 5338.11 | G50: =VLOOKUP($A50,'2020-2022 Composite Index'!$A$6:$K$140,8,FALSE) -> 37333 | H50: =VLOOKUP($A50,'2020-2022 Composite Index'!$A$6:$K$140,9,FALSE) -> 0.3964
A51: 47 | B51: JAMES CITY | C51: =VLOOKUP($A51,'2020-2022 Composite Index'!$A$6:$K$140,3,FALSE) -> 1.305004502e+10 | D51: =VLOOKUP($A51,'2020-2022 Composite Index'!$A$6:$K$140,4,FALSE) -> 3014334842 | E51: =VLOOKUP($A51,'2020-2022 Composite Index'!$A$6:$K$140,6,FALSE) -> 982030979.6 | F51: =VLOOKUP($A51,'2020-2022 Composite Index'!$A$6:$K$140,7,FALSE) -> 10422.45 | G51: =VLOOKUP($A51,'2020-2022 Composite Index'!$A$6:$K$140,8,FALSE) -> 74722 | H51: =VLOOKUP($A51,'2020-2022 Composite Index'!$A$6:$K$140,9,FALSE) -> 0.5553
A52: 48 | B52: KING GEORGE | C52: =VLOOKUP($A52,'2020-2022 Composite Index'!$A$6:$K$140,3,FALSE) -> 3480141112 | D52: =VLOOKUP($A52,'2020-2022 Composite Index'!$A$6:$K$140,4,FALSE) -> 803004289.6 | E52: =VLOOKUP($A52,'2020-2022 Composite Index'!$A$6:$K$140,6,FALSE) -> 187620362.8 | F52: =VLOOKUP($A52,'2020-2022 Composite Index'!$A$6:$K$140,7,FALSE) -> 4362.94 | G52: =VLOOKUP($A52,'2020-2022 Composite Index'!$A$6:$K$140,8,FALSE) -> 25381 | H52: =VLOOKUP($A52,'2020-2022 Composite Index'!$A$6:$K$140,9,FALSE) -> 0.3703
A53: 49 | B53: KING AND QUEEN | C53: =VLOOKUP($A53,'2020-2022 Composite Index'!$A$6:$K$140,3,FALSE) -> 981207271.5 | D53: =VLOOKUP($A53,'2020-2022 Composite Index'!$A$6:$K$140,4,FALSE) -> 150793913.5 | E53: =VLOOKUP($A53,'2020-2022 Composite Index'!$A$6:$K$140,6,FALSE) -> 12379939 | F53: =VLOOKUP($A53,'2020-2022 Composite Index'!$A$6:$K$140,7,FALSE) -> 773.2 | G53: =VLOOKUP($A53,'2020-2022 Composite Index'!$A$6:$K$140,8,FALSE) -> 6935 | H53: =VLOOKUP($A53,'2020-2022 Composite Index'!$A$6:$K$140,9,FALSE) -> 0.4139
A54: 50 | B54: KING WILLIAM | C54: =VLOOKUP($A54,'2020-2022 Composite Index'!$A$6:$K$140,3,FALSE) -> 1697241573 | D54: =VLOOKUP($A54,'2020-2022 Composite Index'!$A$6:$K$140,4,FALSE) -> 357876540 | E54: =VLOOKUP($A54,'2020-2022 Composite Index'!$A$6:$K$140,6,FALSE) -> 83516987.5 | F54: =VLOOKUP($A54,'2020-2022 Composite Index'!$A$6:$K$140,7,FALSE) -> 2172.53 | G54: =VLOOKUP($A54,'2020-2022 Composite Index'!$A$6:$K$140,8,FALSE) -> 13314 | H54: =VLOOKUP($A54,'2020-2022 Composite Index'!$A$6:$K$140,9,FALSE) -> 0.3407
A55: 51 | B55: LANCASTER | C55: =VLOOKUP($A55,'2020-2022 Composite Index'!$A$6:$K$140,3,FALSE) -> 2617889479 | D55: =VLOOKUP($A55,'2020-2022 Composite Index'!$A$6:$K$140,4,FALSE) -> 331501028.9 | E55: =VLOOKUP($A55,'2020-2022 Composite Index'!$A$6:$K$140,6,FALSE) -> 166354409.8 | F55: =VLOOKUP($A55,'2020-2022 Composite Index'!$A$6:$K$140,7,FALSE) -> 1062.3 | G55: =VLOOKUP($A55,'2020-2022 Composite Index'!$A$6:$K$140,8,FALSE) -> 11171 | H55: =VLOOKUP($A55,'2020-2022 Composite Index'!$A$6:$K$140,9,FALSE) -> 0.7835
A56: 52 | B56: LEE | C56: =VLOOKUP($A56,'2020-2022 Composite Index'!$A$6:$K$140,3,FALSE) -> 1138485056 | D56: =VLOOKUP($A56,'2020-2022 Composite Index'!$A$6:$K$140,4,FALSE) -> 280523036.6 | E56: =VLOOKUP($A56,'2020-2022 Composite Index'!$A$6:$K$140,6,FALSE) -> 114151983 | F56: =VLOOKUP($A56,'2020-2022 Composite Index'!$A$6:$K$140,7,FALSE) -> 3053.46 | G56: =VLOOKUP($A56,'2020-2022 Composite Index'!$A$6:$K$140,8,FALSE) -> 24363 | H56: =VLOOKUP($A56,'2020-2022 Composite Index'!$A$6:$K$140,9,FALSE) -> 0.1692
A57: 53 | B57: LOUDOUN | C57: =VLOOKUP($A57,'2020-2022 Composite Index'!$A$6:$K$140,3,FALSE) -> 8.49180731e+10 | D57: =VLOOKUP($A57,'2020-2022 Composite Index'!$A$6:$K$140,4,FALSE) -> 2.0877016e+10 | E57: =VLOOKUP($A57,'2020-2022 Composite Index'!$A$6:$K$140,6,FALSE) -> 5697354606 | F57: =VLOOKUP($A57,'2020-2022 Composite Index'!$A$6:$K$140,7,FALSE) -> 80270.95 | G57: =VLOOKUP($A57,'2020-2022 Composite Index'!$A$6:$K$140,8,FALSE) -> 396068 | H57: =VLOOKUP($A57,'2020-2022 Composite Index'!$A$6:$K$140,9,FALSE) -> 0.5466
A58: 54 | B58: LOUISA | C58: =VLOOKUP($A58,'2020-2022 Composite Index'!$A$6:$K$140,3,FALSE) -> 7695422725 | D58: =VLOOKUP($A58,'2020-2022 Composite Index'!$A$6:$K$140,4,FALSE) -> 909729092.3 | E58: =VLOOKUP($A58,'2020-2022 Composite Index'!$A$6:$K$140,6,FALSE) -> 300831730.1 | F58: =VLOOKUP($A58,'2020-2022 Composite Index'!$A$6:$K$140,7,FALSE) -> 4704.2 | G58: =VLOOKUP($A58,'2020-2022 Composite Index'!$A$6:$K$140,8,FALSE) -> 35035 | H58: =VLOOKUP($A58,'2020-2022 Composite Index'!$A$6:$K$140,9,FALSE) -> 0.5406
A59: 55 | B59: LUNENBURG | C59: =VLOOKUP($A59,'2020-2022 Composite Index'!$A$6:$K$140,3,FALSE) -> 994576205.9 | D59: =VLOOKUP($A59,'2020-2022 Composite Index'!$A$6:$K$140,4,FALSE) -> 189048883.2 | E59: =VLOOKUP($A59,'2020-2022 Composite Index'!$A$6:$K$140,6,FALSE) -> 39312051.57 | F59: =VLOOKUP($A59,'2020-2022 Composite Index'!$A$6:$K$140,7,FALSE) -> 1441.57 | G59: =VLOOKUP($A59,'2020-2022 Composite Index'!$A$6:$K$140,8,FALSE) -> 12386 | H59: =VLOOKUP($A59,'2020-2022 Composite Index'!$A$6:$K$140,9,FALSE) -> 0.2561
A60: 56 | B60: MADISON | C60: =VLOOKUP($A60,'2020-2022 Composite Index'!$A$6:$K$140,3,FALSE) -> 2319775163 | D60: =VLOOKUP($A60,'2020-2022 Composite Index'!$A$6:$K$140,4,FALSE) -> 327282712.8 | E60: =VLOOKUP($A60,'2020-2022 Composite Index'!$A$6:$K$140,6,FALSE) -> 87685702.24 | F60: =VLOOKUP($A60,'2020-2022 Composite Index'!$A$6:$K$140,7,FALSE) -> 1673.19 | G60: =VLOOKUP($A60,'2020-2022 Composite Index'!$A$6:$K$140,8,FALSE) -> 13190 | H60: =VLOOKUP($A60,'2020-2022 Composite Index'!$A$6:$K$140,9,FALSE) -> 0.4738
A61: 57 | B61: MATHEWS | C61: =VLOOKUP($A61,'2020-2022 Composite Index'!$A$6:$K$140,3,FALSE) -> 1681978636 | D61: =VLOOKUP($A61,'2020-2022 Composite Index'!$A$6:$K$140,4,FALSE) -> 232145137.1 | E61: =VLOOKUP($A61,'2020-2022 Composite Index'!$A$6:$K$140,6,FALSE) -> 40043459.71 | F61: =VLOOKUP($A61,'2020-2022 Composite Index'!$A$6:$K$140,7,FALSE) -> 1075.74 | G61: =VLOOKUP($A61,'2020-2022 Composite Index'!$A$6:$K$140,8,FALSE) -> 8651 | H61: =VLOOKUP($A61,'2020-2022 Composite Index'!$A$6:$K$140,9,FALSE) -> 0.5162
A62: 58 | B62: MECKLENBURG | C62: =VLOOKUP($A62,'2020-2022 Composite Index'!$A$6:$K$140,3,FALSE) -> 4379236371 | D62: =VLOOKUP($A62,'2020-2022 Composite Index'!$A$6:$K$140,4,FALSE) -> 586690948.9 | E62: =VLOOKUP($A62,'2020-2022 Composite Index'!$A$6:$K$140,6,FALSE) -> 499432508.5 | F62: =VLOOKUP($A62,'2020-2022 Composite Index'!$A$6:$K$140,7,FALSE) -> 4103.14 | G62: =VLOOKUP($A62,'2020-2022 Composite Index'!$A$6:$K$140,8,FALSE) -> 31264 | H62: =VLOOKUP($A62,'2020-2022 Composite Index'!$A$6:$K$140,9,FALSE) -> 0.405
A63: 59 | B63: MIDDLESEX | C63: =VLOOKUP($A63,'2020-2022 Composite Index'!$A$6:$K$140,3,FALSE) -> 2304976583 | D63: =VLOOKUP($A63,'2020-2022 Composite Index'!$A$6:$K$140,4,FALSE) -> 269874645.6 | E63: =VLOOKUP($A63,'2020-2022 Composite Index'!$A$6:$K$140,6,FALSE) -> 97303967.33 | F63: =VLOOKUP($A63,'2020-2022 Composite Index'!$A$6:$K$140,7,FALSE) -> 1194.26 | G63: =VLOOKUP($A63,'2020-2022 Composite Index'!$A$6:$K$140,8,FALSE) -> 11004 | H63: =VLOOKUP($A63,'2020-2022 Composite Index'!$A$6:$K$140,9,FALSE) -> 0.6008
A64: 60 | B64: MONTGOMERY | C64: =VLOOKUP($A64,'2020-2022 Composite Index'!$A$6:$K$140,3,FALSE) -> 9010770466 | D64: =VLOOKUP($A64,'2020-2022 Composite Index'!$A$6:$K$140,4,FALSE) -> 2153801352 | E64: =VLOOKUP($A64,'2020-2022 Composite Index'!$A$6:$K$140,6,FALSE) -> 1089716203 | F64: =VLOOKUP($A64,'2020-2022 Composite Index'!$A$6:$K$140,7,FALSE) -> 9636.95 | G64: =VLOOKUP($A64,'2020-2022 Composite Index'!$A$6:$K$140,8,FALSE) -> 98776 | H64: =VLOOKUP($A64,'2020-2022 Composite Index'!$A$6:$K$140,9,FALSE) -> 0.4005
A65: 62 | B65: NELSON | C65: =VLOOKUP($A65,'2020-2022 Composite Index'!$A$6:$K$140,3,FALSE) -> 3094695787 | D65: =VLOOKUP($A65,'2020-2022 Composite Index'!$A$6:$K$140,4,FALSE) -> 398056053.5 | E65: =VLOOKUP($A65,'2020-2022 Composite Index'!$A$6:$K$140,6,FALSE) -> 102746557.3 | F65: =VLOOKUP($A65,'2020-2022 Composite Index'!$A$6:$K$140,7,FALSE) -> 1794.43 | G65: =VLOOKUP($A65,'2020-2022 Composite Index'!$A$6:$K$140,8,FALSE) -> 14858 | H65: =VLOOKUP($A65,'2020-2022 Composite Index'!$A$6:$K$140,9,FALSE) -> 0.5604
A66: 63 | B66: NEW KENT | C66: =VLOOKUP($A66,'2020-2022 Composite Index'!$A$6:$K$140,3,FALSE) -> 3068018934 | D66: =VLOOKUP($A66,'2020-2022 Composite Index'!$A$6:$K$140,4,FALSE) -> 697158538.4 | E66: =VLOOKUP($A66,'2020-2022 Composite Index'!$A$6:$K$140,6,FALSE) -> 129697270 | F66: =VLOOKUP($A66,'2020-2022 Composite Index'!$A$6:$K$140,7,FALSE) -> 3158.26 | G66: =VLOOKUP($A66,'2020-2022 Composite Index'!$A$6:$K$140,8,FALSE) -> 21709 | H66: =VLOOKUP($A66,'2020-2022 Composite Index'!$A$6:$K$140,9,FALSE) -> 0.4166
A67: 65 | B67: NORTHAMPTON | C67: =VLOOKUP($A67,'2020-2022 Composite Index'!$A$6:$K$140,3,FALSE) -> 2081349223 | D67: =VLOOKUP($A67,'2020-2022 Composite Index'!$A$6:$K$140,4,FALSE) -> 269219459.8 | E67: =VLOOKUP($A67,'2020-2022 Composite Index'!$A$6:$K$140,6,FALSE) -> 125938193.6 | F67: =VLOOKUP($A67,'2020-2022 Composite Index'!$A$6:$K$140,7,FALSE) -> 1528.2 | G67: =VLOOKUP($A67,'2020-2022 Composite Index'!$A$6:$K$140,8,FALSE) -> 12000 | H67: =VLOOKUP($A67,'2020-2022 Composite Index'!$A$6:$K$140,9,FALSE) -> 0.4696
A68: 66 | B68: NORTHUMBERLAND | C68: =VLOOKUP($A68,'2020-2022 Composite Index'!$A$6:$K$140,3,FALSE) -> 3006211990 | D68: =VLOOKUP($A68,'2020-2022 Composite Index'!$A$6:$K$140,4,FALSE) -> 325582101.4 | E68: =VLOOKUP($A68,'2020-2022 Composite Index'!$A$6:$K$140,6,FALSE) -> 59190236.48 | F68: =VLOOKUP($A68,'2020-2022 Composite Index'!$A$6:$K$140,7,FALSE) -> 1217.59 | G68: =VLOOKUP($A68,'2020-2022 Composite Index'!$A$6:$K$140,8,FALSE) -> 12053 | H68: =VLOOKUP($A68,'2020-2022 Composite Index'!$A$6:$K$140,9,FALSE) -> 0.7116
A69: 67 | B69: NOTTOWAY | C69: =VLOOKUP($A69,'2020-2022 Composite Index'!$A$6:$K$140,3,FALSE) -> 1206276137 | D69: =VLOOKUP($A69,'2020-2022 Composite Index'!$A$6:$K$140,4,FALSE) -> 244985533.1 | E69: =VLOOKUP($A69,'2020-2022 Composite Index'!$A$6:$K$140,6,FALSE) -> 138347448.7 | F69: =VLOOKUP($A69,'2020-2022 Composite Index'!$A$6:$K$140,7,FALSE) -> 1958.02 | G69: =VLOOKUP($A69,'2020-2022 Composite Index'!$A$6:$K$140,8,FALSE) -> 15845 | H69: =VLOOKUP($A69,'2020-2022 Composite Index'!$A$6:$K$140,9,FALSE) -> 0.2624
A70: 68 | B70: ORANGE | C70: =VLOOKUP($A70,'2020-2022 Composite Index'!$A$6:$K$140,3,FALSE) -> 4660934259 | D70: =VLOOKUP($A70,'2020-2022 Composite Index'!$A$6:$K$140,4,FALSE) -> 974630916 | E70: =VLOOKUP($A70,'2020-2022 Composite Index'!$A$6:$K$140,6,FALSE) -> 296990638.5 | F70: =VLOOKUP($A70,'2020-2022 Composite Index'!$A$6:$K$140,7,FALSE) -> 4745.57 | G70: =VLOOKUP($A70,'2020-2022 Composite Index'!$A$6:$K$140,8,FALSE) -> 34521 | H70: =VLOOKUP($A70,'2020-2022 Composite Index'!$A$6:$K$140,9,FALSE) -> 0.4105
A71: 69 | B71: PAGE | C71: =VLOOKUP($A71,'2020-2022 Composite Index'!$A$6:$K$140,3,FALSE) -> 2626726549 | D71: =VLOOKUP($A71,'2020-2022 Composite Index'!$A$6:$K$140,4,FALSE) -> 462573017.6 | E71: =VLOOKUP($A71,'2020-2022 Composite Index'!$A$6:$K$140,6,FALSE) -> 179912536.8 | F71: =VLOOKUP($A71,'2020-2022 Composite Index'!$A$6:$K$140,7,FALSE) -> 3233.29 | G71: =VLOOKUP($A71,'2020-2022 Composite Index'!$A$6:$K$140,8,FALSE) -> 23665 | H71: =VLOOKUP($A71,'2020-2022 Composite Index'!$A$6:$K$140,9,FALSE) -> 0.3198
A72: 70 | B72: PATRICK | C72: =VLOOKUP($A72,'2020-2022 Composite Index'!$A$6:$K$140,3,FALSE) -> 1637838595 | D72: =VLOOKUP($A72,'2020-2022 Composite Index'!$A$6:$K$140,4,FALSE) -> 281220852.7 | E72: =VLOOKUP($A72,'2020-2022 Composite Index'!$A$6:$K$140,6,FALSE) -> 97099828.71 | F72: =VLOOKUP($A72,'2020-2022 Composite Index'!$A$6:$K$140,7,FALSE) -> 2588.38 | G72: =VLOOKUP($A72,'2020-2022 Composite Index'!$A$6:$K$140,8,FALSE) -> 17930 | H72: =VLOOKUP($A72,'2020-2022 Composite Index'!$A$6:$K$140,9,FALSE) -> 0.2481
A73: 71 | B73: PITTSYLVANIA | C73: =VLOOKUP($A73,'2020-2022 Composite Index'!$A$6:$K$140,3,FALSE) -> 4917968785 | D73: =VLOOKUP($A73,'2020-2022 Composite Index'!$A$6:$K$140,4,FALSE) -> 1180967797 | E73: =VLOOKUP($A73,'2020-2022 Composite Index'!$A$6:$K$140,6,FALSE) -> 173524846.3 | F73: =VLOOKUP($A73,'2020-2022 Composite Index'!$A$6:$K$140,7,FALSE) -> 8619.97 | G73: =VLOOKUP($A73,'2020-2022 Composite Index'!$A$6:$K$140,8,FALSE) -> 62166 | H73: =VLOOKUP($A73,'2020-2022 Composite Index'!$A$6:$K$140,9,FALSE) -> 0.2446
A74: 72 | B74: POWHATAN | C74: =VLOOKUP($A74,'2020-2022 Composite Index'!$A$6:$K$140,3,FALSE) -> 4252961337 | D74: =VLOOKUP($A74,'2020-2022 Composite Index'!$A$6:$K$140,4,FALSE) -> 1018341052 | E74: =VLOOKUP($A74,'2020-2022 Composite Index'!$A$6:$K$140,6,FALSE) -> 253911712.5 | F74: =VLOOKUP($A74,'2020-2022 Composite Index'!$A$6:$K$140,7,FALSE) -> 4220.03 | G74: =VLOOKUP($A74,'2020-2022 Composite Index'!$A$6:$K$140,8,FALSE) -> 29166 | H74: =VLOOKUP($A74,'2020-2022 Composite Index'!$A$6:$K$140,9,FALSE) -> 0.4507
A75: 73 | B75: PRINCE EDWARD | C75: =VLOOKUP($A75,'2020-2022 Composite Index'!$A$6:$K$140,3,FALSE) -> 1735744006 | D75: =VLOOKUP($A75,'2020-2022 Composite Index'!$A$6:$K$140,4,FALSE) -> 331400119.3 | E75: =VLOOKUP($A75,'2020-2022 Composite Index'!$A$6:$K$140,6,FALSE) -> 292525761.4 | F75: =VLOOKUP($A75,'2020-2022 Composite Index'!$A$6:$K$140,7,FALSE) -> 1968.27 | G75: =VLOOKUP($A75,'2020-2022 Composite Index'!$A$6:$K$140,8,FALSE) -> 23223 | H75: =VLOOKUP($A75,'2020-2022 Composite Index'!$A$6:$K$140,9,FALSE) -> 0.3554
A76: 74 | B76: PRINCE GEORGE | C76: =VLOOKUP($A76,'2020-2022 Composite Index'!$A$6:$K$140,3,FALSE) -> 3250105233 | D76: =VLOOKUP($A76,'2020-2022 Composite Index'!$A$6:$K$140,4,FALSE) -> 770840674.7 | E76: =VLOOKUP($A76,'2020-2022 Composite Index'!$A$6:$K$140,6,FALSE) -> 203313121.8 | F76: =VLOOKUP($A76,'2020-2022 Composite Index'!$A$6:$K$140,7,FALSE) -> 6189.27 | G76: =VLOOKUP($A76,'2020-2022 Composite Index'!$A$6:$K$140,8,FALSE) -> 37025 | H76: =VLOOKUP($A76,'2020-2022 Composite Index'!$A$6:$K$140,9,FALSE) -> 0.2467
A77: 75 | B77: PRINCE WILLIAM | C77: =VLOOKUP($A77,'2020-2022 Composite Index'!$A$6:$K$140,3,FALSE) -> 6.449671359e+10 | D77: =VLOOKUP($A77,'2020-2022 Composite Index'!$A$6:$K$140,4,FALSE) -> 1.571228472e+10 | E77: =VLOOKUP($A77,'2020-2022 Composite Index'!$A$6:$K$140,6,FALSE) -> 5540880714 | F77: =VLOOKUP($A77,'2020-2022 Composite Index'!$A$6:$K$140,7,FALSE) -> 87313.29 | G77: =VLOOKUP($A77,'2020-2022 Composite Index'!$A$6:$K$140,8,FALSE) -> 455990 | H77: =VLOOKUP($A77,'2020-2022 Composite Index'!$A$6:$K$140,9,FALSE) -> 0.3799
A78: 77 | B78: PULASKI | C78: =VLOOKUP($A78,'2020-2022 Composite Index'!$A$6:$K$140,3,FALSE) -> 3030751356 | D78: =VLOOKUP($A78,'2020-2022 Composite Index'!$A$6:$K$140,4,FALSE) -> 635361544 | E78: =VLOOKUP($A78,'2020-2022 Composite Index'!$A$6:$K$140,6,FALSE) -> 376119737.5 | F78: =VLOOKUP($A78,'2020-2022 Composite Index'!$A$6:$K$140,7,FALSE) -> 4013.88 | G78: =VLOOKUP($A78,'2020-2022 Composite Index'!$A$6:$K$140,8,FALSE) -> 34467 | H78: =VLOOKUP($A78,'2020-2022 Composite Index'!$A$6:$K$140,9,FALSE) -> 0.3235
A79: 78 | B79: RAPPAHANNOCK | C79: =VLOOKUP($A79,'2020-2022 Composite Index'!$A$6:$K$140,3,FALSE) -> 2116665131 | D79: =VLOOKUP($A79,'2020-2022 Composite Index'!$A$6:$K$140,4,FALSE) -> 265100920 | E79: =VLOOKUP($A79,'2020-2022 Composite Index'!$A$6:$K$140,6,FALSE) -> 40244653 | F79: =VLOOKUP($A79,'2020-2022 Composite Index'!$A$6:$K$140,7,FALSE) -> 817.68 | G79: =VLOOKUP($A79,'2020-2022 Composite Index'!$A$6:$K$140,8,FALSE) -> 7288 | H79: =VLOOKUP($A79,'2020-2022 Composite Index'!$A$6:$K$140,9,FALSE) -> 0.799
A80: 79 | B80: RICHMOND COUNTY | C80: =VLOOKUP($A80,'2020-2022 Composite Index'!$A$6:$K$140,3,FALSE) -> 1002618539 | D80: =VLOOKUP($A80,'2020-2022 Composite Index'!$A$6:$K$140,4,FALSE) -> 230917391.6 | E80: =VLOOKUP($A80,'2020-2022 Composite Index'!$A$6:$K$140,6,FALSE) -> 70063437.13 | F80: =VLOOKUP($A80,'2020-2022 Composite Index'!$A$6:$K$140,7,FALSE) -> 1275.55 | G80: =VLOOKUP($A80,'2020-2022 Composite Index'!$A$6:$K$140,8,FALSE) -> 9094 | H80: =VLOOKUP($A80,'2020-2022 Composite Index'!$A$6:$K$140,9,FALSE) -> 0.3465
A81: 80 | B81: ROANOKE COUNTY | C81: =VLOOKUP($A81,'2020-2022 Composite Index'!$A$6:$K$140,3,FALSE) -> 9484304507 | D81: =VLOOKUP($A81,'2020-2022 Composite Index'!$A$6:$K$140,4,FALSE) -> 2902580475 | E81: =VLOOKUP($A81,'2020-2022 Composite Index'!$A$6:$K$140,6,FALSE) -> 1060806739 | F81: =VLOOKUP($A81,'2020-2022 Composite Index'!$A$6:$K$140,7,FALSE) -> 13778.96 | G81: =VLOOKUP($A81,'2020-2022 Composite Index'!$A$6:$K$140,8,FALSE) -> 93735 | H81: =VLOOKUP($A81,'2020-2022 Composite Index'!$A$6:$K$140,9,FALSE) -> 0.366
A82: 81 | B82: ROCKBRIDGE | C82: =VLOOKUP($A82,'2020-2022 Composite Index'!$A$6:$K$140,3,FALSE) -> 3237676338 | D82: =VLOOKUP($A82,'2020-2022 Composite Index'!$A$6:$K$140,4,FALSE) -> 486605731.7 | E82: =VLOOKUP($A82,'2020-2022 Composite Index'!$A$6:$K$140,6,FALSE) -> 253206596 | F82: =VLOOKUP($A82,'2020-2022 Composite Index'!$A$6:$K$140,7,FALSE) -> 2574.59 | G82: =VLOOKUP($A82,'2020-2022 Composite Index'!$A$6:$K$140,8,FALSE) -> 22596 | H82: =VLOOKUP($A82,'2020-2022 Composite Index'!$A$6:$K$140,9,FALSE) -> 0.4506
A83: 82 | B83: ROCKINGHAM | C83: =VLOOKUP($A83,'2020-2022 Composite Index'!$A$6:$K$140,3,FALSE) -> 1.053913668e+10 | D83: =VLOOKUP($A83,'2020-2022 Composite Index'!$A$6:$K$140,4,FALSE) -> 2049709199 | E83: =VLOOKUP($A83,'2020-2022 Composite Index'!$A$6:$K$140,6,FALSE) -> 618300799.6 | F83: =VLOOKUP($A83,'2020-2022 Composite Index'!$A$6:$K$140,7,FALSE) -> 11252.58 | G83: =VLOOKUP($A83,'2020-2022 Composite Index'!$A$6:$K$140,8,FALSE) -> 80666 | H83: =VLOOKUP($A83,'2020-2022 Composite Index'!$A$6:$K$140,9,FALSE) -> 0.3799
A84: 83 | B84: RUSSELL | C84: =VLOOKUP($A84,'2020-2022 Composite Index'!$A$6:$K$140,3,FALSE) -> 2142651704 | D84: =VLOOKUP($A84,'2020-2022 Composite Index'!$A$6:$K$140,4,FALSE) -> 403533182.4 | E84: =VLOOKUP($A84,'2020-2022 Composite Index'!$A$6:$K$140,6,FALSE) -> 155743996 | F84: =VLOOKUP($A84,'2020-2022 Composite Index'!$A$6:$K$140,7,FALSE) -> 3629.3 | G84: =VLOOKUP($A84,'2020-2022 Composite Index'!$A$6:$K$140,8,FALSE) -> 27309 | H84: =VLOOKUP($A84,'2020-2022 Composite Index'!$A$6:$K$140,9,FALSE) -> 0.2373
A85: 84 | B85: SCOTT | C85: =VLOOKUP($A85,'2020-2022 Composite Index'!$A$6:$K$140,3,FALSE) -> 1449588769 | D85: =VLOOKUP($A85,'2020-2022 Composite Index'!$A$6:$K$140,4,FALSE) -> 340480335.3 | E85: =VLOOKUP($A85,'2020-2022 Composite Index'!$A$6:$K$140,6,FALSE) -> 125014352.5 | F85: =VLOOKUP($A85,'2020-2022 Composite Index'!$A$6:$K$140,7,FALSE) -> 3431.49 | G85: =VLOOKUP($A85,'2020-2022 Composite Index'!$A$6:$K$140,8,FALSE) -> 22377 | H85: =VLOOKUP($A85,'2020-2022 Composite Index'!$A$6:$K$140,9,FALSE) -> 0.1972
A86: 85 | B86: SHENANDOAH | C86: =VLOOKUP($A86,'2020-2022 Composite Index'!$A$6:$K$140,3,FALSE) -> 5560973202 | D86: =VLOOKUP($A86,'2020-2022 Composite Index'!$A$6:$K$140,4,FALSE) -> 1029338148 | E86: =VLOOKUP($A86,'2020-2022 Composite Index'!$A$6:$K$140,6,FALSE) -> 378819979.5 | F86: =VLOOKUP($A86,'2020-2022 Composite Index'!$A$6:$K$140,7,FALSE) -> 5813 | G86: =VLOOKUP($A86,'2020-2022 Composite Index'!$A$6:$K$140,8,FALSE) -> 42525 | H86: =VLOOKUP($A86,'2020-2022 Composite Index'!$A$6:$K$140,9,FALSE) -> 0.3832
A87: 86 | B87: SMYTH | C87: =VLOOKUP($A87,'2020-2022 Composite Index'!$A$6:$K$140,3,FALSE) -> 2050943352 | D87: =VLOOKUP($A87,'2020-2022 Composite Index'!$A$6:$K$140,4,FALSE) -> 499490842.4 | E87: =VLOOKUP($A87,'2020-2022 Composite Index'!$A$6:$K$140,6,FALSE) -> 205033051.6 | F87: =VLOOKUP($A87,'2020-2022 Composite Index'!$A$6:$K$140,7,FALSE) -> 4217.82 | G87: =VLOOKUP($A87,'2020-2022 Composite Index'!$A$6:$K$140,8,FALSE) -> 30686 | H87: =VLOOKUP($A87,'2020-2022 Composite Index'!$A$6:$K$140,9,FALSE) -> 0.2259
A88: 87 | B88: SOUTHAMPTON | C88: =VLOOKUP($A88,'2020-2022 Composite Index'!$A$6:$K$140,3,FALSE) -> 2105916476 | D88: =VLOOKUP($A88,'2020-2022 Composite Index'!$A$6:$K$140,4,FALSE) -> 385172536.4 | E88: =VLOOKUP($A88,'2020-2022 Composite Index'!$A$6:$K$140,6,FALSE) -> 43903421.4 | F88: =VLOOKUP($A88,'2020-2022 Composite Index'!$A$6:$K$140,7,FALSE) -> 2637.85 | G88: =VLOOKUP($A88,'2020-2022 Composite Index'!$A$6:$K$140,8,FALSE) -> 18119 | H88: =VLOOKUP($A88,'2020-2022 Composite Index'!$A$6:$K$140,9,FALSE) -> 0.3046
A89: 88 | B89: SPOTSYLVANIA | C89: =VLOOKUP($A89,'2020-2022 Composite Index'!$A$6:$K$140,3,FALSE) -> 1.754926347e+10 | D89: =VLOOKUP($A89,'2020-2022 Composite Index'!$A$6:$K$140,4,FALSE) -> 4057966914 | E89: =VLOOKUP($A89,'2020-2022 Composite Index'!$A$6:$K$140,6,FALSE) -> 1634908083 | F89: =VLOOKUP($A89,'2020-2022 Composite Index'!$A$6:$K$140,7,FALSE) -> 23183.64 | G89: =VLOOKUP($A89,'2020-2022 Composite Index'!$A$6:$K$140,8,FALSE) -> 131549 | H89: =VLOOKUP($A89,'2020-2022 Composite Index'!$A$6:$K$140,9,FALSE) -> 0.3722
A90: 89 | B90: STAFFORD | C90: =VLOOKUP($A90,'2020-2022 Composite Index'!$A$6:$K$140,3,FALSE) -> 1.958782622e+10 | D90: =VLOOKUP($A90,'2020-2022 Composite Index'!$A$6:$K$140,4,FALSE) -> 4814474903 | E90: =VLOOKUP($A90,'2020-2022 Composite Index'!$A$6:$K$140,6,FALSE) -> 1165726181 | F90: =VLOOKUP($A90,'2020-2022 Composite Index'!$A$6:$K$140,7,FALSE) -> 28486.89 | G90: =VLOOKUP($A90,'2020-2022 Composite Index'!$A$6:$K$140,8,FALSE) -> 145699 | H90: =VLOOKUP($A90,'2020-2022 Composite Index'!$A$6:$K$140,9,FALSE) -> 0.347
A91: 90 | B91: SURRY | C91: =VLOOKUP($A91,'2020-2022 Composite Index'!$A$6:$K$140,3,FALSE) -> 2840333104 | D91: =VLOOKUP($A91,'2020-2022 Composite Index'!$A$6:$K$140,4,FALSE) -> 143066509.8 | E91: =VLOOKUP($A91,'2020-2022 Composite Index'!$A$6:$K$140,6,FALSE) -> 20421222 | F91: =VLOOKUP($A91,'2020-2022 Composite Index'!$A$6:$K$140,7,FALSE) -> 731.15 | G91: =VLOOKUP($A91,'2020-2022 Composite Index'!$A$6:$K$140,8,FALSE) -> 6674 | H91: =VLOOKUP($A91,'2020-2022 Composite Index'!$A$6:$K$140,9,FALSE) -> 0.8
A92: 91 | B92: SUSSEX | C92: =VLOOKUP($A92,'2020-2022 Composite Index'!$A$6:$K$140,3,FALSE) -> 1028597204 | D92: =VLOOKUP($A92,'2020-2022 Composite Index'!$A$6:$K$140,4,FALSE) -> 163877638.5 | E92: =VLOOKUP($A92,'2020-2022 Composite Index'!$A$6:$K$140,6,FALSE) -> 90499076.51 | F92: =VLOOKUP($A92,'2020-2022 Composite Index'!$A$6:$K$140,7,FALSE) -> 1019.46 | G92: =VLOOKUP($A92,'2020-2022 Composite Index'!$A$6:$K$140,8,FALSE) -> 11655 | H92: =VLOOKUP($A92,'2020-2022 Composite Index'!$A$6:$K$140,9,FALSE) -> 0.3492
A93: 92 | B93: TAZEWELL | C93: =VLOOKUP($A93,'2020-2022 Composite Index'!$A$6:$K$140,3,FALSE) -> 2929410024 | D93: =VLOOKUP($A93,'2020-2022 Composite Index'!$A$6:$K$140,4,FALSE) -> 701695889 | E93: =VLOOKUP($A93,'2020-2022 Composite Index'!$A$6:$K$140,6,FALSE) -> 511172039.3 | F93: =VLOOKUP($A93,'2020-2022 Composite Index'!$A$6:$K$140,7,FALSE) -> 5625.69 | G93: =VLOOKUP($A93,'2020-2022 Composite Index'!$A$6:$K$140,8,FALSE) -> 42574 | H93: =VLOOKUP($A93,'2020-2022 Composite Index'!$A$6:$K$140,9,FALSE) -> 0.2575
A94: 93 | B94: WARREN | C94: =VLOOKUP($A94,'2020-2022 Composite Index'!$A$6:$K$140,3,FALSE) -> 6023427520 | D94: =VLOOKUP($A94,'2020-2022 Composite Index'!$A$6:$K$140,4,FALSE) -> 1041222853 | E94: =VLOOKUP($A94,'2020-2022 Composite Index'!$A$6:$K$140,6,FALSE) -> 404670592.2 | F94: =VLOOKUP($A94,'2020-2022 Composite Index'!$A$6:$K$140,7,FALSE) -> 5279.87 | G94: =VLOOKUP($A94,'2020-2022 Composite Index'!$A$6:$K$140,8,FALSE) -> 39239 | H94: =VLOOKUP($A94,'2020-2022 Composite Index'!$A$6:$K$140,9,FALSE) -> 0.4432
A95: 94 | B95: WASHINGTON | C95: =VLOOKUP($A95,'2020-2022 Composite Index'!$A$6:$K$140,3,FALSE) -> 5482514964 | D95: =VLOOKUP($A95,'2020-2022 Composite Index'!$A$6:$K$140,4,FALSE) -> 1205337906 | E95: =VLOOKUP($A95,'2020-2022 Composite Index'!$A$6:$K$140,6,FALSE) -> 659752986 | F95: =VLOOKUP($A95,'2020-2022 Composite Index'!$A$6:$K$140,7,FALSE) -> 6979.59 | G95: =VLOOKUP($A95,'2020-2022 Composite Index'!$A$6:$K$140,8,FALSE) -> 53789 | H95: =VLOOKUP($A95,'2020-2022 Composite Index'!$A$6:$K$140,9,FALSE) -> 0.3522
A96: 95 | B96: WESTMORELAND | C96: =VLOOKUP($A96,'2020-2022 Composite Index'!$A$6:$K$140,3,FALSE) -> 2132048750 | D96: =VLOOKUP($A96,'2020-2022 Composite Index'!$A$6:$K$140,4,FALSE) -> 319318646 | E96: =VLOOKUP($A96,'2020-2022 Composite Index'!$A$6:$K$140,6,FALSE) -> 67126856.73 | F96: =VLOOKUP($A96,'2020-2022 Composite Index'!$A$6:$K$140,7,FALSE) -> 1518.62 | G96: =VLOOKUP($A96,'2020-2022 Composite Index'!$A$6:$K$140,8,FALSE) -> 14191 | H96: =VLOOKUP($A96,'2020-2022 Composite Index'!$A$6:$K$140,9,FALSE) -> 0.4618
A97: 96 | B97: WISE | C97: =VLOOKUP($A97,'2020-2022 Composite Index'!$A$6:$K$140,3,FALSE) -> 3462392703 | D97: =VLOOKUP($A97,'2020-2022 Composite Index'!$A$6:$K$140,4,FALSE) -> 528747188.8 | E97: =VLOOKUP($A97,'2020-2022 Composite Index'!$A$6:$K$140,6,FALSE) -> 269251708 | F97: =VLOOKUP($A97,'2020-2022 Composite Index'!$A$6:$K$140,7,FALSE) -> 5575 | G97: =VLOOKUP($A97,'2020-2022 Composite Index'!$A$6:$K$140,8,FALSE) -> 39133 | H97: =VLOOKUP($A97,'2020-2022 Composite Index'!$A$6:$K$140,9,FALSE) -> 0.2392
A98: 97 | B98: WYTHE | C98: =VLOOKUP($A98,'2020-2022 Composite Index'!$A$6:$K$140,3,FALSE) -> 2999424650 | D98: =VLOOKUP($A98,'2020-2022 Composite Index'!$A$6:$K$140,4,FALSE) -> 522972560.7 | E98: =VLOOKUP($A98,'2020-2022 Composite Index'!$A$6:$K$140,6,FALSE) -> 389415463.5 | F98: =VLOOKUP($A98,'2020-2022 Composite Index'!$A$6:$K$140,7,FALSE) -> 3999.31 | G98: =VLOOKUP($A98,'2020-2022 Composite Index'!$A$6:$K$140,8,FALSE) -> 28723 | H98: =VLOOKUP($A98,'2020-2022 Composite Index'!$A$6:$K$140,9,FALSE) -> 0.3204
A99: 98 | B99: YORK | C99: =VLOOKUP($A99,'2020-2022 Composite Index'!$A$6:$K$140,3,FALSE) -> 9947911301 | D99: =VLOOKUP($A99,'2020-2022 Composite Index'!$A$6:$K$140,4,FALSE) -> 2110103154 | E99: =VLOOKUP($A99,'2020-2022 Composite Index'!$A$6:$K$140,6,FALSE) -> 949567169.2 | F99: =VLOOKUP($A99,'2020-2022 Composite Index'!$A$6:$K$140,7,FALSE) -> 12609.72 | G99: =VLOOKUP($A99,'2020-2022 Composite Index'!$A$6:$K$140,8,FALSE) -> 68890 | H99: =VLOOKUP($A99,'2020-2022 Composite Index'!$A$6:$K$140,9,FALSE) -> 0.3812
A100: 101 | B100: ALEXANDRIA | C100: =VLOOKUP($A100,'2020-2022 Composite Index'!$A$6:$K$140,3,FALSE) -> 4.024176114e+10 | D100: =VLOOKUP($A100,'2020-2022 Composite Index'!$A$6:$K$140,4,FALSE) -> 8517147154 | E100: =VLOOKUP($A100,'2020-2022 Composite Index'!$A$6:$K$140,6,FALSE) -> 2166848199 | F100: =VLOOKUP($A100,'2020-2022 Composite Index'!$A$6:$K$140,7,FALSE) -> 14987.82 | G100: =VLOOKUP($A100,'2020-2022 Composite Index'!$A$6:$K$140,8,FALSE) -> 160719 | H100: =VLOOKUP($A100,'2020-2022 Composite Index'!$A$6:$K$140,9,FALSE) -> 0.8
A101: 102 | B101: BRISTOL | C101: =VLOOKUP($A101,'2020-2022 Composite Index'!$A$6:$K$140,3,FALSE) -> 1301914173 | D101: =VLOOKUP($A101,'2020-2022 Composite Index'!$A$6:$K$140,4,FALSE) -> 362364999.1 | E101: =VLOOKUP($A101,'2020-2022 Composite Index'!$A$6:$K$140,6,FALSE) -> 357990921.2 | F101: =VLOOKUP($A101,'2020-2022 Composite Index'!$A$6:$K$140,7,FALSE) -> 2157.22 | G101: =VLOOKUP($A101,'2020-2022 Composite Index'!$A$6:$K$140,8,FALSE) -> 17160 | H101: =VLOOKUP($A101,'2020-2022 Composite Index'!$A$6:$K$140,9,FALSE) -> 0.3433
A102: 103 | B102: BUENA VISTA | C102: =VLOOKUP($A102,'2020-2022 Composite Index'!$A$6:$K$140,3,FALSE) -> 340422448 | D102: =VLOOKUP($A102,'2020-2022 Composite Index'!$A$6:$K$140,4,FALSE) -> 97911477.34 | E102: =VLOOKUP($A102,'2020-2022 Composite Index'!$A$6:$K$140,6,FALSE) -> 30887490 | F102: =VLOOKUP($A102,'2020-2022 Composite Index'!$A$6:$K$140,7,FALSE) -> 892.59 | G102: =VLOOKUP($A102,'2020-2022 Composite Index'!$A$6:$K$140,8,FALSE) -> 6424 | H102: =VLOOKUP($A102,'2020-2022 Composite Index'!$A$6:$K$140,9,FALSE) -> 0.1893
A103: 104 | B103: CHARLOTTESVILLE | C103: =VLOOKUP($A103,'2020-2022 Composite Index'!$A$6:$K$140,3,FALSE) -> 7637638792 | D103: =VLOOKUP($A103,'2020-2022 Composite Index'!$A$6:$K$140,4,FALSE) -> 1423575334 | E103: =VLOOKUP($A103,'2020-2022 Composite Index'!$A$6:$K$140,6,FALSE) -> 971359089.5 | F103: =VLOOKUP($A103,'2020-2022 Composite Index'!$A$6:$K$140,7,FALSE) -> 4189.74 | G103: =VLOOKUP($A103,'2020-2022 Composite Index'!$A$6:$K$140,8,FALSE) -> 49132 | H103: =VLOOKUP($A103,'2020-2022 Composite Index'!$A$6:$K$140,9,FALSE) -> 0.6948
A104: 106 | B104: COLONIAL HEIGHTS | C104: =VLOOKUP($A104,'2020-2022 Composite Index'!$A$6:$K$140,3,FALSE) -> 1812640041 | D104: =VLOOKUP($A104,'2020-2022 Composite Index'!$A$6:$K$140,4,FALSE) -> 398659176.2 | E104: =VLOOKUP($A104,'2020-2022 Composite Index'!$A$6:$K$140,6,FALSE) -> 717236556.6 | F104: =VLOOKUP($A104,'2020-2022 Composite Index'!$A$6:$K$140,7,FALSE) -> 2759.15 | G104: =VLOOKUP($A104,'2020-2022 Composite Index'!$A$6:$K$140,8,FALSE) -> 17320 | H104: =VLOOKUP($A104,'2020-2022 Composite Index'!$A$6:$K$140,9,FALSE) -> 0.4156
A105: 107 | B105: COVINGTON | C105: =VLOOKUP($A105,'2020-2022 Composite Index'!$A$6:$K$140,3,FALSE) -> 580167623.3 | D105: =VLOOKUP($A105,'2020-2022 Composite Index'!$A$6:$K$140,4,FALSE) -> 98817773.39 | E105: =VLOOKUP($A105,'2020-2022 Composite Index'!$A$6:$K$140,6,FALSE) -> 110735625.8 | F105: =VLOOKUP($A105,'2020-2022 Composite Index'!$A$6:$K$140,7,FALSE) -> 961.48 | G105: =VLOOKUP($A105,'2020-2022 Composite Index'!$A$6:$K$140,8,FALSE) -> 5850 | H105: =VLOOKUP($A105,'2020-2022 Composite Index'!$A$6:$K$140,9,FALSE) -> 0.2913
A106: 108 | B106: DANVILLE | C106: =VLOOKUP($A106,'2020-2022 Composite Index'!$A$6:$K$140,3,FALSE) -> 2314741875 | D106: =VLOOKUP($A106,'2020-2022 Composite Index'!$A$6:$K$140,4,FALSE) -> 770968255.6 | E106: =VLOOKUP($A106,'2020-2022 Composite Index'!$A$6:$K$140,6,FALSE) -> 793761923.9 | F106: =VLOOKUP($A106,'2020-2022 Composite Index'!$A$6:$K$140,7,FALSE) -> 5519.2 | G106: =VLOOKUP($A106,'2020-2022 Composite Index'!$A$6:$K$140,8,FALSE) -> 41358 | H106: =VLOOKUP($A106,'2020-2022 Composite Index'!$A$6:$K$140,9,FALSE) -> 0.2759
A107: 109 | B107: FALLS CHURCH | C107: =VLOOKUP($A107,'2020-2022 Composite Index'!$A$6:$K$140,3,FALSE) -> 4429390875 | D107: =VLOOKUP($A107,'2020-2022 Composite Index'!$A$6:$K$140,4,FALSE) -> 1030319974 | E107: =VLOOKUP($A107,'2020-2022 Composite Index'!$A$6:$K$140,6,FALSE) -> 362455075.4 | F107: =VLOOKUP($A107,'2020-2022 Composite Index'!$A$6:$K$140,7,FALSE) -> 2607.3 | G107: =VLOOKUP($A107,'2020-2022 Composite Index'!$A$6:$K$140,8,FALSE) -> 14269 | H107: =VLOOKUP($A107,'2020-2022 Composite Index'!$A$6:$K$140,9,FALSE) -> 0.8
A108: 110 | B108: FREDERICKSBURG | C108: =VLOOKUP($A108,'2020-2022 Composite Index'!$A$6:$K$140,3,FALSE) -> 4256115976 | D108: =VLOOKUP($A108,'2020-2022 Composite Index'!$A$6:$K$140,4,FALSE) -> 819317316.8 | E108: =VLOOKUP($A108,'2020-2022 Composite Index'!$A$6:$K$140,6,FALSE) -> 945058833 | F108: =VLOOKUP($A108,'2020-2022 Composite Index'!$A$6:$K$140,7,FALSE) -> 3400.21 | G108: =VLOOKUP($A108,'2020-2022 Composite Index'!$A$6:$K$140,8,FALSE) -> 27645 | H108: =VLOOKUP($A108,'2020-2022 Composite Index'!$A$6:$K$140,9,FALSE) -> 0.591
A109: 111 | B109: GALAX | C109: =VLOOKUP($A109,'2020-2022 Composite Index'!$A$6:$K$140,3,FALSE) -> 517853296.8 | D109: =VLOOKUP($A109,'2020-2022 Composite Index'!$A$6:$K$140,4,FALSE) -> 114691226.7 | E109: =VLOOKUP($A109,'2020-2022 Composite Index'!$A$6:$K$140,6,FALSE) -> 208254312.6 | F109: =VLOOKUP($A109,'2020-2022 Composite Index'!$A$6:$K$140,7,FALSE) -> 1229.66 | G109: =VLOOKUP($A109,'2020-2022 Composite Index'!$A$6:$K$140,8,FALSE) -> 6748 | H109: =VLOOKUP($A109,'2020-2022 Composite Index'!$A$6:$K$140,9,FALSE) -> 0.2821
A110: 112 | B110: HAMPTON | C110: =VLOOKUP($A110,'2020-2022 Composite Index'!$A$6:$K$140,3,FALSE) -> 1.129869516e+10 | D110: =VLOOKUP($A110,'2020-2022 Composite Index'!$A$6:$K$140,4,FALSE) -> 2535376962 | E110: =VLOOKUP($A110,'2020-2022 Composite Index'!$A$6:$K$140,6,FALSE) -> 1354676659 | F110: =VLOOKUP($A110,'2020-2022 Composite Index'!$A$6:$K$140,7,FALSE) -> 19013.27 | G110: =VLOOKUP($A110,'2020-2022 Composite Index'!$A$6:$K$140,8,FALSE) -> 136743 | H110: =VLOOKUP($A110,'2020-2022 Composite Index'!$A$6:$K$140,9,FALSE) -> 0.2743
A111: 113 | B111: HARRISONBURG | C111: =VLOOKUP($A111,'2020-2022 Composite Index'!$A$6:$K$140,3,FALSE) -> 4478527082 | D111: =VLOOKUP($A111,'2020-2022 Composite Index'!$A$6:$K$140,4,FALSE) -> 760802893.3 | E111: =VLOOKUP($A111,'2020-2022 Composite Index'!$A$6:$K$140,6,FALSE) -> 1238467780 | F111: =VLOOKUP($A111,'2020-2022 Composite Index'!$A$6:$K$140,7,FALSE) -> 5886.9 | G111: =VLOOKUP($A111,'2020-2022 Composite Index'!$A$6:$K$140,8,FALSE) -> 54689 | H111: =VLOOKUP($A111,'2020-2022 Composite Index'!$A$6:$K$140,9,FALSE) -> 0.3537
A112: 114 | B112: HOPEWELL | C112: =VLOOKUP($A112,'2020-2022 Composite Index'!$A$6:$K$140,3,FALSE) -> 1743092658 | D112: =VLOOKUP($A112,'2020-2022 Composite Index'!$A$6:$K$140,4,FALSE) -> 355172499.7 | E112: =VLOOKUP($A112,'2020-2022 Composite Index'!$A$6:$K$140,6,FALSE) -> 169710176.6 | F112: =VLOOKUP($A112,'2020-2022 Composite Index'!$A$6:$K$140,7,FALSE) -> 3976.77 | G112: =VLOOKUP($A112,'2020-2022 Composite Index'!$A$6:$K$140,8,FALSE) -> 22817 | H112: =VLOOKUP($A112,'2020-2022 Composite Index'!$A$6:$K$140,9,FALSE) -> 0.2053
A113: 115 | B113: LYNCHBURG | C113: =VLOOKUP($A113,'2020-2022 Composite Index'!$A$6:$K$140,3,FALSE) -> 5751276307 | D113: =VLOOKUP($A113,'2020-2022 Composite Index'!$A$6:$K$140,4,FALSE) -> 1548042262 | E113: =VLOOKUP($A113,'2020-2022 Composite Index'!$A$6:$K$140,6,FALSE) -> 1373101289 | F113: =VLOOKUP($A113,'2020-2022 Composite Index'!$A$6:$K$140,7,FALSE) -> 7978.94 | G113: =VLOOKUP($A113,'2020-2022 Composite Index'!$A$6:$K$140,8,FALSE) -> 80380 | H113: =VLOOKUP($A113,'2020-2022 Composite Index'!$A$6:$K$140,9,FALSE) -> 0.3668
A114: 116 | B114: MARTINSVILLE | C114: =VLOOKUP($A114,'2020-2022 Composite Index'!$A$6:$K$140,3,FALSE) -> 679090524.7 | D114: =VLOOKUP($A114,'2020-2022 Composite Index'!$A$6:$K$140,4,FALSE) -> 241750968.6 | E114: =VLOOKUP($A114,'2020-2022 Composite Index'!$A$6:$K$140,6,FALSE) -> 156627539 | F114: =VLOOKUP($A114,'2020-2022 Composite Index'!$A$6:$K$140,7,FALSE) -> 1893.97 | G114: =VLOOKUP($A114,'2020-2022 Composite Index'!$A$6:$K$140,8,FALSE) -> 13382 | H114: =VLOOKUP($A114,'2020-2022 Composite Index'!$A$6:$K$140,9,FALSE) -> 0.2254
A115: 117 | B115: NEWPORT NEWS | C115: =VLOOKUP($A115,'2020-2022 Composite Index'!$A$6:$K$140,3,FALSE) -> 1.594067048e+10 | D115: =VLOOKUP($A115,'2020-2022 Composite Index'!$A$6:$K$140,4,FALSE) -> 3558760525 | E115: =VLOOKUP($A115,'2020-2022 Composite Index'!$A$6:$K$140,6,FALSE) -> 2188701991 | F115: =VLOOKUP($A115,'2020-2022 Composite Index'!$A$6:$K$140,7,FALSE) -> 26872.56 | G115: =VLOOKUP($A115,'2020-2022 Composite Index'!$A$6:$K$140,8,FALSE) -> 182155 | H115: =VLOOKUP($A115,'2020-2022 Composite Index'!$A$6:$K$140,9,FALSE) -> 0.2842
A116: 118 | B116: NORFOLK | C116: =VLOOKUP($A116,'2020-2022 Composite Index'!$A$6:$K$140,3,FALSE) -> 2.027190155e+10 | D116: =VLOOKUP($A116,'2020-2022 Composite Index'!$A$6:$K$140,4,FALSE) -> 4330645703 | E116: =VLOOKUP($A116,'2020-2022 Composite Index'!$A$6:$K$140,6,FALSE) -> 2800002004 | F116: =VLOOKUP($A116,'2020-2022 Composite Index'!$A$6:$K$140,7,FALSE) -> 28431.57 | G116: =VLOOKUP($A116,'2020-2022 Composite Index'!$A$6:$K$140,8,FALSE) -> 246256 | H116: =VLOOKUP($A116,'2020-2022 Composite Index'!$A$6:$K$140,9,FALSE) -> 0.3119
A117: 119 | B117: NORTON | C117: =VLOOKUP($A117,'2020-2022 Composite Index'!$A$6:$K$140,3,FALSE) -> 268221468.5 | D117: =VLOOKUP($A117,'2020-2022 Composite Index'!$A$6:$K$140,4,FALSE) -> 66254098.45 | E117: =VLOOKUP($A117,'2020-2022 Composite Index'!$A$6:$K$140,6,FALSE) -> 140897761.6 | F117: =VLOOKUP($A117,'2020-2022 Composite Index'!$A$6:$K$140,7,FALSE) -> 766.24 | G117: =VLOOKUP($A117,'2020-2022 Composite Index'!$A$6:$K$140,8,FALSE) -> 3882 | H117: =VLOOKUP($A117,'2020-2022 Composite Index'!$A$6:$K$140,9,FALSE) -> 0.2759
A118: 120 | B118: PETERSBURG | C118: =VLOOKUP($A118,'2020-2022 Composite Index'!$A$6:$K$140,3,FALSE) -> 2049675300 | D118: =VLOOKUP($A118,'2020-2022 Composite Index'!$A$6:$K$140,4,FALSE) -> 445740064.6 | E118: =VLOOKUP($A118,'2020-2022 Composite Index'!$A$6:$K$140,6,FALSE) -> 293004412.8 | F118: =VLOOKUP($A118,'2020-2022 Composite Index'!$A$6:$K$140,7,FALSE) -> 3738.9 | G118: =VLOOKUP($A118,'2020-2022 Composite Index'!$A$6:$K$140,8,FALSE) -> 31705 | H118: =VLOOKUP($A118,'2020-2022 Composite Index'!$A$6:$K$140,9,FALSE) -> 0.2442
A119: 121 | B119: PORTSMOUTH | C119: =VLOOKUP($A119,'2020-2022 Composite Index'!$A$6:$K$140,3,FALSE) -> 7493264464 | D119: =VLOOKUP($A119,'2020-2022 Composite Index'!$A$6:$K$140,4,FALSE) -> 1673148239 | E119: =VLOOKUP($A119,'2020-2022 Composite Index'!$A$6:$K$140,6,FALSE) -> 609799751.4 | F119: =VLOOKUP($A119,'2020-2022 Composite Index'!$A$6:$K$140,7,FALSE) -> 13476.08 | G119: =VLOOKUP($A119,'2020-2022 Composite Index'!$A$6:$K$140,8,FALSE) -> 95440 | H119: =VLOOKUP($A119,'2020-2022 Composite Index'!$A$6:$K$140,9,FALSE) -> 0.2459
A120: 122 | B120: RADFORD | C120: =VLOOKUP($A120,'2020-2022 Composite Index'!$A$6:$K$140,3,FALSE) -> 925257385.2 | D120: =VLOOKUP($A120,'2020-2022 Composite Index'!$A$6:$K$140,4,FALSE) -> 242744309 | E120: =VLOOKUP($A120,'2020-2022 Composite Index'!$A$6:$K$140,6,FALSE) -> 69825230.85 | F120: =VLOOKUP($A120,'2020-2022 Composite Index'!$A$6:$K$140,7,FALSE) -> 1572.47 | G120: =VLOOKUP($A120,'2020-2022 Composite Index'!$A$6:$K$140,8,FALSE) -> 17208 | H120: =VLOOKUP($A120,'2020-2022 Composite Index'!$A$6:$K$140,9,FALSE) -> 0.2452
A121: 123 | B121: RICHMOND CITY | C121: =VLOOKUP($A121,'2020-2022 Composite Index'!$A$6:$K$140,3,FALSE) -> 2.528546946e+10 | D121: =VLOOKUP($A121,'2020-2022 Composite Index'!$A$6:$K$140,4,FALSE) -> 6169580882 | E121: =VLOOKUP($A121,'2020-2022 Composite Index'!$A$6:$K$140,6,FALSE) -> 2699889890 | F121: =VLOOKUP($A121,'2020-2022 Composite Index'!$A$6:$K$140,7,FALSE) -> 22952.56 | G121: =VLOOKUP($A121,'2020-2022 Composite Index'!$A$6:$K$140,8,FALSE) -> 222853 | H121: =VLOOKUP($A121,'2020-2022 Composite Index'!$A$6:$K$140,9,FALSE) -> 0.4748
A122: 124 | B122: ROANOKE CITY | C122: =VLOOKUP($A122,'2020-2022 Composite Index'!$A$6:$K$140,3,FALSE) -> 8006183887 | D122: =VLOOKUP($A122,'2020-2022 Composite Index'!$A$6:$K$140,4,FALSE) -> 1993403216 | E122: =VLOOKUP($A122,'2020-2022 Composite Index'!$A$6:$K$140,6,FALSE) -> 1837473382 | F122: =VLOOKUP($A122,'2020-2022 Composite Index'!$A$6:$K$140,7,FALSE) -> 12822.83 | G122: =VLOOKUP($A122,'2020-2022 Composite Index'!$A$6:$K$140,8,FALSE) -> 99908 | H122: =VLOOKUP($A122,'2020-2022 Composite Index'!$A$6:$K$140,9,FALSE) -> 0.3284
A123: 126 | B123: STAUNTON | C123: =VLOOKUP($A123,'2020-2022 Composite Index'!$A$6:$K$140,3,FALSE) -> 2061468018 | D123: =VLOOKUP($A123,'2020-2022 Composite Index'!$A$6:$K$140,4,FALSE) -> 551053906.5 | E123: =VLOOKUP($A123,'2020-2022 Composite Index'!$A$6:$K$140,6,FALSE) -> 361530282.1 | F123: =VLOOKUP($A123,'2020-2022 Composite Index'!$A$6:$K$140,7,FALSE) -> 2563.29 | G123: =VLOOKUP($A123,'2020-2022 Composite Index'!$A$6:$K$140,8,FALSE) -> 24761 | H123: =VLOOKUP($A123,'2020-2022 Composite Index'!$A$6:$K$140,9,FALSE) -> 0.3877
A124: 127 | B124: SUFFOLK | C124: =VLOOKUP($A124,'2020-2022 Composite Index'!$A$6:$K$140,3,FALSE) -> 1.080013337e+10 | D124: =VLOOKUP($A124,'2020-2022 Composite Index'!$A$6:$K$140,4,FALSE) -> 2330568683 | E124: =VLOOKUP($A124,'2020-2022 Composite Index'!$A$6:$K$140,6,FALSE) -> 895475059.5 | F124: =VLOOKUP($A124,'2020-2022 Composite Index'!$A$6:$K$140,7,FALSE) -> 13783.08 | G124: =VLOOKUP($A124,'2020-2022 Composite Index'!$A$6:$K$140,8,FALSE) -> 92533 | H124: =VLOOKUP($A124,'2020-2022 Composite Index'!$A$6:$K$140,9,FALSE) -> 0.3487
A125: 128 | B125: VIRGINIA BEACH | C125: =VLOOKUP($A125,'2020-2022 Composite Index'!$A$6:$K$140,3,FALSE) -> 6.136208947e+10 | D125: =VLOOKUP($A125,'2020-2022 Composite Index'!$A$6:$K$140,4,FALSE) -> 1.310490454e+10 | E125: =VLOOKUP($A125,'2020-2022 Composite Index'!$A$6:$K$140,6,FALSE) -> 5597203814 | F125: =VLOOKUP($A125,'2020-2022 Composite Index'!$A$6:$K$140,7,FALSE) -> 67090.94 | G125: =VLOOKUP($A125,'2020-2022 Composite Index'!$A$6:$K$140,8,FALSE) -> 454448 | H125: =VLOOKUP($A125,'2020-2022 Composite Index'!$A$6:$K$140,9,FALSE) -> 0.4082
A126: 130 | B126: WAYNESBORO | C126: =VLOOKUP($A126,'2020-2022 Composite Index'!$A$6:$K$140,3,FALSE) -> 2102741412 | D126: =VLOOKUP($A126,'2020-2022 Composite Index'!$A$6:$K$140,4,FALSE) -> 456798300.4 | E126: =VLOOKUP($A126,'2020-2022 Composite Index'!$A$6:$K$140,6,FALSE) -> 490439867.5 | F126: =VLOOKUP($A126,'2020-2022 Composite Index'!$A$6:$K$140,7,FALSE) -> 2934.02 | G126: =VLOOKUP($A126,'2020-2022 Composite Index'!$A$6:$K$140,8,FALSE) -> 21955 | H126: =VLOOKUP($A126,'2020-2022 Composite Index'!$A$6:$K$140,9,FALSE) -> 0.3652
A127: 131 | B127: WILLIAMSBURG | C127: =VLOOKUP($A127,'2020-2022 Composite Index'!$A$6:$K$140,3,FALSE) -> 1966889777 | D127: =VLOOKUP($A127,'2020-2022 Composite Index'!$A$6:$K$140,4,FALSE) -> 332999798.3 | E127: =VLOOKUP($A127,'2020-2022 Composite Index'!$A$6:$K$140,6,FALSE) -> 400643946.6 | F127: =VLOOKUP($A127,'2020-2022 Composite Index'!$A$6:$K$140,7,FALSE) -> 998.36 | G127: =VLOOKUP($A127,'2020-2022 Composite Index'!$A$6:$K$140,8,FALSE) -> 15404 | H127: =VLOOKUP($A127,'2020-2022 Composite Index'!$A$6:$K$140,9,FALSE) -> 0.7546
A128: 132 | B128: WINCHESTER | C128: =VLOOKUP($A128,'2020-2022 Composite Index'!$A$6:$K$140,3,FALSE) -> 3368957280 | D128: =VLOOKUP($A128,'2020-2022 Composite Index'!$A$6:$K$140,4,FALSE) -> 728288876.9 | E128: =VLOOKUP($A128,'2020-2022 Composite Index'!$A$6:$K$140,6,FALSE) -> 833496389.8 | F128: =VLOOKUP($A128,'2020-2022 Composite Index'!$A$6:$K$140,7,FALSE) -> 4169.86 | G128: =VLOOKUP($A128,'2020-2022 Composite Index'!$A$6:$K$140,8,FALSE) -> 28005 | H128: =VLOOKUP($A128,'2020-2022 Composite Index'!$A$6:$K$140,9,FALSE) -> 0.4319
A129: 134 | B129: FAIRFAX CITY | C129: =VLOOKUP($A129,'2020-2022 Composite Index'!$A$6:$K$140,3,FALSE) -> 6355389025 | D129: =VLOOKUP($A129,'2020-2022 Composite Index'!$A$6:$K$140,4,FALSE) -> 1250452741 | E129: =VLOOKUP($A129,'2020-2022 Composite Index'!$A$6:$K$140,6,FALSE) -> 814715859.1 | F129: =VLOOKUP($A129,'2020-2022 Composite Index'!$A$6:$K$140,7,FALSE) -> 3079.33 | G129: =VLOOKUP($A129,'2020-2022 Composite Index'!$A$6:$K$140,8,FALSE) -> 23825 | H129: =VLOOKUP($A129,'2020-2022 Composite Index'!$A$6:$K$140,9,FALSE) -> 0.8
A130: 135 | B130: FRANKLIN CITY | C130: =VLOOKUP($A130,'2020-2022 Composite Index'!$A$6:$K$140,3,FALSE) -> 559805775.9 | D130: =VLOOKUP($A130,'2020-2022 Composite Index'!$A$6:$K$140,4,FALSE) -> 140661177.8 | E130: =VLOOKUP($A130,'2020-2022 Composite Index'!$A$6:$K$140,6,FALSE) -> 164268774.8 | F130: =VLOOKUP($A130,'2020-2022 Composite Index'!$A$6:$K$140,7,FALSE) -> 1032.56 | G130: =VLOOKUP($A130,'2020-2022 Composite Index'!$A$6:$K$140,8,FALSE) -> 8474 | H130: =VLOOKUP($A130,'2020-2022 Composite Index'!$A$6:$K$140,9,FALSE) -> 0.2994
A131: 136 | B131: CHESAPEAKE | C131: =VLOOKUP($A131,'2020-2022 Composite Index'!$A$6:$K$140,3,FALSE) -> 2.835107245e+10 | D131: =VLOOKUP($A131,'2020-2022 Composite Index'!$A$6:$K$140,4,FALSE) -> 6280153506 | E131: =VLOOKUP($A131,'2020-2022 Composite Index'!$A$6:$K$140,6,FALSE) -> 3514278566 | F131: =VLOOKUP($A131,'2020-2022 Composite Index'!$A$6:$K$140,7,FALSE) -> 39613.21 | G131: =VLOOKUP($A131,'2020-2022 Composite Index'!$A$6:$K$140,8,FALSE) -> 242655 | H131: =VLOOKUP($A131,'2020-2022 Composite Index'!$A$6:$K$140,9,FALSE) -> 0.3486
A132: 137 | B132: LEXINGTON | C132: =VLOOKUP($A132,'2020-2022 Composite Index'!$A$6:$K$140,3,FALSE) -> 552281823.1 | D132: =VLOOKUP($A132,'2020-2022 Composite Index'!$A$6:$K$140,4,FALSE) -> 156027399.5 | E132: =VLOOKUP($A132,'2020-2022 Composite Index'!$A$6:$K$140,6,FALSE) -> 86631192.85 | F132: =VLOOKUP($A132,'2020-2022 Composite Index'!$A$6:$K$140,7,FALSE) -> 659.79 | G132: =VLOOKUP($A132,'2020-2022 Composite Index'!$A$6:$K$140,8,FALSE) -> 7284 | H132: =VLOOKUP($A132,'2020-2022 Composite Index'!$A$6:$K$140,9,FALSE) -> 0.392
A133: 138 | B133: EMPORIA | C133: =VLOOKUP($A133,'2020-2022 Composite Index'!$A$6:$K$140,3,FALSE) -> 365347587.3 | D133: =VLOOKUP($A133,'2020-2022 Composite Index'!$A$6:$K$140,4,FALSE) -> 83991080.24 | E133: =VLOOKUP($A133,'2020-2022 Composite Index'!$A$6:$K$140,6,FALSE) -> 143228126.8 | F133: =VLOOKUP($A133,'2020-2022 Composite Index'!$A$6:$K$140,7,FALSE) -> 1021.87 | G133: =VLOOKUP($A133,'2020-2022 Composite Index'!$A$6:$K$140,8,FALSE) -> 5797 | H133: =VLOOKUP($A133,'2020-2022 Composite Index'!$A$6:$K$140,9,FALSE) -> 0.2369
A134: 139 | B134: SALEM | C134: =VLOOKUP($A134,'2020-2022 Composite Index'!$A$6:$K$140,3,FALSE) -> 2426210430 | D134: =VLOOKUP($A134,'2020-2022 Composite Index'!$A$6:$K$140,4,FALSE) -> 662425518.8 | E134: =VLOOKUP($A134,'2020-2022 Composite Index'!$A$6:$K$140,6,FALSE) -> 590842044 | F134: =VLOOKUP($A134,'2020-2022 Composite Index'!$A$6:$K$140,7,FALSE) -> 3872.18 | G134: =VLOOKUP($A134,'2020-2022 Composite Index'!$A$6:$K$140,8,FALSE) -> 25679 | H134: =VLOOKUP($A134,'2020-2022 Composite Index'!$A$6:$K$140,9,FALSE) -> 0.3641
A135: 142 | B135: POQUOSON | C135: =VLOOKUP($A135,'2020-2022 Composite Index'!$A$6:$K$140,3,FALSE) -> 1591617690 | D135: =VLOOKUP($A135,'2020-2022 Composite Index'!$A$6:$K$140,4,FALSE) -> 435860588.7 | E135: =VLOOKUP($A135,'2020-2022 Composite Index'!$A$6:$K$140,6,FALSE) -> 52879880.06 | F135: =VLOOKUP($A135,'2020-2022 Composite Index'!$A$6:$K$140,7,FALSE) -> 2095.2 | G135: =VLOOKUP($A135,'2020-2022 Composite Index'!$A$6:$K$140,8,FALSE) -> 12311 | H135: =VLOOKUP($A135,'2020-2022 Composite Index'!$A$6:$K$140,9,FALSE) -> 0.3703
A136: 143 | B136: MANASSAS | C136: =VLOOKUP($A136,'2020-2022 Composite Index'!$A$6:$K$140,3,FALSE) -> 5514335181 | D136: =VLOOKUP($A136,'2020-2022 Composite Index'!$A$6:$K$140,4,FALSE) -> 1168033340 | E136: =VLOOKUP($A136,'2020-2022 Composite Index'!$A$6:$K$140,6,FALSE) -> 607443814.7 | F136: =VLOOKUP($A136,'2020-2022 Composite Index'!$A$6:$K$140,7,FALSE) -> 7420.46 | G136: =VLOOKUP($A136,'2020-2022 Composite Index'!$A$6:$K$140,8,FALSE) -> 41783 | H136: =VLOOKUP($A136,'2020-2022 Composite Index'!$A$6:$K$140,9,FALSE) -> 0.3611
A137: 144 | B137: MANASSAS PARK | C137: =VLOOKUP($A137,'2020-2022 Composite Index'!$A$6:$K$140,3,FALSE) -> 1675033514 | D137: =VLOOKUP($A137,'2020-2022 Composite Index'!$A$6:$K$140,4,FALSE) -> 451328424.7 | E137: =VLOOKUP($A137,'2020-2022 Composite Index'!$A$6:$K$140,6,FALSE) -> 181950241 | F137: =VLOOKUP($A137,'2020-2022 Composite Index'!$A$6:$K$140,7,FALSE) -> 3541.06 | G137: =VLOOKUP($A137,'2020-2022 Composite Index'!$A$6:$K$140,8,FALSE) -> 16142 | H137: =VLOOKUP($A137,'2020-2022 Composite Index'!$A$6:$K$140,9,FALSE) -> 0.2755
A138: 202 | B138: COLONIAL BEACH | C138: =VLOOKUP($A138,'2020-2022 Composite Index'!$A$6:$K$140,3,FALSE) -> 516947893.9 | D138: =VLOOKUP($A138,'2020-2022 Composite Index'!$A$6:$K$140,4,FALSE) -> 80307818 | E138: =VLOOKUP($A138,'2020-2022 Composite Index'!$A$6:$K$140,6,FALSE) -> 16882231.81 | F138: =VLOOKUP($A138,'2020-2022 Composite Index'!$A$6:$K$140,7,FALSE) -> 598.48 | G138: =VLOOKUP($A138,'2020-2022 Composite Index'!$A$6:$K$140,8,FALSE) -> 3569 | H138: =VLOOKUP($A138,'2020-2022 Composite Index'!$A$6:$K$140,9,FALSE) -> 0.3317
A139: 207 | B139: WEST POINT | C139: =VLOOKUP($A139,'2020-2022 Composite Index'!$A$6:$K$140,3,FALSE) -> 391995669.3 | D139: =VLOOKUP($A139,'2020-2022 Composite Index'!$A$6:$K$140,4,FALSE) -> 89052499 | E139: =VLOOKUP($A139,'2020-2022 Composite Index'!$A$6:$K$140,6,FALSE) -> 20782017.4 | F139: =VLOOKUP($A139,'2020-2022 Composite Index'!$A$6:$K$140,7,FALSE) -> 789.13 | G139: =VLOOKUP($A139,'2020-2022 Composite Index'!$A$6:$K$140,8,FALSE) -> 3313 | H139: =VLOOKUP($A139,'2020-2022 Composite Index'!$A$6:$K$140,9,FALSE) -> 0.2614
A140: NO DATA | B140: STATE TOTALS | C140: =SUM(C5:C139) -> 1.255682913e+12 | D140: =SUM(D5:D139) -> 2.768975217e+11 | E140: =SUM(E5:E139) -> 1.037366095e+11 | F140: =SUM(F5:F139) -> 1246930.65 | G140: =SUM(G5:G139) -> 8470020 | H140: NO DATA
A141: Data Sources:
A142: True Value of Property, Adjusted Gross Income, and Taxable Retail Sales - Virginia Department of Taxation
A143: March 31, 2018 Average Daily Membership (ADM) - Virginia Department of Education
A144: Total Population - Weldon Cooper Center for Public Service at the University of Virginia; US Census
A145: End of worksheet

Sheet 2020-22 Comp Index Non-Res. AGI
A1: 2020-2022 COMPOSITE INDEX OF LOCAL ABILITY-TO-PAY
A2: Excluding Non-resident Adjusted Gross Income (AGI) for Divisions with 3% or Greater Non-resident AGI
A3: 2017 IS THE BASE YEAR OF Indicators of Ability-to-Pay in the table below. | AJ3: Count of Nos:
A4: Div Num | B4: DIVISION | C4: TRUE VALUE OF PROPERTY INDICATOR | D4: ADJUSTED GROSS INCOME (excluding nonresident AGI) INDICATOR | E4: TAXABLE RETAIL SALES INDICATOR | F4: =+'2020-2022 Composite Index'!G5 -> MARCH 31, 2018 ADM INDICATOR | G4: TOTAL POPULATION INDICATOR | H4: 2020-2022 Composite Index Calculated Excluding Nonresident AGI | AJ4: Non-resident calculation
A5: 1 | B5: ACCOMACK | C5: =VLOOKUP(A5,'2020-2022 Composite Index Data'!A5:G139,3,FALSE) -> 4275437691 | D5: 656240883.1 | E5: =VLOOKUP(A5,'2020-2022 Composite Index Data'!A5:G139,5,FALSE) -> 342140946.1 | F5: =+'2020-2022 Composite Index Data'!F5 -> 5017.54 | G5: =+'2020-2022 Composite Index Data'!G5 -> 33041 | H5: 0.3374 | J5: =IF(ISNUMBER(VLOOKUP(A5,'2020-2022 Composite Index'!$A$6:$E$140,5,FALSE)),"YES","NO") -> YES | AJ5: =IF((1-D5/'2020-2022 Composite Index Data'!D5)>=0.03,"YES","NO") -> YES
A6: 2 | B6: ALBEMARLE | C6: =VLOOKUP(A6,'2020-2022 Composite Index Data'!A6:G140,3,FALSE) -> 2.033039288e+10 | D6: 4670412384 | E6: =VLOOKUP(A6,'2020-2022 Composite Index Data'!A6:G140,5,FALSE) -> 1490607721 | F6: =+'2020-2022 Composite Index Data'!F6 -> 13510.2 | G6: =+'2020-2022 Composite Index Data'!G6 -> 107697 | H6: 0.6449 | J6: =IF(ISNUMBER(VLOOKUP(A6,'2020-2022 Composite Index'!$A$6:$E$140,5,FALSE)),"YES","NO") -> NO | AJ6: =IF((1-D6/'2020-2022 Composite Index Data'!D6)>=0.03,"YES","NO") -> NO
A7: 3 | B7: ALLEGHANY | C7: =VLOOKUP(A7,'2020-2022 Composite Index Data'!A7:G140,3,FALSE) -> 1375295244 | D7: 308131017.1 | E7: =VLOOKUP(A7,'2020-2022 Composite Index Data'!A7:G140,5,FALSE) -> 70845093.01 | F7: =+'2020-2022 Composite Index Data'!F7 -> 2069.58 | G7: =+'2020-2022 Composite Index Data'!G7 -> 15405 | H7: 0.2819 | J7: =IF(ISNUMBER(VLOOKUP(A7,'2020-2022 Composite Index'!$A$6:$E$140,5,FALSE)),"YES","NO") -> NO | AJ7: =IF((1-D7/'2020-2022 Composite Index Data'!D7)>=0.03,"YES","NO") -> NO
A8: 4 | B8: AMELIA | C8: =VLOOKUP(A8,'2020-2022 Composite Index Data'!A8:G141,3,FALSE) -> 1539511713 | D8: 298627477.1 | E8: =VLOOKUP(A8,'2020-2022 Composite Index Data'!A8:G141,5,FALSE) -> 64025091.09 | F8: =+'2020-2022 Composite Index Data'!F8 -> 1737.54 | G8: =+'2020-2022 Composite Index Data'!G8 -> 12948 | H8: 0.3479 | J8: =IF(ISNUMBER(VLOOKUP(A8,'2020-2022 Composite Index'!$A$6:$E$140,5,FALSE)),"YES","NO") -> NO | AJ8: =IF((1-D8/'2020-2022 Composite Index Data'!D8)>=0.03,"YES","NO") -> NO
A9: 5 | B9: AMHERST | C9: =VLOOKUP(A9,'2020-2022 Composite Index Data'!A9:G142,3,FALSE) -> 2927837118 | D9: 618335922.6 | E9: =VLOOKUP(A9,'2020-2022 Composite Index Data'!A9:G142,5,FALSE) -> 247735438.9 | F9: =+'2020-2022 Composite Index Data'!F9 -> 3867.25 | G9: =+'2020-2022 Composite Index Data'!G9 -> 31982 | H9: 0.3141 | J9: =IF(ISNUMBER(VLOOKUP(A9,'2020-2022 Composite Index'!$A$6:$E$140,5,FALSE)),"YES","NO") -> NO | AJ9: =IF((1-D9/'2020-2022 Composite Index Data'!D9)>=0.03,"YES","NO") -> NO
A10: 6 | B10: APPOMATTOX | C10: =VLOOKUP(A10,'2020-2022 Composite Index Data'!A10:G143,3,FALSE) -> 1518108117 | D10: 313928915.7 | E10: =VLOOKUP(A10,'2020-2022 Composite Index Data'!A10:G143,5,FALSE) -> 117292203.8 | F10: =+'2020-2022 Composite Index Data'!F10 -> 2179.22 | G10: =+'2020-2022 Composite Index Data'!G10 -> 15536 | H10: 0.2978 | J10: =IF(ISNUMBER(VLOOKUP(A10,'2020-2022 Composite Index'!$A$6:$E$140,5,FALSE)),"YES","NO") -> NO | AJ10: =IF((1-D10/'2020-2022 Composite Index Data'!D10)>=0.03,"YES","NO") -> NO
A11: 7 | B11: ARLINGTON | C11: =VLOOKUP(A11,'2020-2022 Composite Index Data'!A11:G144,3,FALSE) -> 7.964513069e+10 | D11: 1.406930501e+10 | E11: =VLOOKUP(A11,'2020-2022 Composite Index Data'!A11:G144,5,FALSE) -> 3258772638 | F11: =+'2020-2022 Composite Index Data'!F11 -> 25750.7 | G11: =+'2020-2022 Composite Index Data'!G11 -> 239074 | H11: 0.8 | J11: =IF(ISNUMBER(VLOOKUP(A11,'2020-2022 Composite Index'!$A$6:$E$140,5,FALSE)),"YES","NO") -> NO | AJ11: =IF((1-D11/'2020-2022 Composite Index Data'!D11)>=0.03,"YES","NO") -> NO
A12: 8 | B12: AUGUSTA | C12: =VLOOKUP(A12,'2020-2022 Composite Index Data'!A12:G146,3,FALSE) -> 9526531505 | D12: 1817508007 | E12: =VLOOKUP(A12,'2020-2022 Composite Index Data'!A12:G146,5,FALSE) -> 471863459.8 | F12: =+'2020-2022 Composite Index Data'!F12 -> 9939.55 | G12: =+'2020-2022 Composite Index Data'!G12 -> 75013 | H12: 0.3769 | J12: =IF(ISNUMBER(VLOOKUP(A12,'2020-2022 Composite Index'!$A$6:$E$140,5,FALSE)),"YES","NO") -> NO | AJ12: =IF((1-D12/'2020-2022 Composite Index Data'!D12)>=0.03,"YES","NO") -> NO
A13: 9 | B13: BATH | C13: =VLOOKUP(A13,'2020-2022 Composite Index Data'!A13:G147,3,FALSE) -> 2210598733 | D13: 102700891 | E13: =VLOOKUP(A13,'2020-2022 Composite Index Data'!A13:G147,5,FALSE) -> 74264255.15 | F13: =+'2020-2022 Composite Index Data'!F13 -> 516.7 | G13: =+'2020-2022 Composite Index Data'!G13 -> 4556 | H13: 0.8 | J13: =IF(ISNUMBER(VLOOKUP(A13,'2020-2022 Composite Index'!$A$6:$E$140,5,FALSE)),"YES","NO") -> YES | AJ13: =IF((1-D13/'2020-2022 Composite Index Data'!D13)>=0.03,"YES","NO") -> YES
A14: 10 | B14: BEDFORD COUNTY | C14: =VLOOKUP(A14,'2020-2022 Composite Index Data'!A14:G148,3,FALSE) -> 1.055713417e+10 | D14: 2141439233 | E14: =VLOOKUP(A14,'2020-2022 Composite Index Data'!A14:G148,5,FALSE) -> 504850970.6 | F14: =+'2020-2022 Composite Index Data'!F14 -> 9460.6 | G14: =+'2020-2022 Composite Index Data'!G14 -> 77807 | H14: 0.4359 | J14: =IF(ISNUMBER(VLOOKUP(A14,'2020-2022 Composite Index'!$A$6:$E$140,5,FALSE)),"YES","NO") -> NO | AJ14: =IF((1-D14/'2020-2022 Composite Index Data'!D14)>=0.03,"YES","NO") -> NO
A15: 11 | B15: BLAND | C15: =VLOOKUP(A15,'2020-2022 Composite Index Data'!A15:G149,3,FALSE) -> 721512817.2 | D15: 108128589 | E15: =VLOOKUP(A15,'2020-2022 Composite Index Data'!A15:G149,5,FALSE) -> 30921905 | F15: =+'2020-2022 Composite Index Data'!F15 -> 722.71 | G15: =+'2020-2022 Composite Index Data'!G15 -> 6511 | H15: 0.338 | J15: =IF(ISNUMBER(VLOOKUP(A15,'2020-2022 Composite Index'!$A$6:$E$140,5,FALSE)),"YES","NO") -> YES | AJ15: =IF((1-D15/'2020-2022 Composite Index Data'!D15)>=0.03,"YES","NO") -> YES
A16: 12 | B16: BOTETOURT | C16: =VLOOKUP(A16,'2020-2022 Composite Index Data'!A16:G150,3,FALSE) -> 4369317736 | D16: 935155499.4 | E16: =VLOOKUP(A16,'2020-2022 Composite Index Data'!A16:G150,5,FALSE) -> 215688997.5 | F16: =+'2020-2022 Composite Index Data'!F16 -> 4547.89 | G16: =+'2020-2022 Composite Index Data'!G16 -> 33350 | H16: 0.3975 | J16: =IF(ISNUMBER(VLOOKUP(A16,'2020-2022 Composite Index'!$A$6:$E$140,5,FALSE)),"YES","NO") -> NO | AJ16: =IF((1-D16/'2020-2022 Composite Index Data'!D16)>=0.03,"YES","NO") -> NO
A17: 13 | B17: BRUNSWICK | C17: =VLOOKUP(A17,'2020-2022 Composite Index Data'!A17:G151,3,FALSE) -> 2340978033 | D17: 245275103 | E17: =VLOOKUP(A17,'2020-2022 Composite Index Data'!A17:G151,5,FALSE) -> 69549513.51 | F17: =+'2020-2022 Composite Index Data'!F17 -> 1559.33 | G17: =+'2020-2022 Composite Index Data'!G17 -> 16581 | H17: 0.429 | J17: =IF(ISNUMBER(VLOOKUP(A17,'2020-2022 Composite Index'!$A$6:$E$140,5,FALSE)),"YES","NO") -> YES | AJ17: =IF((1-D17/'2020-2022 Composite Index Data'!D17)>=0.03,"YES","NO") -> YES
A18: 14 | B18: BUCHANAN | C18: =VLOOKUP(A18,'2020-2022 Composite Index Data'!A18:G152,3,FALSE) -> 2465511602 | D18: 277406695 | E18: =VLOOKUP(A18,'2020-2022 Composite Index Data'!A18:G152,5,FALSE) -> 140412697.7 | F18: =+'2020-2022 Composite Index Data'!F18 -> 2726.8 | G18: =+'2020-2022 Composite Index Data'!G18 -> 22004 | H18: 0.2975 | J18: =IF(ISNUMBER(VLOOKUP(A18,'2020-2022 Composite Index'!$A$6:$E$140,5,FALSE)),"YES","NO") -> NO | AJ18: =IF((1-D18/'2020-2022 Composite Index Data'!D18)>=0.03,"YES","NO") -> NO
A19: 15 | B19: BUCKINGHAM | C19: =VLOOKUP(A19,'2020-2022 Composite Index Data'!A19:G153,3,FALSE) -> 2191369035 | D19: 242894802 | E19: =VLOOKUP(A19,'2020-2022 Composite Index Data'!A19:G153,5,FALSE) -> 57962895.84 | F19: =+'2020-2022 Composite Index Data'!F19 -> 1950.15 | G19: =+'2020-2022 Composite Index Data'!G19 -> 16957 | H19: 0.3422 | J19: =IF(ISNUMBER(VLOOKUP(A19,'2020-2022 Composite Index'!$A$6:$E$140,5,FALSE)),"YES","NO") -> NO | AJ19: =IF((1-D19/'2020-2022 Composite Index Data'!D19)>=0.03,"YES","NO") -> NO
A20: 16 | B20: CAMPBELL | C20: =VLOOKUP(A20,'2020-2022 Composite Index Data'!A20:G154,3,FALSE) -> 4813934063 | D20: 1109541141 | E20: =VLOOKUP(A20,'2020-2022 Composite Index Data'!A20:G154,5,FALSE) -> 485915056 | F20: =+'2020-2022 Composite Index Data'!F20 -> 7625.79 | G20: =+'2020-2022 Composite Index Data'!G20 -> 55503 | H20: 0.2878 | J20: =IF(ISNUMBER(VLOOKUP(A20,'2020-2022 Composite Index'!$A$6:$E$140,5,FALSE)),"YES","NO") -> NO | AJ20: =IF((1-D20/'2020-2022 Composite Index Data'!D20)>=0.03,"YES","NO") -> NO
A21: 17 | B21: CAROLINE | C21: =VLOOKUP(A21,'2020-2022 Composite Index Data'!A21:G155,3,FALSE) -> 3733516557 | D21: 711325536.5 | E21: =VLOOKUP(A21,'2020-2022 Composite Index Data'!A21:G155,5,FALSE) -> 151212078.5 | F21: =+'2020-2022 Composite Index Data'!F21 -> 4113.07 | G21: =+'2020-2022 Composite Index Data'!G21 -> 29990 | H21: 0.3553 | J21: =IF(ISNUMBER(VLOOKUP(A21,'2020-2022 Composite Index'!$A$6:$E$140,5,FALSE)),"YES","NO") -> NO | AJ21: =IF((1-D21/'2020-2022 Composite Index Data'!D21)>=0.03,"YES","NO") -> NO
A22: 18 | B22: CARROLL | C22: =VLOOKUP(A22,'2020-2022 Composite Index Data'!A22:G156,3,FALSE) -> 2572214999 | D22: 460685439.8 | E22: =VLOOKUP(A22,'2020-2022 Composite Index Data'!A22:G156,5,FALSE) -> 167345734.2 | F22: =+'2020-2022 Composite Index Data'!F22 -> 3611.35 | G22: =+'2020-2022 Composite Index Data'!G22 -> 29212 | H22: 0.2749 | J22: =IF(ISNUMBER(VLOOKUP(A22,'2020-2022 Composite Index'!$A$6:$E$140,5,FALSE)),"YES","NO") -> NO | AJ22: =IF((1-D22/'2020-2022 Composite Index Data'!D22)>=0.03,"YES","NO") -> NO
A23: 19 | B23: CHARLES CITY | C23: =VLOOKUP(A23,'2020-2022 Composite Index Data'!A23:G157,3,FALSE) -> 1062603295 | D23: 177935420 | E23: =VLOOKUP(A23,'2020-2022 Composite Index Data'!A23:G157,5,FALSE) -> 58539334 | F23: =+'2020-2022 Composite Index Data'!F23 -> 606.35 | G23: =+'2020-2022 Composite Index Data'!G23 -> 7151 | H23: 0.588 | J23: =IF(ISNUMBER(VLOOKUP(A23,'2020-2022 Composite Index'!$A$6:$E$140,5,FALSE)),"YES","NO") -> NO | AJ23: =IF((1-D23/'2020-2022 Composite Index Data'!D23)>=0.03,"YES","NO") -> NO
A24: 20 | B24: CHARLOTTE | C24: =VLOOKUP(A24,'2020-2022 Composite Index Data'!A24:G158,3,FALSE) -> 1093540388 | D24: 198700401 | E24: =VLOOKUP(A24,'2020-2022 Composite Index Data'!A24:G158,5,FALSE) -> 54357115.82 | F24: =+'2020-2022 Composite Index Data'!F24 -> 1773.63 | G24: =+'2020-2022 Composite Index Data'!G24 -> 12231 | H24: 0.2444 | J24: =IF(ISNUMBER(VLOOKUP(A24,'2020-2022 Composite Index'!$A$6:$E$140,5,FALSE)),"YES","NO") -> YES | AJ24: =IF((1-D24/'2020-2022 Composite Index Data'!D24)>=0.03,"YES","NO") -> YES
A25: 21 | B25: CHESTERFIELD | C25: =VLOOKUP(A25,'2020-2022 Composite Index Data'!A25:G159,3,FALSE) -> 3.947060037e+10 | D25: 1.10358793e+10 | E25: =VLOOKUP(A25,'2020-2022 Composite Index Data'!A25:G159,5,FALSE) -> 4394824320 | F25: =+'2020-2022 Composite Index Data'!F25 -> 60060.84 | G25: =+'2020-2022 Composite Index Data'!G25 -> 340020 | H25: 0.3584 | J25: =IF(ISNUMBER(VLOOKUP(A25,'2020-2022 Composite Index'!$A$6:$E$140,5,FALSE)),"YES","NO") -> NO | AJ25: =IF((1-D25/'2020-2022 Composite Index Data'!D25)>=0.03,"YES","NO") -> NO
A26: 22 | B26: CLARKE | C26: =VLOOKUP(A26,'2020-2022 Composite Index Data'!A26:G160,3,FALSE) -> 2715153460 | D26: 592869492.9 | E26: =VLOOKUP(A26,'2020-2022 Composite Index Data'!A26:G160,5,FALSE) -> 85971890.57 | F26: =+'2020-2022 Composite Index Data'!F26 -> 1931.2 | G26: =+'2020-2022 Composite Index Data'!G26 -> 14312 | H26: 0.5729 | J26: =IF(ISNUMBER(VLOOKUP(A26,'2020-2022 Composite Index'!$A$6:$E$140,5,FALSE)),"YES","NO") -> NO | AJ26: =IF((1-D26/'2020-2022 Composite Index Data'!D26)>=0.03,"YES","NO") -> NO
A27: 23 | B27: CRAIG | C27: =VLOOKUP(A27,'2020-2022 Composite Index Data'!A27:G161,3,FALSE) -> 543813795.6 | D27: 99589295 | E27: =VLOOKUP(A27,'2020-2022 Composite Index Data'!A27:G161,5,FALSE) -> 12876065 | F27: =+'2020-2022 Composite Index Data'!F27 -> 580.19 | G27: =+'2020-2022 Composite Index Data'!G27 -> 5129 | H27: 0.3336 | J27: =IF(ISNUMBER(VLOOKUP(A27,'2020-2022 Composite Index'!$A$6:$E$140,5,FALSE)),"YES","NO") -> NO | AJ27: =IF((1-D27/'2020-2022 Composite Index Data'!D27)>=0.03,"YES","NO") -> NO
A28: 24 | B28: CULPEPER | C28: =VLOOKUP(A28,'2020-2022 Composite Index Data'!A28:G162,3,FALSE) -> 6331241639 | D28: 1358162618 | E28: =VLOOKUP(A28,'2020-2022 Composite Index Data'!A28:G162,5,FALSE) -> 703603206.8 | F28: =+'2020-2022 Composite Index Data'!F28 -> 7952.19 | G28: =+'2020-2022 Composite Index Data'!G28 -> 50272 | H28: 0.3741 | J28: =IF(ISNUMBER(VLOOKUP(A28,'2020-2022 Composite Index'!$A$6:$E$140,5,FALSE)),"YES","NO") -> NO | AJ28: =IF((1-D28/'2020-2022 Composite Index Data'!D28)>=0.03,"YES","NO") -> NO
A29: 25 | B29: CUMBERLAND | C29: =VLOOKUP(A29,'2020-2022 Composite Index Data'!A29:G163,3,FALSE) -> 1037409992 | D29: 168025979.2 | E29: =VLOOKUP(A29,'2020-2022 Composite Index Data'!A29:G163,5,FALSE) -> 33660951.32 | F29: =+'2020-2022 Composite Index Data'!F29 -> 1239.14 | G29: =+'2020-2022 Composite Index Data'!G29 -> 9861 | H29: 0.2978 | J29: =IF(ISNUMBER(VLOOKUP(A29,'2020-2022 Composite Index'!$A$6:$E$140,5,FALSE)),"YES","NO") -> NO | AJ29: =IF((1-D29/'2020-2022 Composite Index Data'!D29)>=0.03,"YES","NO") -> NO
A30: 26 | B30: DICKENSON | C30: =VLOOKUP(A30,'2020-2022 Composite Index Data'!A30:G164,3,FALSE) -> 1459712435 | D30: 181037191.8 | E30: =VLOOKUP(A30,'2020-2022 Composite Index Data'!A30:G164,5,FALSE) -> 58585686.92 | F30: =+'2020-2022 Composite Index Data'!F30 -> 1998.53 | G30: =+'2020-2022 Composite Index Data'!G30 -> 14682 | H30: 0.2471 | J30: =IF(ISNUMBER(VLOOKUP(A30,'2020-2022 Composite Index'!$A$6:$E$140,5,FALSE)),"YES","NO") -> NO | AJ30: =IF((1-D30/'2020-2022 Composite Index Data'!D30)>=0.03,"YES","NO") -> NO
A31: 27 | B31: DINWIDDIE | C31: =VLOOKUP(A31,'2020-2022 Composite Index Data'!A31:G165,3,FALSE) -> 2963784008 | D31: 593635078 | E31: =VLOOKUP(A31,'2020-2022 Composite Index Data'!A31:G165,5,FALSE) -> 136670242.3 | F31: =+'2020-2022 Composite Index Data'!F31 -> 4258.46 | G31: =+'2020-2022 Composite Index Data'!G31 -> 28500 | H31: 0.2879 | J31: =IF(ISNUMBER(VLOOKUP(A31,'2020-2022 Composite Index'!$A$6:$E$140,5,FALSE)),"YES","NO") -> NO | AJ31: =IF((1-D31/'2020-2022 Composite Index Data'!D31)>=0.03,"YES","NO") -> NO
A32: 28 | B32: ESSEX | C32: =VLOOKUP(A32,'2020-2022 Composite Index Data'!A32:G166,3,FALSE) -> 1593364500 | D32: 234704682 | E32: =VLOOKUP(A32,'2020-2022 Composite Index Data'!A32:G166,5,FALSE) -> 191246470.5 | F32: =+'2020-2022 Composite Index Data'!F32 -> 1330.47 | G32: =+'2020-2022 Composite Index Data'!G32 -> 10813 | H32: 0.4636 | J32: =IF(ISNUMBER(VLOOKUP(A32,'2020-2022 Composite Index'!$A$6:$E$140,5,FALSE)),"YES","NO") -> NO | AJ32: =IF((1-D32/'2020-2022 Composite Index Data'!D32)>=0.03,"YES","NO") -> NO
A33: 29 | B33: FAIRFAX COUNTY | C33: =VLOOKUP(A33,'2020-2022 Composite Index Data'!A33:G167,3,FALSE) -> 2.62828932e+11 | D33: 5.879223046e+10 | E33: =VLOOKUP(A33,'2020-2022 Composite Index Data'!A33:G167,5,FALSE) -> 1.493982853e+10 | F33: =+'2020-2022 Composite Index Data'!F33 -> 180294.61 | G33: =+'2020-2022 Composite Index Data'!G33 -> 1143429 | H33: 0.6541 | J33: =IF(ISNUMBER(VLOOKUP(A33,'2020-2022 Composite Index'!$A$6:$E$140,5,FALSE)),"YES","NO") -> NO | AJ33: =IF((1-D33/'2020-2022 Composite Index Data'!D33)>=0.03,"YES","NO") -> NO
A34: 30 | B34: FAUQUIER | C34: =VLOOKUP(A34,'2020-2022 Composite Index Data'!A34:G168,3,FALSE) -> 1.526589681e+10 | D34: 2939488563 | E34: =VLOOKUP(A34,'2020-2022 Composite Index Data'!A34:G168,5,FALSE) -> 861595287.3 | F34: =+'2020-2022 Composite Index Data'!F34 -> 10955.27 | G34: =+'2020-2022 Composite Index Data'!G34 -> 69098 | H34: 0.5879 | J34: =IF(ISNUMBER(VLOOKUP(A34,'2020-2022 Composite Index'!$A$6:$E$140,5,FALSE)),"YES","NO") -> NO | AJ34: =IF((1-D34/'2020-2022 Composite Index Data'!D34)>=0.03,"YES","NO") -> NO
A35: 31 | B35: FLOYD | C35: =VLOOKUP(A35,'2020-2022 Composite Index Data'!A35:G169,3,FALSE) -> 1882566203 | D35: 299915846.5 | E35: =VLOOKUP(A35,'2020-2022 Composite Index Data'!A35:G169,5,FALSE) -> 74718941.38 | F35: =+'2020-2022 Composite Index Data'!F35 -> 1971.33 | G35: =+'2020-2022 Composite Index Data'!G35 -> 15550 | H35: 0.3418 | J35: =IF(ISNUMBER(VLOOKUP(A35,'2020-2022 Composite Index'!$A$6:$E$140,5,FALSE)),"YES","NO") -> NO | AJ35: =IF((1-D35/'2020-2022 Composite Index Data'!D35)>=0.03,"YES","NO") -> NO
A36: 32 | B36: FLUVANNA | C36: =VLOOKUP(A36,'2020-2022 Composite Index Data'!A36:G170,3,FALSE) -> 3522241579 | D36: 689527617.4 | E36: =VLOOKUP(A36,'2020-2022 Composite Index Data'!A36:G170,5,FALSE) -> 130487206.6 | F36: =+'2020-2022 Composite Index Data'!F36 -> 3471.79 | G36: =+'2020-2022 Composite Index Data'!G36 -> 26467 | H36: 0.394 | J36: =IF(ISNUMBER(VLOOKUP(A36,'2020-2022 Composite Index'!$A$6:$E$140,5,FALSE)),"YES","NO") -> NO | AJ36: =IF((1-D36/'2020-2022 Composite Index Data'!D36)>=0.03,"YES","NO") -> NO
A37: 33 | B37: FRANKLIN COUNTY | C37: =VLOOKUP(A37,'2020-2022 Composite Index Data'!A37:G171,3,FALSE) -> 7625278760 | D37: 1157170111 | E37: =VLOOKUP(A37,'2020-2022 Composite Index Data'!A37:G171,5,FALSE) -> 424098901.1 | F37: =+'2020-2022 Composite Index Data'!F37 -> 6858.45 | G37: =+'2020-2022 Composite Index Data'!G37 -> 56427 | H37: 0.3953 | J37: =IF(ISNUMBER(VLOOKUP(A37,'2020-2022 Composite Index'!$A$6:$E$140,5,FALSE)),"YES","NO") -> NO | AJ37: =IF((1-D37/'2020-2022 Composite Index Data'!D37)>=0.03,"YES","NO") -> NO
A38: 34 | B38: FREDERICK | C38: =VLOOKUP(A38,'2020-2022 Composite Index Data'!A38:G172,3,FALSE) -> 1.163166856e+10 | D38: 2590113773 | E38: =VLOOKUP(A38,'2020-2022 Composite Index Data'!A38:G172,5,FALSE) -> 1249749136 | F38: =+'2020-2022 Composite Index Data'!F38 -> 13343.46 | G38: =+'2020-2022 Composite Index Data'!G38 -> 85820 | H38: 0.412 | J38: =IF(ISNUMBER(VLOOKUP(A38,'2020-2022 Composite Index'!$A$6:$E$140,5,FALSE)),"YES","NO") -> NO | AJ38: =IF((1-D38/'2020-2022 Composite Index Data'!D38)>=0.03,"YES","NO") -> NO
A39: 35 | B39: GILES | C39: =VLOOKUP(A39,'2020-2022 Composite Index Data'!A39:G173,3,FALSE) -> 1422595319 | D39: 320950861 | E39: =VLOOKUP(A39,'2020-2022 Composite Index Data'!A39:G173,5,FALSE) -> 137678547.1 | F39: =+'2020-2022 Composite Index Data'!F39 -> 2386.69 | G39: =+'2020-2022 Composite Index Data'!G39 -> 17053 | H39: 0.2695 | J39: =IF(ISNUMBER(VLOOKUP(A39,'2020-2022 Composite Index'!$A$6:$E$140,5,FALSE)),"YES","NO") -> NO | AJ39: =IF((1-D39/'2020-2022 Composite Index Data'!D39)>=0.03,"YES","NO") -> NO
A40: 36 | B40: GLOUCESTER | C40: =VLOOKUP(A40,'2020-2022 Composite Index Data'!A40:G174,3,FALSE) -> 4714496645 | D40: 983708824.1 | E40: =VLOOKUP(A40,'2020-2022 Composite Index Data'!A40:G174,5,FALSE) -> 405650909.3 | F40: =+'2020-2022 Composite Index Data'!F40 -> 5270.45 | G40: =+'2020-2022 Composite Index Data'!G40 -> 37169 | H40: 0.3885 | J40: =IF(ISNUMBER(VLOOKUP(A40,'2020-2022 Composite Index'!$A$6:$E$140,5,FALSE)),"YES","NO") -> NO | AJ40: =IF((1-D40/'2020-2022 Composite Index Data'!D40)>=0.03,"YES","NO") -> NO
A41: 37 | B41: GOOCHLAND | C41: =VLOOKUP(A41,'2020-2022 Composite Index Data'!A41:G175,3,FALSE) -> 5635699924 | D41: 1443612842 | E41: =VLOOKUP(A41,'2020-2022 Composite Index Data'!A41:G175,5,FALSE) -> 227534841.1 | F41: =+'2020-2022 Composite Index Data'!F41 -> 2550.6 | G41: =+'2020-2022 Composite Index Data'!G41 -> 22705 | H41: 0.8 | J41: =IF(ISNUMBER(VLOOKUP(A41,'2020-2022 Composite Index'!$A$6:$E$140,5,FALSE)),"YES","NO") -> NO | AJ41: =IF((1-D41/'2020-2022 Composite Index Data'!D41)>=0.03,"YES","NO") -> NO
A42: 38 | B42: GRAYSON | C42: =VLOOKUP(A42,'2020-2022 Composite Index Data'!A42:G176,3,FALSE) -> 1827586769 | D42: 233663262 | E42: =VLOOKUP(A42,'2020-2022 Composite Index Data'!A42:G176,5,FALSE) -> 34104091 | F42: =+'2020-2022 Composite Index Data'!F42 -> 1510.86 | G42: =+'2020-2022 Composite Index Data'!G42 -> 15669 | H42: 0.3615 | J42: =IF(ISNUMBER(VLOOKUP(A42,'2020-2022 Composite Index'!$A$6:$E$140,5,FALSE)),"YES","NO") -> YES | AJ42: =IF((1-D42/'2020-2022 Composite Index Data'!D42)>=0.03,"YES","NO") -> YES
A43: 39 | B43: GREENE | C43: =VLOOKUP(A43,'2020-2022 Composite Index Data'!A43:G177,3,FALSE) -> 2392404008 | D43: 481791591.3 | E43: =VLOOKUP(A43,'2020-2022 Composite Index Data'!A43:G177,5,FALSE) -> 175413564.5 | F43: =+'2020-2022 Composite Index Data'!F43 -> 2982.62 | G43: =+'2020-2022 Composite Index Data'!G43 -> 19985 | H43: 0.3446 | J43: =IF(ISNUMBER(VLOOKUP(A43,'2020-2022 Composite Index'!$A$6:$E$140,5,FALSE)),"YES","NO") -> NO | AJ43: =IF((1-D43/'2020-2022 Composite Index Data'!D43)>=0.03,"YES","NO") -> NO
A44: 40 | B44: GREENSVILLE | C44: =VLOOKUP(A44,'2020-2022 Composite Index Data'!A44:G178,3,FALSE) -> 949033753.8 | D44: 170257347.1 | E44: =VLOOKUP(A44,'2020-2022 Composite Index Data'!A44:G178,5,FALSE) -> 47788891 | F44: =+'2020-2022 Composite Index Data'!F44 -> 1218.05 | G44: =+'2020-2022 Composite Index Data'!G44 -> 11563 | H44: 0.2799 | J44: =IF(ISNUMBER(VLOOKUP(A44,'2020-2022 Composite Index'!$A$6:$E$140,5,FALSE)),"YES","NO") -> YES | AJ44: =IF((1-D44/'2020-2022 Composite Index Data'!D44)>=0.03,"YES","NO") -> YES
A45: 41 | B45: HALIFAX | C45: =VLOOKUP(A45,'2020-2022 Composite Index Data'!A45:G179,3,FALSE) -> 3781125840 | D45: 594051750.7 | E45: =VLOOKUP(A45,'2020-2022 Composite Index Data'!A45:G179,5,FALSE) -> 294706517.6 | F45: =+'2020-2022 Composite Index Data'!F45 -> 4722.65 | G45: =+'2020-2022 Composite Index Data'!G45 -> 35215 | H45: 0.3058 | J45: =IF(ISNUMBER(VLOOKUP(A45,'2020-2022 Composite Index'!$A$6:$E$140,5,FALSE)),"YES","NO") -> YES | AJ45: =IF((1-D45/'2020-2022 Composite Index Data'!D45)>=0.03,"YES","NO") -> YES
A46: 42 | B46: HANOVER | C46: =VLOOKUP(A46,'2020-2022 Composite Index Data'!A46:G180,3,FALSE) -> 1.641966489e+10 | D46: 3828772645 | E46: =VLOOKUP(A46,'2020-2022 Composite Index Data'!A46:G180,5,FALSE) -> 1915809188 | F46: =+'2020-2022 Composite Index Data'!F46 -> 17613.38 | G46: =+'2020-2022 Composite Index Data'!G46 -> 106375 | H46: 0.4626 | J46: =IF(ISNUMBER(VLOOKUP(A46,'2020-2022 Composite Index'!$A$6:$E$140,5,FALSE)),"YES","NO") -> NO | AJ46: =IF((1-D46/'2020-2022 Composite Index Data'!D46)>=0.03,"YES","NO") -> NO
A47: 43 | B47: HENRICO | C47: =VLOOKUP(A47,'2020-2022 Composite Index Data'!A47:G181,3,FALSE) -> 4.092662414e+10 | D47: 1.094041319e+10 | E47: =VLOOKUP(A47,'2020-2022 Composite Index Data'!A47:G181,5,FALSE) -> 5656612709 | F47: =+'2020-2022 Composite Index Data'!F47 -> 50283.77 | G47: =+'2020-2022 Composite Index Data'!G47 -> 324395 | H47: 0.4279 | J47: =IF(ISNUMBER(VLOOKUP(A47,'2020-2022 Composite Index'!$A$6:$E$140,5,FALSE)),"YES","NO") -> NO | AJ47: =IF((1-D47/'2020-2022 Composite Index Data'!D47)>=0.03,"YES","NO") -> NO
A48: 44 | B48: HENRY | C48: =VLOOKUP(A48,'2020-2022 Composite Index Data'!A48:G182,3,FALSE) -> 3232443251 | D48: 868084368.7 | E48: =VLOOKUP(A48,'2020-2022 Composite Index Data'!A48:G182,5,FALSE) -> 371100551.5 | F48: =+'2020-2022 Composite Index Data'!F48 -> 7045.22 | G48: =+'2020-2022 Composite Index Data'!G48 -> 51975 | H48: 0.2253 | J48: =IF(ISNUMBER(VLOOKUP(A48,'2020-2022 Composite Index'!$A$6:$E$140,5,FALSE)),"YES","NO") -> YES | AJ48: =IF((1-D48/'2020-2022 Composite Index Data'!D48)>=0.03,"YES","NO") -> YES
A49: 45 | B49: HIGHLAND | C49: =VLOOKUP(A49,'2020-2022 Composite Index Data'!A49:G183,3,FALSE) -> 637887453.2 | D49: 47819370 | E49: =VLOOKUP(A49,'2020-2022 Composite Index Data'!A49:G183,5,FALSE) -> 10023126.42 | F49: =+'2020-2022 Composite Index Data'!F49 -> 193.03 | G49: =+'2020-2022 Composite Index Data'!G49 -> 2284 | H49: 0.8 | J49: =IF(ISNUMBER(VLOOKUP(A49,'2020-2022 Composite Index'!$A$6:$E$140,5,FALSE)),"YES","NO") -> NO | AJ49: =IF((1-D49/'2020-2022 Composite Index Data'!D49)>=0.03,"YES","NO") -> NO
A50: 46 | B50: ISLE OF WIGHT | C50: =VLOOKUP(A50,'2020-2022 Composite Index Data'!A50:G184,3,FALSE) -> 5005182812 | D50: 1083502669 | E50: =VLOOKUP(A50,'2020-2022 Composite Index Data'!A50:G184,5,FALSE) -> 236926649 | F50: =+'2020-2022 Composite Index Data'!F50 -> 5338.11 | G50: =+'2020-2022 Composite Index Data'!G50 -> 37333 | H50: 0.3964 | J50: =IF(ISNUMBER(VLOOKUP(A50,'2020-2022 Composite Index'!$A$6:$E$140,5,FALSE)),"YES","NO") -> NO | AJ50: =IF((1-D50/'2020-2022 Composite Index Data'!D50)>=0.03,"YES","NO") -> NO
A51: 47 | B51: JAMES CITY | C51: =VLOOKUP(A51,'2020-2022 Composite Index Data'!A51:G185,3,FALSE) -> 1.305004502e+10 | D51: 2998900298 | E51: =VLOOKUP(A51,'2020-2022 Composite Index Data'!A51:G185,5,FALSE) -> 982030979.6 | F51: =+'2020-2022 Composite Index Data'!F51 -> 10422.45 | G51: =+'2020-2022 Composite Index Data'!G51 -> 74722 | H51: 0.5553 | J51: =IF(ISNUMBER(VLOOKUP(A51,'2020-2022 Composite Index'!$A$6:$E$140,5,FALSE)),"YES","NO") -> NO | AJ51: =IF((1-D51/'2020-2022 Composite Index Data'!D51)>=0.03,"YES","NO") -> NO
A52: 48 | B52: KING GEORGE | C52: =VLOOKUP(A52,'2020-2022 Composite Index Data'!A52:G186,3,FALSE) -> 3480141112 | D52: 787295581.1 | E52: =VLOOKUP(A52,'2020-2022 Composite Index Data'!A52:G186,5,FALSE) -> 187620362.8 | F52: =+'2020-2022 Composite Index Data'!F52 -> 4362.94 | G52: =+'2020-2022 Composite Index Data'!G52 -> 25381 | H52: 0.3703 | J52: =IF(ISNUMBER(VLOOKUP(A52,'2020-2022 Composite Index'!$A$6:$E$140,5,FALSE)),"YES","NO") -> NO | AJ52: =IF((1-D52/'2020-2022 Composite Index Data'!D52)>=0.03,"YES","NO") -> NO
A53: 49 | B53: KING AND QUEEN | C53: =VLOOKUP(A53,'2020-2022 Composite Index Data'!A53:G187,3,FALSE) -> 981207271.5 | D53: 149923829.1 | E53: =VLOOKUP(A53,'2020-2022 Composite Index Data'!A53:G187,5,FALSE) -> 12379939 | F53: =+'2020-2022 Composite Index Data'!F53 -> 773.2 | G53: =+'2020-2022 Composite Index Data'!G53 -> 6935 | H53: 0.4139 | J53: =IF(ISNUMBER(VLOOKUP(A53,'2020-2022 Composite Index'!$A$6:$E$140,5,FALSE)),"YES","NO") -> NO | AJ53: =IF((1-D53/'2020-2022 Composite Index Data'!D53)>=0.03,"YES","NO") -> NO
A54: 50 | B54: KING WILLIAM | C54: =VLOOKUP(A54,'2020-2022 Composite Index Data'!A54:G188,3,FALSE) -> 1697241573 | D54: 355049136 | E54: =VLOOKUP(A54,'2020-2022 Composite Index Data'!A54:G188,5,FALSE) -> 83516987.5 | F54: =+'2020-2022 Composite Index Data'!F54 -> 2172.53 | G54: =+'2020-2022 Composite Index Data'!G54 -> 13314 | H54: 0.3407 | J54: =IF(ISNUMBER(VLOOKUP(A54,'2020-2022 Composite Index'!$A$6:$E$140,5,FALSE)),"YES","NO") -> NO | AJ54: =IF((1-D54/'2020-2022 Composite Index Data'!D54)>=0.03,"YES","NO") -> NO
A55: 51 | B55: LANCASTER | C55: =VLOOKUP(A55,'2020-2022 Composite Index Data'!A55:G189,3,FALSE) -> 2617889479 | D55: 328746194.8 | E55: =VLOOKUP(A55,'2020-2022 Composite Index Data'!A55:G189,5,FALSE) -> 166354409.8 | F55: =+'2020-2022 Composite Index Data'!F55 -> 1062.3 | G55: =+'2020-2022 Composite Index Data'!G55 -> 11171 | H55: 0.7835 | J55: =IF(ISNUMBER(VLOOKUP(A55,'2020-2022 Composite Index'!$A$6:$E$140,5,FALSE)),"YES","NO") -> NO | AJ55: =IF((1-D55/'2020-2022 Composite Index Data'!D55)>=0.03,"YES","NO") -> NO
A56: 52 | B56: LEE | C56: =VLOOKUP(A56,'2020-2022 Composite Index Data'!A56:G190,3,FALSE) -> 1138485056 | D56: 272324266 | E56: =VLOOKUP(A56,'2020-2022 Composite Index Data'!A56:G190,5,FALSE) -> 114151983 | F56: =+'2020-2022 Composite Index Data'!F56 -> 3053.46 | G56: =+'2020-2022 Composite Index Data'!G56 -> 24363 | H56: 0.1692 | J56: =IF(ISNUMBER(VLOOKUP(A56,'2020-2022 Composite Index'!$A$6:$E$140,5,FALSE)),"YES","NO") -> NO | AJ56: =IF((1-D56/'2020-2022 Composite Index Data'!D56)>=0.03,"YES","NO") -> NO
A57: 53 | B57: LOUDOUN | C57: =VLOOKUP(A57,'2020-2022 Composite Index Data'!A57:G191,3,FALSE) -> 8.49180731e+10 | D57: 2.067613508e+10 | E57: =VLOOKUP(A57,'2020-2022 Composite Index Data'!A57:G191,5,FALSE) -> 5697354606 | F57: =+'2020-2022 Composite Index Data'!F57 -> 80270.95 | G57: =+'2020-2022 Composite Index Data'!G57 -> 396068 | H57: 0.5466 | J57: =IF(ISNUMBER(VLOOKUP(A57,'2020-2022 Composite Index'!$A$6:$E$140,5,FALSE)),"YES","NO") -> NO | AJ57: =IF((1-D57/'2020-2022 Composite Index Data'!D57)>=0.03,"YES","NO") -> NO
A58: 54 | B58: LOUISA | C58: =VLOOKUP(A58,'2020-2022 Composite Index Data'!A58:G192,3,FALSE) -> 7695422725 | D58: 903687473.9 | E58: =VLOOKUP(A58,'2020-2022 Composite Index Data'!A58:G192,5,FALSE) -> 300831730.1 | F58: =+'2020-2022 Composite Index Data'!F58 -> 4704.2 | G58: =+'2020-2022 Composite Index Data'!G58 -> 35035 | H58: 0.5406 | J58: =IF(ISNUMBER(VLOOKUP(A58,'2020-2022 Composite Index'!$A$6:$E$140,5,FALSE)),"YES","NO") -> NO | AJ58: =IF((1-D58/'2020-2022 Composite Index Data'!D58)>=0.03,"YES","NO") -> NO
A59: 55 | B59: LUNENBURG | C59: =VLOOKUP(A59,'2020-2022 Composite Index Data'!A59:G193,3,FALSE) -> 994576205.9 | D59: 187810970 | E59: =VLOOKUP(A59,'2020-2022 Composite Index Data'!A59:G193,5,FALSE) -> 39312051.57 | F59: =+'2020-2022 Composite Index Data'!F59 -> 1441.57 | G59: =+'2020-2022 Composite Index Data'!G59 -> 12386 | H59: 0.2561 | J59: =IF(ISNUMBER(VLOOKUP(A59,'2020-2022 Composite Index'!$A$6:$E$140,5,FALSE)),"YES","NO") -> NO | AJ59: =IF((1-D59/'2020-2022 Composite Index Data'!D59)>=0.03,"YES","NO") -> NO
A60: 56 | B60: MADISON | C60: =VLOOKUP(A60,'2020-2022 Composite Index Data'!A60:G194,3,FALSE) -> 2319775163 | D60: 323745213.7 | E60: =VLOOKUP(A60,'2020-2022 Composite Index Data'!A60:G194,5,FALSE) -> 87685702.24 | F60: =+'2020-2022 Composite Index Data'!F60 -> 1673.19 | G60: =+'2020-2022 Composite Index Data'!G60 -> 13190 | H60: 0.4738 | J60: =IF(ISNUMBER(VLOOKUP(A60,'2020-2022 Composite Index'!$A$6:$E$140,5,FALSE)),"YES","NO") -> NO | AJ60: =IF((1-D60/'2020-2022 Composite Index Data'!D60)>=0.03,"YES","NO") -> NO
A61: 57 | B61: MATHEWS | C61: =VLOOKUP(A61,'2020-2022 Composite Index Data'!A61:G195,3,FALSE) -> 1681978636 | D61: 230839453 | E61: =VLOOKUP(A61,'2020-2022 Composite Index Data'!A61:G195,5,FALSE) -> 40043459.71 | F61: =+'2020-2022 Composite Index Data'!F61 -> 1075.74 | G61: =+'2020-2022 Composite Index Data'!G61 -> 8651 | H61: 0.5162 | J61: =IF(ISNUMBER(VLOOKUP(A61,'2020-2022 Composite Index'!$A$6:$E$140,5,FALSE)),"YES","NO") -> NO | AJ61: =IF((1-D61/'2020-2022 Composite Index Data'!D61)>=0.03,"YES","NO") -> NO
A62: 58 | B62: MECKLENBURG | C62: =VLOOKUP(A62,'2020-2022 Composite Index Data'!A62:G196,3,FALSE) -> 4379236371 | D62: 555134508 | E62: =VLOOKUP(A62,'2020-2022 Composite Index Data'!A62:G196,5,FALSE) -> 499432508.5 | F62: =+'2020-2022 Composite Index Data'!F62 -> 4103.14 | G62: =+'2020-2022 Composite Index Data'!G62 -> 31264 | H62: 0.3996 | J62: =IF(ISNUMBER(VLOOKUP(A62,'2020-2022 Composite Index'!$A$6:$E$140,5,FALSE)),"YES","NO") -> YES | AJ62: =IF((1-D62/'2020-2022 Composite Index Data'!D62)>=0.03,"YES","NO") -> YES
A63: 59 | B63: MIDDLESEX | C63: =VLOOKUP(A63,'2020-2022 Composite Index Data'!A63:G197,3,FALSE) -> 2304976583 | D63: 267669767 | E63: =VLOOKUP(A63,'2020-2022 Composite Index Data'!A63:G197,5,FALSE) -> 97303967.33 | F63: =+'2020-2022 Composite Index Data'!F63 -> 1194.26 | G63: =+'2020-2022 Composite Index Data'!G63 -> 11004 | H63: 0.6008 | J63: =IF(ISNUMBER(VLOOKUP(A63,'2020-2022 Composite Index'!$A$6:$E$140,5,FALSE)),"YES","NO") -> NO | AJ63: =IF((1-D63/'2020-2022 Composite Index Data'!D63)>=0.03,"YES","NO") -> NO
A64: 60 | B64: MONTGOMERY | C64: =VLOOKUP(A64,'2020-2022 Composite Index Data'!A64:G198,3,FALSE) -> 9010770466 | D64: 2117629750 | E64: =VLOOKUP(A64,'2020-2022 Composite Index Data'!A64:G198,5,FALSE) -> 1089716203 | F64: =+'2020-2022 Composite Index Data'!F64 -> 9636.95 | G64: =+'2020-2022 Composite Index Data'!G64 -> 98776 | H64: 0.4005 | J64: =IF(ISNUMBER(VLOOKUP(A64,'2020-2022 Composite Index'!$A$6:$E$140,5,FALSE)),"YES","NO") -> NO | AJ64: =IF((1-D64/'2020-2022 Composite Index Data'!D64)>=0.03,"YES","NO") -> NO
A65: 62 | B65: NELSON | C65: =VLOOKUP(A65,'2020-2022 Composite Index Data'!A65:G199,3,FALSE) -> 3094695787 | D65: 395053750.4 | E65: =VLOOKUP(A65,'2020-2022 Composite Index Data'!A65:G199,5,FALSE) -> 102746557.3 | F65: =+'2020-2022 Composite Index Data'!F65 -> 1794.43 | G65: =+'2020-2022 Composite Index Data'!G65 -> 14858 | H65: 0.5604 | J65: =IF(ISNUMBER(VLOOKUP(A65,'2020-2022 Composite Index'!$A$6:$E$140,5,FALSE)),"YES","NO") -> NO | AJ65: =IF((1-D65/'2020-2022 Composite Index Data'!D65)>=0.03,"YES","NO") -> NO
A66: 63 | B66: NEW KENT | C66: =VLOOKUP(A66,'2020-2022 Composite Index Data'!A66:G200,3,FALSE) -> 3068018934 | D66: 695958723 | E66: =VLOOKUP(A66,'2020-2022 Composite Index Data'!A66:G200,5,FALSE) -> 129697270 | F66: =+'2020-2022 Composite Index Data'!F66 -> 3158.26 | G66: =+'2020-2022 Composite Index Data'!G66 -> 21709 | H66: 0.4166 | J66: =IF(ISNUMBER(VLOOKUP(A66,'2020-2022 Composite Index'!$A$6:$E$140,5,FALSE)),"YES","NO") -> NO | AJ66: =IF((1-D66/'2020-2022 Composite Index Data'!D66)>=0.03,"YES","NO") -> NO
A67: 65 | B67: NORTHAMPTON | C67: =VLOOKUP(A67,'2020-2022 Composite Index Data'!A67:G201,3,FALSE) -> 2081349223 | D67: 262967873.3 | E67: =VLOOKUP(A67,'2020-2022 Composite Index Data'!A67:G201,5,FALSE) -> 125938193.6 | F67: =+'2020-2022 Composite Index Data'!F67 -> 1528.2 | G67: =+'2020-2022 Composite Index Data'!G67 -> 12000 | H67: 0.4696 | J67: =IF(ISNUMBER(VLOOKUP(A67,'2020-2022 Composite Index'!$A$6:$E$140,5,FALSE)),"YES","NO") -> NO | AJ67: =IF((1-D67/'2020-2022 Composite Index Data'!D67)>=0.03,"YES","NO") -> NO
A68: 66 | B68: NORTHUMBERLAND | C68: =VLOOKUP(A68,'2020-2022 Composite Index Data'!A68:G202,3,FALSE) -> 3006211990 | D68: 324179623.1 | E68: =VLOOKUP(A68,'2020-2022 Composite Index Data'!A68:G202,5,FALSE) -> 59190236.48 | F68: =+'2020-2022 Composite Index Data'!F68 -> 1217.59 | G68: =+'2020-2022 Composite Index Data'!G68 -> 12053 | H68: 0.7116 | J68: =IF(ISNUMBER(VLOOKUP(A68,'2020-2022 Composite Index'!$A$6:$E$140,5,FALSE)),"YES","NO") -> NO | AJ68: =IF((1-D68/'2020-2022 Composite Index Data'!D68)>=0.03,"YES","NO") -> NO
A69: 67 | B69: NOTTOWAY | C69: =VLOOKUP(A69,'2020-2022 Composite Index Data'!A69:G203,3,FALSE) -> 1206276137 | D69: 236775861.6 | E69: =VLOOKUP(A69,'2020-2022 Composite Index Data'!A69:G203,5,FALSE) -> 138347448.7 | F69: =+'2020-2022 Composite Index Data'!F69 -> 1958.02 | G69: =+'2020-2022 Composite Index Data'!G69 -> 15845 | H69: 0.2597 | J69: =IF(ISNUMBER(VLOOKUP(A69,'2020-2022 Composite Index'!$A$6:$E$140,5,FALSE)),"YES","NO") -> YES | AJ69: =IF((1-D69/'2020-2022 Composite Index Data'!D69)>=0.03,"YES","NO") -> YES
A70: 68 | B70: ORANGE | C70: =VLOOKUP(A70,'2020-2022 Composite Index Data'!A70:G204,3,FALSE) -> 4660934259 | D70: 968752175.7 | E70: =VLOOKUP(A70,'2020-2022 Composite Index Data'!A70:G204,5,FALSE) -> 296990638.5 | F70: =+'2020-2022 Composite Index Data'!F70 -> 4745.57 | G70: =+'2020-2022 Composite Index Data'!G70 -> 34521 | H70: 0.4105 | J70: =IF(ISNUMBER(VLOOKUP(A70,'2020-2022 Composite Index'!$A$6:$E$140,5,FALSE)),"YES","NO") -> NO | AJ70: =IF((1-D70/'2020-2022 Composite Index Data'!D70)>=0.03,"YES","NO") -> NO
A71: 69 | B71: PAGE | C71: =VLOOKUP(A71,'2020-2022 Composite Index Data'!A71:G205,3,FALSE) -> 2626726549 | D71: 460979981.6 | E71: =VLOOKUP(A71,'2020-2022 Composite Index Data'!A71:G205,5,FALSE) -> 179912536.8 | F71: =+'2020-2022 Composite Index Data'!F71 -> 3233.29 | G71: =+'2020-2022 Composite Index Data'!G71 -> 23665 | H71: 0.3198 | J71: =IF(ISNUMBER(VLOOKUP(A71,'2020-2022 Composite Index'!$A$6:$E$140,5,FALSE)),"YES","NO") -> NO | AJ71: =IF((1-D71/'2020-2022 Composite Index Data'!D71)>=0.03,"YES","NO") -> NO
A72: 70 | B72: PATRICK | C72: =VLOOKUP(A72,'2020-2022 Composite Index Data'!A72:G206,3,FALSE) -> 1637838595 | D72: 271540560 | E72: =VLOOKUP(A72,'2020-2022 Composite Index Data'!A72:G206,5,FALSE) -> 97099828.71 | F72: =+'2020-2022 Composite Index Data'!F72 -> 2588.38 | G72: =+'2020-2022 Composite Index Data'!G72 -> 17930 | H72: 0.2456 | J72: =IF(ISNUMBER(VLOOKUP(A72,'2020-2022 Composite Index'!$A$6:$E$140,5,FALSE)),"YES","NO") -> YES | AJ72: =IF((1-D72/'2020-2022 Composite Index Data'!D72)>=0.03,"YES","NO") -> YES
A73: 71 | B73: PITTSYLVANIA | C73: =VLOOKUP(A73,'2020-2022 Composite Index Data'!A73:G207,3,FALSE) -> 4917968785 | D73: 1148451836 | E73: =VLOOKUP(A73,'2020-2022 Composite Index Data'!A73:G207,5,FALSE) -> 173524846.3 | F73: =+'2020-2022 Composite Index Data'!F73 -> 8619.97 | G73: =+'2020-2022 Composite Index Data'!G73 -> 62166 | H73: 0.2446 | J73: =IF(ISNUMBER(VLOOKUP(A73,'2020-2022 Composite Index'!$A$6:$E$140,5,FALSE)),"YES","NO") -> NO | AJ73: =IF((1-D73/'2020-2022 Composite Index Data'!D73)>=0.03,"YES","NO") -> NO
A74: 72 | B74: POWHATAN | C74: =VLOOKUP(A74,'2020-2022 Composite Index Data'!A74:G208,3,FALSE) -> 4252961337 | D74: 1014448414 | E74: =VLOOKUP(A74,'2020-2022 Composite Index Data'!A74:G208,5,FALSE) -> 253911712.5 | F74: =+'2020-2022 Composite Index Data'!F74 -> 4220.03 | G74: =+'2020-2022 Composite Index Data'!G74 -> 29166 | H74: 0.4507 | J74: =IF(ISNUMBER(VLOOKUP(A74,'2020-2022 Composite Index'!$A$6:$E$140,5,FALSE)),"YES","NO") -> NO | AJ74: =IF((1-D74/'2020-2022 Composite Index Data'!D74)>=0.03,"YES","NO") -> NO
A75: 73 | B75: PRINCE EDWARD | C75: =VLOOKUP(A75,'2020-2022 Composite Index Data'!A75:G209,3,FALSE) -> 1735744006 | D75: 328303784 | E75: =VLOOKUP(A75,'2020-2022 Composite Index Data'!A75:G209,5,FALSE) -> 292525761.4 | F75: =+'2020-2022 Composite Index Data'!F75 -> 1968.27 | G75: =+'2020-2022 Composite Index Data'!G75 -> 23223 | H75: 0.3554 | J75: =IF(ISNUMBER(VLOOKUP(A75,'2020-2022 Composite Index'!$A$6:$E$140,5,FALSE)),"YES","NO") -> NO | AJ75: =IF((1-D75/'2020-2022 Composite Index Data'!D75)>=0.03,"YES","NO") -> NO
A76: 74 | B76: PRINCE GEORGE | C76: =VLOOKUP(A76,'2020-2022 Composite Index Data'!A76:G210,3,FALSE) -> 3250105233 | D76: 753480100.1 | E76: =VLOOKUP(A76,'2020-2022 Composite Index Data'!A76:G210,5,FALSE) -> 203313121.8 | F76: =+'2020-2022 Composite Index Data'!F76 -> 6189.27 | G76: =+'2020-2022 Composite Index Data'!G76 -> 37025 | H76: 0.2467 | J76: =IF(ISNUMBER(VLOOKUP(A76,'2020-2022 Composite Index'!$A$6:$E$140,5,FALSE)),"YES","NO") -> NO | AJ76: =IF((1-D76/'2020-2022 Composite Index Data'!D76)>=0.03,"YES","NO") -> NO
A77: 75 | B77: PRINCE WILLIAM | C77: =VLOOKUP(A77,'2020-2022 Composite Index Data'!A77:G211,3,FALSE) -> 6.449671359e+10 | D77: 1.561278831e+10 | E77: =VLOOKUP(A77,'2020-2022 Composite Index Data'!A77:G211,5,FALSE) -> 5540880714 | F77: =+'2020-2022 Composite Index Data'!F77 -> 87313.29 | G77: =+'2020-2022 Composite Index Data'!G77 -> 455990 | H77: 0.3799 | J77: =IF(ISNUMBER(VLOOKUP(A77,'2020-2022 Composite Index'!$A$6:$E$140,5,FALSE)),"YES","NO") -> NO | AJ77: =IF((1-D77/'2020-2022 Composite Index Data'!D77)>=0.03,"YES","NO") -> NO
A78: 77 | B78: PULASKI | C78: =VLOOKUP(A78,'2020-2022 Composite Index Data'!A78:G212,3,FALSE) -> 3030751356 | D78: 631007810.8 | E78: =VLOOKUP(A78,'2020-2022 Composite Index Data'!A78:G212,5,FALSE) -> 376119737.5 | F78: =+'2020-2022 Composite Index Data'!F78 -> 4013.88 | G78: =+'2020-2022 Composite Index Data'!G78 -> 34467 | H78: 0.3235 | J78: =IF(ISNUMBER(VLOOKUP(A78,'2020-2022 Composite Index'!$A$6:$E$140,5,FALSE)),"YES","NO") -> NO | AJ78: =IF((1-D78/'2020-2022 Composite Index Data'!D78)>=0.03,"YES","NO") -> NO
A79: 78 | B79: RAPPAHANNOCK | C79: =VLOOKUP(A79,'2020-2022 Composite Index Data'!A79:G213,3,FALSE) -> 2116665131 | D79: 263411193 | E79: =VLOOKUP(A79,'2020-2022 Composite Index Data'!A79:G213,5,FALSE) -> 40244653 | F79: =+'2020-2022 Composite Index Data'!F79 -> 817.68 | G79: =+'2020-2022 Composite Index Data'!G79 -> 7288 | H79: 0.799 | J79: =IF(ISNUMBER(VLOOKUP(A79,'2020-2022 Composite Index'!$A$6:$E$140,5,FALSE)),"YES","NO") -> NO | AJ79: =IF((1-D79/'2020-2022 Composite Index Data'!D79)>=0.03,"YES","NO") -> NO
A80: 79 | B80: RICHMOND COUNTY | C80: =VLOOKUP(A80,'2020-2022 Composite Index Data'!A80:G214,3,FALSE) -> 1002618539 | D80: 174675312 | E80: =VLOOKUP(A80,'2020-2022 Composite Index Data'!A80:G214,5,FALSE) -> 70063437.13 | F80: =+'2020-2022 Composite Index Data'!F80 -> 1275.55 | G80: =+'2020-2022 Composite Index Data'!G80 -> 9094 | H80: 0.312 | J80: =IF(ISNUMBER(VLOOKUP(A80,'2020-2022 Composite Index'!$A$6:$E$140,5,FALSE)),"YES","NO") -> YES | AJ80: =IF((1-D80/'2020-2022 Composite Index Data'!D80)>=0.03,"YES","NO") -> YES
A81: 80 | B81: ROANOKE COUNTY | C81: =VLOOKUP(A81,'2020-2022 Composite Index Data'!A81:G215,3,FALSE) -> 9484304507 | D81: 2845345189 | E81: =VLOOKUP(A81,'2020-2022 Composite Index Data'!A81:G215,5,FALSE) -> 1060806739 | F81: =+'2020-2022 Composite Index Data'!F81 -> 13778.96 | G81: =+'2020-2022 Composite Index Data'!G81 -> 93735 | H81: 0.366 | J81: =IF(ISNUMBER(VLOOKUP(A81,'2020-2022 Composite Index'!$A$6:$E$140,5,FALSE)),"YES","NO") -> NO | AJ81: =IF((1-D81/'2020-2022 Composite Index Data'!D81)>=0.03,"YES","NO") -> NO
A82: 81 | B82: ROCKBRIDGE | C82: =VLOOKUP(A82,'2020-2022 Composite Index Data'!A82:G216,3,FALSE) -> 3237676338 | D82: 483031172.2 | E82: =VLOOKUP(A82,'2020-2022 Composite Index Data'!A82:G216,5,FALSE) -> 253206596 | F82: =+'2020-2022 Composite Index Data'!F82 -> 2574.59 | G82: =+'2020-2022 Composite Index Data'!G82 -> 22596 | H82: 0.4506 | J82: =IF(ISNUMBER(VLOOKUP(A82,'2020-2022 Composite Index'!$A$6:$E$140,5,FALSE)),"YES","NO") -> NO | AJ82: =IF((1-D82/'2020-2022 Composite Index Data'!D82)>=0.03,"YES","NO") -> NO
A83: 82 | B83: ROCKINGHAM | C83: =VLOOKUP(A83,'2020-2022 Composite Index Data'!A83:G217,3,FALSE) -> 1.053913668e+10 | D83: 2030964188 | E83: =VLOOKUP(A83,'2020-2022 Composite Index Data'!A83:G217,5,FALSE) -> 618300799.6 | F83: =+'2020-2022 Composite Index Data'!F83 -> 11252.58 | G83: =+'2020-2022 Composite Index Data'!G83 -> 80666 | H83: 0.3799 | J83: =IF(ISNUMBER(VLOOKUP(A83,'2020-2022 Composite Index'!$A$6:$E$140,5,FALSE)),"YES","NO") -> NO | AJ83: =IF((1-D83/'2020-2022 Composite Index Data'!D83)>=0.03,"YES","NO") -> NO
A84: 83 | B84: RUSSELL | C84: =VLOOKUP(A84,'2020-2022 Composite Index Data'!A84:G218,3,FALSE) -> 2142651704 | D84: 396736875.4 | E84: =VLOOKUP(A84,'2020-2022 Composite Index Data'!A84:G218,5,FALSE) -> 155743996 | F84: =+'2020-2022 Composite Index Data'!F84 -> 3629.3 | G84: =+'2020-2022 Composite Index Data'!G84 -> 27309 | H84: 0.2373 | J84: =IF(ISNUMBER(VLOOKUP(A84,'2020-2022 Composite Index'!$A$6:$E$140,5,FALSE)),"YES","NO") -> NO | AJ84: =IF((1-D84/'2020-2022 Composite Index Data'!D84)>=0.03,"YES","NO") -> NO
A85: 84 | B85: SCOTT | C85: =VLOOKUP(A85,'2020-2022 Composite Index Data'!A85:G219,3,FALSE) -> 1449588769 | D85: 308392569 | E85: =VLOOKUP(A85,'2020-2022 Composite Index Data'!A85:G219,5,FALSE) -> 125014352.5 | F85: =+'2020-2022 Composite Index Data'!F85 -> 3431.49 | G85: =+'2020-2022 Composite Index Data'!G85 -> 22377 | H85: 0.1899 | J85: =IF(ISNUMBER(VLOOKUP(A85,'2020-2022 Composite Index'!$A$6:$E$140,5,FALSE)),"YES","NO") -> YES | AJ85: =IF((1-D85/'2020-2022 Composite Index Data'!D85)>=0.03,"YES","NO") -> YES
A86: 85 | B86: SHENANDOAH | C86: =VLOOKUP(A86,'2020-2022 Composite Index Data'!A86:G220,3,FALSE) -> 5560973202 | D86: 1024286242 | E86: =VLOOKUP(A86,'2020-2022 Composite Index Data'!A86:G220,5,FALSE) -> 378819979.5 | F86: =+'2020-2022 Composite Index Data'!F86 -> 5813 | G86: =+'2020-2022 Composite Index Data'!G86 -> 42525 | H86: 0.3832 | J86: =IF(ISNUMBER(VLOOKUP(A86,'2020-2022 Composite Index'!$A$6:$E$140,5,FALSE)),"YES","NO") -> NO | AJ86: =IF((1-D86/'2020-2022 Composite Index Data'!D86)>=0.03,"YES","NO") -> NO
A87: 86 | B87: SMYTH | C87: =VLOOKUP(A87,'2020-2022 Composite Index Data'!A87:G221,3,FALSE) -> 2050943352 | D87: 480940167 | E87: =VLOOKUP(A87,'2020-2022 Composite Index Data'!A87:G221,5,FALSE) -> 205033051.6 | F87: =+'2020-2022 Composite Index Data'!F87 -> 4217.82 | G87: =+'2020-2022 Composite Index Data'!G87 -> 30686 | H87: 0.2228 | J87: =IF(ISNUMBER(VLOOKUP(A87,'2020-2022 Composite Index'!$A$6:$E$140,5,FALSE)),"YES","NO") -> YES | AJ87: =IF((1-D87/'2020-2022 Composite Index Data'!D87)>=0.03,"YES","NO") -> YES
A88: 87 | B88: SOUTHAMPTON | C88: =VLOOKUP(A88,'2020-2022 Composite Index Data'!A88:G222,3,FALSE) -> 2105916476 | D88: 373233609.4 | E88: =VLOOKUP(A88,'2020-2022 Composite Index Data'!A88:G222,5,FALSE) -> 43903421.4 | F88: =+'2020-2022 Composite Index Data'!F88 -> 2637.85 | G88: =+'2020-2022 Composite Index Data'!G88 -> 18119 | H88: 0.3015 | J88: =IF(ISNUMBER(VLOOKUP(A88,'2020-2022 Composite Index'!$A$6:$E$140,5,FALSE)),"YES","NO") -> YES | AJ88: =IF((1-D88/'2020-2022 Composite Index Data'!D88)>=0.03,"YES","NO") -> YES
A89: 88 | B89: SPOTSYLVANIA | C89: =VLOOKUP(A89,'2020-2022 Composite Index Data'!A89:G223,3,FALSE) -> 1.754926347e+10 | D89: 4040232021 | E89: =VLOOKUP(A89,'2020-2022 Composite Index Data'!A89:G223,5,FALSE) -> 1634908083 | F89: =+'2020-2022 Composite Index Data'!F89 -> 23183.64 | G89: =+'2020-2022 Composite Index Data'!G89 -> 131549 | H89: 0.3722 | J89: =IF(ISNUMBER(VLOOKUP(A89,'2020-2022 Composite Index'!$A$6:$E$140,5,FALSE)),"YES","NO") -> NO | AJ89: =IF((1-D89/'2020-2022 Composite Index Data'!D89)>=0.03,"YES","NO") -> NO
A90: 89 | B90: STAFFORD | C90: =VLOOKUP(A90,'2020-2022 Composite Index Data'!A90:G224,3,FALSE) -> 1.958782622e+10 | D90: 4787366131 | E90: =VLOOKUP(A90,'2020-2022 Composite Index Data'!A90:G224,5,FALSE) -> 1165726181 | F90: =+'2020-2022 Composite Index Data'!F90 -> 28486.89 | G90: =+'2020-2022 Composite Index Data'!G90 -> 145699 | H90: 0.347 | J90: =IF(ISNUMBER(VLOOKUP(A90,'2020-2022 Composite Index'!$A$6:$E$140,5,FALSE)),"YES","NO") -> NO | AJ90: =IF((1-D90/'2020-2022 Composite Index Data'!D90)>=0.03,"YES","NO") -> NO
A91: 90 | B91: SURRY | C91: =VLOOKUP(A91,'2020-2022 Composite Index Data'!A91:G225,3,FALSE) -> 2840333104 | D91: 138772208 | E91: =VLOOKUP(A91,'2020-2022 Composite Index Data'!A91:G225,5,FALSE) -> 20421222 | F91: =+'2020-2022 Composite Index Data'!F91 -> 731.15 | G91: =+'2020-2022 Composite Index Data'!G91 -> 6674 | H91: 0.8 | J91: =IF(ISNUMBER(VLOOKUP(A91,'2020-2022 Composite Index'!$A$6:$E$140,5,FALSE)),"YES","NO") -> YES | AJ91: =IF((1-D91/'2020-2022 Composite Index Data'!D91)>=0.03,"YES","NO") -> YES
A92: 91 | B92: SUSSEX | C92: =VLOOKUP(A92,'2020-2022 Composite Index Data'!A92:G226,3,FALSE) -> 1028597204 | D92: 160339197 | E92: =VLOOKUP(A92,'2020-2022 Composite Index Data'!A92:G226,5,FALSE) -> 90499076.51 | F92: =+'2020-2022 Composite Index Data'!F92 -> 1019.46 | G92: =+'2020-2022 Composite Index Data'!G92 -> 11655 | H92: 0.3492 | J92: =IF(ISNUMBER(VLOOKUP(A92,'2020-2022 Composite Index'!$A$6:$E$140,5,FALSE)),"YES","NO") -> NO | AJ92: =IF((1-D92/'2020-2022 Composite Index Data'!D92)>=0.03,"YES","NO") -> NO
A93: 92 | B93: TAZEWELL | C93: =VLOOKUP(A93,'2020-2022 Composite Index Data'!A93:G227,3,FALSE) -> 2929410024 | D93: 690958565.1 | E93: =VLOOKUP(A93,'2020-2022 Composite Index Data'!A93:G227,5,FALSE) -> 511172039.3 | F93: =+'2020-2022 Composite Index Data'!F93 -> 5625.69 | G93: =+'2020-2022 Composite Index Data'!G93 -> 42574 | H93: 0.2575 | J93: =IF(ISNUMBER(VLOOKUP(A93,'2020-2022 Composite Index'!$A$6:$E$140,5,FALSE)),"YES","NO") -> NO | AJ93: =IF((1-D93/'2020-2022 Composite Index Data'!D93)>=0.03,"YES","NO") -> NO
A94: 93 | B94: WARREN | C94: =VLOOKUP(A94,'2020-2022 Composite Index Data'!A94:G228,3,FALSE) -> 6023427520 | D94: 1033422970 | E94: =VLOOKUP(A94,'2020-2022 Composite Index Data'!A94:G228,5,FALSE) -> 404670592.2 | F94: =+'2020-2022 Composite Index Data'!F94 -> 5279.87 | G94: =+'2020-2022 Composite Index Data'!G94 -> 39239 | H94: 0.4432 | J94: =IF(ISNUMBER(VLOOKUP(A94,'2020-2022 Composite Index'!$A$6:$E$140,5,FALSE)),"YES","NO") -> NO | AJ94: =IF((1-D94/'2020-2022 Composite Index Data'!D94)>=0.03,"YES","NO") -> NO
A95: 94 | B95: WASHINGTON | C95: =VLOOKUP(A95,'2020-2022 Composite Index Data'!A95:G229,3,FALSE) -> 5482514964 | D95: 1105064376 | E95: =VLOOKUP(A95,'2020-2022 Composite Index Data'!A95:G229,5,FALSE) -> 659752986 | F95: =+'2020-2022 Composite Index Data'!F95 -> 6979.59 | G95: =+'2020-2022 Composite Index Data'!G95 -> 53789 | H95: 0.3416 | J95: =IF(ISNUMBER(VLOOKUP(A95,'2020-2022 Composite Index'!$A$6:$E$140,5,FALSE)),"YES","NO") -> YES | AJ95: =IF((1-D95/'2020-2022 Composite Index Data'!D95)>=0.03,"YES","NO") -> YES
A96: 95 | B96: WESTMORELAND | C96: =VLOOKUP(A96,'2020-2022 Composite Index Data'!A96:G230,3,FALSE) -> 2132048750 | D96: 317758030 | E96: =VLOOKUP(A96,'2020-2022 Composite Index Data'!A96:G230,5,FALSE) -> 67126856.73 | F96: =+'2020-2022 Composite Index Data'!F96 -> 1518.62 | G96: =+'2020-2022 Composite Index Data'!G96 -> 14191 | H96: 0.4618 | J96: =IF(ISNUMBER(VLOOKUP(A96,'2020-2022 Composite Index'!$A$6:$E$140,5,FALSE)),"YES","NO") -> NO | AJ96: =IF((1-D96/'2020-2022 Composite Index Data'!D96)>=0.03,"YES","NO") -> NO
A97: 96 | B97: WISE | C97: =VLOOKUP(A97,'2020-2022 Composite Index Data'!A97:G231,3,FALSE) -> 3462392703 | D97: 512235823.9 | E97: =VLOOKUP(A97,'2020-2022 Composite Index Data'!A97:G231,5,FALSE) -> 269251708 | F97: =+'2020-2022 Composite Index Data'!F97 -> 5575 | G97: =+'2020-2022 Composite Index Data'!G97 -> 39133 | H97: 0.2372 | J97: =IF(ISNUMBER(VLOOKUP(A97,'2020-2022 Composite Index'!$A$6:$E$140,5,FALSE)),"YES","NO") -> YES | AJ97: =IF((1-D97/'2020-2022 Composite Index Data'!D97)>=0.03,"YES","NO") -> YES
A98: 97 | B98: WYTHE | C98: =VLOOKUP(A98,'2020-2022 Composite Index Data'!A98:G232,3,FALSE) -> 2999424650 | D98: 514976126.1 | E98: =VLOOKUP(A98,'2020-2022 Composite Index Data'!A98:G232,5,FALSE) -> 389415463.5 | F98: =+'2020-2022 Composite Index Data'!F98 -> 3999.31 | G98: =+'2020-2022 Composite Index Data'!G98 -> 28723 | H98: 0.3204 | J98: =IF(ISNUMBER(VLOOKUP(A98,'2020-2022 Composite Index'!$A$6:$E$140,5,FALSE)),"YES","NO") -> NO | AJ98: =IF((1-D98/'2020-2022 Composite Index Data'!D98)>=0.03,"YES","NO") -> NO
A99: 98 | B99: YORK | C99: =VLOOKUP(A99,'2020-2022 Composite Index Data'!A99:G233,3,FALSE) -> 9947911301 | D99: 2083506215 | E99: =VLOOKUP(A99,'2020-2022 Composite Index Data'!A99:G233,5,FALSE) -> 949567169.2 | F99: =+'2020-2022 Composite Index Data'!F99 -> 12609.72 | G99: =+'2020-2022 Composite Index Data'!G99 -> 68890 | H99: 0.3812 | J99: =IF(ISNUMBER(VLOOKUP(A99,'2020-2022 Composite Index'!$A$6:$E$140,5,FALSE)),"YES","NO") -> NO | AJ99: =IF((1-D99/'2020-2022 Composite Index Data'!D99)>=0.03,"YES","NO") -> NO
A100: 101 | B100: ALEXANDRIA | C100: =VLOOKUP(A100,'2020-2022 Composite Index Data'!A100:G234,3,FALSE) -> 4.024176114e+10 | D100: 8345387865 | E100: =VLOOKUP(A100,'2020-2022 Composite Index Data'!A100:G234,5,FALSE) -> 2166848199 | F100: =+'2020-2022 Composite Index Data'!F100 -> 14987.82 | G100: =+'2020-2022 Composite Index Data'!G100 -> 160719 | H100: 0.8 | J100: =IF(ISNUMBER(VLOOKUP(A100,'2020-2022 Composite Index'!$A$6:$E$140,5,FALSE)),"YES","NO") -> NO | AJ100: =IF((1-D100/'2020-2022 Composite Index Data'!D100)>=0.03,"YES","NO") -> NO
A101: 102 | B101: BRISTOL | C101: =VLOOKUP(A101,'2020-2022 Composite Index Data'!A101:G235,3,FALSE) -> 1301914173 | D101: 254390884 | E101: =VLOOKUP(A101,'2020-2022 Composite Index Data'!A101:G235,5,FALSE) -> 357990921.2 | F101: =+'2020-2022 Composite Index Data'!F101 -> 2157.22 | G101: =+'2020-2022 Composite Index Data'!G101 -> 17160 | H101: 0.3051 | J101: =IF(ISNUMBER(VLOOKUP(A101,'2020-2022 Composite Index'!$A$6:$E$140,5,FALSE)),"YES","NO") -> YES | AJ101: =IF((1-D101/'2020-2022 Composite Index Data'!D101)>=0.03,"YES","NO") -> YES
A102: 103 | B102: BUENA VISTA | C102: =VLOOKUP(A102,'2020-2022 Composite Index Data'!A102:G236,3,FALSE) -> 340422448 | D102: 96586964.01 | E102: =VLOOKUP(A102,'2020-2022 Composite Index Data'!A102:G236,5,FALSE) -> 30887490 | F102: =+'2020-2022 Composite Index Data'!F102 -> 892.59 | G102: =+'2020-2022 Composite Index Data'!G102 -> 6424 | H102: 0.1893 | J102: =IF(ISNUMBER(VLOOKUP(A102,'2020-2022 Composite Index'!$A$6:$E$140,5,FALSE)),"YES","NO") -> NO | AJ102: =IF((1-D102/'2020-2022 Composite Index Data'!D102)>=0.03,"YES","NO") -> NO
A103: 104 | B103: CHARLOTTESVILLE | C103: =VLOOKUP(A103,'2020-2022 Composite Index Data'!A103:G237,3,FALSE) -> 7637638792 | D103: 1378955317 | E103: =VLOOKUP(A103,'2020-2022 Composite Index Data'!A103:G237,5,FALSE) -> 971359089.5 | F103: =+'2020-2022 Composite Index Data'!F103 -> 4189.74 | G103: =+'2020-2022 Composite Index Data'!G103 -> 49132 | H103: 0.6886 | J103: =IF(ISNUMBER(VLOOKUP(A103,'2020-2022 Composite Index'!$A$6:$E$140,5,FALSE)),"YES","NO") -> YES | AJ103: =IF((1-D103/'2020-2022 Composite Index Data'!D103)>=0.03,"YES","NO") -> YES
A104: 106 | B104: COLONIAL HEIGHTS | C104: =VLOOKUP(A104,'2020-2022 Composite Index Data'!A104:G238,3,FALSE) -> 1812640041 | D104: 393945070.9 | E104: =VLOOKUP(A104,'2020-2022 Composite Index Data'!A104:G238,5,FALSE) -> 717236556.6 | F104: =+'2020-2022 Composite Index Data'!F104 -> 2759.15 | G104: =+'2020-2022 Composite Index Data'!G104 -> 17320 | H104: 0.4156 | J104: =IF(ISNUMBER(VLOOKUP(A104,'2020-2022 Composite Index'!$A$6:$E$140,5,FALSE)),"YES","NO") -> NO | AJ104: =IF((1-D104/'2020-2022 Composite Index Data'!D104)>=0.03,"YES","NO") -> NO
A105: 107 | B105: COVINGTON | C105: =VLOOKUP(A105,'2020-2022 Composite Index Data'!A105:G239,3,FALSE) -> 580167623.3 | D105: 97141426 | E105: =VLOOKUP(A105,'2020-2022 Composite Index Data'!A105:G239,5,FALSE) -> 110735625.8 | F105: =+'2020-2022 Composite Index Data'!F105 -> 961.48 | G105: =+'2020-2022 Composite Index Data'!G105 -> 5850 | H105: 0.2913 | J105: =IF(ISNUMBER(VLOOKUP(A105,'2020-2022 Composite Index'!$A$6:$E$140,5,FALSE)),"YES","NO") -> NO | AJ105: =IF((1-D105/'2020-2022 Composite Index Data'!D105)>=0.03,"YES","NO") -> NO
A106: 108 | B106: DANVILLE | C106: =VLOOKUP(A106,'2020-2022 Composite Index Data'!A106:G240,3,FALSE) -> 2314741875 | D106: 671438106.4 | E106: =VLOOKUP(A106,'2020-2022 Composite Index Data'!A106:G240,5,FALSE) -> 793761923.9 | F106: =+'2020-2022 Composite Index Data'!F106 -> 5519.2 | G106: =+'2020-2022 Composite Index Data'!G106 -> 41358 | H106: 0.2622 | J106: =IF(ISNUMBER(VLOOKUP(A106,'2020-2022 Composite Index'!$A$6:$E$140,5,FALSE)),"YES","NO") -> YES | AJ106: =IF((1-D106/'2020-2022 Composite Index Data'!D106)>=0.03,"YES","NO") -> YES
A107: 109 | B107: FALLS CHURCH | C107: =VLOOKUP(A107,'2020-2022 Composite Index Data'!A107:G241,3,FALSE) -> 4429390875 | D107: 990897780.4 | E107: =VLOOKUP(A107,'2020-2022 Composite Index Data'!A107:G241,5,FALSE) -> 362455075.4 | F107: =+'2020-2022 Composite Index Data'!F107 -> 2607.3 | G107: =+'2020-2022 Composite Index Data'!G107 -> 14269 | H107: 0.8 | J107: =IF(ISNUMBER(VLOOKUP(A107,'2020-2022 Composite Index'!$A$6:$E$140,5,FALSE)),"YES","NO") -> YES | AJ107: =IF((1-D107/'2020-2022 Composite Index Data'!D107)>=0.03,"YES","NO") -> YES
A108: 110 | B108: FREDERICKSBURG | C108: =VLOOKUP(A108,'2020-2022 Composite Index Data'!A108:G242,3,FALSE) -> 4256115976 | D108: 783702802.8 | E108: =VLOOKUP(A108,'2020-2022 Composite Index Data'!A108:G242,5,FALSE) -> 945058833 | F108: =+'2020-2022 Composite Index Data'!F108 -> 3400.21 | G108: =+'2020-2022 Composite Index Data'!G108 -> 27645 | H108: 0.584 | J108: =IF(ISNUMBER(VLOOKUP(A108,'2020-2022 Composite Index'!$A$6:$E$140,5,FALSE)),"YES","NO") -> YES | AJ108: =IF((1-D108/'2020-2022 Composite Index Data'!D108)>=0.03,"YES","NO") -> YES
A109: 111 | B109: GALAX | C109: =VLOOKUP(A109,'2020-2022 Composite Index Data'!A109:G243,3,FALSE) -> 517853296.8 | D109: 107727650 | E109: =VLOOKUP(A109,'2020-2022 Composite Index Data'!A109:G243,5,FALSE) -> 208254312.6 | F109: =+'2020-2022 Composite Index Data'!F109 -> 1229.66 | G109: =+'2020-2022 Composite Index Data'!G109 -> 6748 | H109: 0.2775 | J109: =IF(ISNUMBER(VLOOKUP(A109,'2020-2022 Composite Index'!$A$6:$E$140,5,FALSE)),"YES","NO") -> YES | AJ109: =IF((1-D109/'2020-2022 Composite Index Data'!D109)>=0.03,"YES","NO") -> YES
A110: 112 | B110: HAMPTON | C110: =VLOOKUP(A110,'2020-2022 Composite Index Data'!A110:G244,3,FALSE) -> 1.129869516e+10 | D110: 2504720759 | E110: =VLOOKUP(A110,'2020-2022 Composite Index Data'!A110:G244,5,FALSE) -> 1354676659 | F110: =+'2020-2022 Composite Index Data'!F110 -> 19013.27 | G110: =+'2020-2022 Composite Index Data'!G110 -> 136743 | H110: 0.2743 | J110: =IF(ISNUMBER(VLOOKUP(A110,'2020-2022 Composite Index'!$A$6:$E$140,5,FALSE)),"YES","NO") -> NO | AJ110: =IF((1-D110/'2020-2022 Composite Index Data'!D110)>=0.03,"YES","NO") -> NO
A111: 113 | B111: HARRISONBURG | C111: =VLOOKUP(A111,'2020-2022 Composite Index Data'!A111:G245,3,FALSE) -> 4478527082 | D111: 751775346.8 | E111: =VLOOKUP(A111,'2020-2022 Composite Index Data'!A111:G245,5,FALSE) -> 1238467780 | F111: =+'2020-2022 Composite Index Data'!F111 -> 5886.9 | G111: =+'2020-2022 Composite Index Data'!G111 -> 54689 | H111: 0.3537 | J111: =IF(ISNUMBER(VLOOKUP(A111,'2020-2022 Composite Index'!$A$6:$E$140,5,FALSE)),"YES","NO") -> NO | AJ111: =IF((1-D111/'2020-2022 Composite Index Data'!D111)>=0.03,"YES","NO") -> NO
A112: 114 | B112: HOPEWELL | C112: =VLOOKUP(A112,'2020-2022 Composite Index Data'!A112:G246,3,FALSE) -> 1743092658 | D112: 349187970.7 | E112: =VLOOKUP(A112,'2020-2022 Composite Index Data'!A112:G246,5,FALSE) -> 169710176.6 | F112: =+'2020-2022 Composite Index Data'!F112 -> 3976.77 | G112: =+'2020-2022 Composite Index Data'!G112 -> 22817 | H112: 0.2053 | J112: =IF(ISNUMBER(VLOOKUP(A112,'2020-2022 Composite Index'!$A$6:$E$140,5,FALSE)),"YES","NO") -> NO | AJ112: =IF((1-D112/'2020-2022 Composite Index Data'!D112)>=0.03,"YES","NO") -> NO
A113: 115 | B113: LYNCHBURG | C113: =VLOOKUP(A113,'2020-2022 Composite Index Data'!A113:G247,3,FALSE) -> 5751276307 | D113: 1522963193 | E113: =VLOOKUP(A113,'2020-2022 Composite Index Data'!A113:G247,5,FALSE) -> 1373101289 | F113: =+'2020-2022 Composite Index Data'!F113 -> 7978.94 | G113: =+'2020-2022 Composite Index Data'!G113 -> 80380 | H113: 0.3668 | J113: =IF(ISNUMBER(VLOOKUP(A113,'2020-2022 Composite Index'!$A$6:$E$140,5,FALSE)),"YES","NO") -> NO | AJ113: =IF((1-D113/'2020-2022 Composite Index Data'!D113)>=0.03,"YES","NO") -> NO
A114: 116 | B114: MARTINSVILLE | C114: =VLOOKUP(A114,'2020-2022 Composite Index Data'!A114:G248,3,FALSE) -> 679090524.7 | D114: 224114065 | E114: =VLOOKUP(A114,'2020-2022 Composite Index Data'!A114:G248,5,FALSE) -> 156627539 | F114: =+'2020-2022 Composite Index Data'!F114 -> 1893.97 | G114: =+'2020-2022 Composite Index Data'!G114 -> 13382 | H114: 0.2185 | J114: =IF(ISNUMBER(VLOOKUP(A114,'2020-2022 Composite Index'!$A$6:$E$140,5,FALSE)),"YES","NO") -> YES | AJ114: =IF((1-D114/'2020-2022 Composite Index Data'!D114)>=0.03,"YES","NO") -> YES
A115: 117 | B115: NEWPORT NEWS | C115: =VLOOKUP(A115,'2020-2022 Composite Index Data'!A115:G249,3,FALSE) -> 1.594067048e+10 | D115: 3476405934 | E115: =VLOOKUP(A115,'2020-2022 Composite Index Data'!A115:G249,5,FALSE) -> 2188701991 | F115: =+'2020-2022 Composite Index Data'!F115 -> 26872.56 | G115: =+'2020-2022 Composite Index Data'!G115 -> 182155 | H115: 0.2842 | J115: =IF(ISNUMBER(VLOOKUP(A115,'2020-2022 Composite Index'!$A$6:$E$140,5,FALSE)),"YES","NO") -> NO | AJ115: =IF((1-D115/'2020-2022 Composite Index Data'!D115)>=0.03,"YES","NO") -> NO
A116: 118 | B116: NORFOLK | C116: =VLOOKUP(A116,'2020-2022 Composite Index Data'!A116:G250,3,FALSE) -> 2.027190155e+10 | D116: 4082671515 | E116: =VLOOKUP(A116,'2020-2022 Composite Index Data'!A116:G250,5,FALSE) -> 2800002004 | F116: =+'2020-2022 Composite Index Data'!F116 -> 28431.57 | G116: =+'2020-2022 Composite Index Data'!G116 -> 246256 | H116: 0.3059 | J116: =IF(ISNUMBER(VLOOKUP(A116,'2020-2022 Composite Index'!$A$6:$E$140,5,FALSE)),"YES","NO") -> YES | AJ116: =IF((1-D116/'2020-2022 Composite Index Data'!D116)>=0.03,"YES","NO") -> YES
A117: 119 | B117: NORTON | C117: =VLOOKUP(A117,'2020-2022 Composite Index Data'!A117:G251,3,FALSE) -> 268221468.5 | D117: 61791085 | E117: =VLOOKUP(A117,'2020-2022 Composite Index Data'!A117:G251,5,FALSE) -> 140897761.6 | F117: =+'2020-2022 Composite Index Data'!F117 -> 766.24 | G117: =+'2020-2022 Composite Index Data'!G117 -> 3882 | H117: 0.271 | J117: =IF(ISNUMBER(VLOOKUP(A117,'2020-2022 Composite Index'!$A$6:$E$140,5,FALSE)),"YES","NO") -> YES | AJ117: =IF((1-D117/'2020-2022 Composite Index Data'!D117)>=0.03,"YES","NO") -> YES
A118: 120 | B118: PETERSBURG | C118: =VLOOKUP(A118,'2020-2022 Composite Index Data'!A118:G252,3,FALSE) -> 2049675300 | D118: 437661788.9 | E118: =VLOOKUP(A118,'2020-2022 Composite Index Data'!A118:G252,5,FALSE) -> 293004412.8 | F118: =+'2020-2022 Composite Index Data'!F118 -> 3738.9 | G118: =+'2020-2022 Composite Index Data'!G118 -> 31705 | H118: 0.2442 | J118: =IF(ISNUMBER(VLOOKUP(A118,'2020-2022 Composite Index'!$A$6:$E$140,5,FALSE)),"YES","NO") -> NO | AJ118: =IF((1-D118/'2020-2022 Composite Index Data'!D118)>=0.03,"YES","NO") -> NO
A119: 121 | B119: PORTSMOUTH | C119: =VLOOKUP(A119,'2020-2022 Composite Index Data'!A119:G253,3,FALSE) -> 7493264464 | D119: 1606991243 | E119: =VLOOKUP(A119,'2020-2022 Composite Index Data'!A119:G253,5,FALSE) -> 609799751.4 | F119: =+'2020-2022 Composite Index Data'!F119 -> 13476.08 | G119: =+'2020-2022 Composite Index Data'!G119 -> 95440 | H119: 0.2426 | J119: =IF(ISNUMBER(VLOOKUP(A119,'2020-2022 Composite Index'!$A$6:$E$140,5,FALSE)),"YES","NO") -> YES | AJ119: =IF((1-D119/'2020-2022 Composite Index Data'!D119)>=0.03,"YES","NO") -> YES
A120: 123 | B120: RICHMOND CITY | C120: =VLOOKUP(A120,'2020-2022 Composite Index Data'!A121:G255,3,FALSE) -> 2.528546946e+10 | D120: 5947843102 | E120: =VLOOKUP(A120,'2020-2022 Composite Index Data'!A121:G255,5,FALSE) -> 2699889890 | F120: =+'2020-2022 Composite Index Data'!F121 -> 22952.56 | G120: =+'2020-2022 Composite Index Data'!G121 -> 222853 | H120: 0.4688 | J120: =IF(ISNUMBER(VLOOKUP(A120,'2020-2022 Composite Index'!$A$6:$E$140,5,FALSE)),"YES","NO") -> YES | AJ120: =IF((1-D120/'2020-2022 Composite Index Data'!D121)>=0.03,"YES","NO") -> YES
A121: 124 | B121: ROANOKE CITY | C121: =VLOOKUP(A121,'2020-2022 Composite Index Data'!A122:G256,3,FALSE) -> 8006183887 | D121: 1960351206 | E121: =VLOOKUP(A121,'2020-2022 Composite Index Data'!A122:G256,5,FALSE) -> 1837473382 | F121: =+'2020-2022 Composite Index Data'!F122 -> 12822.83 | G121: =+'2020-2022 Composite Index Data'!G122 -> 99908 | H121: 0.3284 | J121: =IF(ISNUMBER(VLOOKUP(A121,'2020-2022 Composite Index'!$A$6:$E$140,5,FALSE)),"YES","NO") -> NO | AJ121: =IF((1-D121/'2020-2022 Composite Index Data'!D122)>=0.03,"YES","NO") -> NO
A122: 126 | B122: STAUNTON | C122: =VLOOKUP(A122,'2020-2022 Composite Index Data'!A123:G257,3,FALSE) -> 2061468018 | D122: 548605590 | E122: =VLOOKUP(A122,'2020-2022 Composite Index Data'!A123:G257,5,FALSE) -> 361530282.1 | F122: =+'2020-2022 Composite Index Data'!F123 -> 2563.29 | G122: =+'2020-2022 Composite Index Data'!G123 -> 24761 | H122: 0.3877 | J122: =IF(ISNUMBER(VLOOKUP(A122,'2020-2022 Composite Index'!$A$6:$E$140,5,FALSE)),"YES","NO") -> NO | AJ122: =IF((1-D122/'2020-2022 Composite Index Data'!D123)>=0.03,"YES","NO") -> NO
A123: 127 | B123: SUFFOLK | C123: =VLOOKUP(A123,'2020-2022 Composite Index Data'!A124:G258,3,FALSE) -> 1.080013337e+10 | D123: 2280067458 | E123: =VLOOKUP(A123,'2020-2022 Composite Index Data'!A124:G258,5,FALSE) -> 895475059.5 | F123: =+'2020-2022 Composite Index Data'!F124 -> 13783.08 | G123: =+'2020-2022 Composite Index Data'!G124 -> 92533 | H123: 0.3487 | J123: =IF(ISNUMBER(VLOOKUP(A123,'2020-2022 Composite Index'!$A$6:$E$140,5,FALSE)),"YES","NO") -> NO | AJ123: =IF((1-D123/'2020-2022 Composite Index Data'!D124)>=0.03,"YES","NO") -> NO
A124: 128 | B124: VIRGINIA BEACH | C124: =VLOOKUP(A124,'2020-2022 Composite Index Data'!A125:G259,3,FALSE) -> 6.136208947e+10 | D124: 1.290218396e+10 | E124: =VLOOKUP(A124,'2020-2022 Composite Index Data'!A125:G259,5,FALSE) -> 5597203814 | F124: =+'2020-2022 Composite Index Data'!F125 -> 67090.94 | G124: =+'2020-2022 Composite Index Data'!G125 -> 454448 | H124: 0.4082 | J124: =IF(ISNUMBER(VLOOKUP(A124,'2020-2022 Composite Index'!$A$6:$E$140,5,FALSE)),"YES","NO") -> NO | AJ124: =IF((1-D124/'2020-2022 Composite Index Data'!D125)>=0.03,"YES","NO") -> NO
A125: 130 | B125: WAYNESBORO | C125: =VLOOKUP(A125,'2020-2022 Composite Index Data'!A126:G260,3,FALSE) -> 2102741412 | D125: 447457169.7 | E125: =VLOOKUP(A125,'2020-2022 Composite Index Data'!A126:G260,5,FALSE) -> 490439867.5 | F125: =+'2020-2022 Composite Index Data'!F126 -> 2934.02 | G125: =+'2020-2022 Composite Index Data'!G126 -> 21955 | H125: 0.3652 | J125: =IF(ISNUMBER(VLOOKUP(A125,'2020-2022 Composite Index'!$A$6:$E$140,5,FALSE)),"YES","NO") -> NO | AJ125: =IF((1-D125/'2020-2022 Composite Index Data'!D126)>=0.03,"YES","NO") -> NO
A126: 131 | B126: WILLIAMSBURG | C126: =VLOOKUP(A126,'2020-2022 Composite Index Data'!A127:G261,3,FALSE) -> 1966889777 | D126: 318182469.9 | E126: =VLOOKUP(A126,'2020-2022 Composite Index Data'!A127:G261,5,FALSE) -> 400643946.6 | F126: =+'2020-2022 Composite Index Data'!F127 -> 998.36 | G126: =+'2020-2022 Composite Index Data'!G127 -> 15404 | H126: 0.7459 | J126: =IF(ISNUMBER(VLOOKUP(A126,'2020-2022 Composite Index'!$A$6:$E$140,5,FALSE)),"YES","NO") -> YES | AJ126: =IF((1-D126/'2020-2022 Composite Index Data'!D127)>=0.03,"YES","NO") -> YES
A127: 132 | B127: WINCHESTER | C127: =VLOOKUP(A127,'2020-2022 Composite Index Data'!A128:G262,3,FALSE) -> 3368957280 | D127: 711444641 | E127: =VLOOKUP(A127,'2020-2022 Composite Index Data'!A128:G262,5,FALSE) -> 833496389.8 | F127: =+'2020-2022 Composite Index Data'!F128 -> 4169.86 | G127: =+'2020-2022 Composite Index Data'!G128 -> 28005 | H127: 0.4319 | J127: =IF(ISNUMBER(VLOOKUP(A127,'2020-2022 Composite Index'!$A$6:$E$140,5,FALSE)),"YES","NO") -> NO | AJ127: =IF((1-D127/'2020-2022 Composite Index Data'!D128)>=0.03,"YES","NO") -> NO
A128: 134 | B128: FAIRFAX CITY | C128: =VLOOKUP(A128,'2020-2022 Composite Index Data'!A129:G263,3,FALSE) -> 6355389025 | D128: 1194362526 | E128: =VLOOKUP(A128,'2020-2022 Composite Index Data'!A129:G263,5,FALSE) -> 814715859.1 | F128: =+'2020-2022 Composite Index Data'!F129 -> 3079.33 | G128: =+'2020-2022 Composite Index Data'!G129 -> 23825 | H128: 0.8 | J128: =IF(ISNUMBER(VLOOKUP(A128,'2020-2022 Composite Index'!$A$6:$E$140,5,FALSE)),"YES","NO") -> YES | AJ128: =IF((1-D128/'2020-2022 Composite Index Data'!D129)>=0.03,"YES","NO") -> YES
A129: 135 | B129: FRANKLIN CITY | C129: =VLOOKUP(A129,'2020-2022 Composite Index Data'!A130:G264,3,FALSE) -> 559805775.9 | D129: 131242491 | E129: =VLOOKUP(A129,'2020-2022 Composite Index Data'!A130:G264,5,FALSE) -> 164268774.8 | F129: =+'2020-2022 Composite Index Data'!F130 -> 1032.56 | G129: =+'2020-2022 Composite Index Data'!G130 -> 8474 | H129: 0.2929 | J129: =IF(ISNUMBER(VLOOKUP(A129,'2020-2022 Composite Index'!$A$6:$E$140,5,FALSE)),"YES","NO") -> YES | AJ129: =IF((1-D129/'2020-2022 Composite Index Data'!D130)>=0.03,"YES","NO") -> YES
A130: 136 | B130: CHESAPEAKE | C130: =VLOOKUP(A130,'2020-2022 Composite Index Data'!A131:G265,3,FALSE) -> 2.835107245e+10 | D130: 6096507909 | E130: =VLOOKUP(A130,'2020-2022 Composite Index Data'!A131:G265,5,FALSE) -> 3514278566 | F130: =+'2020-2022 Composite Index Data'!F131 -> 39613.21 | G130: =+'2020-2022 Composite Index Data'!G131 -> 242655 | H130: 0.3486 | J130: =IF(ISNUMBER(VLOOKUP(A130,'2020-2022 Composite Index'!$A$6:$E$140,5,FALSE)),"YES","NO") -> NO | AJ130: =IF((1-D130/'2020-2022 Composite Index Data'!D131)>=0.03,"YES","NO") -> NO
A131: 137 | B131: LEXINGTON | C131: =VLOOKUP(A131,'2020-2022 Composite Index Data'!A132:G266,3,FALSE) -> 552281823.1 | D131: 153071270.3 | E131: =VLOOKUP(A131,'2020-2022 Composite Index Data'!A132:G266,5,FALSE) -> 86631192.85 | F131: =+'2020-2022 Composite Index Data'!F132 -> 659.79 | G131: =+'2020-2022 Composite Index Data'!G132 -> 7284 | H131: 0.392 | J131: =IF(ISNUMBER(VLOOKUP(A131,'2020-2022 Composite Index'!$A$6:$E$140,5,FALSE)),"YES","NO") -> NO | AJ131: =IF((1-D131/'2020-2022 Composite Index Data'!D132)>=0.03,"YES","NO") -> NO
A132: 138 | B132: EMPORIA | C132: =VLOOKUP(A132,'2020-2022 Composite Index Data'!A133:G267,3,FALSE) -> 365347587.3 | D132: 66962658.16 | E132: =VLOOKUP(A132,'2020-2022 Composite Index Data'!A133:G267,5,FALSE) -> 143228126.8 | F132: =+'2020-2022 Composite Index Data'!F133 -> 1021.87 | G132: =+'2020-2022 Composite Index Data'!G133 -> 5797 | H132: 0.2228 | J132: =IF(ISNUMBER(VLOOKUP(A132,'2020-2022 Composite Index'!$A$6:$E$140,5,FALSE)),"YES","NO") -> YES | AJ132: =IF((1-D132/'2020-2022 Composite Index Data'!D133)>=0.03,"YES","NO") -> YES
A133: 139 | B133: SALEM | C133: =VLOOKUP(A133,'2020-2022 Composite Index Data'!A134:G268,3,FALSE) -> 2426210430 | D133: 654974440.8 | E133: =VLOOKUP(A133,'2020-2022 Composite Index Data'!A134:G268,5,FALSE) -> 590842044 | F133: =+'2020-2022 Composite Index Data'!F134 -> 3872.18 | G133: =+'2020-2022 Composite Index Data'!G134 -> 25679 | H133: 0.3641 | J133: =IF(ISNUMBER(VLOOKUP(A133,'2020-2022 Composite Index'!$A$6:$E$140,5,FALSE)),"YES","NO") -> NO | AJ133: =IF((1-D133/'2020-2022 Composite Index Data'!D134)>=0.03,"YES","NO") -> NO
A134: 142 | B134: POQUOSON | C134: =VLOOKUP(A134,'2020-2022 Composite Index Data'!A135:G269,3,FALSE) -> 1591617690 | D134: 434145225 | E134: =VLOOKUP(A134,'2020-2022 Composite Index Data'!A135:G269,5,FALSE) -> 52879880.06 | F134: =+'2020-2022 Composite Index Data'!F135 -> 2095.2 | G134: =+'2020-2022 Composite Index Data'!G135 -> 12311 | H134: 0.3703 | J134: =IF(ISNUMBER(VLOOKUP(A134,'2020-2022 Composite Index'!$A$6:$E$140,5,FALSE)),"YES","NO") -> NO | AJ134: =IF((1-D134/'2020-2022 Composite Index Data'!D135)>=0.03,"YES","NO") -> NO
A135: 143 | B135: MANASSAS | C135: =VLOOKUP(A135,'2020-2022 Composite Index Data'!A136:G270,3,FALSE) -> 5514335181 | D135: 1144300433 | E135: =VLOOKUP(A135,'2020-2022 Composite Index Data'!A136:G270,5,FALSE) -> 607443814.7 | F135: =+'2020-2022 Composite Index Data'!F136 -> 7420.46 | G135: =+'2020-2022 Composite Index Data'!G136 -> 41783 | H135: 0.3611 | J135: =IF(ISNUMBER(VLOOKUP(A135,'2020-2022 Composite Index'!$A$6:$E$140,5,FALSE)),"YES","NO") -> NO | AJ135: =IF((1-D135/'2020-2022 Composite Index Data'!D136)>=0.03,"YES","NO") -> NO
